Workbook

Sheet Key Indicators Charts

Sheet Additional Charts

Sheet All Respondents
B1: Home Purchase Sentiment Index | E1: Share of respondents who say home prices will go up/go down/stay the same in the next 12 months (15) | I1: Average Home Price Decrease Expectation (16) | J1: Average Home Price Increase Expectation (17) | K1: Average Home Price Change Expectation | L1: Share of respondents who say mortgage rates will go up/go down/stay the same in the next 12 months (20B) | P1: With current Freddie Mac rate provided (20F) | R1: Share of respondents who say it is a good time to buy (12) | Y1: Please tell me the primary reason why you think this is a good time to buy a house (12b) | AD1: Please tell me the primary reason why you think this is a bad time to buy a house (12c) | AI1: Share of respondents who say it is a good time to sell (13) | AP1: Please tell me the primary reason why you think this is a good time to sell a house (13c) | AU1: Please tell me the primary reason why you think this is a bad time to sell a house (13d) | AZ1: Share of respondents who say home rental prices will go up/go down/stay the same in the next 12 months (18) | BD1: Average Rental Price Level Expectation | BE1: Share of respondents who say they would buy/rent if they were going to move (31) | BH1: Direction of economy (10) | BK1: Share of respondents who expect their financial situation to get better/get worse/stay the same over the next 12 months (11) | BS1: Share of respondents who say their household income is significantly higher/significantly lower/about the same than it was 12 months ago (116) | BW1: Do you think it will be difficult or easy for you to get a home mortgage today? (22) | BZ1: Thinking about the total amount you owe on your home compared to the value of your home today, would you say the total amount you owe on your home is: (91) | CG1: How concerned are you that you will lose your job in the next twelve months? (112B) | CK1: How concerned are you that you will lose your job in the next twelve months? (112B filtered) | CR1: When do you expect to move next? (13bb) | CW1: Employment Type (QEmployment) | DB1: Which is closer to your view? (47, financial reasons) | DD1: Which is closer to your view? (47bb, lifestyle reasons) | DF1: Thinking about the value of your home today compared to what you paid for the home, would you say your home is worth: (99) | DM1: Current Home Selling Price (223 filtered) | DO1: Current Home Selling Price (223a filtered)
B2: HPSI | C2: Difference (HPSI without rates - HPSI) | D2: HPSI without rates | E2: Go Up | F2: Go Down | G2: Stay the Same | H2: Net Home Prices Will Go Up | L2: Go Up | M2: Go Down | N2: Stay the Same | O2: Net Rates Will Go Down | P2: Freddie Mac Data Provided | Q2: Mean | R2: Very Good Time to Buy | S2: Somewhat Good Time to Buy | T2: Good Time to Buy | U2: Somewhat Bad Time to Buy | V2: Very Bad Time to Buy | W2: Bad Time to Buy | X2: Net Good Time to Buy | Y2: Home prices are low | Z2: Mortgage rates are favorable | AA2: There are many homes available on the market | AB2: It is easy to qualify for a mortgage | AC2: Economic conditions overall are favorable | AD2: Home prices are high | AE2: Mortgage rates are not favorable | AF2: There are not many homes available on the market | AG2: It is difficult to qualify for a mortgage | AH2: Economic conditions overall are not favorable | AI2: Very Good Time to Sell | AJ2: Somewhat Good Time to Sell | AK2: Good Time to Sell | AL2: Somewhat Bad Time to Sell | AM2: Very Bad Time to Sell | AN2: Bad Time to Sell | AO2: Net Good Time To Sell | AP2: Home prices are high | AQ2: Mortgage rates are favorable | AR2: There are not many homes available on the market | AS2: It is easy for buyers to qualify for a mortgage | AT2: Economic conditions overall are favorable | AU2: Home prices are low | AV2: Mortgage rates are not favorable | AW2: There are many homes available on the market | AX2: It is difficult for buyers to qualify for a mortgage | AY2: Economic conditions overall are not favorable | AZ2: Go Up | BA2: Go Down | BB2: Stay the Same | BC2: Net Rental Prices Will Go Up | BE2: Buy | BF2: Rent | BG2: Net Buy on Next Move | BH2: Right Track | BI2: Wrong Track | BJ2: Net Right Track | BK2: Much Better | BL2: Somewhat Better | BM2: Get Better | BN2: Stay the Same | BO2: Somewhat Worse | BP2: Much Worse | BQ2: Get Worse | BR2: Net Get Better | BS2: Significantly Higher | BT2: Significantly Lower | BU2: About the Same | BV2: Net Significantly Higher | BW2: Difficult | BX2: Easy | BY2: Net Easy | BZ2: At least 20% more | CA2: About 5-20% more | CB2: Underwater | CC2: At/Above Water | CD2: About the Same | CE2: About 5-20% less | CF2: At least 20% less | CG2: Very Concerned | CH2: Somewhat Concerned | CI2: Not Very Concerned | CJ2: Not at All Concerned | CK2: Very Concerned | CL2: Somewhat Concerned | CM2: Concerned | CN2: Not Concerned | CO2: Not Very Concerned | CP2: Not at All Concerned | CQ2: Net Not Concerned about Losing Job | CR2: Never | CS2: Less than 1 year | CT2: 1-3 years | CU2: 3-5 years | CV2: More than 5 years | CW2: Employed Full-Time | CX2: Employed Part-Time | CY2: Unemployed | CZ2: Discouraged Worker | DA2: Employed Part-Time For Econ Reasons | DB2: Renting makes more sense | DC2: Owning makes more sense | DD2: Renting makes more sense | DE2: Owning makes more sense | DF2: At least 20% more than you paid | DG2: About 5-20% more than you paid | DH2: Home Value Increase | DI2: About the Same | DJ2: Home Value Decrease | DK2: About 5-20% less than you paid | DL2: At least 20% less than you paid | DM2: Mean | DN2: Median | DO2: Less than $100,000 | DP2: $100,000-$249,999 | DQ2: $250,000-$499,999 | DR2: $500,000-$749,999 | DS2: $750,000 or more
A3: 2010-06-01 | E3: 0.31 | F3: 0.18 | G3: 0.47 | H3: =E3-F3 -> 0.13 | I3: -0.1239 | J3: 0.1129 | K3: 0.012697 | L3: 0.51 | M3: 0.12 | N3: 0.34 | O3: =M3-L3 -> -0.39 | R3: 0.37 | S3: 0.35 | T3: =R3+S3 -> 0.72 | U3: 0.14 | V3: 0.11 | W3: =U3+V3 -> 0.25 | X3: =T3-W3 -> 0.47 | AI3: 0.03 | AJ3: 0.11 | AK3: =AI3+AJ3 -> 0.14 | AL3: 0.38 | AM3: 0.45 | AN3: =AL3+AM3 -> 0.83 | AO3: =AK3-AN3 -> -0.69 | AZ3: 0.39 | BA3: 0.11 | BB3: 0.46 | BC3: =AZ3-BA3 -> 0.28 | BD3: 0.03122 | BE3: 0.66 | BF3: 0.3 | BG3: =BE3-BF3 -> 0.36 | BH3: 0.32 | BI3: 0.58 | BJ3: =BH3-BI3 -> -0.26 | BK3: 0.15 | BL3: 0.32 | BM3: =BK3+BL3 -> 0.47 | BN3: 0.38 | BO3: 0.08 | BP3: 0.05 | BQ3: =BO3+BP3 -> 0.13 | BR3: =BM3-BQ3 -> 0.34 | BS3: 0.19 | BT3: 0.21 | BU3: 0.59 | BV3: =BS3-BT3 -> -0.02 | BW3: 0.53 | BX3: 0.44 | BY3: =BX3-BW3 -> -0.09 | BZ3: 0.16 | CA3: 0.12 | CB3: =SUM(BZ3:CA3) -> 0.28 | CC3: =SUM(CD3:CF3) -> 0.64 | CD3: 0.15 | CE3: 0.17 | CF3: 0.32 | DB3: 0.13 | DC3: 0.84 | DF3: 0.46 | DG3: 0.2 | DH3: =SUM(DF3:DG3) -> 0.66 | DI3: 0.15 | DJ3: =SUM(DK3:DL3) -> 0.16 | DK3: 0.09 | DL3: 0.07
A4: 2010-07-01 | E4: 0.29 | F4: 0.21 | G4: 0.47 | H4: 0.08 | I4: -0.0906 | J4: 0.0824 | K4: 0.00487 | L4: 0.48 | M4: 0.12 | N4: 0.37 | O4: =M4-L4 -> -0.36 | R4: 0.32 | S4: 0.37 | T4: 0.69 | U4: 0.17 | V4: 0.12 | W4: =U4+V4 -> 0.29 | X4: =T4-W4 -> 0.4 | AI4: 0.03 | AJ4: 0.1 | AK4: =AI4+AJ4 -> 0.13 | AL4: 0.34 | AM4: 0.5 | AN4: =AL4+AM4 -> 0.84 | AO4: =AK4-AN4 -> -0.71 | AZ4: 0.38 | BA4: 0.1 | BB4: 0.46 | BC4: =AZ4-BA4 -> 0.28 | BD4: 0.02978 | BE4: 0.67 | BF4: 0.29 | BG4: =BE4-BF4 -> 0.38 | BH4: 0.3 | BI4: 0.6 | BJ4: =BH4-BI4 -> -0.3 | BK4: 0.16 | BL4: 0.26 | BM4: =BK4+BL4 -> 0.42 | BN4: 0.4 | BO4: 0.11 | BP4: 0.06 | BQ4: =BO4+BP4 -> 0.17 | BR4: =BM4-BQ4 -> 0.25 | BS4: 0.22 | BT4: 0.2 | BU4: 0.56 | BV4: =BS4-BT4 -> 0.02 | BW4: 0.55 | BX4: 0.42 | BY4: =BX4-BW4 -> -0.13 | BZ4: 0.15 | CA4: 0.12 | CB4: =SUM(BZ4:CA4) -> 0.27 | CC4: =SUM(CD4:CF4) -> 0.69 | CD4: 0.17 | CE4: 0.18 | CF4: 0.34 | DB4: 0.12 | DC4: 0.85 | DF4: 0.46 | DG4: 0.22 | DH4: =SUM(DF4:DG4) -> 0.68 | DI4: 0.15 | DJ4: 0.15 | DK4: 0.09 | DL4: 0.06
A5: 2010-08-01 | E5: 0.25 | F5: 0.17 | G5: 0.54 | H5: 0.08 | I5: -0.1062 | J5: 0.0849 | K5: 0.003171 | L5: 0.48 | M5: 0.13 | N5: 0.36 | O5: -0.35 | R5: 0.36 | S5: 0.34 | T5: 0.7 | U5: 0.14 | V5: 0.11 | W5: 0.25 | X5: 0.45 | AI5: 0.03 | AJ5: 0.1 | AK5: 0.13 | AL5: 0.35 | AM5: 0.49 | AN5: 0.84 | AO5: -0.71 | AZ5: 0.38 | BA5: 0.09 | BB5: 0.49 | BC5: 0.29 | BD5: 0.027717 | BE5: 0.63 | BF5: 0.32 | BG5: 0.31 | BH5: 0.3 | BI5: 0.6 | BJ5: -0.3 | BK5: 0.14 | BL5: 0.27 | BM5: 0.41 | BN5: 0.41 | BO5: 0.13 | BP5: 0.04 | BQ5: 0.17 | BR5: 0.24 | BS5: 0.18 | BT5: 0.21 | BU5: 0.59 | BV5: -0.03 | BW5: 0.55 | BX5: 0.41 | BY5: -0.14 | BZ5: 0.11 | CA5: 0.13 | CB5: 0.24 | CC5: 0.72 | CD5: 0.24 | CE5: 0.2 | CF5: 0.28 | DB5: 0.12 | DC5: 0.85 | DF5: 0.45 | DG5: 0.2 | DH5: 0.65 | DI5: 0.16 | DJ5: 0.17 | DK5: 0.11 | DL5: 0.06
A6: 2010-09-01 | E6: 0.27 | F6: 0.2 | G6: 0.49 | H6: 0.07 | I6: -0.0969 | J6: 0.0941 | K6: 0.006027 | L6: 0.46 | M6: 0.13 | N6: 0.36 | O6: -0.33 | R6: 0.39 | S6: 0.33 | T6: 0.72 | U6: 0.14 | V6: 0.11 | W6: 0.25 | X6: 0.47 | AI6: 0.02 | AJ6: 0.07 | AK6: 0.09 | AL6: 0.33 | AM6: 0.55 | AN6: 0.88 | AO6: -0.79 | AZ6: 0.37 | BA6: 0.07 | BB6: 0.52 | BC6: 0.3 | BD6: 0.028362 | BE6: 0.62 | BF6: 0.33 | BG6: 0.29 | BH6: 0.27 | BI6: 0.63 | BJ6: -0.36 | BK6: 0.15 | BL6: 0.26 | BM6: 0.41 | BN6: 0.41 | BO6: 0.11 | BP6: 0.05 | BQ6: 0.16 | BR6: 0.25 | BS6: 0.19 | BT6: 0.21 | BU6: 0.58 | BV6: -0.02 | BW6: 0.57 | BX6: 0.4 | BY6: -0.17 | BZ6: 0.2 | CA6: 0.09 | CB6: 0.29 | CC6: 0.64 | CD6: 0.17 | CE6: 0.17 | CF6: 0.3 | DB6: 0.14 | DC6: 0.84 | DF6: 0.45 | DG6: 0.18 | DH6: 0.63 | DI6: 0.17 | DJ6: 0.18 | DK6: 0.1 | DL6: 0.08
A7: 2010-10-01 | E7: 0.25 | F7: 0.21 | G7: 0.5 | H7: 0.04 | I7: -0.1006 | J7: 0.0942 | K7: 0.002424 | L7: 0.49 | M7: 0.11 | N7: 0.35 | O7: -0.38 | R7: 0.39 | S7: 0.3 | T7: 0.69 | U7: 0.14 | V7: 0.13 | W7: 0.27 | X7: 0.42 | AI7: 0.03 | AJ7: 0.08 | AK7: 0.11 | AL7: 0.31 | AM7: 0.54 | AN7: 0.85 | AO7: -0.74 | AZ7: 0.37 | BA7: 0.08 | BB7: 0.5 | BC7: 0.29 | BD7: 0.02958 | BE7: 0.64 | BF7: 0.32 | BG7: 0.32 | BH7: 0.29 | BI7: 0.61 | BJ7: -0.32 | BK7: 0.16 | BL7: 0.26 | BM7: 0.42 | BN7: 0.4 | BO7: 0.12 | BP7: 0.05 | BQ7: 0.17 | BR7: 0.25 | BS7: 0.2 | BT7: 0.21 | BU7: 0.57 | BV7: -0.01 | BW7: 0.55 | BX7: 0.41 | BY7: -0.14 | BZ7: 0.17 | CA7: 0.11 | CB7: 0.28 | CC7: 0.69 | CD7: 0.16 | CE7: 0.2 | CF7: 0.33 | DB7: 0.12 | DC7: 0.84 | DF7: 0.44 | DG7: 0.19 | DH7: 0.63 | DI7: 0.18 | DJ7: 0.16 | DK7: 0.1 | DL7: 0.06
A8: 2010-11-01 | E8: 0.28 | F8: 0.18 | G8: 0.51 | H8: 0.1 | I8: -0.1086 | J8: 0.0899 | K8: 0.005624 | L8: 0.52 | M8: 0.09 | N8: 0.36 | O8: -0.43 | R8: 0.37 | S8: 0.29 | T8: 0.66 | U8: 0.18 | V8: 0.14 | W8: 0.32 | X8: 0.34 | AI8: 0.03 | AJ8: 0.08 | AK8: 0.11 | AL8: 0.36 | AM8: 0.51 | AN8: 0.87 | AO8: -0.76 | AZ8: 0.4 | BA8: 0.07 | BB8: 0.48 | BC8: 0.33 | BD8: 0.030876 | BE8: 0.64 | BF8: 0.31 | BG8: 0.33 | BH8: 0.32 | BI8: 0.57 | BJ8: -0.25 | BK8: 0.16 | BL8: 0.28 | BM8: 0.44 | BN8: 0.4 | BO8: 0.1 | BP8: 0.05 | BQ8: 0.15 | BR8: 0.29 | BS8: 0.22 | BT8: 0.16 | BU8: 0.6 | BV8: 0.06 | BW8: 0.57 | BX8: 0.42 | BY8: -0.15 | BZ8: 0.15 | CA8: 0.12 | CB8: 0.27 | CC8: 0.68 | CD8: 0.18 | CE8: 0.18 | CF8: 0.32 | DB8: 0.14 | DC8: 0.83 | DF8: 0.45 | DG8: 0.22 | DH8: 0.67 | DI8: 0.17 | DJ8: 0.14 | DK8: 0.09 | DL8: 0.05
A9: 2010-12-01 | E9: 0.25 | F9: 0.18 | G9: 0.55 | H9: 0.07 | I9: -0.097 | J9: 0.084 | K9: 0.00354 | L9: 0.48 | M9: 0.12 | N9: 0.35 | O9: -0.36 | R9: 0.35 | S9: 0.31 | T9: 0.66 | U9: 0.15 | V9: 0.15 | W9: 0.3 | X9: 0.36 | AI9: 0.02 | AJ9: 0.07 | AK9: 0.09 | AL9: 0.35 | AM9: 0.54 | AN9: 0.89 | AO9: -0.8 | AZ9: 0.37 | BA9: 0.07 | BB9: 0.52 | BC9: 0.3 | BD9: 0.030053 | BE9: 0.68 | BF9: 0.27 | BG9: 0.41 | BH9: 0.29 | BI9: 0.63 | BJ9: -0.34 | BK9: 0.12 | BL9: 0.27 | BM9: 0.39 | BN9: 0.42 | BO9: 0.11 | BP9: 0.05 | BQ9: 0.16 | BR9: 0.23 | BS9: 0.17 | BT9: 0.2 | BU9: 0.62 | BV9: -0.03 | BW9: 0.53 | BX9: 0.45 | BY9: -0.08 | BZ9: 0.15 | CA9: 0.12 | CB9: 0.27 | CC9: 0.68 | CD9: 0.18 | CE9: 0.17 | CF9: 0.33 | DB9: 0.13 | DC9: 0.85 | DF9: 0.45 | DG9: 0.2 | DH9: 0.65 | DI9: 0.17 | DJ9: 0.16 | DK9: 0.09 | DL9: 0.07
A10: 2011-01-01 | E10: 0.29 | F10: 0.17 | G10: 0.49 | H10: 0.12 | I10: -0.0909 | J10: 0.0798 | K10: 0.007689 | L10: 0.45 | M10: 0.07 | N10: 0.43 | O10: -0.38 | R10: 0.34 | S10: 0.35 | T10: 0.69 | U10: 0.14 | V10: 0.13 | W10: 0.27 | X10: 0.42 | AI10: 0.01 | AJ10: 0.1 | AK10: 0.11 | AL10: 0.34 | AM10: 0.53 | AN10: 0.87 | AO10: -0.76 | AZ10: 0.4 | BA10: 0.06 | BB10: 0.49 | BC10: 0.34 | BD10: 0.03266 | BE10: 0.68 | BF10: 0.28 | BG10: 0.4 | BH10: 0.34 | BI10: 0.58 | BJ10: -0.24 | BK10: 0.16 | BL10: 0.3 | BM10: 0.46 | BN10: 0.42 | BO10: 0.08 | BP10: 0.04 | BQ10: 0.12 | BR10: 0.34 | BS10: 0.22 | BT10: 0.19 | BU10: 0.56 | BV10: 0.03 | BW10: 0.56 | BX10: 0.41 | BY10: -0.15 | BZ10: 0.13 | CA10: 0.08 | CB10: 0.21 | CC10: 0.73 | CD10: 0.21 | CE10: 0.15 | CF10: 0.37 | DB10: 0.12 | DC10: 0.86 | DF10: 0.41 | DG10: 0.21 | DH10: 0.62 | DI10: 0.18 | DJ10: 0.17 | DK10: 0.1 | DL10: 0.07
A11: 2011-02-01 | E11: 0.31 | F11: 0.14 | G11: 0.51 | H11: 0.17 | I11: -0.0844 | J11: 0.0719 | K11: 0.010473 | L11: 0.5 | M11: 0.06 | N11: 0.4 | O11: -0.44 | R11: 0.33 | S11: 0.35 | T11: 0.68 | U11: 0.16 | V11: 0.11 | W11: 0.27 | X11: 0.41 | AI11: 0.02 | AJ11: 0.08 | AK11: 0.1 | AL11: 0.37 | AM11: 0.49 | AN11: 0.86 | AO11: -0.76 | AZ11: 0.43 | BA11: 0.07 | BB11: 0.46 | BC11: 0.36 | BD11: 0.031153 | BE11: 0.66 | BF11: 0.3 | BG11: 0.36 | BH11: 0.35 | BI11: 0.54 | BJ11: -0.19 | BK11: 0.15 | BL11: 0.28 | BM11: 0.43 | BN11: 0.43 | BO11: 0.1 | BP11: 0.03 | BQ11: 0.13 | BR11: 0.3 | BS11: 0.22 | BT11: 0.19 | BU11: 0.57 | BV11: 0.03 | BW11: 0.52 | BX11: 0.45 | BY11: -0.07 | BZ11: 0.15 | CA11: 0.11 | CB11: 0.26 | CC11: 0.71 | CD11: 0.19 | CE11: 0.17 | CF11: 0.35 | DB11: 0.12 | DC11: 0.87 | DF11: 0.47 | DG11: 0.19 | DH11: 0.66 | DI11: 0.17 | DJ11: 0.16 | DK11: 0.09 | DL11: 0.07
A12: 2011-03-01 | B12: =ROUND(63.5+100*($T$12-$W$12+$AK$12-$AN$12+$E$12-$F$12+$M$12-$L$12+$BS$12-$BT$12+$CN$12-$CM$12)/6,1) -> 60 | C12: =D12-B12 -> 8.1 | D12: =ROUND(63.5+100*(T12-W12+AK12-AN12+E12-F12+BS12-BT12+CN12-CM12)/5,1) -> 68.1 | E12: 0.33 | F12: 0.19 | G12: 0.43 | H12: 0.14 | I12: -0.0876 | J12: 0.0826 | K12: 0.010614 | L12: 0.51 | M12: 0.07 | N12: 0.38 | O12: -0.44 | R12: 0.31 | S12: 0.36 | T12: 0.67 | U12: 0.19 | V12: 0.1 | W12: 0.29 | X12: 0.38 | AI12: 0.02 | AJ12: 0.1 | AK12: 0.12 | AL12: 0.36 | AM12: 0.48 | AN12: 0.84 | AO12: -0.72 | AZ12: 0.46 | BA12: 0.06 | BB12: 0.44 | BC12: 0.4 | BD12: 0.032226 | BE12: 0.65 | BF12: 0.31 | BG12: 0.34 | BH12: 0.3 | BI12: 0.63 | BJ12: -0.33 | BK12: 0.13 | BL12: 0.26 | BM12: 0.39 | BN12: 0.39 | BO12: 0.15 | BP12: 0.06 | BQ12: 0.21 | BR12: 0.18 | BS12: 0.19 | BT12: 0.2 | BU12: 0.59 | BV12: -0.01 | BW12: 0.57 | BX12: 0.41 | BY12: -0.16 | BZ12: 0.11 | CA12: 0.1 | CB12: 0.21 | CC12: 0.73 | CD12: 0.17 | CE12: 0.17 | CF12: 0.39 | CG12: 0.1 | CH12: 0.14 | CI12: 0.17 | CJ12: 0.55 | CK12: 0.09 | CL12: 0.19 | CM12: =CK12+CL12 -> 0.28 | CN12: =SUM(CO12:CP12) -> 0.72 | CO12: 0.23 | CP12: 0.49 | CQ12: =CN12-CM12 -> 0.44 | DB12: 0.12 | DC12: 0.86 | DF12: 0.43 | DG12: 0.21 | DH12: 0.64 | DI12: 0.16 | DJ12: 0.19 | DK12: 0.12 | DL12: 0.07
A13: 2011-04-01 | B13: =ROUND(63.5+100*(T13-W13+AK13-AN13+E13-F13+M13-L13+BS13-BT13+CN13-CM13)/6,1) -> 62.5 | C13: =D13-B13 -> 8.6 | D13: 71.1 | E13: 0.3 | F13: 0.19 | G13: 0.48 | H13: 0.11 | I13: -0.0895 | J13: 0.0942 | K13: 0.011255 | L13: 0.51 | M13: 0.07 | N13: 0.34 | O13: -0.44 | R13: 0.36 | S13: 0.36 | T13: 0.72 | U13: 0.14 | V13: 0.11 | W13: 0.25 | X13: 0.47 | AI13: 0.02 | AJ13: 0.09 | AK13: 0.11 | AL13: 0.38 | AM13: 0.49 | AN13: 0.87 | AO13: -0.76 | AZ13: 0.43 | BA13: 0.06 | BB13: 0.44 | BC13: 0.37 | BD13: 0.03207 | BE13: 0.65 | BF13: 0.31 | BG13: 0.34 | BH13: 0.29 | BI13: 0.63 | BJ13: -0.34 | BK13: 0.12 | BL13: 0.28 | BM13: 0.4 | BN13: 0.42 | BO13: 0.11 | BP13: 0.06 | BQ13: 0.17 | BR13: 0.23 | BS13: 0.23 | BT13: 0.18 | BU13: 0.57 | BV13: 0.05 | BW13: 0.55 | BX13: 0.43 | BY13: -0.12 | BZ13: 0.16 | CA13: 0.11 | CB13: 0.27 | CC13: 0.69 | CD13: 0.16 | CE13: 0.19 | CF13: 0.34 | CG13: 0.07 | CH13: 0.11 | CI13: 0.18 | CJ13: 0.57 | CK13: 0.07 | CL13: 0.17 | CM13: =CK13+CL13 -> 0.24 | CN13: =SUM(CO13:CP13) -> 0.75 | CO13: 0.24 | CP13: 0.51 | CQ13: =CN13-CM13 -> 0.51 | DB13: 0.13 | DC13: 0.85 | DF13: 0.44 | DG13: 0.21 | DH13: 0.65 | DI13: 0.15 | DJ13: 0.18 | DK13: 0.1 | DL13: 0.08
A14: 2011-05-01 | B14: 60.3 | C14: 7.6 | D14: 67.9 | E14: 0.27 | F14: 0.19 | G14: 0.5 | H14: 0.08 | I14: -0.0921 | J14: 0.088 | K14: 0.006261 | L14: 0.47 | M14: 0.06 | N14: 0.4 | O14: -0.41 | R14: 0.35 | S14: 0.31 | T14: 0.66 | U14: 0.18 | V14: 0.12 | W14: 0.3 | X14: 0.36 | AI14: 0.03 | AJ14: 0.08 | AK14: 0.11 | AL14: 0.37 | AM14: 0.48 | AN14: 0.85 | AO14: -0.74 | AZ14: 0.46 | BA14: 0.04 | BB14: 0.44 | BC14: 0.42 | BD14: 0.03908 | BE14: 0.66 | BF14: 0.3 | BG14: 0.36 | BH14: 0.3 | BI14: 0.61 | BJ14: -0.31 | BK14: 0.14 | BL14: 0.26 | BM14: 0.4 | BN14: 0.42 | BO14: 0.11 | BP14: 0.06 | BQ14: 0.17 | BR14: 0.23 | BS14: 0.21 | BT14: 0.16 | BU14: 0.61 | BV14: 0.05 | BW14: 0.55 | BX14: 0.43 | BY14: -0.12 | BZ14: 0.12 | CA14: 0.11 | CB14: 0.23 | CC14: 0.7 | CD14: 0.2 | CE14: 0.16 | CF14: 0.34 | CG14: 0.08 | CH14: 0.15 | CI14: 0.17 | CJ14: 0.57 | CK14: 0.08 | CL14: 0.19 | CM14: 0.27 | CN14: 0.74 | CO14: 0.23 | CP14: 0.51 | CQ14: 0.47 | DB14: 0.12 | DC14: 0.86 | DF14: 0.44 | DG14: 0.18 | DH14: =SUM(DF14:DG14) -> 0.62 | DI14: 0.16 | DJ14: 0.19 | DK14: 0.1 | DL14: 0.09
A15: 2011-06-01 | B15: 61 | C15: 5.3 | D15: 66.3 | E15: 0.22 | F15: 0.25 | G15: 0.5 | H15: -0.03 | I15: -0.0922 | J15: 0.0827 | K15: -0.004856 | L15: 0.37 | M15: 0.08 | N15: 0.49 | O15: -0.29 | R15: 0.34 | S15: 0.33 | T15: 0.67 | U15: 0.15 | V15: 0.14 | W15: 0.29 | X15: 0.38 | AI15: 0.02 | AJ15: 0.09 | AK15: 0.11 | AL15: 0.31 | AM15: 0.56 | AN15: 0.87 | AO15: -0.76 | AZ15: 0.44 | BA15: 0.06 | BB15: 0.46 | BC15: 0.38 | BD15: 0.0407 | BE15: 0.65 | BF15: 0.32 | BG15: 0.33 | BH15: 0.26 | BI15: 0.67 | BJ15: -0.41 | BK15: 0.14 | BL15: 0.26 | BM15: 0.4 | BN15: 0.42 | BO15: 0.11 | BP15: 0.05 | BQ15: 0.16 | BR15: 0.24 | BS15: 0.21 | BT15: 0.17 | BU15: 0.62 | BV15: 0.04 | BW15: 0.51 | BX15: 0.45 | BY15: -0.06 | BZ15: 0.18 | CA15: 0.1 | CB15: 0.28 | CC15: 0.68 | CD15: 0.17 | CE15: 0.15 | CF15: 0.36 | CG15: 0.07 | CH15: 0.12 | CI15: 0.17 | CJ15: 0.57 | CK15: 0.07 | CL15: 0.17 | CM15: 0.24 | CN15: 0.75 | CO15: 0.21 | CP15: 0.54 | CQ15: 0.51 | DB15: 0.14 | DC15: 0.83 | DF15: 0.44 | DG15: 0.17 | DH15: 0.61 | DI15: 0.18 | DJ15: 0.17 | DK15: 0.08 | DL15: 0.09
A16: 2011-07-01 | B16: 60 | C16: 6.5 | D16: 66.5 | E16: 0.22 | F16: 0.25 | G16: 0.49 | H16: -0.03 | I16: -0.1054 | J16: 0.0849 | K16: -0.007672 | L16: 0.45 | M16: 0.09 | N16: 0.4 | O16: -0.36 | R16: 0.29 | S16: 0.38 | T16: 0.67 | U16: 0.16 | V16: 0.14 | W16: 0.3 | X16: 0.37 | AI16: 0.03 | AJ16: 0.09 | AK16: 0.12 | AL16: 0.31 | AM16: 0.55 | AN16: 0.86 | AO16: -0.74 | AZ16: 0.47 | BA16: 0.06 | BB16: 0.44 | BC16: 0.41 | BD16: 0.038573 | BE16: 0.62 | BF16: 0.33 | BG16: 0.29 | BH16: 0.23 | BI16: 0.71 | BJ16: -0.48 | BK16: 0.13 | BL16: 0.25 | BM16: 0.38 | BN16: 0.41 | BO16: 0.14 | BP16: 0.07 | BQ16: 0.21 | BR16: 0.17 | BS16: 0.2 | BT16: 0.18 | BU16: 0.6 | BV16: 0.02 | BW16: 0.55 | BX16: 0.43 | BY16: -0.12 | BZ16: 0.14 | CA16: 0.14 | CB16: 0.28 | CC16: 0.69 | CD16: 0.15 | CE16: 0.15 | CF16: 0.39 | CG16: 0.08 | CH16: 0.12 | CI16: 0.19 | CJ16: 0.55 | CK16: 0.08 | CL16: 0.15 | CM16: 0.23 | CN16: 0.76 | CO16: 0.26 | CP16: 0.5 | CQ16: 0.53 | DB16: 0.12 | DC16: 0.85 | DF16: 0.46 | DG16: 0.18 | DH16: 0.64 | DI16: 0.16 | DJ16: 0.19 | DK16: 0.08 | DL16: 0.11
A17: 2011-08-01 | B17: 59.3 | C17: 6.2 | D17: 65.5 | E17: 0.21 | F17: 0.27 | G17: 0.5 | H17: -0.06 | I17: -0.0934 | J17: 0.0855 | K17: -0.007263 | L17: 0.45 | M17: 0.1 | N17: 0.41 | O17: -0.35 | R17: 0.33 | S17: 0.35 | T17: 0.68 | U17: 0.17 | V17: 0.12 | W17: 0.29 | X17: 0.39 | AI17: 0.01 | AJ17: 0.08 | AK17: 0.09 | AL17: 0.35 | AM17: 0.52 | AN17: 0.87 | AO17: -0.78 | AZ17: 0.48 | BA17: 0.06 | BB17: 0.4 | BC17: 0.42 | BD17: 0.03915 | BE17: 0.63 | BF17: 0.34 | BG17: 0.29 | BH17: 0.15 | BI17: 0.79 | BJ17: -0.64 | BK17: 0.09 | BL17: 0.26 | BM17: 0.35 | BN17: 0.42 | BO17: 0.14 | BP17: 0.07 | BQ17: 0.21 | BR17: 0.14 | BS17: 0.23 | BT17: 0.17 | BU17: 0.59 | BV17: 0.06 | BW17: 0.54 | BX17: 0.43 | BY17: -0.11 | BZ17: 0.12 | CA17: 0.09 | CB17: 0.21 | CC17: 0.75 | CD17: 0.19 | CE17: 0.23 | CF17: 0.33 | CG17: 0.08 | CH17: 0.15 | CI17: 0.18 | CJ17: 0.57 | CK17: 0.08 | CL17: 0.17 | CM17: 0.25 | CN17: 0.74 | CO17: 0.24 | CP17: 0.5 | CQ17: 0.49 | DB17: 0.15 | DC17: 0.83 | DF17: 0.4 | DG17: 0.2 | DH17: 0.6 | DI17: 0.19 | DJ17: 0.18 | DK17: 0.1 | DL17: 0.08
A18: 2011-09-01 | B18: 60.2 | C18: 4.1 | D18: 64.3 | E18: 0.18 | F18: 0.26 | G18: 0.54 | H18: -0.08 | I18: -0.1044 | J18: 0.08 | K18: -0.012744 | L18: 0.35 | M18: 0.11 | N18: 0.51 | O18: -0.24 | R18: 0.33 | S18: 0.35 | T18: 0.68 | U18: 0.16 | V18: 0.12 | W18: 0.28 | X18: 0.4 | AI18: 0.02 | AJ18: 0.06 | AK18: 0.08 | AL18: 0.34 | AM18: 0.54 | AN18: 0.88 | AO18: -0.8 | AZ18: 0.45 | BA18: 0.07 | BB18: 0.43 | BC18: 0.38 | BD18: 0.036396 | BE18: 0.62 | BF18: 0.33 | BG18: 0.29 | BH18: 0.15 | BI18: 0.77 | BJ18: -0.62 | BK18: 0.14 | BL18: 0.23 | BM18: 0.37 | BN18: 0.41 | BO18: 0.15 | BP18: 0.05 | BQ18: 0.2 | BR18: 0.17 | BS18: 0.23 | BT18: 0.21 | BU18: 0.55 | BV18: 0.02 | BW18: 0.55 | BX18: 0.43 | BY18: -0.12 | BZ18: 0.15 | CA18: 0.11 | CB18: 0.26 | CC18: 0.7 | CD18: 0.19 | CE18: 0.17 | CF18: 0.34 | CG18: 0.1 | CH18: 0.11 | CI18: 0.17 | CJ18: 0.58 | CK18: 0.11 | CL18: 0.14 | CM18: 0.25 | CN18: 0.75 | CO18: 0.26 | CP18: 0.49 | CQ18: 0.5 | DB18: 0.13 | DC18: 0.85 | DF18: 0.43 | DG18: 0.19 | DH18: 0.62 | DI18: 0.17 | DJ18: 0.19 | DK18: 0.09 | DL18: 0.1
A19: 2011-10-01 | B19: 61.2 | C19: 5.1 | D19: 66.3 | E19: 0.2 | F19: 0.23 | G19: 0.54 | H19: -0.03 | I19: -0.0972 | J19: 0.0924 | K19: -0.003876 | L19: 0.37 | M19: 0.09 | N19: 0.49 | O19: -0.28 | R19: 0.34 | S19: 0.34 | T19: 0.68 | U19: 0.16 | V19: 0.11 | W19: 0.27 | X19: 0.41 | AI19: 0.02 | AJ19: 0.08 | AK19: 0.1 | AL19: 0.35 | AM19: 0.52 | AN19: 0.87 | AO19: -0.77 | AZ19: 0.44 | BA19: 0.05 | BB19: 0.46 | BC19: 0.39 | BD19: 0.035887 | BE19: 0.66 | BF19: 0.3 | BG19: 0.36 | BH19: 0.16 | BI19: 0.76 | BJ19: -0.6 | BK19: 0.11 | BL19: 0.24 | BM19: 0.35 | BN19: 0.45 | BO19: 0.13 | BP19: 0.05 | BQ19: 0.18 | BR19: 0.17 | BS19: 0.19 | BT19: 0.16 | BU19: 0.65 | BV19: 0.03 | BW19: 0.55 | BX19: 0.42 | BY19: -0.13 | BZ19: 0.13 | CA19: 0.11 | CB19: 0.24 | CC19: 0.72 | CD19: 0.14 | CE19: 0.21 | CF19: 0.37 | CG19: 0.08 | CH19: 0.13 | CI19: 0.15 | CJ19: 0.62 | CK19: 0.08 | CL19: 0.17 | CM19: 0.25 | CN19: 0.75 | CO19: 0.2 | CP19: 0.55 | CQ19: 0.5 | DB19: 0.12 | DC19: 0.86 | DF19: 0.44 | DG19: 0.19 | DH19: 0.63 | DI19: 0.15 | DJ19: 0.2 | DK19: 0.11 | DL19: 0.09
A20: 2011-11-01 | B20: 61.7 | C20: 4 | D20: 65.7 | E20: 0.23 | F20: 0.22 | G20: 0.52 | H20: 0.01 | I20: -0.0883 | J20: 0.0897 | K20: 0.001205 | L20: 0.35 | M20: 0.13 | N20: 0.48 | O20: -0.22 | R20: 0.35 | S20: 0.33 | T20: 0.68 | U20: 0.16 | V20: 0.13 | W20: 0.29 | X20: 0.39 | AI20: 0.01 | AJ20: 0.1 | AK20: 0.11 | AL20: 0.3 | AM20: 0.56 | AN20: 0.86 | AO20: -0.75 | AZ20: 0.41 | BA20: 0.06 | BB20: 0.49 | BC20: 0.35 | BD20: 0.033441 | BE20: 0.61 | BF20: 0.35 | BG20: 0.26 | BH20: 0.14 | BI20: 0.76 | BJ20: -0.62 | BK20: 0.12 | BL20: 0.25 | BM20: 0.37 | BN20: 0.43 | BO20: 0.13 | BP20: 0.05 | BQ20: 0.18 | BR20: 0.19 | BS20: 0.17 | BT20: 0.17 | BU20: 0.65 | BV20: 0 | BW20: 0.55 | BX20: 0.42 | BY20: -0.13 | BZ20: 0.15 | CA20: 0.13 | CB20: 0.28 | CC20: 0.69 | CD20: 0.19 | CE20: 0.18 | CF20: 0.32 | CG20: 0.09 | CH20: 0.14 | CI20: 0.17 | CJ20: 0.56 | CK20: 0.09 | CL20: 0.18 | CM20: 0.27 | CN20: 0.73 | CO20: 0.23 | CP20: 0.5 | CQ20: 0.46 | DB20: 0.14 | DC20: 0.82 | DF20: 0.38 | DG20: 0.2 | DH20: 0.58 | DI20: 0.15 | DJ20: 0.23 | DK20: 0.15 | DL20: 0.08
A21: 2011-12-01 | B21: 63.5 | C21: 5 | D21: 68.5 | E21: 0.26 | F21: 0.17 | G21: 0.52 | H21: 0.09 | I21: -0.0905 | J21: 0.0824 | K21: 0.006039 | L21: 0.36 | M21: 0.11 | N21: 0.47 | O21: -0.25 | R21: 0.34 | S21: 0.35 | T21: 0.69 | U21: 0.16 | V21: 0.12 | W21: 0.28 | X21: 0.41 | AI21: 0.03 | AJ21: 0.08 | AK21: 0.11 | AL21: 0.34 | AM21: 0.53 | AN21: 0.87 | AO21: -0.76 | AZ21: 0.43 | BA21: 0.05 | BB21: 0.45 | BC21: 0.38 | BD21: 0.035016 | BE21: 0.65 | BF21: 0.31 | BG21: 0.34 | BH21: 0.22 | BI21: 0.69 | BJ21: -0.47 | BK21: 0.13 | BL21: 0.29 | BM21: 0.42 | BN21: 0.38 | BO21: 0.12 | BP21: 0.06 | BQ21: 0.18 | BR21: 0.24 | BS21: 0.2 | BT21: 0.18 | BU21: 0.6 | BV21: 0.02 | BW21: 0.55 | BX21: 0.43 | BY21: -0.12 | BZ21: 0.18 | CA21: 0.1 | CB21: 0.28 | CC21: 0.69 | CD21: 0.22 | CE21: 0.16 | CF21: 0.31 | CG21: 0.09 | CH21: 0.11 | CI21: 0.15 | CJ21: 0.61 | CK21: 0.09 | CL21: 0.16 | CM21: 0.25 | CN21: 0.74 | CO21: 0.21 | CP21: 0.53 | CQ21: 0.49 | DB21: 0.13 | DC21: 0.84 | DF21: 0.45 | DG21: 0.18 | DH21: 0.63 | DI21: 0.14 | DJ21: 0.2 | DK21: 0.11 | DL21: 0.09
A22: 2012-01-01 | B22: 66.2 | C22: 5.9 | D22: 72.1 | E22: 0.3 | F22: 0.16 | G22: 0.48 | H22: 0.14 | I22: -0.0771 | J22: 0.0824 | K22: 0.012384 | L22: 0.35 | M22: 0.08 | N22: 0.51 | O22: -0.27 | R22: 0.32 | S22: 0.37 | T22: 0.69 | U22: 0.13 | V22: 0.13 | W22: 0.26 | X22: 0.43 | AI22: 0.02 | AJ22: 0.09 | AK22: 0.11 | AL22: 0.34 | AM22: 0.51 | AN22: 0.85 | AO22: -0.74 | AZ22: 0.45 | BA22: 0.04 | BB22: 0.45 | BC22: 0.41 | BD22: 0.035468 | BE22: 0.64 | BF22: 0.31 | BG22: 0.33 | BH22: 0.3 | BI22: 0.61 | BJ22: -0.31 | BK22: 0.17 | BL22: 0.27 | BM22: 0.44 | BN22: 0.4 | BO22: 0.09 | BP22: 0.05 | BQ22: 0.14 | BR22: 0.3 | BS22: 0.21 | BT22: 0.16 | BU22: 0.61 | BV22: 0.05 | BW22: 0.55 | BX22: 0.42 | BY22: -0.13 | BZ22: 0.17 | CA22: 0.09 | CB22: 0.26 | CC22: 0.7 | CD22: 0.13 | CE22: 0.22 | CF22: 0.35 | CG22: 0.08 | CH22: 0.1 | CI22: 0.19 | CJ22: 0.59 | CK22: 0.08 | CL22: 0.14 | CM22: 0.22 | CN22: 0.77 | CO22: 0.25 | CP22: 0.52 | CQ22: 0.55 | CR22: 0.48 | CS22: 0.09 | CT22: 0.17 | CU22: 0.07 | CV22: 0.06 | DB22: 0.17 | DC22: 0.82 | DF22: 0.42 | DG22: 0.18 | DH22: 0.6 | DI22: 0.18 | DJ22: 0.21 | DK22: 0.11 | DL22: 0.1
A23: 2012-02-01 | B23: 66.3 | C23: 5.4 | D23: 71.7 | E23: 0.27 | F23: 0.15 | G23: 0.53 | H23: 0.12 | I23: -0.0803 | J23: 0.0761 | K23: 0.008502 | L23: 0.35 | M23: 0.11 | N23: 0.48 | O23: -0.24 | R23: 0.34 | S23: 0.35 | T23: 0.69 | U23: 0.15 | V23: 0.1 | W23: 0.25 | X23: 0.44 | AI23: 0.03 | AJ23: 0.1 | AK23: 0.13 | AL23: 0.36 | AM23: 0.48 | AN23: 0.84 | AO23: -0.71 | AZ23: 0.45 | BA23: 0.04 | BB23: 0.45 | BC23: 0.41 | BD23: 0.033418 | BE23: 0.65 | BF23: 0.3 | BG23: 0.35 | BH23: 0.35 | BI23: 0.57 | BJ23: -0.22 | BK23: 0.15 | BL23: 0.3 | BM23: 0.45 | BN23: 0.42 | BO23: 0.09 | BP23: 0.03 | BQ23: 0.12 | BR23: 0.33 | BS23: 0.2 | BT23: 0.16 | BU23: 0.64 | BV23: 0.04 | BW23: 0.52 | BX23: 0.44 | BY23: -0.08 | BZ23: 0.11 | CA23: 0.12 | CB23: 0.23 | CC23: 0.7 | CD23: 0.16 | CE23: 0.19 | CF23: 0.35 | CG23: 0.07 | CH23: 0.12 | CI23: 0.17 | CJ23: 0.59 | CK23: 0.08 | CL23: 0.16 | CM23: 0.24 | CN23: 0.76 | CO23: 0.24 | CP23: 0.52 | CQ23: 0.52 | CR23: 0.5 | CS23: 0.06 | CT23: 0.15 | CU23: 0.07 | CV23: 0.07 | DB23: 0.15 | DC23: 0.83 | DF23: 0.4 | DG23: 0.17 | DH23: 0.57 | DI23: 0.18 | DJ23: 0.23 | DK23: 0.13 | DL23: 0.1
A24: 2012-03-01 | B24: 66.2 | C24: 7.1 | D24: 73.3 | E24: 0.35 | F24: 0.14 | G24: 0.49 | H24: 0.21 | I24: -0.0998 | J24: 0.0733 | K24: 0.011683 | L24: 0.41 | M24: 0.08 | N24: 0.46 | O24: -0.33 | R24: 0.34 | S24: 0.37 | T24: 0.71 | U24: 0.14 | V24: 0.1 | W24: 0.24 | X24: 0.47 | AI24: 0.03 | AJ24: 0.11 | AK24: 0.14 | AL24: 0.37 | AM24: 0.47 | AN24: 0.84 | AO24: -0.7 | AZ24: 0.48 | BA24: 0.04 | BB24: 0.44 | BC24: 0.44 | BD24: 0.040112 | BE24: 0.66 | BF24: 0.3 | BG24: 0.36 | BH24: 0.34 | BI24: 0.58 | BJ24: -0.24 | BK24: 0.13 | BL24: 0.31 | BM24: 0.44 | BN24: 0.44 | BO24: 0.07 | BP24: 0.04 | BQ24: 0.11 | BR24: 0.33 | BS24: 0.22 | BT24: 0.16 | BU24: 0.61 | BV24: 0.06 | BW24: 0.52 | BX24: 0.45 | BY24: -0.07 | BZ24: 0.12 | CA24: 0.12 | CB24: 0.24 | CC24: 0.71 | CD24: 0.15 | CE24: 0.21 | CF24: 0.35 | CG24: 0.07 | CH24: 0.14 | CI24: 0.17 | CJ24: 0.59 | CK24: 0.08 | CL24: 0.19 | CM24: 0.27 | CN24: 0.72 | CO24: 0.22 | CP24: 0.5 | CQ24: 0.45 | CR24: 0.47 | CS24: 0.08 | CT24: 0.19 | CU24: 0.07 | CV24: 0.08 | DB24: 0.13 | DC24: 0.86 | DF24: 0.42 | DG24: 0.18 | DH24: 0.6 | DI24: 0.17 | DJ24: 0.22 | DK24: 0.13 | DL24: 0.09
A25: 2012-04-01 | B25: 68.2 | C25: 6.9 | D25: 75.1 | E25: 0.32 | F25: 0.15 | G25: 0.49 | H25: 0.17 | I25: -0.0884 | J25: 0.0814 | K25: 0.012788 | L25: 0.39 | M25: 0.09 | N25: 0.46 | O25: -0.3 | R25: 0.33 | S25: 0.38 | T25: 0.71 | U25: 0.13 | V25: 0.11 | W25: 0.24 | X25: 0.47 | AI25: 0.03 | AJ25: 0.12 | AK25: 0.15 | AL25: 0.36 | AM25: 0.46 | AN25: 0.82 | AO25: -0.67 | AZ25: 0.49 | BA25: 0.05 | BB25: 0.43 | BC25: 0.44 | BD25: 0.033888 | BE25: 0.63 | BF25: 0.32 | BG25: 0.31 | BH25: 0.37 | BI25: 0.55 | BJ25: -0.18 | BK25: 0.15 | BL25: 0.29 | BM25: 0.44 | BN25: 0.43 | BO25: 0.09 | BP25: 0.03 | BQ25: 0.12 | BR25: 0.32 | BS25: 0.25 | BT25: 0.15 | BU25: 0.59 | BV25: 0.1 | BW25: 0.52 | BX25: 0.45 | BY25: -0.07 | BZ25: 0.17 | CA25: 0.16 | CB25: 0.33 | CC25: 0.64 | CD25: 0.17 | CE25: 0.13 | CF25: 0.34 | CG25: 0.09 | CH25: 0.1 | CI25: 0.17 | CJ25: 0.61 | CK25: 0.11 | CL25: 0.13 | CM25: 0.24 | CN25: 0.75 | CO25: 0.22 | CP25: 0.53 | CQ25: 0.51 | CR25: 0.4 | CS25: 0.11 | CT25: 0.12 | CU25: 0.09 | CV25: 0.17 | DB25: 0.15 | DC25: 0.83 | DF25: 0.4 | DG25: 0.17 | DH25: 0.57 | DI25: 0.19 | DJ25: 0.22 | DK25: 0.13 | DL25: 0.09
A26: 2012-05-01 | B26: 69.3 | C26: 7.8 | D26: 77.1 | E26: 0.35 | F26: 0.12 | G26: 0.5 | H26: 0.23 | I26: -0.1062 | J26: 0.0809 | K26: 0.015571 | L26: 0.41 | M26: 0.08 | N26: 0.47 | O26: -0.33 | R26: 0.34 | S26: 0.38 | T26: 0.72 | U26: 0.16 | V26: 0.09 | W26: 0.25 | X26: 0.47 | AI26: 0.03 | AJ26: 0.13 | AK26: 0.16 | AL26: 0.43 | AM26: 0.39 | AN26: 0.82 | AO26: -0.66 | AZ26: 0.48 | BA26: 0.05 | BB26: 0.44 | BC26: 0.43 | BD26: 0.03961 | BE26: 0.63 | BF26: 0.34 | BG26: 0.29 | BH26: 0.38 | BI26: 0.56 | BJ26: -0.18 | BK26: 0.14 | BL26: 0.28 | BM26: 0.42 | BN26: 0.45 | BO26: 0.08 | BP26: 0.03 | BQ26: 0.11 | BR26: 0.31 | BS26: 0.22 | BT26: 0.16 | BU26: 0.6 | BV26: 0.06 | BW26: 0.51 | BX26: 0.46 | BY26: -0.05 | BZ26: 0.15 | CA26: 0.13 | CB26: 0.28 | CC26: 0.7 | CD26: 0.17 | CE26: 0.19 | CF26: 0.34 | CG26: 0.09 | CH26: 0.09 | CI26: 0.16 | CJ26: 0.63 | CK26: 0.09 | CL26: 0.12 | CM26: 0.21 | CN26: 0.79 | CO26: 0.2 | CP26: 0.59 | CQ26: 0.58 | CR26: 0.37 | CS26: 0.12 | CT26: 0.13 | CU26: 0.08 | CV26: 0.19 | DB26: 0.14 | DC26: 0.84 | DF26: 0.4 | DG26: 0.22 | DH26: 0.62 | DI26: 0.16 | DJ26: 0.2 | DK26: 0.11 | DL26: 0.09
A27: 2012-06-01 | B27: 68.5 | C27: 7 | D27: 75.5 | E27: 0.35 | F27: 0.13 | G27: 0.49 | H27: 0.22 | I27: -0.0864 | J27: 0.0867 | K27: 0.019113 | L27: 0.38 | M27: 0.08 | N27: 0.48 | O27: -0.3 | R27: 0.4 | S27: 0.32 | T27: 0.72 | U27: 0.12 | V27: 0.1 | W27: 0.22 | X27: 0.5 | AI27: 0.03 | AJ27: 0.13 | AK27: 0.16 | AL27: 0.36 | AM27: 0.45 | AN27: 0.81 | AO27: -0.65 | AZ27: 0.48 | BA27: 0.05 | BB27: 0.43 | BC27: 0.43 | BD27: 0.040024 | BE27: 0.67 | BF27: 0.28 | BG27: 0.39 | BH27: 0.36 | BI27: 0.57 | BJ27: -0.21 | BK27: 0.12 | BL27: 0.31 | BM27: 0.43 | BN27: 0.4 | BO27: 0.09 | BP27: 0.05 | BQ27: 0.14 | BR27: 0.29 | BS27: 0.18 | BT27: 0.15 | BU27: 0.66 | BV27: 0.03 | BW27: 0.52 | BX27: 0.47 | BY27: -0.05 | BZ27: 0.15 | CA27: 0.13 | CB27: 0.28 | CC27: 0.68 | CD27: 0.15 | CE27: 0.2 | CF27: 0.33 | CG27: 0.07 | CH27: 0.11 | CI27: 0.14 | CJ27: 0.65 | CK27: 0.09 | CL27: 0.15 | CM27: 0.24 | CN27: 0.74 | CO27: 0.18 | CP27: 0.56 | CQ27: 0.5 | CR27: 0.36 | CS27: 0.11 | CT27: 0.15 | CU27: 0.09 | CV27: 0.17 | DB27: 0.13 | DC27: 0.85 | DF27: 0.34 | DG27: 0.22 | DH27: 0.56 | DI27: 0.19 | DJ27: 0.24 | DK27: 0.13 | DL27: 0.11
A28: 2012-07-01 | B28: 69.5 | C28: 7 | D28: 76.5 | E28: 0.36 | F28: 0.11 | G28: 0.49 | H28: 0.25 | I28: -0.1012 | J28: 0.0827 | K28: 0.01864 | L28: 0.36 | M28: 0.07 | N28: 0.5 | O28: -0.29 | R28: 0.37 | S28: 0.34 | T28: 0.71 | U28: 0.13 | V28: 0.1 | W28: 0.23 | X28: 0.48 | AI28: 0.02 | AJ28: 0.14 | AK28: 0.16 | AL28: 0.44 | AM28: 0.35 | AN28: 0.79 | AO28: -0.63 | AZ28: 0.49 | BA28: 0.02 | BB28: 0.45 | BC28: 0.47 | BD28: 0.041358 | BE28: 0.65 | BF28: 0.31 | BG28: 0.34 | BH28: 0.35 | BI28: 0.58 | BJ28: -0.23 | BK28: 0.15 | BL28: 0.3 | BM28: 0.45 | BN28: 0.37 | BO28: 0.1 | BP28: 0.05 | BQ28: 0.15 | BR28: 0.3 | BS28: 0.21 | BT28: 0.16 | BU28: 0.62 | BV28: 0.05 | BW28: 0.56 | BX28: 0.41 | BY28: -0.15 | BZ28: 0.18 | CA28: 0.13 | CB28: 0.31 | CC28: 0.66 | CD28: 0.16 | CE28: 0.18 | CF28: 0.32 | CG28: 0.08 | CH28: 0.13 | CI28: 0.16 | CJ28: 0.61 | CK28: 0.08 | CL28: 0.16 | CM28: 0.24 | CN28: 0.74 | CO28: 0.21 | CP28: 0.53 | CQ28: 0.5 | CR28: 0.38 | CS28: 0.13 | CT28: 0.15 | CU28: 0.08 | CV28: 0.17 | DB28: 0.15 | DC28: 0.83 | DD28: 0.23 | DE28: 0.76 | DF28: 0.42 | DG28: 0.19 | DH28: 0.61 | DI28: 0.17 | DJ28: 0.19 | DK28: 0.11 | DL28: 0.08
A29: 2012-08-01 | B29: 68 | C29: 7.5 | D29: 75.5 | E29: 0.33 | F29: 0.12 | G29: 0.48 | H29: 0.21 | I29: -0.0705 | J29: 0.0696 | K29: 0.014508 | L29: 0.41 | M29: 0.08 | N29: 0.46 | O29: -0.33 | R29: 0.35 | S29: 0.36 | T29: 0.71 | U29: 0.15 | V29: 0.11 | W29: 0.26 | X29: 0.45 | AI29: 0.03 | AJ29: 0.15 | AK29: 0.18 | AL29: 0.37 | AM29: 0.41 | AN29: 0.78 | AO29: -0.6 | AZ29: 0.43 | BA29: 0.05 | BB29: 0.45 | BC29: 0.38 | BD29: 0.031429 | BE29: 0.66 | BF29: 0.29 | BG29: 0.37 | BH29: 0.32 | BI29: 0.61 | BJ29: -0.29 | BK29: 0.13 | BL29: 0.3 | BM29: 0.43 | BN29: 0.38 | BO29: 0.1 | BP29: 0.05 | BQ29: 0.15 | BR29: 0.28 | BS29: 0.22 | BT29: 0.16 | BU29: 0.61 | BV29: 0.06 | BW29: 0.51 | BX29: 0.47 | BY29: -0.04 | BZ29: 0.15 | CA29: 0.12 | CB29: 0.27 | CC29: 0.68 | CD29: 0.16 | CE29: 0.16 | CF29: 0.36 | CG29: 0.07 | CH29: 0.14 | CI29: 0.18 | CJ29: 0.59 | CK29: 0.07 | CL29: 0.19 | CM29: 0.26 | CN29: 0.74 | CO29: 0.25 | CP29: 0.49 | CQ29: 0.48 | CR29: 0.35 | CS29: 0.1 | CT29: 0.19 | CU29: 0.08 | CV29: 0.18 | DB29: 0.13 | DC29: 0.84 | DD29: 0.19 | DE29: 0.79 | DF29: 0.43 | DG29: 0.18 | DH29: 0.61 | DI29: 0.2 | DJ29: 0.17 | DK29: 0.09 | DL29: 0.08
A30: 2012-09-01 | B30: 71.8 | C30: 6.3 | D30: 78.1 | E30: 0.37 | F30: 0.11 | G30: 0.45 | H30: 0.26 | I30: -0.0928 | J30: 0.0695 | K30: 0.015507 | L30: 0.32 | M30: 0.09 | N30: 0.5 | O30: -0.23 | R30: 0.32 | S30: 0.38 | T30: 0.7 | U30: 0.16 | V30: 0.08 | W30: 0.24 | X30: 0.46 | AI30: 0.03 | AJ30: 0.16 | AK30: 0.19 | AL30: 0.4 | AM30: 0.34 | AN30: 0.74 | AO30: -0.55 | AZ30: 0.47 | BA30: 0.04 | BB30: 0.42 | BC30: 0.43 | BD30: 0.031534 | BE30: 0.68 | BF30: 0.3 | BG30: 0.38 | BH30: 0.42 | BI30: 0.53 | BJ30: -0.11 | BK30: 0.17 | BL30: 0.28 | BM30: 0.45 | BN30: 0.39 | BO30: 0.09 | BP30: 0.04 | BQ30: 0.13 | BR30: 0.32 | BS30: 0.18 | BT30: 0.18 | BU30: 0.63 | BV30: 0 | BW30: 0.51 | BX30: 0.47 | BY30: -0.04 | BZ30: 0.16 | CA30: 0.12 | CB30: 0.28 | CC30: 0.69 | CD30: 0.18 | CE30: 0.14 | CF30: 0.37 | CG30: 0.08 | CH30: 0.11 | CI30: 0.17 | CJ30: 0.61 | CK30: 0.09 | CL30: 0.13 | CM30: 0.22 | CN30: 0.78 | CO30: 0.24 | CP30: 0.54 | CQ30: 0.56 | CR30: 0.39 | CS30: 0.12 | CT30: 0.15 | CU30: 0.09 | CV30: 0.15 | DB30: 0.14 | DC30: 0.84 | DD30: 0.23 | DE30: 0.77 | DF30: 0.44 | DG30: 0.19 | DH30: 0.63 | DI30: 0.17 | DJ30: 0.18 | DK30: 0.09 | DL30: 0.09
A31: 2012-10-01 | B31: 72.3 | C31: 7.2 | D31: 79.5 | E31: 0.37 | F31: 0.1 | G31: 0.47 | H31: 0.27 | I31: -0.0871 | J31: 0.0714 | K31: 0.017708 | L31: 0.35 | M31: 0.08 | N31: 0.49 | O31: -0.27 | R31: 0.3 | S31: 0.44 | T31: 0.74 | U31: 0.13 | V31: 0.08 | W31: 0.21 | X31: 0.53 | AI31: 0.03 | AJ31: 0.15 | AK31: 0.18 | AL31: 0.44 | AM31: 0.34 | AN31: 0.78 | AO31: -0.6 | AZ31: 0.49 | BA31: 0.03 | BB31: 0.44 | BC31: 0.46 | BD31: 0.038796 | BE31: 0.66 | BF31: 0.29 | BG31: 0.37 | BH31: 0.39 | BI31: 0.56 | BJ31: -0.17 | BK31: 0.18 | BL31: 0.27 | BM31: 0.45 | BN31: 0.39 | BO31: 0.08 | BP31: 0.05 | BQ31: 0.13 | BR31: 0.32 | BS31: 0.19 | BT31: 0.16 | BU31: 0.63 | BV31: 0.03 | BW31: 0.54 | BX31: 0.45 | BY31: -0.09 | BZ31: 0.15 | CA31: 0.1 | CB31: 0.25 | CC31: 0.72 | CD31: 0.23 | CE31: 0.15 | CF31: 0.34 | CG31: 0.08 | CH31: 0.09 | CI31: 0.16 | CJ31: 0.63 | CK31: 0.08 | CL31: 0.13 | CM31: 0.21 | CN31: 0.78 | CO31: 0.22 | CP31: 0.56 | CQ31: 0.57 | CR31: 0.39 | CS31: 0.09 | CT31: 0.18 | CU31: 0.1 | CV31: 0.16 | DB31: 0.12 | DC31: 0.86 | DD31: 0.2 | DE31: 0.79 | DF31: 0.42 | DG31: 0.21 | DH31: 0.63 | DI31: 0.2 | DJ31: 0.14 | DK31: 0.08 | DL31: 0.06
A32: 2012-11-01 | B32: 71.7 | C32: 8.4 | D32: 80.1 | E32: 0.37 | F32: 0.14 | G32: 0.44 | H32: 0.23 | I32: -0.1086 | J32: 0.0855 | K32: 0.016431 | L32: 0.42 | M32: 0.08 | N32: 0.43 | O32: -0.34 | R32: 0.31 | S32: 0.4 | T32: 0.71 | U32: 0.17 | V32: 0.08 | W32: 0.25 | X32: 0.46 | AI32: 0.03 | AJ32: 0.21 | AK32: 0.24 | AL32: 0.4 | AM32: 0.32 | AN32: 0.72 | AO32: -0.48 | AZ32: 0.48 | BA32: 0.04 | BB32: 0.44 | BC32: 0.44 | BD32: 0.041528 | BE32: 0.67 | BF32: 0.28 | BG32: 0.39 | BH32: 0.45 | BI32: 0.48 | BJ32: -0.03 | BK32: 0.13 | BL32: 0.28 | BM32: 0.41 | BN32: 0.4 | BO32: 0.11 | BP32: 0.06 | BQ32: 0.17 | BR32: 0.24 | BS32: 0.21 | BT32: 0.14 | BU32: 0.64 | BV32: 0.07 | BW32: 0.47 | BX32: 0.5 | BY32: 0.03 | BZ32: 0.17 | CA32: 0.1 | CB32: 0.27 | CC32: 0.69 | CD32: 0.17 | CE32: 0.18 | CF32: 0.34 | CG32: 0.07 | CH32: 0.11 | CI32: 0.18 | CJ32: 0.61 | CK32: 0.07 | CL32: 0.15 | CM32: 0.22 | CN32: 0.77 | CO32: 0.24 | CP32: 0.53 | CQ32: 0.55 | CR32: 0.39 | CS32: 0.12 | CT32: 0.16 | CU32: 0.08 | CV32: 0.17 | DB32: 0.13 | DC32: 0.85 | DD32: 0.22 | DE32: 0.78 | DF32: 0.43 | DG32: 0.19 | DH32: 0.62 | DI32: 0.18 | DJ32: 0.19 | DK32: 0.11 | DL32: 0.08
A33: 2012-12-01 | B33: 72.8 | C33: 9.1 | D33: 81.9 | E33: 0.43 | F33: 0.11 | G33: 0.4 | H33: 0.32 | I33: -0.1069 | J33: 0.0888 | K33: 0.026425 | L33: 0.44 | M33: 0.08 | N33: 0.43 | O33: -0.36 | R33: 0.31 | S33: 0.39 | T33: 0.7 | U33: 0.15 | V33: 0.09 | W33: 0.24 | X33: 0.46 | AI33: 0.04 | AJ33: 0.17 | AK33: 0.21 | AL33: 0.42 | AM33: 0.32 | AN33: 0.74 | AO33: -0.53 | AZ33: 0.48 | BA33: 0.04 | BB33: 0.42 | BC33: 0.44 | BD33: 0.046096 | BE33: 0.65 | BF33: 0.31 | BG33: 0.34 | BH33: 0.38 | BI33: 0.54 | BJ33: -0.16 | BK33: 0.15 | BL33: 0.25 | BM33: 0.4 | BN33: 0.39 | BO33: 0.13 | BP33: 0.07 | BQ33: 0.2 | BR33: 0.2 | BS33: 0.23 | BT33: 0.16 | BU33: 0.6 | BV33: 0.07 | BW33: 0.54 | BX33: 0.45 | BY33: -0.09 | BZ33: 0.16 | CA33: 0.16 | CB33: 0.32 | CC33: 0.64 | CD33: 0.16 | CE33: 0.17 | CF33: 0.31 | CG33: 0.08 | CH33: 0.1 | CI33: 0.16 | CJ33: 0.65 | CK33: 0.08 | CL33: 0.12 | CM33: 0.2 | CN33: 0.8 | CO33: 0.23 | CP33: 0.57 | CQ33: 0.6 | CR33: 0.4 | CS33: 0.1 | CT33: 0.15 | CU33: 0.1 | CV33: 0.15 | DB33: 0.16 | DC33: 0.83 | DD33: 0.21 | DE33: 0.78 | DF33: 0.43 | DG33: 0.2 | DH33: 0.63 | DI33: 0.17 | DJ33: 0.18 | DK33: 0.09 | DL33: 0.09
A34: 2013-01-01 | B34: 73.5 | C34: 8.8 | D34: 82.3 | E34: 0.41 | F34: 0.1 | G34: 0.45 | H34: 0.31 | I34: -0.1014 | J34: 0.0835 | K34: 0.024095 | L34: 0.41 | M34: 0.07 | N34: 0.46 | O34: -0.34 | R34: 0.28 | S34: 0.41 | T34: 0.69 | U34: 0.16 | V34: 0.1 | W34: 0.26 | X34: 0.43 | AI34: 0.05 | AJ34: 0.18 | AK34: 0.23 | AL34: 0.4 | AM34: 0.32 | AN34: 0.72 | AO34: -0.49 | AZ34: 0.5 | BA34: 0.06 | BB34: 0.4 | BC34: 0.44 | BD34: 0.037034 | BE34: 0.65 | BF34: 0.3 | BG34: 0.35 | BH34: 0.39 | BI34: 0.53 | BJ34: -0.14 | BK34: 0.16 | BL34: 0.27 | BM34: 0.43 | BN34: 0.37 | BO34: 0.12 | BP34: 0.07 | BQ34: 0.19 | BR34: 0.24 | BS34: 0.23 | BT34: 0.15 | BU34: 0.61 | BV34: 0.08 | BW34: 0.55 | BX34: 0.42 | BY34: -0.13 | BZ34: 0.17 | CA34: 0.09 | CB34: 0.26 | CC34: 0.71 | CD34: 0.21 | CE34: 0.17 | CF34: 0.33 | CG34: 0.07 | CH34: 0.09 | CI34: 0.19 | CJ34: 0.6 | CK34: 0.07 | CL34: 0.12 | CM34: 0.19 | CN34: 0.8 | CO34: 0.26 | CP34: 0.54 | CQ34: 0.61 | CR34: 0.38 | CS34: 0.12 | CT34: 0.16 | CU34: 0.09 | CV34: 0.16 | CW34: 0.72 | CX34: 0.18 | CY34: 0.07 | CZ34: 0.01 | DA34: 0.02 | DB34: 0.13 | DC34: 0.84 | DD34: 0.2 | DE34: 0.77 | DF34: 0.46 | DG34: 0.18 | DH34: 0.64 | DI34: 0.19 | DJ34: 0.14 | DK34: 0.08 | DL34: 0.06
A35: 2013-02-01 | B35: 73.7 | C35: 9.6 | D35: 83.3 | E35: 0.48 | F35: 0.1 | G35: 0.39 | H35: =E35-F35 -> 0.38 | I35: -0.1006 | J35: 0.0812 | K35: 0.028916 | L35: 0.45 | M35: 0.07 | N35: 0.44 | O35: -0.38 | R35: 0.31 | S35: 0.42 | T35: 0.73 | U35: 0.15 | V35: 0.09 | W35: 0.24 | X35: 0.49 | AI35: 0.05 | AJ35: 0.2 | AK35: 0.25 | AL35: 0.43 | AM35: 0.29 | AN35: 0.72 | AO35: -0.47 | AZ35: 0.5 | BA35: 0.04 | BB35: 0.42 | BC35: 0.46 | BD35: 0.039228 | BE35: 0.67 | BF35: 0.3 | BG35: 0.37 | BH35: 0.38 | BI35: 0.53 | BJ35: -0.15 | BK35: 0.14 | BL35: 0.27 | BM35: 0.41 | BN35: 0.41 | BO35: 0.11 | BP35: 0.06 | BQ35: 0.17 | BR35: 0.24 | BS35: 0.21 | BT35: 0.17 | BU35: 0.61 | BV35: 0.04 | BW35: 0.49 | BX35: 0.47 | BY35: -0.02 | BZ35: 0.1 | CA35: 0.1 | CB35: 0.2 | CC35: 0.73 | CD35: 0.19 | CE35: 0.19 | CF35: 0.35 | CG35: 0.07 | CH35: 0.09 | CI35: 0.15 | CJ35: 0.62 | CK35: 0.08 | CL35: 0.13 | CM35: 0.21 | CN35: 0.76 | CO35: 0.2 | CP35: 0.56 | CQ35: 0.55 | CR35: 0.39 | CS35: 0.11 | CT35: 0.15 | CU35: 0.09 | CV35: 0.17 | CW35: 0.76 | CX35: 0.15 | CY35: 0.05 | CZ35: 0.02 | DA35: 0.01 | DB35: 0.16 | DC35: 0.83 | DD35: 0.21 | DE35: 0.78 | DF35: 0.41 | DG35: 0.23 | DH35: 0.64 | DI35: 0.17 | DJ35: 0.17 | DK35: 0.1 | DL35: 0.07
A36: 2013-03-01 | B36: 74.2 | C36: 10.1 | D36: 84.3 | E36: 0.48 | F36: 0.1 | G36: 0.37 | H36: 0.38 | I36: -0.1057 | J36: 0.0773 | K36: 0.026534 | L36: 0.46 | M36: 0.06 | N36: 0.43 | O36: -0.4 | R36: 0.28 | S36: 0.43 | T36: 0.71 | U36: 0.15 | V36: 0.09 | W36: 0.24 | X36: 0.47 | AI36: 0.04 | AJ36: 0.22 | AK36: 0.26 | AL36: 0.42 | AM36: 0.27 | AN36: 0.69 | AO36: -0.43 | AZ36: 0.5 | BA36: 0.03 | BB36: 0.41 | BC36: 0.47 | BD36: 0.041155 | BE36: 0.64 | BF36: 0.32 | BG36: 0.32 | BH36: 0.35 | BI36: 0.58 | BJ36: -0.23 | BK36: 0.12 | BL36: 0.26 | BM36: 0.38 | BN36: 0.39 | BO36: 0.13 | BP36: 0.08 | BQ36: 0.21 | BR36: 0.17 | BS36: 0.2 | BT36: 0.17 | BU36: 0.62 | BV36: 0.03 | BW36: 0.51 | BX36: 0.47 | BY36: -0.04 | BZ36: 0.13 | CA36: 0.13 | CB36: =SUM(BZ36:CA36) -> 0.26 | CC36: 0.69 | CD36: 0.18 | CE36: 0.16 | CF36: 0.35 | CG36: 0.06 | CH36: 0.11 | CI36: 0.16 | CJ36: 0.65 | CK36: 0.06 | CL36: 0.14 | CM36: 0.2 | CN36: 0.79 | CO36: 0.2 | CP36: 0.59 | CQ36: 0.59 | CR36: 0.39 | CS36: 0.14 | CT36: 0.16 | CU36: 0.07 | CV36: 0.16 | CW36: 0.78 | CX36: 0.15 | CY36: 0.05 | CZ36: 0.01 | DA36: 0.01 | DB36: 0.16 | DC36: 0.82 | DD36: 0.22 | DE36: 0.77 | DF36: 0.45 | DG36: 0.18 | DH36: 0.63 | DI36: 0.19 | DJ36: 0.16 | DK36: 0.09 | DL36: 0.07
A37: 2013-04-01 | B37: 77.3 | C37: 10 | D37: 87.3 | E37: 0.51 | F37: 0.1 | G37: 0.35 | H37: 0.41 | I37: -0.0908 | J37: 0.0715 | K37: 0.027385 | L37: 0.43 | M37: 0.07 | N37: 0.46 | O37: -0.36 | R37: 0.29 | S37: 0.42 | T37: 0.71 | U37: 0.14 | V37: 0.09 | W37: 0.23 | X37: 0.48 | AI37: 0.08 | AJ37: 0.22 | AK37: 0.3 | AL37: 0.39 | AM37: 0.25 | AN37: 0.64 | AO37: -0.34 | AZ37: 0.48 | BA37: 0.03 | BB37: 0.43 | BC37: 0.45 | BD37: 0.040791 | BE37: 0.65 | BF37: 0.3 | BG37: 0.35 | BH37: 0.39 | BI37: 0.56 | BJ37: -0.17 | BK37: 0.17 | BL37: 0.24 | BM37: 0.41 | BN37: 0.43 | BO37: 0.11 | BP37: 0.05 | BQ37: 0.16 | BR37: 0.25 | BS37: 0.2 | BT37: 0.16 | BU37: 0.61 | BV37: 0.04 | BW37: 0.51 | BX37: 0.47 | BY37: -0.04 | BZ37: 0.19 | CA37: 0.08 | CB37: =SUM(BZ37:CA37) -> 0.27 | CC37: 0.68 | CD37: 0.18 | CE37: 0.2 | CF37: 0.3 | CG37: 0.06 | CH37: 0.11 | CI37: 0.15 | CJ37: 0.65 | CK37: 0.05 | CL37: 0.15 | CM37: 0.2 | CN37: =CO37+CP37 -> 0.8 | CO37: 0.19 | CP37: 0.61 | CQ37: 0.6 | CR37: 0.36 | CS37: 0.13 | CT37: 0.13 | CU37: 0.1 | CV37: 0.17 | CW37: 0.77 | CX37: 0.16 | CY37: 0.04 | CZ37: 0.02 | DA37: 0.01 | DB37: 0.19 | DC37: 0.79 | DD37: 0.24 | DE37: 0.74 | DF37: 0.42 | DG37: 0.19 | DH37: 0.61 | DI37: 0.19 | DJ37: 0.19 | DK37: 0.11 | DL37: 0.08
A38: 2013-05-01 | B38: 82.2 | C38: 11.9 | D38: 94.1 | E38: 0.55 | F38: 0.07 | G38: 0.34 | H38: 0.48 | I38: -0.0891 | J38: 0.0826 | K38: 0.039193 | L38: 0.46 | M38: 0.05 | N38: 0.44 | O38: -0.41 | R38: 0.3 | S38: 0.46 | T38: 0.76 | U38: 0.13 | V38: 0.06 | W38: 0.19 | X38: 0.57 | AI38: 0.1 | AJ38: 0.3 | AK38: 0.4 | AL38: 0.31 | AM38: 0.26 | AN38: 0.57 | AO38: -0.17 | AZ38: 0.48 | BA38: 0.04 | BB38: 0.45 | BC38: 0.44 | BD38: 0.034004 | BE38: 0.66 | BF38: 0.29 | BG38: 0.37 | BH38: 0.4 | BI38: 0.53 | BJ38: -0.13 | BK38: 0.15 | BL38: 0.26 | BM38: 0.41 | BN38: 0.42 | BO38: 0.11 | BP38: 0.05 | BQ38: 0.16 | BR38: 0.25 | BS38: 0.2 | BT38: 0.13 | BU38: 0.65 | BV38: 0.07 | BW38: 0.5 | BX38: 0.46 | BY38: -0.04 | BZ38: 0.18 | CA38: 0.1 | CB38: 0.28 | CC38: 0.68 | CD38: 0.16 | CE38: 0.17 | CF38: 0.35 | CG38: 0.06 | CH38: 0.1 | CI38: 0.16 | CJ38: 0.64 | CK38: 0.07 | CL38: 0.13 | CM38: 0.2 | CN38: 0.78 | CO38: 0.24 | CP38: 0.54 | CQ38: 0.58 | CR38: 0.41 | CS38: 0.14 | CT38: 0.15 | CU38: 0.07 | CV38: 0.12 | CW38: 0.76 | CX38: 0.14 | CY38: 0.08 | CZ38: 0.01 | DA38: 0.01 | DB38: 0.14 | DC38: 0.85 | DD38: 0.23 | DE38: 0.77 | DF38: 0.45 | DG38: 0.18 | DH38: 0.63 | DI38: 0.18 | DJ38: 0.17 | DK38: 0.08 | DL38: 0.09
A39: 2013-06-01 | B39: 79.3 | C39: 13.8 | D39: 93.1 | E39: 0.57 | F39: 0.07 | G39: 0.34 | H39: 0.5 | I39: -0.0986 | J39: 0.0792 | K39: 0.038242 | L39: 0.57 | M39: 0.04 | N39: 0.35 | O39: -0.53 | R39: 0.25 | S39: 0.47 | T39: 0.72 | U39: 0.17 | V39: 0.07 | W39: 0.24 | X39: 0.48 | AI39: 0.08 | AJ39: 0.28 | AK39: 0.36 | AL39: 0.4 | AM39: 0.21 | AN39: 0.61 | AO39: -0.25 | AZ39: 0.56 | BA39: 0.03 | BB39: 0.37 | BC39: 0.53 | BD39: 0.046373 | BE39: 0.65 | BF39: 0.3 | BG39: 0.35 | BH39: 0.38 | BI39: 0.55 | BJ39: -0.17 | BK39: 0.17 | BL39: 0.29 | BM39: 0.46 | BN39: 0.36 | BO39: 0.11 | BP39: 0.05 | BQ39: 0.16 | BR39: 0.3 | BS39: 0.26 | BT39: 0.15 | BU39: 0.57 | BV39: 0.11 | BW39: 0.51 | BX39: 0.47 | BY39: -0.04 | BZ39: 0.15 | CA39: 0.1 | CB39: 0.25 | CC39: 0.72 | CD39: 0.17 | CE39: 0.15 | CF39: 0.4 | CG39: 0.04 | CH39: 0.11 | CI39: 0.14 | CJ39: 0.65 | CK39: 0.04 | CL39: 0.14 | CM39: 0.18 | CN39: 0.82 | CO39: 0.2 | CP39: 0.62 | CQ39: 0.64 | CR39: 0.44 | CS39: 0.12 | CT39: 0.13 | CU39: 0.08 | CV39: 0.13 | CW39: 0.81 | CX39: 0.13 | CY39: 0.05 | CZ39: 0 | DA39: 0.01 | DB39: 0.13 | DC39: 0.85 | DD39: 0.23 | DE39: 0.75 | DF39: 0.41 | DG39: 0.22 | DH39: 0.63 | DI39: 0.19 | DJ39: 0.19 | DK39: 0.09 | DL39: 0.1
A40: 2013-07-01 | B40: 77.7 | C40: 14.2 | D40: 91.9 | E40: 0.53 | F40: 0.06 | G40: 0.37 | H40: 0.47 | I40: -0.1116 | J40: 0.0871 | K40: 0.039467 | L40: 0.62 | M40: 0.05 | N40: 0.28 | O40: -0.57 | R40: 0.29 | S40: 0.45 | T40: 0.74 | U40: 0.14 | V40: 0.07 | W40: 0.21 | X40: 0.53 | AI40: 0.09 | AJ40: 0.31 | AK40: 0.4 | AL40: 0.38 | AM40: 0.17 | AN40: 0.55 | AO40: -0.15 | AZ40: 0.54 | BA40: 0.03 | BB40: 0.39 | BC40: 0.51 | BD40: 0.042429 | BE40: 0.64 | BF40: 0.32 | BG40: 0.32 | BH40: 0.4 | BI40: 0.54 | BJ40: -0.14 | BK40: 0.19 | BL40: 0.24 | BM40: 0.43 | BN40: 0.41 | BO40: 0.09 | BP40: 0.06 | BQ40: 0.15 | BR40: 0.28 | BS40: 0.26 | BT40: 0.16 | BU40: 0.57 | BV40: 0.1 | BW40: 0.52 | BX40: 0.45 | BY40: -0.07 | BZ40: 0.19 | CA40: 0.11 | CB40: 0.3 | CC40: 0.65 | CD40: 0.14 | CE40: 0.14 | CF40: 0.37 | CG40: 0.07 | CH40: 0.14 | CI40: 0.13 | CJ40: 0.63 | CK40: 0.07 | CL40: 0.19 | CM40: 0.26 | CN40: 0.73 | CO40: 0.17 | CP40: 0.56 | CQ40: 0.47 | CR40: 0.41 | CS40: 0.11 | CT40: 0.16 | CU40: 0.08 | CV40: 0.13 | CW40: 0.76 | CX40: 0.14 | CY40: 0.06 | CZ40: 0.01 | DA40: 0.03 | DB40: 0.14 | DC40: 0.85 | DD40: 0.19 | DE40: 0.8 | DF40: 0.48 | DG40: 0.18 | DH40: 0.66 | DI40: 0.16 | DJ40: 0.16 | DK40: 0.09 | DL40: 0.07
A41: 2013-08-01 | B41: 78.3 | C41: 14 | D41: 92.3 | E41: 0.55 | F41: 0.07 | G41: 0.35 | H41: 0.48 | I41: -0.0785 | J41: 0.0709 | K41: 0.0335 | L41: 0.6 | M41: 0.05 | N41: 0.31 | O41: -0.55 | R41: 0.24 | S41: 0.47 | T41: 0.71 | U41: 0.15 | V41: 0.08 | W41: 0.23 | X41: 0.48 | AI41: 0.09 | AJ41: 0.27 | AK41: 0.36 | AL41: 0.38 | AM41: 0.21 | AN41: 0.59 | AO41: -0.23 | AZ41: 0.53 | BA41: 0.03 | BB41: 0.39 | BC41: 0.5 | BD41: 0.040894 | BE41: 0.65 | BF41: 0.32 | BG41: 0.33 | BH41: 0.37 | BI41: 0.57 | BJ41: -0.2 | BK41: 0.14 | BL41: 0.3 | BM41: 0.44 | BN41: 0.43 | BO41: 0.08 | BP41: 0.04 | BQ41: 0.12 | BR41: 0.32 | BS41: 0.23 | BT41: 0.17 | BU41: 0.58 | BV41: 0.06 | BW41: 0.53 | BX41: 0.46 | BY41: -0.07 | BZ41: 0.14 | CA41: 0.09 | CB41: 0.23 | CC41: 0.73 | CD41: 0.2 | CE41: 0.14 | CF41: 0.39 | CG41: 0.05 | CH41: 0.1 | CI41: 0.16 | CJ41: 0.67 | CK41: 0.04 | CL41: 0.13 | CM41: 0.17 | CN41: 0.82 | CO41: 0.21 | CP41: 0.61 | CQ41: 0.65 | CR41: 0.43 | CS41: 0.12 | CT41: 0.14 | CU41: 0.07 | CV41: 0.14 | CW41: 0.81 | CX41: 0.15 | CY41: 0.04 | CZ41: 0 | DA41: 0.01 | DB41: 0.16 | DC41: 0.82 | DD41: 0.22 | DE41: 0.77 | DF41: 0.43 | DG41: 0.22 | DH41: 0.65 | DI41: 0.2 | DJ41: 0.13 | DK41: 0.08 | DL41: 0.05
A42: 2013-09-01 | B42: 78.3 | C42: 14.8 | D42: 93.1 | E42: 0.52 | F42: 0.06 | G42: 0.38 | H42: 0.46 | I42: -0.0847 | J42: 0.0699 | K42: 0.031266 | L42: 0.63 | M42: 0.04 | N42: 0.3 | O42: -0.59 | R42: 0.24 | S42: 0.48 | T42: 0.72 | U42: 0.15 | V42: 0.09 | W42: 0.24 | X42: 0.48 | AI42: 0.08 | AJ42: 0.3 | AK42: 0.38 | AL42: 0.34 | AM42: 0.23 | AN42: 0.57 | AO42: -0.19 | AZ42: 0.52 | BA42: 0.03 | BB42: 0.41 | BC42: 0.49 | BD42: 0.033737 | BE42: 0.69 | BF42: 0.27 | BG42: 0.42 | BH42: 0.39 | BI42: 0.55 | BJ42: -0.16 | BK42: 0.17 | BL42: 0.25 | BM42: 0.42 | BN42: 0.41 | BO42: 0.09 | BP42: 0.07 | BQ42: 0.16 | BR42: 0.26 | BS42: 0.22 | BT42: 0.12 | BU42: 0.65 | BV42: 0.1 | BW42: 0.51 | BX42: 0.47 | BY42: -0.04 | BZ42: 0.16 | CA42: 0.12 | CB42: 0.28 | CC42: 0.67 | CD42: 0.16 | CE42: 0.18 | CF42: 0.33 | CG42: 0.07 | CH42: 0.08 | CI42: 0.15 | CJ42: 0.65 | CK42: 0.08 | CL42: 0.1 | CM42: 0.18 | CN42: 0.81 | CO42: 0.2 | CP42: 0.61 | CQ42: 0.63 | CR42: 0.4 | CS42: 0.1 | CT42: 0.16 | CU42: 0.09 | CV42: 0.14 | CW42: 0.79 | CX42: 0.13 | CY42: 0.05 | CZ42: 0.02 | DA42: 0.01 | DB42: 0.12 | DC42: 0.87 | DD42: 0.24 | DE42: 0.75 | DF42: 0.44 | DG42: 0.25 | DH42: 0.69 | DI42: 0.17 | DJ42: 0.12 | DK42: 0.07 | DL42: 0.05
A43: 2013-10-01 | B43: 72.5 | C43: 12 | D43: 84.5 | E43: 0.46 | F43: 0.1 | G43: 0.39 | H43: 0.36 | I43: -0.0901 | J43: 0.0825 | K43: 0.02894 | L43: 0.57 | M43: 0.06 | N43: 0.32 | O43: -0.51 | P43: 0.0432 | Q43: 0.0493 | R43: 0.2 | S43: 0.45 | T43: 0.65 | U43: 0.19 | V43: 0.12 | W43: 0.31 | X43: 0.34 | Y43: 0.29 | Z43: 0.37 | AA43: 0.16 | AB43: 0.02 | AC43: 0.06 | AD43: 0.15 | AE43: 0.06 | AF43: 0.01 | AG43: 0.17 | AH43: 0.49 | AI43: 0.05 | AJ43: 0.32 | AK43: 0.37 | AL43: 0.37 | AM43: 0.22 | AN43: 0.59 | AO43: -0.22 | AP43: 0.11 | AQ43: 0.37 | AR43: 0.15 | AS43: 0.09 | AT43: 0.15 | AU43: 0.29 | AV43: 0.03 | AW43: 0.12 | AX43: 0.12 | AY43: 0.34 | AZ43: 0.52 | BA43: 0.05 | BB43: 0.38 | BC43: 0.47 | BD43: 0.044456 | BE43: 0.7 | BF43: 0.27 | BG43: 0.43 | BH43: 0.27 | BI43: 0.67 | BJ43: -0.4 | BK43: 0.17 | BL43: 0.21 | BM43: 0.38 | BN43: 0.39 | BO43: 0.15 | BP43: 0.07 | BQ43: 0.22 | BR43: 0.16 | BS43: 0.2 | BT43: 0.15 | BU43: 0.63 | BV43: 0.05 | BW43: 0.53 | BX43: 0.46 | BY43: -0.07 | BZ43: 0.17 | CA43: 0.07 | CB43: 0.24 | CC43: 0.7 | CD43: 0.21 | CE43: 0.16 | CF43: 0.33 | CG43: 0.06 | CH43: 0.13 | CI43: 0.15 | CJ43: 0.63 | CK43: 0.07 | CL43: 0.17 | CM43: 0.24 | CN43: 0.76 | CO43: 0.21 | CP43: 0.55 | CQ43: 0.52 | CR43: 0.45 | CS43: 0.11 | CT43: 0.13 | CU43: 0.08 | CV43: 0.12 | CW43: 0.75 | CX43: 0.17 | CY43: 0.07 | CZ43: 0.01 | DA43: 0 | DB43: 0.15 | DC43: 0.84 | DD43: 0.2 | DE43: 0.78 | DF43: 0.47 | DG43: 0.2 | DH43: 0.67 | DI43: 0.18 | DJ43: 0.13 | DK43: 0.08 | DL43: 0.05
A44: 2013-11-01 | B44: 72.8 | C44: 13.1 | D44: =ROUND(63.5+100*(T44-W44+AK44-AN44+E44-F44+BS44-BT44+CN44-CM44)/5,1) -> 85.9 | E44: 0.45 | F44: 0.09 | G44: 0.42 | H44: 0.36 | I44: -0.0946 | J44: 0.0745 | K44: 0.025011 | L44: 0.59 | M44: 0.03 | N44: 0.33 | O44: -0.56 | P44: 0.041 | Q44: 0.05 | R44: 0.17 | S44: 0.47 | T44: 0.64 | U44: 0.18 | V44: 0.12 | W44: 0.3 | X44: 0.34 | Y44: 0.27 | Z44: 0.35 | AA44: 0.2 | AB44: 0.03 | AC44: 0.08 | AD44: 0.18 | AE44: 0.05 | AF44: 0.02 | AG44: 0.11 | AH44: 0.53 | AI44: 0.07 | AJ44: 0.3 | AK44: 0.37 | AL44: 0.36 | AM44: 0.22 | AN44: 0.58 | AO44: -0.21 | AP44: 0.14 | AQ44: 0.3 | AR44: 0.17 | AS44: 0.09 | AT44: 0.15 | AU44: 0.29 | AV44: 0.05 | AW44: 0.16 | AX44: 0.11 | AY44: 0.32 | AZ44: 0.5 | BA44: 0.04 | BB44: 0.41 | BC44: 0.46 | BD44: 0.027858 | BE44: 0.68 | BF44: 0.28 | BG44: 0.4 | BH44: 0.32 | BI44: 0.61 | BJ44: -0.29 | BK44: 0.13 | BL44: 0.25 | BM44: 0.38 | BN44: 0.39 | BO44: 0.13 | BP44: 0.09 | BQ44: 0.22 | BR44: 0.16 | BS44: 0.22 | BT44: 0.17 | BU44: 0.59 | BV44: 0.05 | BW44: 0.49 | BX44: 0.5 | BY44: 0.01 | BZ44: 0.15 | CA44: 0.14 | CB44: 0.29 | CC44: 0.67 | CD44: 0.2 | CE44: 0.16 | CF44: 0.31 | CG44: 0.07 | CH44: 0.11 | CI44: 0.12 | CJ44: 0.66 | CK44: 0.08 | CL44: 0.13 | CM44: 0.21 | CN44: 0.79 | CO44: 0.17 | CP44: 0.62 | CQ44: 0.58 | CR44: 0.4 | CS44: 0.12 | CT44: 0.12 | CU44: 0.07 | CV44: 0.19 | CW44: 0.79 | CX44: 0.13 | CY44: 0.05 | CZ44: 0.02 | DA44: 0.01 | DB44: 0.11 | DC44: 0.88 | DD44: 0.18 | DE44: 0.8 | DF44: 0.45 | DG44: 0.23 | DH44: 0.68 | DI44: 0.19 | DJ44: 0.12 | DK44: 0.07 | DL44: 0.05
A45: 2013-12-01 | B45: =ROUND(63.5+100*(T45-W45+AK45-AN45+E45-F45+M45-L45+BS45-BT45+CN45-CM45)/6,1) -> 72.7 | C45: 12.4 | D45: 85.1 | E45: 0.49 | F45: 0.09 | G45: 0.38 | H45: 0.4 | I45: -0.0729 | J45: 0.0796 | K45: 0.032443 | L45: 0.57 | M45: 0.04 | N45: 0.33 | O45: -0.53 | P45: 0.0429 | Q45: 0.051 | R45: 0.23 | S45: 0.44 | T45: 0.67 | U45: 0.18 | V45: 0.09 | W45: 0.27 | X45: 0.4 | Y45: 0.29 | Z45: 0.35 | AA45: 0.18 | AB45: 0.05 | AC45: 0.09 | AD45: 0.12 | AE45: 0.04 | AF45: 0.03 | AG45: 0.17 | AH45: 0.53 | AI45: 0.05 | AJ45: 0.28 | AK45: 0.33 | AL45: 0.4 | AM45: 0.2 | AN45: 0.6 | AO45: -0.27 | AP45: 0.1 | AQ45: 0.35 | AR45: 0.14 | AS45: 0.1 | AT45: 0.18 | AU45: 0.33 | AV45: 0.03 | AW45: 0.14 | AX45: 0.12 | AY45: 0.33 | AZ45: 0.53 | BA45: 0.03 | BB45: 0.39 | BC45: 0.5 | BD45: 0.038071 | BE45: 0.66 | BF45: 0.31 | BG45: 0.35 | BH45: 0.31 | BI45: 0.59 | BJ45: -0.28 | BK45: 0.15 | BL45: 0.27 | BM45: 0.42 | BN45: 0.41 | BO45: 0.11 | BP45: 0.06 | BQ45: 0.17 | BR45: 0.25 | BS45: 0.23 | BT45: 0.14 | BU45: 0.61 | BV45: 0.09 | BW45: 0.48 | BX45: 0.5 | BY45: 0.02 | BZ45: 0.15 | CA45: 0.08 | CB45: 0.23 | CC45: 0.72 | CD45: 0.2 | CE45: 0.17 | CF45: 0.35 | CG45: 0.09 | CH45: 0.14 | CI45: 0.15 | CJ45: 0.6 | CK45: 0.09 | CL45: 0.18 | CM45: 0.27 | CN45: 0.73 | CO45: 0.2 | CP45: 0.53 | CQ45: 0.46 | CR45: 0.42 | CS45: 0.12 | CT45: 0.15 | CU45: 0.08 | CV45: 0.13 | CW45: 0.78 | CX45: 0.16 | CY45: 0.04 | CZ45: 0.01 | DA45: 0.01 | DB45: 0.12 | DC45: 0.87 | DD45: 0.19 | DE45: 0.79 | DF45: 0.48 | DG45: 0.2 | DH45: 0.68 | DI45: 0.15 | DJ45: 0.15 | DK45: 0.09 | DL45: 0.06
A46: 2014-01-01 | B46: 76.5 | C46: 12.6 | D46: 89.1 | E46: 0.43 | F46: 0.06 | G46: 0.45 | H46: 0.37 | I46: -0.0857 | J46: 0.0593 | K46: 0.020357 | L46: 0.55 | M46: 0.05 | N46: 0.34 | O46: -0.5 | P46: 0.0453 | Q46: 0.05 | R46: 0.19 | S46: 0.46 | T46: 0.65 | U46: 0.21 | V46: 0.07 | W46: 0.28 | X46: 0.37 | Y46: 0.25 | Z46: 0.37 | AA46: 0.16 | AB46: 0.04 | AC46: 0.1 | AD46: 0.21 | AE46: 0.05 | AF46: 0.03 | AG46: 0.12 | AH46: 0.48 | AI46: 0.06 | AJ46: 0.32 | AK46: 0.38 | AL46: 0.39 | AM46: 0.16 | AN46: 0.55 | AO46: -0.17 | AP46: 0.14 | AQ46: 0.34 | AR46: 0.13 | AS46: 0.11 | AT46: 0.15 | AU46: 0.31 | AV46: 0.04 | AW46: 0.15 | AX46: 0.12 | AY46: 0.3 | AZ46: 0.48 | BA46: 0.03 | BB46: 0.43 | BC46: 0.45 | BD46: 0.02811 | BE46: 0.7 | BF46: 0.26 | BG46: 0.44 | BH46: 0.39 | BI46: 0.54 | BJ46: -0.15 | BK46: 0.16 | BL46: 0.28 | BM46: 0.44 | BN46: 0.41 | BO46: 0.1 | BP46: 0.04 | BQ46: 0.14 | BR46: 0.3 | BS46: 0.22 | BT46: 0.13 | BU46: 0.63 | BV46: 0.09 | BW46: 0.45 | BX46: 0.52 | BY46: 0.07 | BZ46: 0.15 | CA46: 0.09 | CB46: 0.24 | CC46: 0.71 | CD46: 0.1 | CE46: 0.18 | CF46: 0.43 | CG46: 0.06 | CH46: 0.1 | CI46: 0.14 | CJ46: 0.66 | CK46: 0.06 | CL46: 0.13 | CM46: 0.19 | CN46: 0.81 | CO46: 0.19 | CP46: 0.62 | CQ46: 0.62 | CR46: 0.43 | CS46: 0.12 | CT46: 0.15 | CU46: 0.08 | CV46: 0.13 | CW46: 0.76 | CX46: 0.2 | CY46: 0.03 | CZ46: 0.01 | DA46: 0.01 | DB46: 0.14 | DC46: 0.85 | DD46: 0.19 | DE46: 0.8 | DF46: 0.5 | DG46: 0.21 | DH46: 0.71 | DI46: 0.14 | DJ46: 0.13 | DK46: 0.08 | DL46: 0.05
A47: 2014-02-01 | B47: 75 | C47: 12.7 | D47: 87.7 | E47: 0.5 | F47: 0.07 | G47: 0.38 | H47: 0.43 | I47: -0.0746 | J47: 0.0743 | K47: 0.031928 | L47: 0.56 | M47: 0.04 | N47: 0.33 | O47: -0.52 | P47: 0.0432 | Q47: 0.0501 | R47: 0.17 | S47: 0.51 | T47: 0.68 | U47: 0.17 | V47: 0.1 | W47: 0.27 | X47: 0.41 | Y47: 0.29 | Z47: 0.33 | AA47: 0.2 | AB47: 0.04 | AC47: 0.07 | AD47: 0.19 | AE47: 0.03 | AF47: 0.03 | AG47: 0.11 | AH47: 0.53 | AI47: 0.07 | AJ47: 0.27 | AK47: 0.34 | AL47: 0.4 | AM47: 0.19 | AN47: 0.59 | AO47: -0.25 | AP47: 0.18 | AQ47: 0.29 | AR47: 0.17 | AS47: 0.08 | AT47: 0.17 | AU47: 0.28 | AV47: 0.05 | AW47: 0.17 | AX47: 0.13 | AY47: 0.32 | AZ47: 0.51 | BA47: 0.02 | BB47: 0.42 | BC47: 0.49 | BD47: 0.043394 | BE47: 0.66 | BF47: 0.3 | BG47: 0.36 | BH47: 0.35 | BI47: 0.57 | BJ47: -0.22 | BK47: 0.15 | BL47: 0.28 | BM47: 0.43 | BN47: 0.41 | BO47: 0.1 | BP47: 0.05 | BQ47: 0.15 | BR47: 0.28 | BS47: 0.24 | BT47: 0.16 | BU47: 0.59 | BV47: 0.08 | BW47: 0.52 | BX47: 0.45 | BY47: -0.07 | BZ47: 0.19 | CA47: 0.08 | CB47: 0.27 | CC47: 0.7 | CD47: 0.17 | CE47: 0.14 | CF47: 0.39 | CG47: 0.08 | CH47: 0.11 | CI47: 0.18 | CJ47: 0.6 | CK47: 0.1 | CL47: 0.13 | CM47: 0.23 | CN47: 0.77 | CO47: 0.23 | CP47: 0.54 | CQ47: 0.54 | CR47: 0.44 | CS47: 0.11 | CT47: 0.14 | CU47: 0.07 | CV47: 0.13 | CW47: 0.76 | CX47: 0.18 | CY47: 0.05 | CZ47: 0.01 | DA47: 0.02 | DB47: 0.14 | DC47: 0.84 | DD47: 0.25 | DE47: 0.74 | DF47: 0.47 | DG47: 0.19 | DH47: 0.66 | DI47: 0.18 | DJ47: 0.14 | DK47: 0.1 | DL47: 0.04
A48: 2014-03-01 | B48: 77.7 | C48: 13 | D48: 90.7 | E48: 0.48 | F48: 0.05 | G48: 0.42 | H48: 0.43 | I48: -0.1137 | J48: 0.0687 | K48: 0.027291 | L48: 0.54 | M48: 0.03 | N48: 0.38 | O48: -0.51 | P48: 0.0437 | Q48: 0.05 | R48: 0.19 | S48: 0.5 | T48: 0.69 | U48: 0.19 | V48: 0.07 | W48: 0.26 | X48: 0.43 | Y48: 0.26 | Z48: 0.36 | AA48: 0.18 | AB48: 0.01 | AC48: 0.1 | AD48: 0.14 | AE48: 0.1 | AF48: 0.03 | AG48: 0.12 | AH48: 0.53 | AI48: 0.08 | AJ48: 0.3 | AK48: 0.38 | AL48: 0.42 | AM48: 0.15 | AN48: 0.57 | AO48: -0.19 | AP48: 0.15 | AQ48: 0.34 | AR48: 0.14 | AS48: 0.08 | AT48: 0.19 | AU48: 0.32 | AV48: 0.06 | AW48: 0.14 | AX48: 0.14 | AY48: 0.3 | AZ48: 0.52 | BA48: 0.04 | BB48: 0.41 | BC48: 0.48 | BD48: 0.041696 | BE48: 0.68 | BF48: 0.28 | BG48: 0.4 | BH48: 0.33 | BI48: 0.58 | BJ48: -0.25 | BK48: 0.14 | BL48: 0.28 | BM48: 0.42 | BN48: 0.45 | BO48: 0.08 | BP48: 0.04 | BQ48: 0.12 | BR48: 0.3 | BS48: 0.21 | BT48: 0.14 | BU48: 0.63 | BV48: 0.07 | BW48: 0.47 | BX48: 0.52 | BY48: 0.05 | BZ48: 0.14 | CA48: 0.12 | CB48: 0.26 | CC48: 0.72 | CD48: 0.14 | CE48: 0.16 | CF48: 0.42 | CG48: 0.05 | CH48: 0.1 | CI48: 0.13 | CJ48: 0.71 | CK48: 0.05 | CL48: 0.14 | CM48: 0.19 | CN48: 0.81 | CO48: 0.18 | CP48: 0.63 | CQ48: 0.62 | CR48: 0.42 | CS48: 0.14 | CT48: 0.14 | CU48: 0.06 | CV48: 0.15 | CW48: 0.78 | CX48: 0.16 | CY48: 0.05 | CZ48: 0.01 | DA48: 0.01 | DB48: 0.15 | DC48: 0.84 | DD48: 0.22 | DE48: 0.76 | DF48: 0.47 | DG48: 0.24 | DH48: 0.71 | DI48: 0.19 | DJ48: 0.09 | DK48: 0.06 | DL48: 0.03
A49: 2014-04-01 | B49: 82.7 | C49: 12.8 | D49: 95.5 | E49: 0.5 | F49: 0.05 | G49: 0.39 | H49: 0.45 | I49: -0.1015 | J49: 0.0688 | K49: 0.029325 | L49: 0.52 | M49: 0.07 | N49: 0.38 | O49: -0.45 | P49: 0.044 | Q49: 0.0496 | R49: 0.18 | S49: 0.51 | T49: 0.69 | U49: 0.19 | V49: 0.07 | W49: 0.26 | X49: 0.43 | Y49: 0.23 | Z49: 0.34 | AA49: 0.23 | AB49: 0.02 | AC49: 0.09 | AD49: 0.16 | AE49: 0.09 | AF49: 0.02 | AG49: 0.2 | AH49: 0.44 | AI49: 0.06 | AJ49: 0.36 | AK49: 0.42 | AL49: 0.37 | AM49: 0.14 | AN49: 0.51 | AO49: -0.09 | AP49: 0.16 | AQ49: 0.34 | AR49: 0.14 | AS49: 0.09 | AT49: 0.17 | AU49: 0.24 | AV49: 0.05 | AW49: 0.2 | AX49: 0.1 | AY49: 0.33 | AZ49: 0.52 | BA49: 0.02 | BB49: 0.43 | BC49: 0.5 | BD49: 0.0401 | BE49: 0.65 | BF49: 0.32 | BG49: 0.33 | BH49: 0.35 | BI49: 0.57 | BJ49: -0.22 | BK49: 0.14 | BL49: 0.3 | BM49: 0.44 | BN49: 0.41 | BO49: 0.1 | BP49: 0.04 | BQ49: 0.14 | BR49: 0.3 | BS49: 0.25 | BT49: 0.12 | BU49: 0.62 | BV49: 0.13 | BW49: 0.52 | BX49: 0.45 | BY49: -0.07 | BZ49: 0.1 | CA49: 0.14 | CB49: 0.24 | CC49: 0.73 | CD49: 0.17 | CE49: 0.15 | CF49: 0.41 | CG49: 0.06 | CH49: 0.08 | CI49: 0.17 | CJ49: 0.67 | CK49: 0.06 | CL49: 0.1 | CM49: 0.16 | CN49: 0.84 | CO49: 0.23 | CP49: 0.61 | CQ49: 0.68 | CR49: 0.38 | CS49: 0.13 | CT49: 0.13 | CU49: 0.09 | CV49: 0.17 | CW49: 0.76 | CX49: 0.17 | CY49: 0.05 | CZ49: 0.01 | DA49: 0.01 | DB49: 0.11 | DC49: 0.86 | DD49: 0.23 | DE49: 0.75 | DF49: 0.44 | DG49: 0.24 | DH49: 0.68 | DI49: 0.18 | DJ49: 0.12 | DK49: 0.06 | DL49: 0.06
A50: 2014-05-01 | B50: 81.5 | C50: 12.4 | D50: 93.9 | E50: 0.48 | F50: 0.07 | G50: 0.39 | H50: 0.41 | I50: -0.0829 | J50: 0.0718 | K50: 0.028661 | L50: 0.49 | M50: 0.05 | N50: 0.38 | O50: -0.44 | P50: 0.0429 | Q50: 0.0509 | R50: 0.18 | S50: 0.5 | T50: 0.68 | U50: 0.17 | V50: 0.09 | W50: 0.26 | X50: 0.42 | Y50: 0.21 | Z50: 0.36 | AA50: 0.23 | AB50: 0.04 | AC50: 0.06 | AD50: 0.21 | AE50: 0.04 | AF50: 0.03 | AG50: 0.13 | AH50: 0.48 | AI50: 0.08 | AJ50: 0.35 | AK50: 0.43 | AL50: 0.33 | AM50: 0.16 | AN50: 0.49 | AO50: -0.06 | AP50: 0.14 | AQ50: 0.3 | AR50: 0.13 | AS50: 0.12 | AT50: 0.18 | AU50: 0.22 | AV50: 0.05 | AW50: 0.2 | AX50: 0.11 | AY50: 0.33 | AZ50: 0.51 | BA50: 0.03 | BB50: 0.39 | BC50: 0.48 | BD50: 0.038934 | BE50: 0.66 | BF50: 0.29 | BG50: 0.37 | BH50: 0.38 | BI50: 0.57 | BJ50: -0.19 | BK50: 0.13 | BL50: 0.29 | BM50: 0.42 | BN50: 0.43 | BO50: 0.1 | BP50: 0.04 | BQ50: 0.14 | BR50: 0.28 | BS50: 0.21 | BT50: 0.12 | BU50: 0.65 | BV50: 0.09 | BW50: 0.47 | BX50: 0.49 | BY50: 0.02 | BZ50: 0.16 | CA50: 0.08 | CB50: 0.24 | CC50: 0.71 | CD50: 0.15 | CE50: 0.16 | CF50: 0.4 | CG50: 0.05 | CH50: 0.09 | CI50: 0.19 | CJ50: 0.64 | CK50: 0.06 | CL50: 0.11 | CM50: 0.17 | CN50: 0.83 | CO50: 0.26 | CP50: 0.57 | CQ50: 0.66 | CR50: 0.42 | CS50: 0.09 | CT50: 0.16 | CU50: 0.07 | CV50: 0.16 | CW50: 0.74 | CX50: 0.18 | CY50: 0.05 | CZ50: 0.01 | DA50: 0.02 | DB50: 0.14 | DC50: 0.85 | DD50: 0.21 | DE50: 0.78 | DF50: 0.45 | DG50: 0.26 | DH50: 0.71 | DI50: 0.14 | DJ50: 0.12 | DK50: 0.05 | DL50: 0.07
A51: 2014-06-01 | B51: 79.8 | C51: 13.5 | D51: 93.3 | E51: 0.46 | F51: 0.1 | G51: 0.41 | H51: 0.36 | I51: -0.0808 | J51: 0.07 | K51: 0.02412 | L51: 0.55 | M51: 0.04 | N51: 0.35 | O51: -0.51 | P51: 0.0412 | Q51: 0.0487 | R51: 0.17 | S51: 0.53 | T51: 0.7 | U51: 0.18 | V51: 0.07 | W51: 0.25 | X51: 0.45 | Y51: 0.26 | Z51: 0.32 | AA51: 0.22 | AB51: 0.04 | AC51: 0.08 | AD51: 0.17 | AE51: 0.16 | AF51: 0.03 | AG51: 0.16 | AH51: 0.42 | AI51: 0.09 | AJ51: 0.31 | AK51: 0.4 | AL51: 0.38 | AM51: 0.16 | AN51: 0.54 | AO51: -0.14 | AP51: 0.18 | AQ51: 0.26 | AR51: 0.14 | AS51: 0.1 | AT51: 0.19 | AU51: 0.3 | AV51: 0.05 | AW51: 0.2 | AX51: 0.12 | AY51: 0.27 | AZ51: 0.54 | BA51: 0.03 | BB51: 0.38 | BC51: 0.51 | BD51: 0.043296 | BE51: 0.68 | BF51: 0.28 | BG51: 0.4 | BH51: 0.39 | BI51: 0.54 | BJ51: -0.15 | BK51: 0.16 | BL51: 0.27 | BM51: 0.43 | BN51: 0.42 | BO51: 0.11 | BP51: 0.04 | BQ51: 0.15 | BR51: 0.28 | BS51: 0.24 | BT51: 0.11 | BU51: 0.64 | BV51: 0.13 | BW51: 0.46 | BX51: 0.52 | BY51: 0.06 | BZ51: 0.11 | CA51: 0.11 | CB51: 0.22 | CC51: 0.74 | CD51: 0.2 | CE51: 0.19 | CF51: 0.35 | CG51: 0.05 | CH51: 0.08 | CI51: 0.17 | CJ51: 0.68 | CK51: 0.05 | CL51: 0.1 | CM51: 0.15 | CN51: 0.84 | CO51: 0.22 | CP51: 0.62 | CQ51: 0.69 | CR51: 0.45 | CS51: 0.12 | CT51: 0.12 | CU51: 0.08 | CV51: 0.16 | CW51: 0.79 | CX51: 0.17 | CY51: 0.02 | CZ51: 0 | DA51: 0.01 | DB51: 0.13 | DC51: 0.86 | DD51: 0.24 | DE51: 0.75 | DF51: 0.45 | DG51: 0.23 | DH51: 0.68 | DI51: 0.16 | DJ51: 0.13 | DK51: 0.08 | DL51: 0.05
A52: 2014-07-01 | B52: 79 | C52: 13.1 | D52: 92.1 | E52: 0.42 | F52: 0.08 | G52: 0.45 | H52: 0.34 | I52: -0.1061 | J52: 0.0756 | K52: 0.023264 | L52: 0.54 | M52: 0.04 | N52: 0.39 | O52: -0.5 | P52: 0.0412 | Q52: 0.0505 | R52: 0.18 | S52: 0.49 | T52: 0.67 | U52: 0.18 | V52: 0.09 | W52: 0.27 | X52: 0.4 | Y52: 0.24 | Z52: 0.36 | AA52: 0.21 | AB52: 0.03 | AC52: 0.08 | AD52: 0.22 | AE52: 0.06 | AF52: 0.03 | AG52: 0.16 | AH52: 0.45 | AI52: 0.09 | AJ52: 0.34 | AK52: 0.43 | AL52: 0.35 | AM52: 0.16 | AN52: 0.51 | AO52: -0.08 | AP52: 0.18 | AQ52: 0.33 | AR52: 0.14 | AS52: 0.1 | AT52: 0.16 | AU52: 0.29 | AV52: 0.04 | AW52: 0.18 | AX52: 0.12 | AY52: 0.31 | AZ52: 0.51 | BA52: 0.03 | BB52: 0.42 | BC52: 0.48 | BD52: 0.038436 | BE52: 0.67 | BF52: 0.29 | BG52: 0.38 | BH52: 0.35 | BI52: 0.59 | BJ52: -0.24 | BK52: 0.15 | BL52: 0.25 | BM52: 0.4 | BN52: 0.43 | BO52: 0.09 | BP52: 0.06 | BQ52: 0.15 | BR52: 0.25 | BS52: 0.28 | BT52: 0.12 | BU52: 0.58 | BV52: 0.16 | BW52: 0.5 | BX52: 0.47 | BY52: -0.03 | BZ52: 0.14 | CA52: 0.09 | CB52: 0.23 | CC52: 0.71 | CD52: 0.18 | CE52: 0.16 | CF52: 0.37 | CG52: 0.05 | CH52: 0.11 | CI52: 0.14 | CJ52: 0.67 | CK52: 0.05 | CL52: 0.14 | CM52: 0.19 | CN52: 0.8 | CO52: 0.19 | CP52: 0.61 | CQ52: 0.61 | CR52: 0.45 | CS52: 0.14 | CT52: 0.12 | CU52: 0.07 | CV52: 0.14 | CW52: 0.8 | CX52: 0.13 | CY52: 0.04 | CZ52: 0 | DA52: 0.03 | DB52: 0.14 | DC52: 0.83 | DD52: 0.21 | DE52: 0.77 | DF52: 0.5 | DG52: 0.22 | DH52: 0.72 | DI52: 0.13 | DJ52: 0.13 | DK52: 0.06 | DL52: 0.07
A53: 2014-08-01 | B53: 75.5 | C53: 11.4 | D53: 86.9 | E53: 0.42 | F53: 0.09 | G53: 0.45 | H53: 0.33 | I53: -0.0836 | J53: 0.068 | K53: 0.021036 | L53: 0.5 | M53: 0.05 | N53: 0.4 | O53: -0.45 | P53: 0.0412 | Q53: 0.0488 | R53: 0.18 | S53: 0.46 | T53: 0.64 | U53: 0.2 | V53: 0.09 | W53: 0.29 | X53: 0.35 | Y53: 0.26 | Z53: 0.36 | AA53: 0.21 | AB53: 0.01 | AC53: 0.1 | AD53: 0.19 | AE53: 0.06 | AF53: 0.02 | AG53: 0.22 | AH53: 0.38 | AI53: 0.08 | AJ53: 0.3 | AK53: 0.38 | AL53: 0.38 | AM53: 0.16 | AN53: 0.54 | AO53: -0.16 | AP53: 0.22 | AQ53: 0.33 | AR53: 0.14 | AS53: 0.05 | AT53: 0.16 | AU53: 0.27 | AV53: 0.04 | AW53: 0.17 | AX53: 0.15 | AY53: 0.34 | AZ53: 0.53 | BA53: 0.04 | BB53: 0.38 | BC53: 0.49 | BD53: 0.04091 | BE53: 0.64 | BF53: 0.32 | BG53: 0.32 | BH53: 0.35 | BI53: 0.56 | BJ53: -0.21 | BK53: 0.17 | BL53: 0.27 | BM53: 0.44 | BN53: 0.4 | BO53: 0.1 | BP53: 0.04 | BQ53: 0.14 | BR53: 0.3 | BS53: 0.23 | BT53: 0.15 | BU53: 0.6 | BV53: 0.08 | BW53: 0.49 | BX53: 0.48 | BY53: -0.01 | BZ53: 0.1 | CA53: 0.09 | CB53: =SUM(BZ53:CA53) -> 0.19 | CC53: 0.76 | CD53: 0.22 | CE53: 0.14 | CF53: 0.4 | CG53: 0.06 | CH53: 0.09 | CI53: 0.14 | CJ53: 0.66 | CK53: 0.08 | CL53: 0.13 | CM53: 0.21 | CN53: 0.78 | CO53: 0.2 | CP53: 0.58 | CQ53: 0.57 | CR53: 0.4 | CS53: 0.13 | CT53: 0.12 | CU53: 0.08 | CV53: 0.16 | CW53: 0.79 | CX53: 0.16 | CY53: 0.03 | CZ53: 0.01 | DA53: 0 | DB53: 0.15 | DC53: 0.83 | DD53: 0.26 | DE53: 0.73 | DF53: 0.45 | DG53: 0.2 | DH53: 0.65 | DI53: 0.18 | DJ53: 0.15 | DK53: 0.1 | DL53: 0.05
A54: 2014-09-01 | B54: 80.2 | C54: 11.3 | D54: 91.5 | E54: 0.45 | F54: 0.08 | G54: 0.42 | H54: 0.37 | I54: -0.0571 | J54: 0.0589 | K54: 0.021937 | L54: 0.45 | M54: 0.05 | N54: 0.45 | O54: -0.4 | P54: 0.041 | Q54: 0.0471 | R54: 0.16 | S54: 0.52 | T54: 0.68 | U54: 0.16 | V54: 0.09 | W54: 0.25 | X54: 0.43 | Y54: 0.22 | Z54: 0.32 | AA54: 0.21 | AB54: 0.03 | AC54: 0.11 | AD54: 0.16 | AE54: 0.07 | AF54: 0.05 | AG54: 0.12 | AH54: 0.44 | AI54: 0.07 | AJ54: 0.32 | AK54: 0.39 | AL54: 0.35 | AM54: 0.16 | AN54: 0.51 | AO54: -0.12 | AP54: 0.14 | AQ54: 0.29 | AR54: 0.13 | AS54: 0.09 | AT54: 0.22 | AU54: 0.26 | AV54: 0.05 | AW54: 0.17 | AX54: 0.11 | AY54: 0.33 | AZ54: 0.55 | BA54: 0.03 | BB54: 0.37 | BC54: 0.52 | BD54: 0.031507 | BE54: 0.66 | BF54: 0.28 | BG54: 0.38 | BH54: 0.4 | BI54: 0.54 | BJ54: -0.14 | BK54: 0.14 | BL54: 0.27 | BM54: 0.41 | BN54: 0.44 | BO54: 0.08 | BP54: 0.04 | BQ54: 0.12 | BR54: 0.29 | BS54: 0.25 | BT54: 0.14 | BU54: 0.59 | BV54: 0.11 | BW54: 0.48 | BX54: 0.48 | BY54: 0 | BZ54: 0.14 | CA54: 0.09 | CB54: =SUM(BZ54:CA54) -> 0.23 | CC54: 0.73 | CD54: 0.16 | CE54: 0.22 | CF54: 0.35 | CG54: 0.06 | CH54: 0.1 | CI54: 0.15 | CJ54: 0.66 | CK54: 0.05 | CL54: 0.14 | CM54: 0.19 | CN54: 0.8 | CO54: 0.2 | CP54: 0.6 | CQ54: 0.61 | CR54: 0.42 | CS54: 0.11 | CT54: 0.14 | CU54: 0.09 | CV54: 0.13 | CW54: 0.8 | CX54: 0.15 | CY54: 0.03 | CZ54: 0.01 | DA54: 0.01 | DB54: 0.16 | DC54: 0.81 | DD54: 0.21 | DE54: 0.76 | DF54: 0.41 | DG54: 0.26 | DH54: 0.67 | DI54: 0.18 | DJ54: 0.14 | DK54: 0.07 | DL54: 0.07
A55: 2014-10-01 | B55: 82.5 | C55: 12.2 | D55: 94.7 | E55: 0.44 | F55: 0.07 | G55: 0.43 | H55: 0.37 | I55: -0.0762 | J55: 0.0765 | K55: 0.028326 | L55: 0.48 | M55: 0.06 | N55: 0.38 | O55: -0.42 | P55: 0.042 | Q55: 0.0478 | R55: 0.16 | S55: 0.49 | T55: 0.65 | U55: 0.2 | V55: 0.07 | W55: 0.27 | X55: 0.38 | Y55: 0.24 | Z55: 0.33 | AA55: 0.24 | AB55: 0.03 | AC55: 0.09 | AD55: 0.26 | AE55: 0.1 | AF55: 0.02 | AG55: 0.16 | AH55: 0.32 | AI55: 0.08 | AJ55: 0.36 | AK55: 0.44 | AL55: 0.32 | AM55: 0.15 | AN55: 0.47 | AO55: -0.03 | AP55: 0.15 | AQ55: 0.26 | AR55: 0.2 | AS55: 0.11 | AT55: 0.17 | AU55: 0.25 | AV55: 0.05 | AW55: 0.2 | AX55: 0.2 | AY55: 0.22 | AZ55: 0.49 | BA55: 0.04 | BB55: 0.41 | BC55: 0.45 | BD55: 0.037437 | BE55: 0.65 | BF55: 0.3 | BG55: 0.35 | BH55: 0.4 | BI55: 0.53 | BJ55: -0.13 | BK55: 0.15 | BL55: 0.3 | BM55: 0.45 | BN55: 0.43 | BO55: 0.08 | BP55: 0.02 | BQ55: 0.1 | BR55: 0.35 | BS55: 0.25 | BT55: 0.12 | BU55: 0.61 | BV55: 0.13 | BW55: 0.5 | BX55: 0.48 | BY55: -0.02 | BZ55: 0.15 | CA55: 0.09 | CB55: =SUM(BZ55:CA55) -> 0.24 | CC55: 0.73 | CD55: 0.14 | CE55: 0.19 | CF55: 0.4 | CG55: 0.04 | CH55: 0.08 | CI55: 0.12 | CJ55: 0.72 | CK55: 0.04 | CL55: 0.1 | CM55: 0.14 | CN55: 0.85 | CO55: 0.16 | CP55: 0.69 | CQ55: 0.71 | CR55: 0.39 | CS55: 0.14 | CT55: 0.14 | CU55: 0.09 | CV55: 0.14 | CW55: 0.79 | CX55: 0.15 | CY55: 0.04 | CZ55: 0 | DA55: 0.01 | DB55: 0.14 | DC55: 0.83 | DD55: 0.17 | DE55: 0.82 | DF55: 0.44 | DG55: 0.25 | DH55: 0.69 | DI55: 0.16 | DJ55: 0.12 | DK55: 0.07 | DL55: 0.05
A56: 2014-11-01 | B56: 81 | C56: 11.7 | D56: 92.7 | E56: 0.44 | F56: 0.06 | G56: 0.44 | H56: 0.38 | I56: -0.0976 | J56: 0.0715 | K56: 0.025604 | L56: 0.45 | M56: 0.04 | N56: 0.41 | O56: -0.41 | P56: 0.0398 | Q56: 0.0438 | R56: 0.17 | S56: 0.51 | T56: 0.68 | U56: 0.15 | V56: 0.09 | W56: 0.24 | X56: 0.44 | Y56: 0.24 | Z56: 0.36 | AA56: 0.21 | AB56: 0.04 | AC56: 0.1 | AD56: 0.21 | AE56: 0.06 | AF56: 0.02 | AG56: 0.24 | AH56: 0.34 | AI56: 0.09 | AJ56: 0.3 | AK56: 0.39 | AL56: 0.37 | AM56: 0.14 | AN56: 0.51 | AO56: -0.12 | AP56: 0.17 | AQ56: 0.32 | AR56: 0.13 | AS56: 0.1 | AT56: 0.15 | AU56: 0.26 | AV56: 0.06 | AW56: 0.17 | AX56: 0.17 | AY56: 0.25 | AZ56: 0.53 | BA56: 0.04 | BB56: 0.37 | BC56: 0.49 | BD56: 0.035882 | BE56: 0.62 | BF56: 0.31 | BG56: 0.31 | BH56: 0.36 | BI56: 0.52 | BJ56: -0.16 | BK56: 0.17 | BL56: 0.29 | BM56: 0.46 | BN56: 0.41 | BO56: 0.08 | BP56: 0.04 | BQ56: 0.12 | BR56: 0.34 | BS56: 0.25 | BT56: 0.11 | BU56: 0.62 | BV56: 0.14 | BW56: 0.47 | BX56: 0.48 | BY56: 0.01 | BZ56: 0.15 | CA56: 0.06 | CB56: 0.21 | CC56: 0.72 | CD56: 0.15 | CE56: 0.24 | CF56: 0.33 | CG56: 0.05 | CH56: 0.12 | CI56: 0.14 | CJ56: 0.66 | CK56: 0.06 | CL56: 0.13 | CM56: 0.19 | CN56: 0.81 | CO56: 0.19 | CP56: 0.62 | CQ56: 0.62 | CR56: 0.38 | CS56: 0.12 | CT56: 0.18 | CU56: 0.08 | CV56: 0.14 | CW56: 0.8 | CX56: 0.15 | CY56: 0.04 | CZ56: 0.01 | DA56: 0.01 | DB56: 0.15 | DC56: 0.82 | DD56: 0.22 | DE56: 0.76 | DF56: 0.45 | DG56: 0.22 | DH56: 0.67 | DI56: 0.18 | DJ56: 0.12 | DK56: 0.07 | DL56: 0.05
A57: 2014-12-01 | B57: 81.3 | C57: 11.8 | D57: 93.1 | E57: 0.46 | F57: 0.08 | G57: 0.41 | H57: 0.38 | I57: -0.0925 | J57: 0.0656 | K57: 0.022776 | L57: 0.48 | M57: 0.07 | N57: 0.38 | O57: -0.41 | P57: 0.0397 | Q57: 0.0431 | R57: 0.17 | S57: 0.47 | T57: 0.64 | U57: 0.18 | V57: 0.1 | W57: 0.28 | X57: 0.36 | Y57: 0.23 | Z57: 0.34 | AA57: 0.17 | AB57: 0.03 | AC57: 0.11 | AD57: 0.18 | AE57: 0.04 | AF57: 0.02 | AG57: 0.17 | AH57: 0.42 | AI57: 0.09 | AJ57: 0.31 | AK57: 0.4 | AL57: 0.33 | AM57: 0.16 | AN57: 0.49 | AO57: -0.09 | AP57: 0.17 | AQ57: 0.31 | AR57: 0.1 | AS57: 0.09 | AT57: 0.2 | AU57: 0.29 | AV57: 0.06 | AW57: 0.13 | AX57: 0.12 | AY57: 0.29 | AZ57: 0.53 | BA57: 0.04 | BB57: 0.4 | BC57: 0.49 | BD57: 0.040953 | BE57: 0.61 | BF57: 0.34 | BG57: 0.27 | BH57: 0.41 | BI57: 0.51 | BJ57: -0.1 | BK57: 0.16 | BL57: 0.29 | BM57: 0.45 | BN57: 0.42 | BO57: 0.07 | BP57: 0.05 | BQ57: 0.12 | BR57: 0.33 | BS57: 0.25 | BT57: 0.14 | BU57: 0.58 | BV57: 0.11 | BW57: 0.44 | BX57: 0.52 | BY57: 0.08 | BZ57: 0.12 | CA57: 0.11 | CB57: =SUM(BZ57:CA57) -> 0.23 | CC57: 0.71 | CD57: 0.19 | CE57: 0.15 | CF57: 0.37 | CG57: 0.03 | CH57: 0.09 | CI57: 0.15 | CJ57: 0.69 | CK57: 0.02 | CL57: 0.11 | CM57: 0.13 | CN57: 0.85 | CO57: 0.21 | CP57: 0.64 | CQ57: 0.72 | CR57: 0.4 | CS57: 0.14 | CT57: 0.14 | CU57: 0.1 | CV57: 0.13 | CW57: 0.8 | CX57: 0.16 | CY57: 0.03 | CZ57: 0.01 | DA57: 0.01 | DB57: 0.16 | DC57: 0.81 | DD57: 0.24 | DE57: 0.75 | DF57: 0.45 | DG57: 0.25 | DH57: 0.7 | DI57: 0.17 | DJ57: 0.1 | DK57: 0.06 | DL57: 0.04
A58: 2015-01-01 | B58: 82.8 | C58: 11.5 | D58: 94.3 | E58: 0.49 | F58: 0.08 | G58: 0.38 | H58: 0.41 | I58: -0.1103 | J58: 0.0698 | K58: 0.025378 | L58: 0.45 | M58: 0.07 | N58: 0.41 | O58: -0.38 | P58: 0.0387 | Q58: 0.0429 | R58: 0.17 | S58: 0.5 | T58: 0.67 | U58: 0.17 | V58: 0.08 | W58: 0.25 | X58: 0.42 | Y58: 0.22 | Z58: 0.35 | AA58: 0.15 | AB58: 0.07 | AC58: 0.11 | AD58: 0.19 | AE58: 0.03 | AF58: 0.01 | AG58: 0.16 | AH58: 0.45 | AI58: 0.1 | AJ58: 0.34 | AK58: 0.44 | AL58: 0.34 | AM58: 0.15 | AN58: 0.49 | AO58: -0.05 | AP58: 0.13 | AQ58: 0.29 | AR58: 0.12 | AS58: 0.1 | AT58: 0.22 | AU58: 0.3 | AV58: 0.03 | AW58: 0.14 | AX58: 0.14 | AY58: 0.27 | AZ58: 0.52 | BA58: 0.02 | BB58: 0.41 | BC58: 0.5 | BD58: 0.037828 | BE58: 0.66 | BF58: 0.29 | BG58: 0.37 | BH58: 0.44 | BI58: 0.49 | BJ58: -0.05 | BK58: 0.16 | BL58: 0.32 | BM58: 0.48 | BN58: 0.39 | BO58: 0.07 | BP58: 0.04 | BQ58: 0.11 | BR58: 0.37 | BS58: 0.29 | BT58: 0.13 | BU58: 0.56 | BV58: 0.16 | BW58: 0.47 | BX58: 0.5 | BY58: 0.03 | BZ58: 0.17 | CA58: 0.08 | CB58: 0.25 | CC58: 0.7 | CD58: 0.15 | CE58: 0.16 | CF58: 0.39 | CG58: 0.06 | CH58: 0.11 | CI58: 0.16 | CJ58: 0.65 | CK58: 0.06 | CL58: 0.14 | CM58: 0.2 | CN58: 0.8 | CO58: 0.19 | CP58: 0.61 | CQ58: 0.6 | CR58: 0.39 | CS58: 0.15 | CT58: 0.13 | CU58: 0.08 | CV58: 0.14 | CW58: 0.79 | CX58: 0.15 | CY58: 0.04 | CZ58: 0.01 | DA58: 0.01 | DB58: 0.16 | DC58: 0.82 | DD58: 0.19 | DE58: 0.79 | DF58: 0.46 | DG58: 0.22 | DH58: 0.68 | DI58: 0.15 | DJ58: 0.14 | DK58: 0.07 | DL58: 0.07
A59: 2015-02-01 | B59: 81.5 | C59: 12 | D59: 93.5 | E59: 0.46 | F59: 0.06 | G59: 0.41 | H59: 0.4 | I59: -0.1093 | J59: 0.068 | K59: 0.024722 | L59: 0.48 | M59: 0.06 | N59: 0.4 | O59: -0.42 | P59: 0.0366 | Q59: 0.0436 | R59: 0.17 | S59: 0.5 | T59: =R59+S59 -> 0.67 | U59: 0.2 | V59: 0.07 | W59: =U59+V59 -> 0.27 | X59: 0.4 | Y59: 0.18 | Z59: 0.4 | AA59: 0.15 | AB59: 0.04 | AC59: 0.12 | AD59: 0.19 | AE59: 0.12 | AF59: 0.03 | AG59: 0.16 | AH59: 0.37 | AI59: 0.08 | AJ59: 0.32 | AK59: =AI59+AJ59 -> 0.4 | AL59: 0.38 | AM59: 0.13 | AN59: =AL59+AM59 -> 0.51 | AO59: -0.11 | AP59: 0.12 | AQ59: 0.34 | AR59: 0.1 | AS59: 0.09 | AT59: 0.26 | AU59: 0.31 | AV59: 0.05 | AW59: 0.15 | AX59: 0.14 | AY59: 0.25 | AZ59: 0.52 | BA59: 0.03 | BB59: 0.38 | BC59: 0.49 | BD59: 0.039764 | BE59: 0.65 | BF59: 0.29 | BG59: 0.36 | BH59: 0.47 | BI59: 0.45 | BJ59: 0.02 | BK59: 0.16 | BL59: 0.3 | BM59: =BK59+BL59 -> 0.46 | BN59: 0.42 | BO59: 0.08 | BP59: 0.03 | BQ59: 0.11 | BR59: 0.35 | BS59: 0.24 | BT59: 0.12 | BU59: 0.61 | BV59: 0.12 | BW59: 0.43 | BX59: 0.54 | BY59: 0.11 | BZ59: 0.19 | CA59: 0.08 | CB59: =SUM(BZ59:CA59) -> 0.27 | CC59: =SUM(CD59:CF59) -> 0.67 | CD59: 0.13 | CE59: 0.2 | CF59: 0.34 | CG59: 0.05 | CH59: 0.09 | CI59: 0.16 | CJ59: 0.66 | CK59: 0.04 | CL59: 0.11 | CM59: =CK59+CL59 -> 0.15 | CN59: =CO59+CP59 -> 0.84 | CO59: 0.23 | CP59: 0.61 | CQ59: 0.69 | CR59: 0.35 | CS59: 0.15 | CT59: 0.15 | CU59: 0.08 | CV59: 0.14 | CW59: 0.74 | CX59: 0.2 | CY59: 0.04 | CZ59: 0.01 | DA59: 0.01 | DB59: 0.15 | DC59: 0.83 | DD59: 0.2 | DE59: 0.79 | DF59: 0.48 | DG59: 0.21 | DH59: =SUM(DF59:DG59) -> 0.69 | DI59: 0.15 | DJ59: =SUM(DK59:DL59) -> 0.12 | DK59: 0.07 | DL59: 0.05
A60: 2015-03-01 | B60: 81.7 | C60: 13.2 | D60: 94.9 | E60: 0.48 | F60: 0.08 | G60: 0.39 | H60: 0.4 | I60: -0.1149 | J60: 0.0754 | K60: 0.027 | L60: 0.52 | M60: 0.04 | N60: 0.37 | O60: -0.48 | P60: 0.0378 | Q60: 0.0439 | R60: 0.16 | S60: 0.5 | T60: 0.66 | U60: 0.18 | V60: 0.08 | W60: 0.26 | X60: 0.4 | Y60: 0.24 | Z60: 0.36 | AA60: 0.19 | AB60: 0.03 | AC60: 0.1 | AD60: 0.24 | AE60: 0.08 | AF60: 0.07 | AG60: 0.14 | AH60: 0.27 | AI60: 0.1 | AJ60: 0.36 | AK60: 0.46 | AL60: 0.31 | AM60: 0.13 | AN60: 0.44 | AO60: 0.02 | AP60: 0.16 | AQ60: 0.32 | AR60: 0.12 | AS60: 0.09 | AT60: 0.21 | AU60: 0.27 | AV60: 0.06 | AW60: 0.15 | AX60: 0.14 | AY60: 0.28 | AZ60: 0.53 | BA60: 0.04 | BB60: 0.38 | BC60: 0.49 | BD60: 0.039812 | BE60: 0.6 | BF60: 0.34 | BG60: 0.26 | BH60: 0.43 | BI60: 0.48 | BJ60: -0.05 | BK60: 0.15 | BL60: 0.26 | BM60: 0.41 | BN60: 0.44 | BO60: 0.1 | BP60: 0.04 | BQ60: 0.14 | BR60: 0.27 | BS60: 0.22 | BT60: 0.15 | BU60: 0.61 | BV60: 0.07 | BW60: 0.46 | BX60: 0.5 | BY60: 0.04 | BZ60: 0.13 | CA60: 0.09 | CB60: 0.22 | CC60: 0.71 | CD60: 0.11 | CE60: 0.18 | CF60: 0.42 | CG60: 0.06 | CH60: 0.08 | CI60: 0.15 | CJ60: 0.68 | CK60: 0.06 | CL60: 0.1 | CM60: 0.16 | CN60: 0.84 | CO60: 0.2 | CP60: 0.64 | CQ60: 0.68 | CR60: 0.4 | CS60: 0.14 | CT60: 0.15 | CU60: 0.07 | CV60: 0.15 | CW60: 0.73 | CX60: 0.21 | CY60: 0.03 | CZ60: 0.01 | DA60: 0.02 | DB60: 0.14 | DC60: 0.83 | DD60: 0.19 | DE60: 0.8 | DF60: 0.47 | DG60: 0.23 | DH60: 0.7 | DI60: 0.14 | DJ60: 0.12 | DK60: 0.07 | DL60: 0.05
A61: 2015-04-01 | B61: 82.3 | C61: 12.8 | D61: 95.1 | E61: 0.46 | F61: 0.07 | G61: 0.41 | H61: 0.39 | I61: -0.0709 | J61: 0.0719 | K61: 0.028111 | L61: 0.52 | M61: 0.07 | N61: 0.34 | O61: -0.45 | P61: 0.0369 | Q61: 0.0426 | R61: 0.18 | S61: 0.45 | T61: 0.63 | U61: 0.19 | V61: 0.09 | W61: 0.28 | X61: 0.35 | Y61: 0.22 | Z61: 0.39 | AA61: 0.18 | AB61: 0.03 | AC61: 0.12 | AD61: 0.33 | AE61: 0.07 | AF61: 0.05 | AG61: 0.1 | AH61: 0.33 | AI61: 0.11 | AJ61: 0.35 | AK61: 0.46 | AL61: 0.32 | AM61: 0.13 | AN61: 0.45 | AO61: 0.01 | AP61: 0.15 | AQ61: 0.32 | AR61: 0.14 | AS61: 0.09 | AT61: 0.2 | AU61: 0.26 | AV61: 0.07 | AW61: 0.17 | AX61: 0.09 | AY61: 0.34 | AZ61: 0.54 | BA61: 0.03 | BB61: 0.38 | BC61: 0.51 | BD61: 0.041124 | BE61: 0.63 | BF61: 0.32 | BG61: 0.31 | BH61: 0.42 | BI61: 0.49 | BJ61: -0.07 | BK61: 0.18 | BL61: 0.27 | BM61: 0.45 | BN61: 0.44 | BO61: 0.07 | BP61: 0.03 | BQ61: 0.1 | BR61: 0.35 | BS61: 0.24 | BT61: 0.12 | BU61: 0.62 | BV61: 0.12 | BW61: 0.46 | BX61: 0.52 | BY61: 0.06 | BZ61: 0.18 | CA61: 0.08 | CB61: 0.26 | CC61: 0.68 | CD61: 0.17 | CE61: 0.17 | CF61: 0.34 | CG61: 0.05 | CH61: 0.08 | CI61: 0.14 | CJ61: 0.69 | CK61: 0.05 | CL61: 0.09 | CM61: 0.14 | CN61: 0.85 | CO61: 0.19 | CP61: 0.66 | CQ61: 0.71 | CR61: 0.35 | CS61: 0.16 | CT61: 0.19 | CU61: 0.09 | CV61: 0.12 | CW61: 0.82 | CX61: 0.14 | CY61: 0.03 | CZ61: 0.01 | DA61: 0.01 | DB61: 0.17 | DC61: 0.8 | DD61: 0.21 | DE61: 0.77 | DF61: 0.47 | DG61: 0.21 | DH61: 0.68 | DI61: 0.19 | DJ61: 0.1 | DK61: 0.05 | DL61: 0.05
A62: 2015-05-01 | B62: 84.3 | C62: 12.8 | D62: 97.1 | E62: 0.49 | F62: 0.06 | G62: 0.36 | H62: 0.43 | I62: -0.0712 | J62: 0.0665 | K62: 0.028313 | L62: 0.47 | M62: 0.04 | N62: 0.43 | O62: -0.43 | P62: 0.0368 | Q62: 0.0428 | R62: 0.19 | S62: 0.47 | T62: 0.66 | U62: 0.19 | V62: 0.09 | W62: 0.28 | X62: 0.38 | Y62: 0.17 | Z62: 0.35 | AA62: 0.22 | AB62: 0.04 | AC62: 0.13 | AD62: 0.27 | AE62: 0.05 | AF62: 0.05 | AG62: 0.16 | AH62: 0.37 | AI62: 0.12 | AJ62: 0.37 | AK62: 0.49 | AL62: 0.29 | AM62: 0.12 | AN62: 0.41 | AO62: 0.08 | AP62: 0.21 | AQ62: 0.3 | AR62: 0.13 | AS62: 0.08 | AT62: 0.17 | AU62: 0.24 | AV62: 0.07 | AW62: 0.15 | AX62: 0.11 | AY62: 0.37 | AZ62: 0.55 | BA62: 0.04 | BB62: 0.33 | BC62: 0.51 | BD62: 0.043173 | BE62: 0.66 | BF62: 0.27 | BG62: 0.39 | BH62: 0.38 | BI62: 0.52 | BJ62: -0.14 | BK62: 0.17 | BL62: 0.29 | BM62: 0.46 | BN62: 0.42 | BO62: 0.08 | BP62: 0.04 | BQ62: 0.12 | BR62: 0.34 | BS62: 0.28 | BT62: 0.12 | BU62: 0.58 | BV62: 0.16 | BW62: 0.46 | BX62: 0.5 | BY62: 0.04 | BZ62: 0.14 | CA62: 0.07 | CB62: 0.21 | CC62: 0.7 | CD62: 0.18 | CE62: 0.19 | CF62: 0.33 | CG62: 0.06 | CH62: 0.09 | CI62: 0.16 | CJ62: 0.64 | CK62: 0.06 | CL62: 0.13 | CM62: 0.19 | CN62: 0.82 | CO62: 0.21 | CP62: 0.61 | CQ62: 0.63 | CR62: 0.4 | CS62: 0.14 | CT62: 0.15 | CU62: 0.08 | CV62: 0.13 | CW62: 0.8 | CX62: 0.15 | CY62: 0.03 | CZ62: 0 | DA62: 0.01 | DB62: 0.13 | DC62: 0.85 | DD62: 0.18 | DE62: 0.8 | DF62: 0.5 | DG62: 0.21 | DH62: 0.71 | DI62: 0.13 | DJ62: 0.11 | DK62: 0.08 | DL62: 0.03
A63: 2015-06-01 | B63: 84.7 | C63: 13.4 | D63: 98.1 | E63: 0.47 | F63: 0.07 | G63: 0.38 | H63: 0.4 | I63: -0.0926 | J63: 0.0698 | K63: 0.026324 | L63: 0.5 | M63: 0.04 | N63: 0.37 | O63: -0.46 | P63: 0.0387 | Q63: 0.0429 | R63: 0.18 | S63: 0.45 | T63: 0.63 | U63: 0.19 | V63: 0.09 | W63: 0.28 | X63: 0.35 | Y63: 0.18 | Z63: 0.35 | AA63: 0.18 | AB63: 0.04 | AC63: 0.15 | AD63: 0.28 | AE63: 0.08 | AF63: 0.03 | AG63: 0.11 | AH63: 0.38 | AI63: 0.12 | AJ63: 0.4 | AK63: 0.52 | AL63: 0.27 | AM63: 0.11 | AN63: 0.38 | AO63: 0.14 | AP63: 0.17 | AQ63: 0.27 | AR63: 0.15 | AS63: 0.08 | AT63: 0.22 | AU63: 0.26 | AV63: 0.06 | AW63: 0.2 | AX63: 0.14 | AY63: 0.26 | AZ63: 0.59 | BA63: 0.03 | BB63: 0.34 | BC63: 0.56 | BD63: 0.041761 | BE63: 0.64 | BF63: 0.3 | BG63: 0.34 | BH63: 0.39 | BI63: 0.51 | BJ63: -0.12 | BK63: 0.16 | BL63: 0.31 | BM63: 0.47 | BN63: 0.42 | BO63: 0.07 | BP63: 0.03 | BQ63: 0.1 | BR63: 0.37 | BS63: 0.27 | BT63: 0.12 | BU63: 0.6 | BV63: 0.15 | BW63: 0.46 | BX63: 0.5 | BY63: 0.04 | BZ63: 0.16 | CA63: 0.11 | CB63: 0.27 | CC63: 0.67 | CD63: 0.15 | CE63: 0.15 | CF63: 0.37 | CG63: 0.05 | CH63: 0.09 | CI63: 0.16 | CJ63: 0.66 | CK63: 0.05 | CL63: 0.11 | CM63: 0.16 | CN63: 0.85 | CO63: 0.22 | CP63: 0.63 | CQ63: 0.69 | CR63: 0.36 | CS63: 0.16 | CT63: 0.15 | CU63: 0.07 | CV63: 0.14 | CW63: 0.79 | CX63: 0.16 | CY63: 0.04 | CZ63: 0 | DA63: 0.01 | DB63: 0.12 | DC63: 0.84 | DD63: 0.18 | DE63: 0.79 | DF63: 0.44 | DG63: 0.23 | DH63: 0.67 | DI63: 0.17 | DJ63: 0.14 | DK63: 0.07 | DL63: 0.07
A64: 2015-07-01 | B64: 81.3 | C64: 12.8 | D64: 94.1 | E64: 0.49 | F64: 0.08 | G64: 0.37 | H64: 0.41 | I64: -0.0639 | J64: 0.0717 | K64: 0.030021 | L64: 0.51 | M64: 0.05 | N64: 0.35 | O64: -0.46 | P64: 0.0402 | Q64: 0.0482 | R64: 0.16 | S64: 0.45 | T64: 0.61 | U64: 0.18 | V64: 0.09 | W64: 0.27 | X64: 0.34 | Y64: 0.18 | Z64: 0.35 | AA64: 0.23 | AB64: 0.02 | AC64: 0.1 | AD64: 0.27 | AE64: 0.06 | AF64: 0.04 | AG64: 0.13 | AH64: 0.39 | AI64: 0.12 | AJ64: 0.33 | AK64: 0.45 | AL64: 0.32 | AM64: 0.11 | AN64: 0.43 | AO64: 0.02 | AP64: 0.15 | AQ64: 0.28 | AR64: 0.13 | AS64: 0.09 | AT64: 0.23 | AU64: 0.23 | AV64: 0.07 | AW64: 0.18 | AX64: 0.12 | AY64: 0.3 | AZ64: 0.54 | BA64: 0.03 | BB64: 0.37 | BC64: 0.51 | BD64: 0.044727 | BE64: 0.65 | BF64: 0.28 | BG64: 0.37 | BH64: 0.37 | BI64: 0.54 | BJ64: -0.17 | BK64: 0.16 | BL64: 0.28 | BM64: 0.44 | BN64: 0.42 | BO64: 0.08 | BP64: 0.04 | BQ64: 0.12 | BR64: 0.32 | BS64: 0.27 | BT64: 0.15 | BU64: 0.57 | BV64: 0.12 | BW64: 0.49 | BX64: 0.48 | BY64: -0.01 | BZ64: 0.14 | CA64: 0.1 | CB64: 0.24 | CC64: 0.72 | CD64: 0.12 | CE64: 0.15 | CF64: 0.45 | CG64: 0.07 | CH64: 0.09 | CI64: 0.17 | CJ64: 0.63 | CK64: 0.06 | CL64: 0.12 | CM64: 0.18 | CN64: 0.82 | CO64: 0.22 | CP64: 0.6 | CQ64: 0.64 | CR64: 0.38 | CS64: 0.14 | CT64: 0.16 | CU64: 0.09 | CV64: 0.15 | CW64: 0.78 | CX64: 0.16 | CY64: 0.05 | CZ64: 0.01 | DA64: 0.01 | DB64: 0.13 | DC64: 0.84 | DD64: 0.19 | DE64: 0.8 | DF64: 0.47 | DG64: 0.24 | DH64: 0.71 | DI64: 0.17 | DJ64: 0.11 | DK64: 0.05 | DL64: 0.06
A65: 2015-08-01 | B65: 80.8 | C65: 13.3 | D65: 94.1 | E65: 0.47 | F65: 0.09 | G65: 0.37 | H65: 0.38 | I65: -0.1151 | J65: 0.0787 | K65: 0.02663 | L65: 0.54 | M65: 0.05 | N65: 0.34 | O65: -0.49 | P65: 0.0398 | Q65: 0.0443 | R65: 0.17 | S65: 0.46 | T65: 0.63 | U65: 0.21 | V65: 0.09 | W65: 0.3 | X65: 0.33 | Y65: 0.16 | Z65: 0.43 | AA65: 0.23 | AB65: 0.02 | AC65: 0.09 | AD65: 0.3 | AE65: 0.07 | AF65: 0.06 | AG65: 0.09 | AH65: 0.4 | AI65: 0.1 | AJ65: 0.37 | AK65: 0.47 | AL65: 0.33 | AM65: 0.11 | AN65: 0.44 | AO65: 0.03 | AP65: 0.2 | AQ65: 0.33 | AR65: 0.14 | AS65: 0.09 | AT65: 0.15 | AU65: 0.18 | AV65: 0.04 | AW65: 0.23 | AX65: 0.12 | AY65: 0.34 | AZ65: 0.55 | BA65: 0.02 | BB65: 0.37 | BC65: 0.53 | BD65: 0.040345 | BE65: 0.65 | BF65: 0.31 | BG65: 0.34 | BH65: 0.32 | BI65: 0.58 | BJ65: -0.26 | BK65: 0.15 | BL65: 0.26 | BM65: 0.41 | BN65: 0.43 | BO65: 0.1 | BP65: 0.04 | BQ65: 0.14 | BR65: 0.27 | BS65: 0.24 | BT65: 0.12 | BU65: 0.64 | BV65: 0.12 | BW65: 0.43 | BX65: 0.55 | BY65: 0.12 | BZ65: 0.19 | CA65: 0.08 | CB65: 0.27 | CC65: 0.69 | CD65: 0.14 | CE65: 0.18 | CF65: 0.37 | CG65: 0.04 | CH65: 0.09 | CI65: 0.13 | CJ65: 0.72 | CK65: 0.05 | CL65: 0.11 | CM65: 0.16 | CN65: 0.83 | CO65: 0.17 | CP65: 0.66 | CQ65: 0.67 | CR65: 0.39 | CS65: 0.15 | CT65: 0.14 | CU65: 0.08 | CV65: 0.15 | CW65: 0.82 | CX65: 0.15 | CY65: 0.03 | CZ65: 0 | DA65: 0 | DB65: 0.16 | DC65: 0.82 | DD65: 0.19 | DE65: 0.8 | DF65: 0.48 | DG65: 0.26 | DH65: 0.74 | DI65: 0.15 | DJ65: 0.1 | DK65: 0.05 | DL65: 0.05
A66: 2015-09-01 | B66: 83.8 | C66: 14.1 | D66: 97.9 | E66: 0.45 | F66: 0.09 | G66: 0.41 | H66: 0.36 | I66: -0.0738 | J66: 0.0829 | K66: 0.030663 | L66: 0.55 | M66: 0.05 | N66: 0.31 | O66: -0.5 | P66: 0.0384 | Q66: 0.0431 | R66: 0.17 | S66: 0.47 | T66: =S66+R66 -> 0.64 | U66: 0.19 | V66: 0.09 | W66: =V66+U66 -> 0.28 | X66: 0.36 | Y66: 0.18 | Z66: 0.41 | AA66: 0.17 | AB66: 0.03 | AC66: 0.13 | AD66: 0.34 | AE66: 0.08 | AF66: 0.02 | AG66: 0.17 | AH66: 0.29 | AI66: 0.13 | AJ66: 0.39 | AK66: =AJ66+AI66 -> 0.52 | AL66: 0.26 | AM66: 0.1 | AN66: =AM66+AL66 -> 0.36 | AO66: 0.16 | AP66: 0.22 | AQ66: 0.34 | AR66: 0.12 | AS66: 0.08 | AT66: 0.17 | AU66: 0.27 | AV66: 0.05 | AW66: 0.18 | AX66: 0.09 | AY66: 0.33 | AZ66: 0.54 | BA66: 0.04 | BB66: 0.37 | BC66: 0.5 | BD66: 0.043558 | BE66: 0.67 | BF66: 0.29 | BG66: 0.38 | BH66: 0.35 | BI66: 0.57 | BJ66: -0.22 | BK66: 0.18 | BL66: 0.27 | BM66: =BL66+BK66 -> 0.45 | BN66: 0.41 | BO66: 0.09 | BP66: 0.04 | BQ66: 0.13 | BR66: 0.32 | BS66: 0.28 | BT66: 0.13 | BU66: 0.58 | BV66: 0.15 | BW66: 0.47 | BX66: 0.5 | BY66: 0.03 | BZ66: 0.17 | CA66: 0.09 | CB66: 0.26 | CC66: 0.68 | CD66: 0.11 | CE66: 0.19 | CF66: 0.38 | CG66: 0.06 | CH66: 0.07 | CI66: 0.13 | CJ66: 0.71 | CK66: 0.06 | CL66: 0.09 | CM66: =CL66+CK66 -> 0.15 | CN66: =CO66+CP66 -> 0.84 | CO66: 0.17 | CP66: 0.67 | CQ66: 0.69 | CR66: 0.4 | CS66: 0.11 | CT66: 0.18 | CU66: 0.08 | CV66: 0.14 | CW66: 0.78 | CX66: 0.18 | CY66: 0.02 | CZ66: 0.01 | DA66: 0.02 | DB66: 0.13 | DC66: 0.84 | DD66: 0.19 | DE66: 0.8 | DF66: 0.53 | DG66: 0.23 | DH66: =DG66+DF66 -> 0.76 | DI66: 0.14 | DJ66: =DK66+DL66 -> 0.08 | DK66: 0.05 | DL66: 0.03
A67: 2015-10-01 | B67: 83.2 | C67: 13.1 | D67: 96.3 | E67: 0.46 | F67: 0.08 | G67: 0.39 | H67: =E67-F67 -> 0.38 | I67: -0.0848 | J67: 0.0685 | K67: 0.024726 | L67: 0.51 | M67: 0.05 | N67: 0.38 | O67: -0.46 | P67: 0.0386 | Q67: 0.043 | R67: 0.17 | S67: 0.45 | T67: 0.62 | U67: 0.19 | V67: 0.09 | W67: 0.28 | X67: 0.34 | Y67: 0.19 | Z67: 0.4 | AA67: 0.19 | AB67: 0.03 | AC67: 0.11 | AD67: 0.29 | AE67: 0.08 | AF67: 0.06 | AG67: 0.11 | AH67: 0.36 | AI67: 0.14 | AJ67: 0.37 | AK67: 0.51 | AL67: 0.29 | AM67: 0.12 | AN67: 0.41 | AO67: 0.1 | AP67: 0.18 | AQ67: 0.25 | AR67: 0.14 | AS67: 0.11 | AT67: 0.2 | AU67: 0.25 | AV67: 0.07 | AW67: 0.18 | AX67: 0.12 | AY67: 0.31 | AZ67: 0.58 | BA67: 0.04 | BB67: 0.34 | BC67: 0.54 | BD67: 0.042108 | BE67: 0.63 | BF67: 0.31 | BG67: 0.32 | BH67: 0.37 | BI67: 0.55 | BJ67: -0.18 | BK67: 0.17 | BL67: 0.28 | BM67: 0.45 | BN67: 0.42 | BO67: 0.08 | BP67: 0.04 | BQ67: 0.12 | BR67: 0.33 | BS67: 0.24 | BT67: 0.13 | BU67: 0.6 | BV67: 0.11 | BW67: 0.47 | BX67: 0.49 | BY67: 0.02 | BZ67: 0.18 | CA67: 0.09 | CB67: 0.27 | CC67: 0.66 | CD67: 0.15 | CE67: 0.15 | CF67: 0.36 | CG67: 0.04 | CH67: 0.08 | CI67: 0.17 | CJ67: 0.66 | CK67: 0.04 | CL67: 0.1 | CM67: 0.14 | CN67: 0.85 | CO67: 0.24 | CP67: 0.61 | CQ67: 0.71 | CR67: 0.39 | CS67: 0.12 | CT67: 0.19 | CU67: 0.06 | CV67: 0.14 | CW67: 0.8 | CX67: 0.15 | CY67: 0.04 | CZ67: 0 | DA67: 0.01 | DB67: 0.13 | DC67: 0.85 | DD67: 0.21 | DE67: 0.78 | DF67: 0.52 | DG67: 0.24 | DH67: 0.76 | DI67: 0.13 | DJ67: 0.07 | DK67: 0.03 | DL67: 0.04 | DM67: 343868.73 | DN67: 189607.77 | DO67: 0.2 | DP67: 0.31 | DQ67: 0.21 | DR67: 0.05 | DS67: 0.07
A68: 2015-11-01 | B68: 80.8 | C68: 13.1 | D68: 93.9 | E68: 0.44 | F68: 0.06 | G68: 0.44 | H68: 0.38 | I68: -0.0813 | J68: 0.0641 | K68: 0.023326 | L68: 0.53 | M68: 0.05 | N68: 0.35 | O68: =M68-L68 -> -0.48 | P68: 0.0376 | Q68: 0.0426 | R68: 0.16 | S68: 0.48 | T68: 0.64 | U68: 0.2 | V68: 0.09 | W68: 0.29 | X68: =T68-W68 -> 0.35 | Y68: 0.19 | Z68: 0.42 | AA68: 0.15 | AB68: 0.04 | AC68: 0.12 | AD68: 0.27 | AE68: 0.06 | AF68: 0.05 | AG68: 0.15 | AH68: 0.36 | AI68: 0.14 | AJ68: 0.34 | AK68: 0.48 | AL68: 0.31 | AM68: 0.13 | AN68: 0.44 | AO68: =AK68-AN68 -> 0.04 | AP68: 0.26 | AQ68: 0.26 | AR68: 0.1 | AS68: 0.09 | AT68: 0.2 | AU68: 0.24 | AV68: 0.07 | AW68: 0.22 | AX68: 0.15 | AY68: 0.22 | AZ68: 0.53 | BA68: 0.03 | BB68: 0.39 | BC68: =AZ68-BA68 -> 0.5 | BD68: 0.043573 | BE68: 0.67 | BF68: 0.29 | BG68: =BE68-BF68 -> 0.38 | BH68: 0.37 | BI68: 0.56 | BJ68: =BH68-BI68 -> -0.19 | BK68: 0.16 | BL68: 0.28 | BM68: 0.44 | BN68: 0.43 | BO68: 0.09 | BP68: 0.03 | BQ68: =BO68+BP68 -> 0.12 | BR68: =BM68-BQ68 -> 0.32 | BS68: 0.21 | BT68: 0.15 | BU68: 0.63 | BV68: =BS68-BT68 -> 0.06 | BW68: 0.45 | BX68: 0.52 | BY68: =BX68-BW68 -> 0.07 | BZ68: 0.15 | CA68: 0.09 | CB68: 0.24 | CC68: 0.69 | CD68: 0.13 | CE68: 0.14 | CF68: 0.42 | CG68: 0.04 | CH68: 0.09 | CI68: 0.18 | CJ68: 0.66 | CK68: 0.03 | CL68: 0.12 | CM68: 0.15 | CN68: 0.84 | CO68: 0.23 | CP68: 0.61 | CQ68: 0.69 | CR68: 0.38 | CS68: 0.15 | CT68: 0.14 | CU68: 0.08 | CV68: 0.14 | CW68: 0.79 | CX68: 0.17 | CY68: 0.03 | CZ68: 0 | DA68: 0 | DB68: 0.13 | DC68: 0.85 | DD68: 0.23 | DE68: 0.75 | DF68: 0.52 | DG68: 0.24 | DH68: 0.76 | DI68: 0.14 | DJ68: 0.07 | DK68: 0.04 | DL68: 0.03 | DM68: 351138.45 | DN68: 220000 | DO68: 0.15 | DP68: 0.29 | DQ68: 0.23 | DR68: 0.08 | DS68: 0.07
A69: 2015-12-01 | B69: 83.2 | C69: 14.3 | D69: 97.5 | E69: 0.48 | F69: 0.08 | G69: 0.38 | H69: 0.4 | I69: -0.0847 | J69: 0.0685 | K69: 0.026104 | L69: 0.56 | M69: 0.04 | N69: 0.35 | O69: -0.52 | P69: 0.0395 | Q69: 0.0446 | R69: 0.17 | S69: 0.46 | T69: 0.63 | U69: 0.18 | V69: 0.1 | W69: 0.28 | X69: 0.35 | Y69: 0.19 | Z69: 0.38 | AA69: 0.2 | AB69: 0.04 | AC69: 0.12 | AD69: 0.26 | AE69: 0.06 | AF69: 0.05 | AG69: 0.11 | AH69: 0.38 | AI69: 0.12 | AJ69: 0.37 | AK69: 0.49 | AL69: 0.29 | AM69: 0.12 | AN69: 0.41 | AO69: 0.08 | AP69: 0.14 | AQ69: 0.31 | AR69: 0.14 | AS69: 0.11 | AT69: 0.21 | AU69: 0.28 | AV69: 0.04 | AW69: 0.2 | AX69: 0.09 | AY69: 0.27 | AZ69: 0.53 | BA69: 0.03 | BB69: 0.36 | BC69: 0.5 | BD69: 0.037767 | BE69: 0.63 | BF69: 0.33 | BG69: 0.3 | BH69: 0.42 | BI69: 0.49 | BJ69: -0.07 | BK69: 0.18 | BL69: 0.28 | BM69: 0.46 | BN69: 0.41 | BO69: 0.06 | BP69: 0.04 | BQ69: 0.1 | BR69: 0.36 | BS69: 0.27 | BT69: 0.12 | BU69: 0.6 | BV69: 0.15 | BW69: 0.46 | BX69: 0.51 | BY69: 0.05 | BZ69: 0.15 | CA69: 0.09 | CB69: 0.24 | CC69: 0.71 | CD69: 0.11 | CE69: 0.2 | CF69: 0.4 | CG69: 0.05 | CH69: 0.08 | CI69: 0.15 | CJ69: 0.68 | CK69: 0.05 | CL69: 0.08 | CM69: 0.13 | CN69: 0.85 | CO69: 0.21 | CP69: 0.64 | CQ69: 0.72 | CR69: 0.39 | CS69: 0.13 | CT69: 0.14 | CU69: 0.07 | CV69: 0.14 | CW69: 0.77 | CX69: 0.14 | CY69: 0.06 | CZ69: 0.02 | DA69: 0.01 | DB69: 0.13 | DC69: 0.85 | DD69: 0.23 | DE69: 0.74 | DF69: 0.52 | DG69: 0.22 | DH69: 0.74 | DI69: 0.13 | DJ69: 0.11 | DK69: 0.05 | DL69: 0.06 | DM69: 359922.47 | DN69: 200000 | DO69: 0.14 | DP69: 0.33 | DQ69: 0.23 | DR69: 0.05 | DS69: 0.07
A70: 2016-01-01 | B70: 81.5 | C70: 14 | D70: 95.5 | E70: 0.45 | F70: 0.08 | G70: 0.41 | H70: 0.37 | I70: -0.104 | J70: 0.0684 | K70: 0.02246 | L70: 0.57 | M70: 0.05 | N70: 0.3 | O70: -0.52 | P70: 0.0401 | Q70: 0.0475 | R70: 0.14 | S70: 0.47 | T70: 0.61 | U70: 0.21 | V70: 0.09 | W70: 0.3 | X70: 0.31 | Y70: 0.15 | Z70: 0.41 | AA70: 0.2 | AB70: 0.04 | AC70: 0.14 | AD70: 0.33 | AE70: 0.09 | AF70: 0.05 | AG70: 0.1 | AH70: 0.32 | AI70: 0.1 | AJ70: 0.4 | AK70: 0.5 | AL70: 0.32 | AM70: 0.09 | AN70: 0.41 | AO70: 0.09 | AP70: 0.22 | AQ70: 0.3 | AR70: 0.13 | AS70: 0.08 | AT70: 0.16 | AU70: 0.29 | AV70: 0.06 | AW70: 0.17 | AX70: 0.08 | AY70: 0.31 | AZ70: 0.52 | BA70: 0.03 | BB70: 0.4 | BC70: 0.49 | BD70: 0.04034 | BE70: 0.68 | BF70: 0.29 | BG70: 0.39 | BH70: 0.38 | BI70: 0.52 | BJ70: -0.14 | BK70: 0.17 | BL70: 0.29 | BM70: 0.46 | BN70: 0.41 | BO70: 0.08 | BP70: 0.04 | BQ70: 0.12 | BR70: 0.34 | BS70: 0.26 | BT70: 0.14 | BU70: 0.59 | BV70: 0.12 | BW70: 0.4 | BX70: 0.55 | BY70: 0.15 | BZ70: 0.15 | CA70: 0.06 | CB70: 0.21 | CC70: 0.72 | CD70: 0.11 | CE70: 0.16 | CF70: 0.45 | CG70: 0.05 | CH70: 0.07 | CI70: 0.14 | CJ70: 0.71 | CK70: 0.05 | CL70: 0.09 | CM70: 0.14 | CN70: 0.85 | CO70: 0.18 | CP70: 0.67 | CQ70: 0.71 | CR70: 0.4 | CS70: 0.12 | CT70: 0.16 | CU70: 0.08 | CV70: 0.12 | CW70: 0.78 | CX70: 0.18 | CY70: 0.03 | CZ70: 0 | DA70: 0.01 | DB70: 0.18 | DC70: 0.78 | DD70: 0.24 | DE70: 0.74 | DF70: 0.52 | DG70: 0.2 | DH70: 0.72 | DI70: 0.15 | DJ70: 0.1 | DK70: 0.08 | DL70: 0.02 | DM70: 310731.89 | DN70: 200000 | DO70: 0.16 | DP70: 0.34 | DQ70: 0.24 | DR70: 0.07 | DS70: 0.05
A71: 2016-02-01 | B71: 82.7 | C71: 13.8 | D71: 96.5 | E71: 0.44 | F71: 0.11 | G71: 0.4 | H71: 0.33 | I71: -0.0956 | J71: 0.0631 | K71: 0.017248 | L71: 0.55 | M71: 0.05 | N71: 0.36 | O71: -0.5 | P71: 0.0379 | Q71: 0.0428 | R71: 0.17 | S71: 0.46 | T71: 0.63 | U71: 0.19 | V71: 0.09 | W71: 0.28 | X71: 0.35 | Y71: 0.16 | Z71: 0.44 | AA71: 0.19 | AB71: 0.02 | AC71: 0.1 | AD71: 0.34 | AE71: 0.07 | AF71: 0.05 | AG71: 0.12 | AH71: 0.32 | AI71: 0.14 | AJ71: 0.36 | AK71: 0.5 | AL71: 0.34 | AM71: 0.09 | AN71: 0.43 | AO71: 0.07 | AP71: 0.16 | AQ71: 0.29 | AR71: 0.16 | AS71: 0.1 | AT71: 0.2 | AU71: 0.25 | AV71: 0.05 | AW71: 0.19 | AX71: 0.13 | AY71: 0.27 | AZ71: 0.52 | BA71: 0.03 | BB71: 0.39 | BC71: 0.49 | BD71: 0.033325 | BE71: 0.63 | BF71: 0.31 | BG71: 0.32 | BH71: 0.37 | BI71: 0.56 | BJ71: -0.19 | BK71: 0.16 | BL71: 0.3 | BM71: 0.46 | BN71: 0.4 | BO71: 0.09 | BP71: 0.04 | BQ71: 0.13 | BR71: 0.33 | BS71: 0.27 | BT71: 0.12 | BU71: 0.6 | BV71: 0.15 | BW71: 0.43 | BX71: 0.54 | BY71: 0.11 | BZ71: 0.17 | CA71: 0.04 | CB71: 0.21 | CC71: 0.7 | CD71: 0.11 | CE71: 0.17 | CF71: 0.42 | CG71: 0.03 | CH71: 0.07 | CI71: 0.14 | CJ71: 0.72 | CK71: 0.03 | CL71: 0.09 | CM71: 0.12 | CN71: 0.87 | CO71: 0.18 | CP71: 0.69 | CQ71: 0.75 | CR71: 0.35 | CS71: 0.17 | CT71: 0.14 | CU71: 0.1 | CV71: 0.12 | CW71: 0.8 | CX71: 0.15 | CY71: 0.04 | CZ71: 0.01 | DA71: 0.01 | DB71: 0.16 | DC71: 0.8 | DD71: 0.23 | DE71: 0.75 | DF71: 0.54 | DG71: 0.2 | DH71: 0.74 | DI71: 0.16 | DJ71: 0.07 | DK71: 0.04 | DL71: 0.03 | DM71: 349453.56 | DN71: 200000 | DO71: 0.17 | DP71: 0.29 | DQ71: 0.22 | DR71: 0.06 | DS71: 0.07
A72: 2016-03-01 | B72: 80.2 | C72: 12.3 | D72: 92.5 | E72: 0.44 | F72: 0.1 | G72: 0.4 | H72: 0.34 | I72: -0.0943 | J72: 0.0663 | K72: 0.019742 | L72: 0.51 | M72: 0.06 | N72: 0.37 | O72: -0.45 | P72: 0.0362 | Q72: 0.0425 | R72: 0.13 | S72: 0.5 | T72: 0.63 | U72: 0.21 | V72: 0.09 | W72: 0.3 | X72: 0.33 | Y72: 0.21 | Z72: 0.38 | AA72: 0.16 | AB72: 0.05 | AC72: 0.1 | AD72: 0.32 | AE72: 0.06 | AF72: 0.07 | AG72: 0.07 | AH72: 0.4 | AI72: 0.11 | AJ72: 0.34 | AK72: 0.45 | AL72: 0.35 | AM72: 0.11 | AN72: 0.46 | AO72: -0.01 | AP72: 0.23 | AQ72: 0.27 | AR72: 0.12 | AS72: 0.11 | AT72: 0.16 | AU72: 0.27 | AV72: 0.03 | AW72: 0.18 | AX72: 0.12 | AY72: 0.29 | AZ72: 0.54 | BA72: 0.04 | BB72: 0.37 | BC72: 0.5 | BD72: 0.03991 | BE72: 0.65 | BF72: 0.29 | BG72: 0.36 | BH72: 0.33 | BI72: 0.58 | BJ72: -0.25 | BK72: 0.15 | BL72: 0.27 | BM72: 0.42 | BN72: 0.46 | BO72: 0.07 | BP72: 0.04 | BQ72: 0.11 | BR72: 0.31 | BS72: 0.24 | BT72: 0.13 | BU72: 0.61 | BV72: 0.11 | BW72: 0.46 | BX72: 0.51 | BY72: 0.05 | BZ72: 0.16 | CA72: 0.06 | CB72: 0.22 | CC72: 0.68 | CD72: 0.14 | CE72: 0.17 | CF72: 0.37 | CG72: 0.05 | CH72: 0.09 | CI72: 0.14 | CJ72: 0.7 | CK72: 0.06 | CL72: 0.1 | CM72: 0.16 | CN72: 0.84 | CO72: 0.18 | CP72: 0.66 | CQ72: 0.68 | CR72: 0.35 | CS72: 0.15 | CT72: 0.16 | CU72: 0.06 | CV72: 0.13 | CW72: 0.78 | CX72: 0.17 | CY72: 0.02 | CZ72: 0.01 | DA72: 0.02 | DB72: 0.15 | DC72: 0.81 | DD72: 0.2 | DE72: 0.77 | DF72: 0.52 | DG72: 0.23 | DH72: 0.75 | DI72: 0.11 | DJ72: 0.09 | DK72: 0.04 | DL72: 0.05 | DM72: 350760.15 | DN72: 200000 | DO72: 0.15 | DP72: 0.32 | DQ72: 0.21 | DR72: 0.06 | DS72: 0.07
A73: 2016-04-01 | B73: 83.7 | C73: 13.2 | D73: 96.9 | E73: 0.46 | F73: 0.09 | G73: 0.37 | H73: 0.37 | I73: -0.0995 | J73: 0.0622 | K73: 0.019657 | L73: 0.5 | M73: 0.04 | N73: 0.36 | O73: -0.46 | P73: 0.0371 | Q73: 0.0421 | R73: 0.14 | S73: 0.47 | T73: 0.61 | U73: 0.22 | V73: 0.09 | W73: 0.31 | X73: 0.3 | Y73: 0.16 | Z73: 0.4 | AA73: 0.21 | AB73: 0.04 | AC73: 0.12 | AD73: 0.31 | AE73: 0.04 | AF73: 0.04 | AG73: 0.14 | AH73: 0.35 | AI73: 0.15 | AJ73: 0.37 | AK73: 0.52 | AL73: 0.28 | AM73: 0.09 | AN73: 0.37 | AO73: 0.15 | AP73: 0.19 | AQ73: 0.29 | AR73: 0.15 | AS73: 0.07 | AT73: 0.22 | AU73: 0.2 | AV73: 0.05 | AW73: 0.15 | AX73: 0.19 | AY73: 0.32 | AZ73: 0.56 | BA73: 0.04 | BB73: 0.35 | BC73: 0.52 | BD73: 0.035436 | BE73: 0.63 | BF73: 0.32 | BG73: 0.31 | BH73: 0.38 | BI73: 0.52 | BJ73: -0.14 | BK73: 0.17 | BL73: 0.27 | BM73: 0.44 | BN73: 0.4 | BO73: 0.09 | BP73: 0.04 | BQ73: 0.13 | BR73: 0.31 | BS73: 0.24 | BT73: 0.13 | BU73: 0.61 | BV73: 0.11 | BW73: 0.44 | BX73: 0.53 | BY73: 0.09 | BZ73: 0.16 | CA73: 0.09 | CB73: 0.25 | CC73: 0.66 | CD73: 0.12 | CE73: 0.1 | CF73: 0.44 | CG73: 0.03 | CH73: 0.09 | CI73: 0.15 | CJ73: 0.71 | CK73: 0.03 | CL73: 0.1 | CM73: 0.13 | CN73: 0.87 | CO73: 0.2 | CP73: 0.67 | CQ73: =CN73-CM73 -> 0.74 | CR73: 0.36 | CS73: 0.14 | CT73: 0.15 | CU73: 0.07 | CV73: 0.12 | CW73: 0.76 | CX73: 0.21 | CY73: 0.02 | CZ73: 0 | DA73: 0.01 | DB73: 0.18 | DC73: 0.77 | DD73: 0.23 | DE73: 0.75 | DF73: 0.55 | DG73: 0.2 | DH73: 0.75 | DI73: 0.13 | DJ73: 0.1 | DK73: 0.05 | DL73: 0.05 | DM73: 272596.46 | DN73: 200000 | DO73: 0.14 | DP73: 0.36 | DQ73: 0.25 | DR73: 0.05 | DS73: 0.05
A74: 2016-05-01 | B74: 85.3 | C74: 13 | D74: 98.3 | E74: 0.48 | F74: 0.06 | G74: 0.39 | H74: 0.42 | I74: -0.0899 | J74: 0.0614 | K74: 0.024078 | L74: 0.48 | M74: 0.05 | N74: 0.4 | O74: -0.43 | P74: 0.0366 | Q74: 0.0416 | R74: 0.14 | S74: 0.46 | T74: 0.6 | U74: 0.2 | V74: 0.11 | W74: 0.31 | X74: 0.29 | Y74: 0.21 | Z74: 0.36 | AA74: 0.19 | AB74: 0.02 | AC74: 0.13 | AD74: 0.3 | AE74: 0.06 | AF74: 0.11 | AG74: 0.15 | AH74: 0.3 | AI74: 0.15 | AJ74: 0.37 | AK74: 0.52 | AL74: 0.28 | AM74: 0.11 | AN74: 0.39 | AO74: 0.13 | AP74: 0.21 | AQ74: 0.28 | AR74: 0.16 | AS74: 0.05 | AT74: 0.2 | AU74: 0.23 | AV74: 0.06 | AW74: 0.18 | AX74: 0.15 | AY74: 0.29 | AZ74: 0.54 | BA74: 0.04 | BB74: 0.35 | BC74: 0.5 | BD74: 0.03652 | BE74: 0.63 | BF74: 0.3 | BG74: 0.33 | BH74: 0.36 | BI74: 0.58 | BJ74: -0.22 | BK74: 0.14 | BL74: 0.29 | BM74: 0.43 | BN74: 0.42 | BO74: 0.08 | BP74: 0.04 | BQ74: 0.12 | BR74: 0.31 | BS74: 0.27 | BT74: 0.09 | BU74: 0.62 | BV74: 0.18 | BW74: 0.43 | BX74: 0.55 | BY74: 0.12 | BZ74: 0.15 | CA74: 0.07 | CB74: 0.22 | CC74: 0.67 | CD74: 0.09 | CE74: 0.17 | CF74: 0.41 | CG74: 0.05 | CH74: 0.08 | CI74: 0.17 | CJ74: 0.67 | CK74: 0.04 | CL74: 0.1 | CM74: 0.14 | CN74: 0.86 | CO74: 0.22 | CP74: 0.64 | CQ74: 0.72 | CR74: 0.4 | CS74: 0.11 | CT74: 0.16 | CU74: 0.09 | CV74: 0.11 | CW74: 0.82 | CX74: 0.16 | CY74: 0.02 | CZ74: 0 | DA74: 0 | DB74: 0.2 | DC74: 0.77 | DD74: 0.24 | DE74: 0.75 | DF74: 0.55 | DG74: 0.21 | DH74: 0.76 | DI74: 0.15 | DJ74: 0.06 | DK74: 0.03 | DL74: 0.03 | DM74: 319852.04 | DN74: 200000 | DO74: 0.14 | DP74: 0.31 | DQ74: 0.22 | DR74: 0.05 | DS74: 0.05
A75: 2016-06-01 | B75: 83.2 | C75: 12.1 | D75: 95.3 | E75: 0.42 | F75: 0.09 | G75: 0.41 | H75: 0.33 | I75: -0.0873 | J75: 0.0656 | K75: 0.019695 | L75: 0.46 | M75: 0.05 | N75: 0.4 | O75: -0.41 | P75: 0.0364 | Q75: 0.0421 | R75: 0.18 | S75: 0.43 | T75: 0.61 | U75: 0.21 | V75: 0.08 | W75: 0.29 | X75: 0.32 | Y75: 0.13 | Z75: 0.44 | AA75: 0.19 | AB75: 0.04 | AC75: 0.12 | AD75: 0.32 | AE75: 0.11 | AF75: 0.1 | AG75: 0.11 | AH75: 0.29 | AI75: 0.2 | AJ75: 0.34 | AK75: 0.54 | AL75: 0.26 | AM75: 0.1 | AN75: 0.36 | AO75: 0.18 | AP75: 0.2 | AQ75: 0.29 | AR75: 0.15 | AS75: 0.1 | AT75: 0.19 | AU75: 0.25 | AV75: 0.06 | AW75: 0.15 | AX75: 0.13 | AY75: 0.34 | AZ75: 0.54 | BA75: 0.05 | BB75: 0.35 | BC75: 0.49 | BD75: 0.036093 | BE75: 0.63 | BF75: 0.31 | BG75: 0.32 | BH75: 0.33 | BI75: 0.59 | BJ75: -0.26 | BK75: 0.14 | BL75: 0.31 | BM75: 0.45 | BN75: 0.43 | BO75: 0.06 | BP75: 0.03 | BQ75: 0.09 | BR75: 0.36 | BS75: 0.22 | BT75: 0.14 | BU75: 0.62 | BV75: 0.08 | BW75: 0.43 | BX75: 0.54 | BY75: 0.11 | BZ75: 0.21 | CA75: 0.07 | CB75: 0.28 | CC75: 0.63 | CD75: 0.09 | CE75: 0.11 | CF75: 0.43 | CG75: 0.04 | CH75: 0.09 | CI75: 0.16 | CJ75: 0.67 | CK75: 0.04 | CL75: 0.12 | CM75: 0.16 | CN75: 0.84 | CO75: 0.22 | CP75: 0.62 | CQ75: 0.68 | CR75: 0.4 | CS75: 0.14 | CT75: 0.14 | CU75: 0.08 | CV75: 0.12 | CW75: 0.78 | CX75: 0.15 | CY75: 0.04 | CZ75: 0.01 | DA75: 0.01 | DB75: 0.15 | DC75: 0.81 | DD75: 0.2 | DE75: 0.78 | DF75: 0.55 | DG75: 0.21 | DH75: 0.76 | DI75: 0.12 | DJ75: 0.09 | DK75: 0.05 | DL75: 0.04 | DM75: 264368.85 | DN75: 180000 | DO75: 0.2 | DP75: 0.32 | DQ75: 0.21 | DR75: 0.05 | DS75: 0.04
A76: 2016-07-01 | B76: 86.5 | C76: 11.8 | D76: =ROUND(63.5+100*(T76-W76+AK76-AN76+E76-F76+BS76-BT76+CN76-CM76)/5,1) -> 98.3 | E76: 0.49 | F76: 0.08 | G76: 0.36 | H76: 0.41 | I76: -0.1129 | J76: 0.0612 | K76: 0.020956 | L76: 0.43 | M76: 0.07 | N76: 0.43 | O76: -0.36 | P76: 0.0348 | Q76: 0.0402 | R76: 0.18 | S76: 0.45 | T76: 0.63 | U76: 0.22 | V76: 0.08 | W76: 0.3 | X76: 0.33 | Y76: 0.17 | Z76: 0.41 | AA76: 0.21 | AB76: 0.03 | AC76: 0.09 | AD76: 0.34 | AE76: 0.05 | AF76: 0.05 | AG76: 0.11 | AH76: 0.36 | AI76: 0.17 | AJ76: 0.39 | AK76: 0.56 | AL76: 0.27 | AM76: 0.09 | AN76: 0.36 | AO76: 0.2 | AP76: 0.23 | AQ76: 0.31 | AR76: 0.12 | AS76: 0.11 | AT76: 0.16 | AU76: 0.2 | AV76: 0.06 | AW76: 0.15 | AX76: 0.17 | AY76: 0.29 | AZ76: 0.58 | BA76: 0.04 | BB76: 0.33 | BC76: 0.54 | BD76: 0.040148 | BE76: 0.67 | BF76: 0.26 | BG76: 0.41 | BH76: 0.33 | BI76: 0.59 | BJ76: -0.26 | BK76: 0.17 | BL76: 0.27 | BM76: 0.44 | BN76: 0.41 | BO76: 0.09 | BP76: 0.04 | BQ76: 0.13 | BR76: 0.31 | BS76: 0.22 | BT76: 0.11 | BU76: 0.64 | BV76: 0.11 | BW76: 0.45 | BX76: 0.52 | BY76: 0.07 | BZ76: 0.16 | CA76: 0.09 | CB76: 0.25 | CC76: 0.67 | CD76: 0.11 | CE76: 0.15 | CF76: 0.41 | CG76: 0.05 | CH76: 0.09 | CI76: 0.16 | CJ76: 0.67 | CK76: 0.05 | CL76: 0.11 | CM76: 0.16 | CN76: 0.85 | CO76: 0.21 | CP76: 0.64 | CQ76: 0.69 | CR76: 0.36 | CS76: 0.13 | CT76: 0.14 | CU76: 0.08 | CV76: 0.12 | CW76: 0.83 | CX76: 0.12 | CY76: 0.04 | CZ76: 0.01 | DA76: 0 | DB76: 0.17 | DC76: 0.8 | DD76: 0.21 | DE76: 0.78 | DF76: 0.5 | DG76: 0.24 | DH76: 0.74 | DI76: 0.13 | DJ76: 0.09 | DK76: 0.05 | DL76: 0.04 | DM76: 351229.38 | DN76: 212460.3 | DO76: 0.1 | DP76: 0.34 | DQ76: 0.25 | DR76: 0.06 | DS76: 0.05
A77: 2016-08-01 | B77: =ROUND(63.5+100*(T77-W77+AK77-AN77+E77-F77+M77-L77+BS77-BT77+CN77-CM77)/6,1) -> 85 | C77: =D77-B77 -> 11.9 | D77: 96.9 | E77: 0.43 | F77: 0.08 | G77: 0.4 | H77: 0.35 | I77: -0.0941 | J77: 0.0665 | K77: 0.021067 | L77: 0.44 | M77: 0.06 | N77: 0.4 | O77: -0.38 | P77: 0.0348 | Q77: 0.0415 | R77: 0.17 | S77: 0.46 | T77: 0.63 | U77: 0.2 | V77: 0.09 | W77: 0.29 | X77: 0.34 | Y77: 0.18 | Z77: 0.42 | AA77: 0.19 | AB77: 0.02 | AC77: 0.1 | AD77: 0.3 | AE77: 0.07 | AF77: 0.02 | AG77: 0.17 | AH77: 0.33 | AI77: 0.17 | AJ77: 0.36 | AK77: 0.53 | AL77: 0.27 | AM77: 0.11 | AN77: 0.38 | AO77: 0.15 | AP77: 0.25 | AQ77: 0.26 | AR77: 0.12 | AS77: 0.1 | AT77: 0.17 | AU77: 0.2 | AV77: 0.09 | AW77: 0.19 | AX77: 0.15 | AY77: 0.31 | AZ77: 0.55 | BA77: 0.04 | BB77: 0.34 | BC77: 0.51 | BD77: 0.039688 | BE77: 0.65 | BF77: 0.29 | BG77: 0.36 | BH77: 0.38 | BI77: 0.52 | BJ77: -0.14 | BK77: 0.19 | BL77: 0.28 | BM77: 0.47 | BN77: 0.37 | BO77: 0.08 | BP77: 0.04 | BQ77: 0.12 | BR77: 0.35 | BS77: 0.23 | BT77: 0.13 | BU77: 0.61 | BV77: 0.1 | BW77: 0.43 | BX77: 0.54 | BY77: 0.11 | BZ77: 0.16 | CA77: 0.09 | CB77: 0.25 | CC77: 0.68 | CD77: 0.12 | CE77: 0.15 | CF77: 0.41 | CG77: 0.05 | CH77: 0.06 | CI77: 0.18 | CJ77: 0.69 | CK77: 0.05 | CL77: 0.08 | CM77: 0.13 | CN77: 0.86 | CO77: 0.23 | CP77: 0.63 | CQ77: 0.73 | CR77: 0.37 | CS77: 0.13 | CT77: 0.13 | CU77: 0.06 | CV77: 0.15 | CW77: 0.82 | CX77: 0.14 | CY77: 0.02 | CZ77: 0 | DA77: 0.01 | DB77: 0.18 | DC77: 0.79 | DD77: 0.24 | DE77: 0.74 | DF77: 0.56 | DG77: 0.21 | DH77: 0.77 | DI77: 0.14 | DJ77: 0.05 | DK77: 0.02 | DL77: 0.03 | DM77: 332264.83 | DN77: 220000 | DO77: 0.12 | DP77: 0.32 | DQ77: 0.25 | DR77: 0.07 | DS77: 0.06
A78: 2016-09-01 | B78: 82.8 | C78: 12.7 | D78: 95.5 | E78: 0.43 | F78: 0.09 | G78: 0.38 | H78: 0.34 | I78: -0.0955 | J78: 0.0659 | K78: 0.019742 | L78: 0.49 | M78: 0.05 | N78: 0.36 | O78: -0.44 | P78: 0.0346 | Q78: 0.0414 | R78: 0.17 | S78: 0.43 | T78: 0.6 | U78: 0.21 | V78: 0.1 | W78: 0.31 | X78: 0.29 | Y78: 0.14 | Z78: 0.43 | AA78: 0.18 | AB78: 0.06 | AC78: 0.11 | AD78: 0.33 | AE78: 0.04 | AF78: 0.04 | AG78: 0.18 | AH78: 0.35 | AI78: 0.16 | AJ78: 0.37 | AK78: 0.53 | AL78: 0.29 | AM78: 0.09 | AN78: 0.38 | AO78: 0.15 | AP78: 0.25 | AQ78: 0.28 | AR78: 0.11 | AS78: 0.09 | AT78: 0.19 | AU78: 0.18 | AV78: 0.07 | AW78: 0.22 | AX78: 0.17 | AY78: 0.32 | AZ78: 0.54 | BA78: 0.03 | BB78: 0.36 | BC78: 0.51 | BD78: 0.038058 | BE78: 0.64 | BF78: 0.31 | BG78: 0.33 | BH78: 0.35 | BI78: 0.57 | BJ78: -0.22 | BK78: 0.15 | BL78: 0.26 | BM78: 0.41 | BN78: 0.45 | BO78: 0.07 | BP78: 0.04 | BQ78: 0.11 | BR78: 0.3 | BS78: 0.25 | BT78: 0.13 | BU78: 0.61 | BV78: 0.12 | BW78: 0.45 | BX78: 0.52 | BY78: 0.07 | BZ78: 0.19 | CA78: 0.05 | CB78: 0.24 | CC78: 0.64 | CD78: 0.14 | CE78: 0.13 | CF78: 0.37 | CG78: 0.05 | CH78: 0.08 | CI78: 0.18 | CJ78: 0.65 | CK78: 0.06 | CL78: 0.09 | CM78: 0.15 | CN78: 0.85 | CO78: 0.24 | CP78: 0.61 | CQ78: 0.7 | CR78: 0.39 | CS78: 0.14 | CT78: 0.12 | CU78: 0.08 | CV78: 0.12 | CW78: 0.83 | CX78: 0.13 | CY78: 0.03 | CZ78: 0 | DA78: 0 | DB78: 0.17 | DC78: 0.8 | DD78: 0.22 | DE78: 0.75 | DF78: 0.5 | DG78: 0.22 | DH78: 0.72 | DI78: 0.16 | DJ78: 0.07 | DK78: 0.04 | DL78: 0.03 | DM78: 429853.99 | DN78: 200000 | DO78: 0.15 | DP78: 0.31 | DQ78: 0.2 | DR78: 0.06 | DS78: 0.08
A79: 2016-10-01 | B79: 81.7 | C79: 12.6 | D79: 94.3 | E79: 0.41 | F79: 0.1 | G79: 0.4 | H79: 0.31 | I79: -0.102 | J79: 0.0716 | K79: 0.019156 | L79: 0.5 | M79: 0.05 | N79: 0.36 | O79: -0.45 | P79: 0.0342 | Q79: 0.0413 | R79: 0.15 | S79: 0.45 | T79: 0.6 | U79: 0.2 | V79: 0.09 | W79: 0.29 | X79: 0.31 | Y79: 0.14 | Z79: 0.41 | AA79: 0.21 | AB79: 0.03 | AC79: 0.12 | AD79: 0.36 | AE79: 0.04 | AF79: 0.04 | AG79: 0.1 | AH79: 0.35 | AI79: 0.17 | AJ79: 0.38 | AK79: 0.55 | AL79: 0.25 | AM79: 0.11 | AN79: 0.36 | AO79: 0.19 | AP79: 0.23 | AQ79: 0.27 | AR79: 0.14 | AS79: 0.09 | AT79: 0.18 | AU79: 0.2 | AV79: 0.05 | AW79: 0.19 | AX79: 0.16 | AY79: 0.32 | AZ79: 0.54 | BA79: 0.04 | BB79: 0.34 | BC79: 0.5 | BD79: 0.038934 | BE79: 0.67 | BF79: 0.3 | BG79: 0.37 | BH79: 0.36 | BI79: 0.56 | BJ79: -0.2 | BK79: 0.18 | BL79: 0.26 | BM79: 0.44 | BN79: 0.39 | BO79: 0.06 | BP79: 0.04 | BQ79: 0.1 | BR79: 0.34 | BS79: 0.2 | BT79: 0.16 | BU79: 0.62 | BV79: 0.04 | BW79: 0.46 | BX79: 0.52 | BY79: 0.06 | BZ79: 0.14 | CA79: 0.05 | CB79: 0.19 | CC79: 0.72 | CD79: 0.11 | CE79: 0.15 | CF79: 0.46 | CG79: 0.06 | CH79: 0.08 | CI79: 0.13 | CJ79: 0.7 | CK79: 0.04 | CL79: 0.11 | CM79: 0.15 | CN79: 0.84 | CO79: 0.17 | CP79: 0.67 | CQ79: 0.69 | CR79: 0.37 | CS79: 0.12 | CT79: 0.17 | CU79: 0.08 | CV79: 0.12 | CW79: 0.78 | CX79: 0.18 | CY79: 0.03 | CZ79: 0.01 | DA79: 0 | DB79: 0.15 | DC79: 0.83 | DD79: 0.23 | DE79: 0.76 | DF79: 0.51 | DG79: 0.23 | DH79: 0.74 | DI79: 0.13 | DJ79: 0.08 | DK79: 0.04 | DL79: 0.04 | DM79: 441429.44 | DN79: 223275.98 | DO79: 0.12 | DP79: 0.34 | DQ79: 0.22 | DR79: 0.06 | DS79: 0.1
A80: 2016-11-01 | B80: 81.2 | C80: 13.7 | D80: 94.9 | E80: 0.43 | F80: 0.08 | G80: 0.4 | H80: 0.35 | I80: -0.0961 | J80: 0.0778 | K80: 0.025766 | L80: 0.55 | M80: 0.04 | N80: 0.31 | O80: -0.51 | P80: 0.0352 | Q80: 0.0421 | R80: 0.16 | S80: 0.44 | T80: 0.6 | U80: 0.2 | V80: 0.1 | W80: 0.3 | X80: 0.3 | Y80: 0.14 | Z80: 0.43 | AA80: 0.19 | AB80: 0.03 | AC80: 0.1 | AD80: 0.34 | AE80: 0.06 | AF80: 0.03 | AG80: 0.12 | AH80: 0.29 | AI80: 0.13 | AJ80: 0.38 | AK80: 0.51 | AL80: 0.28 | AM80: 0.1 | AN80: 0.38 | AO80: 0.13 | AP80: 0.2 | AQ80: 0.29 | AR80: 0.17 | AS80: 0.08 | AT80: 0.14 | AU80: 0.21 | AV80: 0.04 | AW80: 0.16 | AX80: 0.14 | AY80: 0.38 | AZ80: 0.52 | BA80: 0.03 | BB80: 0.37 | BC80: 0.49 | BD80: 0.04171 | BE80: 0.67 | BF80: 0.27 | BG80: 0.4 | BH80: 0.34 | BI80: 0.57 | BJ80: -0.23 | BK80: 0.18 | BL80: 0.29 | BM80: 0.47 | BN80: 0.39 | BO80: 0.07 | BP80: 0.04 | BQ80: 0.11 | BR80: 0.36 | BS80: 0.25 | BT80: 0.1 | BU80: 0.64 | BV80: 0.15 | BW80: 0.44 | BX80: 0.54 | BY80: 0.1 | BZ80: 0.13 | CA80: 0.05 | CB80: 0.18 | CC80: 0.75 | CD80: 0.13 | CE80: 0.15 | CF80: 0.47 | CG80: 0.05 | CH80: 0.1 | CI80: 0.14 | CJ80: 0.68 | CK80: 0.05 | CL80: 0.12 | CM80: 0.17 | CN80: 0.81 | CO80: 0.19 | CP80: 0.62 | CQ80: 0.64 | CR80: 0.39 | CS80: 0.13 | CT80: 0.13 | CU80: 0.08 | CV80: 0.12 | CW80: 0.82 | CX80: 0.14 | CY80: 0.03 | CZ80: 0 | DA80: 0 | DB80: 0.13 | DC80: 0.86 | DD80: 0.22 | DE80: 0.77 | DF80: 0.57 | DG80: 0.24 | DH80: 0.81 | DI80: 0.09 | DJ80: 0.08 | DK80: 0.04 | DL80: 0.04 | DM80: 372943.5 | DN80: 225000 | DO80: 0.13 | DP80: 0.3 | DQ80: 0.21 | DR80: 0.07 | DS80: 0.08
A81: 2016-12-01 | B81: 80.7 | C81: 14.4 | D81: 95.1 | E81: 0.46 | F81: 0.11 | G81: 0.36 | H81: 0.35 | I81: -0.0906 | J81: 0.068 | K81: 0.021314 | L81: 0.6 | M81: 0.05 | N81: 0.26 | O81: -0.55 | P81: 0.0408 | Q81: 0.0495 | R81: 0.16 | S81: 0.46 | T81: 0.62 | U81: 0.2 | V81: 0.1 | W81: 0.3 | X81: 0.32 | Y81: 0.15 | Z81: 0.45 | AA81: 0.17 | AB81: 0.03 | AC81: 0.12 | AD81: 0.34 | AE81: 0.05 | AF81: 0.05 | AG81: 0.16 | AH81: 0.26 | AI81: 0.17 | AJ81: 0.34 | AK81: 0.51 | AL81: 0.28 | AM81: 0.1 | AN81: 0.38 | AO81: 0.13 | AP81: 0.25 | AQ81: 0.22 | AR81: 0.14 | AS81: 0.07 | AT81: 0.2 | AU81: 0.22 | AV81: 0.05 | AW81: 0.18 | AX81: 0.17 | AY81: 0.29 | AZ81: 0.54 | BA81: 0.05 | BB81: 0.36 | BC81: 0.49 | BD81: 0.037513 | BE81: 0.68 | BF81: 0.28 | BG81: 0.4 | BH81: 0.43 | BI81: 0.45 | BJ81: -0.02 | BK81: 0.17 | BL81: 0.31 | BM81: 0.48 | BN81: 0.41 | BO81: 0.06 | BP81: 0.03 | BQ81: 0.09 | BR81: 0.39 | BS81: 0.22 | BT81: 0.12 | BU81: 0.65 | BV81: 0.1 | BW81: 0.41 | BX81: 0.56 | BY81: 0.15 | BZ81: 0.12 | CA81: 0.05 | CB81: 0.17 | CC81: 0.77 | CD81: 0.12 | CE81: 0.15 | CF81: 0.5 | CG81: 0.04 | CH81: 0.09 | CI81: 0.12 | CJ81: 0.72 | CK81: 0.04 | CL81: 0.12 | CM81: 0.16 | CN81: 0.84 | CO81: 0.15 | CP81: 0.69 | CQ81: 0.68 | CR81: 0.46 | CS81: 0.12 | CT81: 0.14 | CU81: 0.07 | CV81: 0.11 | CW81: 0.8 | CX81: 0.18 | CY81: 0.02 | CZ81: 0 | DA81: 0.01 | DB81: 0.15 | DC81: 0.83 | DD81: 0.24 | DE81: 0.74 | DF81: 0.59 | DG81: 0.22 | DH81: 0.81 | DI81: 0.12 | DJ81: 0.05 | DK81: 0.02 | DL81: 0.03 | DM81: 415332.66 | DN81: 250000 | DO81: 0.12 | DP81: 0.28 | DQ81: 0.25 | DR81: 0.06 | DS81: 0.09
A82: 2017-01-01 | B82: 82.7 | C82: 14.8 | D82: 97.5 | E82: 0.5 | F82: 0.08 | G82: 0.35 | H82: 0.42 | I82: -0.0831 | J82: 0.0763 | K82: 0.031502 | L82: 0.61 | M82: 0.06 | N82: 0.26 | O82: -0.55 | P82: 0.0432 | Q82: 0.0499 | R82: 0.16 | S82: 0.44 | T82: 0.6 | U82: 0.22 | V82: 0.09 | W82: 0.31 | X82: 0.29 | Y82: 0.14 | Z82: 0.37 | AA82: 0.18 | AB82: 0.06 | AC82: 0.15 | AD82: 0.36 | AE82: 0.06 | AF82: 0.04 | AG82: 0.13 | AH82: 0.31 | AI82: 0.17 | AJ82: 0.35 | AK82: 0.52 | AL82: 0.27 | AM82: 0.1 | AN82: 0.37 | AO82: 0.15 | AP82: 0.23 | AQ82: 0.28 | AR82: 0.11 | AS82: 0.1 | AT82: 0.17 | AU82: 0.2 | AV82: 0.04 | AW82: 0.19 | AX82: 0.14 | AY82: 0.31 | AZ82: 0.54 | BA82: 0.04 | BB82: 0.37 | BC82: 0.5 | BD82: 0.042514 | BE82: 0.64 | BF82: 0.3 | BG82: 0.34 | BH82: 0.46 | BI82: 0.42 | BJ82: 0.04 | BK82: 0.2 | BL82: 0.31 | BM82: 0.51 | BN82: 0.35 | BO82: 0.08 | BP82: 0.04 | BQ82: 0.12 | BR82: 0.39 | BS82: 0.26 | BT82: 0.11 | BU82: 0.6 | BV82: 0.15 | BW82: 0.46 | BX82: 0.5 | BY82: 0.04 | BZ82: 0.19 | CA82: 0.08 | CB82: 0.27 | CC82: 0.66 | CD82: 0.1 | CE82: 0.11 | CF82: 0.45 | CG82: 0.04 | CH82: 0.08 | CI82: 0.14 | CJ82: 0.71 | CK82: 0.04 | CL82: 0.11 | CM82: 0.15 | CN82: 0.84 | CO82: 0.17 | CP82: 0.67 | CQ82: 0.69 | CR82: 0.41 | CS82: 0.15 | CT82: 0.14 | CU82: 0.07 | CV82: 0.12 | CW82: 0.8 | CX82: 0.17 | CY82: 0.02 | CZ82: 0.01 | DA82: 0 | DB82: 0.14 | DC82: 0.83 | DD82: 0.23 | DE82: 0.75 | DF82: 0.56 | DG82: 0.21 | DH82: 0.77 | DI82: 0.13 | DJ82: 0.06 | DK82: 0.03 | DL82: 0.03 | DM82: 323622.04 | DN82: 225000 | DO82: 0.15 | DP82: 0.3 | DQ82: 0.25 | DR82: 0.08 | DS82: 0.07
A83: 2017-02-01 | B83: 88.3 | C83: 16 | D83: 104.3 | E83: 0.53 | F83: 0.08 | G83: 0.32 | H83: 0.45 | I83: -0.0843 | J83: 0.0728 | K83: 0.03184 | L83: 0.61 | M83: 0.06 | N83: 0.28 | O83: -0.55 | P83: 0.0419 | Q83: 0.0484 | R83: 0.18 | S83: 0.48 | T83: 0.66 | U83: 0.18 | V83: 0.08 | W83: 0.26 | X83: 0.4 | Y83: 0.15 | Z83: 0.4 | AA83: 0.17 | AB83: 0.04 | AC83: 0.15 | AD83: 0.32 | AE83: 0.13 | AF83: 0.04 | AG83: 0.1 | AH83: 0.21 | AI83: 0.17 | AJ83: 0.39 | AK83: 0.56 | AL83: 0.26 | AM83: 0.08 | AN83: 0.34 | AO83: 0.22 | AP83: 0.23 | AQ83: 0.24 | AR83: 0.14 | AS83: 0.1 | AT83: 0.16 | AU83: 0.25 | AV83: 0.05 | AW83: 0.21 | AX83: 0.12 | AY83: 0.22 | AZ83: 0.56 | BA83: 0.03 | BB83: 0.35 | BC83: 0.53 | BD83: 0.03835 | BE83: 0.66 | BF83: 0.29 | BG83: 0.37 | BH83: 0.48 | BI83: 0.35 | BJ83: 0.13 | BK83: 0.23 | BL83: 0.29 | BM83: 0.52 | BN83: 0.37 | BO83: 0.04 | BP83: 0.03 | BQ83: 0.07 | BR83: 0.45 | BS83: 0.28 | BT83: 0.09 | BU83: 0.61 | BV83: 0.19 | BW83: 0.4 | BX83: 0.56 | BY83: 0.16 | BZ83: 0.13 | CA83: 0.07 | CB83: 0.2 | CC83: 0.7 | CD83: 0.1 | CE83: 0.14 | CF83: 0.46 | CG83: 0.03 | CH83: 0.06 | CI83: 0.17 | CJ83: 0.72 | CK83: 0.03 | CL83: 0.08 | CM83: 0.11 | CN83: 0.89 | CO83: 0.22 | CP83: 0.67 | CQ83: 0.78 | CR83: 0.42 | CS83: 0.14 | CT83: 0.14 | CU83: 0.06 | CV83: 0.12 | CW83: 0.81 | CX83: 0.13 | CY83: 0.05 | CZ83: 0 | DA83: 0.01 | DB83: 0.15 | DC83: 0.82 | DD83: 0.22 | DE83: 0.76 | DF83: 0.55 | DG83: 0.24 | DH83: 0.79 | DI83: 0.12 | DJ83: 0.05 | DK83: 0.04 | DL83: 0.01 | DM83: 408403.76 | DN83: 239956.72 | DO83: 0.09 | DP83: 0.35 | DQ83: 0.23 | DR83: 0.08 | DS83: 0.09
A84: 2017-03-01 | B84: 84.5 | C84: 16.2 | D84: 100.7 | E84: 0.51 | F84: 0.07 | G84: 0.35 | H84: 0.44 | I84: -0.0782 | J84: 0.0687 | K84: 0.029563 | L84: 0.64 | M84: 0.04 | N84: 0.25 | O84: -0.6 | P84: 0.0416 | Q84: 0.0506 | R84: 0.16 | S84: 0.44 | T84: 0.6 | U84: 0.2 | V84: 0.1 | W84: 0.3 | X84: 0.3 | Y84: 0.14 | Z84: 0.35 | AA84: 0.16 | AB84: 0.07 | AC84: 0.17 | AD84: 0.39 | AE84: 0.09 | AF84: 0.05 | AG84: 0.12 | AH84: 0.24 | AI84: 0.21 | AJ84: 0.39 | AK84: 0.6 | AL84: 0.21 | AM84: 0.08 | AN84: 0.29 | AO84: 0.31 | AP84: 0.24 | AQ84: 0.23 | AR84: 0.14 | AS84: 0.1 | AT84: 0.21 | AU84: 0.15 | AV84: 0.12 | AW84: 0.19 | AX84: 0.16 | AY84: 0.26 | AZ84: 0.57 | BA84: 0.03 | BB84: 0.36 | BC84: 0.54 | BD84: 0.04122 | BE84: 0.65 | BF84: 0.3 | BG84: 0.35 | BH84: 0.47 | BI84: 0.41 | BJ84: 0.06 | BK84: 0.19 | BL84: 0.3 | BM84: 0.49 | BN84: 0.38 | BO84: 0.06 | BP84: 0.04 | BQ84: 0.1 | BR84: 0.39 | BS84: 0.23 | BT84: 0.12 | BU84: 0.63 | BV84: 0.11 | BW84: 0.43 | BX84: 0.54 | BY84: 0.11 | BZ84: 0.13 | CA84: 0.05 | CB84: 0.18 | CC84: 0.74 | CD84: 0.11 | CE84: 0.17 | CF84: 0.46 | CG84: 0.05 | CH84: 0.08 | CI84: 0.13 | CJ84: 0.72 | CK84: 0.05 | CL84: 0.1 | CM84: 0.15 | CN84: 0.85 | CO84: 0.19 | CP84: 0.66 | CQ84: 0.7 | CR84: 0.4 | CS84: 0.14 | CT84: 0.11 | CU84: 0.08 | CV84: 0.12 | CW84: 0.81 | CX84: 0.15 | CY84: 0.03 | CZ84: 0 | DA84: 0 | DB84: 0.17 | DC84: 0.8 | DD84: 0.2 | DE84: 0.77 | DF84: 0.51 | DG84: 0.26 | DH84: 0.77 | DI84: 0.13 | DJ84: 0.07 | DK84: 0.03 | DL84: 0.04 | DM84: 400812.26 | DN84: 240000 | DO84: 0.1 | DP84: 0.31 | DQ84: 0.25 | DR84: 0.07 | DS84: 0.09
A85: 2017-04-01 | B85: 86.7 | C85: 16 | D85: 102.7 | E85: 0.53 | F85: 0.08 | G85: 0.3 | H85: 0.45 | I85: -0.0689 | J85: 0.0665 | K85: 0.029733 | L85: 0.62 | M85: 0.05 | N85: 0.26 | O85: -0.57 | P85: 0.0414 | Q85: 0.0502 | R85: 0.16 | S85: 0.46 | T85: 0.62 | U85: 0.19 | V85: 0.08 | W85: 0.27 | X85: 0.35 | Y85: 0.15 | Z85: 0.36 | AA85: 0.18 | AB85: 0.05 | AC85: 0.13 | AD85: 0.35 | AE85: 0.12 | AF85: 0.07 | AG85: 0.1 | AH85: 0.24 | AI85: 0.18 | AJ85: 0.39 | AK85: 0.57 | AL85: 0.24 | AM85: 0.07 | AN85: 0.31 | AO85: 0.26 | AP85: 0.26 | AQ85: 0.21 | AR85: 0.13 | AS85: 0.09 | AT85: 0.17 | AU85: 0.22 | AV85: 0.07 | AW85: 0.22 | AX85: 0.11 | AY85: 0.26 | AZ85: 0.52 | BA85: 0.03 | BB85: 0.38 | BC85: 0.49 | BD85: 0.039706 | BE85: 0.67 | BF85: 0.28 | BG85: 0.39 | BH85: 0.46 | BI85: 0.39 | BJ85: 0.07 | BK85: 0.17 | BL85: 0.3 | BM85: 0.47 | BN85: 0.4 | BO85: 0.07 | BP85: 0.03 | BQ85: 0.1 | BR85: 0.37 | BS85: 0.25 | BT85: 0.12 | BU85: 0.63 | BV85: 0.13 | BW85: 0.39 | BX85: 0.57 | BY85: 0.18 | BZ85: 0.16 | CA85: 0.05 | CB85: 0.21 | CC85: 0.7 | CD85: 0.12 | CE85: 0.15 | CF85: 0.43 | CG85: 0.04 | CH85: 0.07 | CI85: 0.15 | CJ85: 0.73 | CK85: 0.04 | CL85: 0.07 | CM85: 0.11 | CN85: 0.88 | CO85: 0.2 | CP85: 0.68 | CQ85: 0.77 | CR85: 0.37 | CS85: 0.13 | CT85: 0.16 | CU85: 0.05 | CV85: 0.14 | CW85: 0.76 | CX85: 0.19 | CY85: 0.03 | CZ85: 0.02 | DA85: 0 | DB85: 0.14 | DC85: 0.82 | DD85: 0.21 | DE85: 0.78 | DF85: 0.57 | DG85: 0.22 | DH85: 0.79 | DI85: 0.16 | DJ85: 0.04 | DK85: 0.02 | DL85: 0.02 | DM85: 512066.29 | DN85: 250000 | DO85: 0.1 | DP85: 0.3 | DQ85: 0.26 | DR85: 0.09 | DS85: 0.11
A86: 2017-05-01 | B86: 86.2 | C86: 14.9 | D86: 101.1 | E86: 0.48 | F86: 0.08 | G86: 0.39 | H86: 0.4 | I86: -0.0972 | J86: 0.0693 | K86: 0.025488 | L86: 0.56 | M86: 0.04 | N86: 0.33 | O86: -0.52 | P86: 0.0403 | Q86: 0.0471 | R86: 0.16 | S86: 0.44 | T86: 0.6 | U86: 0.23 | V86: 0.1 | W86: 0.33 | X86: 0.27 | Y86: 0.13 | Z86: 0.35 | AA86: 0.19 | AB86: 0.04 | AC86: 0.17 | AD86: 0.37 | AE86: 0.06 | AF86: 0.06 | AG86: 0.14 | AH86: 0.29 | AI86: 0.22 | AJ86: 0.39 | AK86: 0.61 | AL86: 0.22 | AM86: 0.07 | AN86: 0.29 | AO86: 0.32 | AP86: 0.23 | AQ86: 0.19 | AR86: 0.16 | AS86: 0.09 | AT86: 0.21 | AU86: 0.18 | AV86: 0.07 | AW86: 0.18 | AX86: 0.19 | AY86: 0.3 | AZ86: 0.57 | BA86: 0.04 | BB86: 0.34 | BC86: 0.53 | BD86: 0.037472 | BE86: 0.68 | BF86: 0.27 | BG86: 0.41 | BH86: 0.47 | BI86: 0.4 | BJ86: 0.07 | BK86: 0.21 | BL86: 0.28 | BM86: 0.49 | BN86: 0.38 | BO86: 0.08 | BP86: 0.03 | BQ86: 0.11 | BR86: 0.38 | BS86: 0.28 | BT86: 0.1 | BU86: 0.61 | BV86: 0.18 | BW86: 0.42 | BX86: 0.55 | BY86: 0.13 | BZ86: 0.16 | CA86: 0.07 | CB86: 0.23 | CC86: 0.74 | CD86: 0.1 | CE86: 0.15 | CF86: 0.49 | CG86: 0.04 | CH86: 0.07 | CI86: 0.11 | CJ86: 0.76 | CK86: 0.05 | CL86: 0.09 | CM86: 0.14 | CN86: 0.85 | CO86: 0.14 | CP86: 0.71 | CQ86: 0.71 | CR86: 0.39 | CS86: 0.13 | CT86: 0.14 | CU86: 0.08 | CV86: 0.17 | CW86: 0.82 | CX86: 0.14 | CY86: 0.03 | CZ86: 0.01 | DA86: 0 | DB86: 0.19 | DC86: 0.78 | DD86: 0.23 | DE86: 0.75 | DF86: 0.56 | DG86: 0.23 | DH86: 0.79 | DI86: 0.13 | DJ86: 0.07 | DK86: 0.03 | DL86: 0.04 | DM86: 376102.31 | DN86: 240000 | DO86: 0.13 | DP86: 0.31 | DQ86: 0.2 | DR86: 0.12 | DS86: 0.1
A87: 2017-06-01 | B87: 88.3 | C87: 14.8 | D87: 103.1 | E87: 0.54 | F87: 0.08 | G87: 0.31 | H87: 0.46 | I87: -0.0875 | J87: 0.0753 | K87: 0.033662 | L87: 0.57 | M87: 0.08 | N87: 0.27 | O87: -0.49 | P87: 0.0394 | Q87: 0.0477 | R87: 0.16 | S87: 0.46 | T87: 0.62 | U87: 0.22 | V87: 0.1 | W87: 0.32 | X87: 0.3 | Y87: 0.12 | Z87: 0.36 | AA87: 0.21 | AB87: 0.06 | AC87: 0.16 | AD87: 0.42 | AE87: 0.06 | AF87: 0.1 | AG87: 0.1 | AH87: 0.23 | AI87: 0.23 | AJ87: 0.41 | AK87: 0.64 | AL87: 0.2 | AM87: 0.05 | AN87: 0.25 | AO87: 0.39 | AP87: 0.24 | AQ87: 0.23 | AR87: 0.17 | AS87: 0.07 | AT87: 0.17 | AU87: 0.2 | AV87: 0.07 | AW87: 0.22 | AX87: 0.13 | AY87: 0.22 | AZ87: 0.58 | BA87: 0.04 | BB87: 0.32 | BC87: 0.54 | BD87: 0.048368 | BE87: 0.67 | BF87: 0.28 | BG87: 0.39 | BH87: 0.5 | BI87: 0.36 | BJ87: 0.14 | BK87: 0.22 | BL87: 0.27 | BM87: 0.49 | BN87: 0.37 | BO87: 0.08 | BP87: 0.04 | BQ87: 0.12 | BR87: 0.37 | BS87: 0.28 | BT87: 0.11 | BU87: 0.58 | BV87: 0.17 | BW87: 0.37 | BX87: 0.59 | BY87: 0.22 | BZ87: 0.16 | CA87: 0.09 | CB87: 0.25 | CC87: 0.68 | CD87: 0.09 | CE87: 0.14 | CF87: 0.45 | CG87: 0.04 | CH87: 0.1 | CI87: 0.13 | CJ87: 0.72 | CK87: 0.03 | CL87: 0.14 | CM87: 0.17 | CN87: 0.83 | CO87: 0.17 | CP87: 0.66 | CQ87: 0.66 | CR87: 0.39 | CS87: 0.13 | CT87: 0.11 | CU87: 0.1 | CV87: 0.15 | CW87: 0.81 | CX87: 0.15 | CY87: 0.03 | CZ87: 0 | DA87: 0.01 | DB87: 0.17 | DC87: 0.8 | DD87: 0.2 | DE87: 0.78 | DF87: 0.56 | DG87: 0.24 | DH87: 0.8 | DI87: 0.12 | DJ87: 0.05 | DK87: 0.02 | DL87: 0.03 | DM87: 354980.1 | DN87: 230000 | DO87: 0.11 | DP87: 0.32 | DQ87: 0.23 | DR87: 0.09 | DS87: 0.09
A88: 2017-07-01 | B88: 86.8 | C88: 14.5 | D88: 101.3 | E88: 0.53 | F88: 0.06 | G88: 0.35 | H88: 0.47 | I88: -0.0909 | J88: 0.0809 | K88: 0.037423 | L88: 0.55 | M88: 0.06 | N88: 0.32 | O88: -0.49 | P88: 0.0388 | Q88: 0.0542 | R88: 0.16 | S88: 0.41 | T88: 0.57 | U88: 0.24 | V88: 0.1 | W88: 0.34 | X88: 0.23 | Y88: 0.14 | Z88: 0.32 | AA88: 0.24 | AB88: 0.05 | AC88: 0.16 | AD88: 0.44 | AE88: 0.09 | AF88: 0.08 | AG88: 0.08 | AH88: 0.22 | AI88: 0.24 | AJ88: 0.34 | AK88: 0.58 | AL88: 0.22 | AM88: 0.08 | AN88: 0.3 | AO88: 0.28 | AP88: 0.27 | AQ88: 0.2 | AR88: 0.18 | AS88: 0.08 | AT88: 0.18 | AU88: 0.15 | AV88: 0.06 | AW88: 0.2 | AX88: 0.2 | AY88: 0.3 | AZ88: 0.57 | BA88: 0.03 | BB88: 0.34 | BC88: 0.54 | BD88: 0.048819 | BE88: 0.65 | BF88: 0.3 | BG88: 0.35 | BH88: 0.46 | BI88: 0.39 | BJ88: 0.07 | BK88: 0.16 | BL88: 0.3 | BM88: 0.46 | BN88: 0.39 | BO88: 0.08 | BP88: 0.05 | BQ88: 0.13 | BR88: 0.33 | BS88: 0.27 | BT88: 0.11 | BU88: 0.61 | BV88: 0.16 | BW88: 0.42 | BX88: 0.53 | BY88: 0.11 | BZ88: 0.21 | CA88: 0.07 | CB88: 0.28 | CC88: 0.65 | CD88: 0.09 | CE88: 0.19 | CF88: 0.37 | CG88: 0.03 | CH88: 0.07 | CI88: 0.13 | CJ88: 0.74 | CK88: 0.02 | CL88: 0.1 | CM88: 0.12 | CN88: 0.87 | CO88: 0.16 | CP88: 0.71 | CQ88: 0.75 | CR88: 0.4 | CS88: 0.11 | CT88: 0.16 | CU88: 0.08 | CV88: 0.12 | CW88: 0.83 | CX88: 0.14 | CY88: 0.02 | CZ88: 0 | DA88: 0.01 | DB88: 0.16 | DC88: 0.79 | DD88: 0.2 | DE88: 0.77 | DF88: 0.58 | DG88: 0.2 | DH88: 0.78 | DI88: 0.11 | DJ88: 0.08 | DK88: 0.04 | DL88: 0.04 | DM88: 416572.47 | DN88: 215000 | DO88: 0.12 | DP88: 0.32 | DQ88: 0.21 | DR88: 0.05 | DS88: 0.1
A89: 2017-08-02 | B89: 88 | C89: 13.9 | D89: 101.9 | E89: 0.54 | F89: 0.06 | G89: 0.33 | H89: 0.48 | I89: -0.0785 | J89: 0.0702 | K89: 0.033198 | L89: 0.51 | M89: 0.06 | N89: 0.35 | O89: -0.45 | P89: 0.0392 | Q89: 0.0435 | R89: 0.14 | S89: 0.41 | T89: 0.55 | U89: 0.24 | V89: 0.13 | W89: 0.37 | X89: 0.18 | Y89: 0.12 | Z89: 0.36 | AA89: 0.2 | AB89: 0.05 | AC89: 0.14 | AD89: 0.44 | AE89: 0.09 | AF89: 0.1 | AG89: 0.11 | AH89: 0.16 | AI89: 0.22 | AJ89: 0.4 | AK89: 0.62 | AL89: 0.19 | AM89: 0.07 | AN89: 0.26 | AO89: 0.36 | AP89: 0.31 | AQ89: 0.2 | AR89: 0.15 | AS89: 0.12 | AT89: 0.14 | AU89: 0.14 | AV89: 0.05 | AW89: 0.18 | AX89: 0.15 | AY89: 0.38 | AZ89: 0.6 | BA89: 0.02 | BB89: 0.34 | BC89: 0.58 | BD89: 0.045544 | BE89: 0.66 | BF89: 0.29 | BG89: 0.37 | BH89: 0.49 | BI89: 0.38 | BJ89: 0.11 | BK89: 0.2 | BL89: 0.27 | BM89: 0.47 | BN89: 0.39 | BO89: 0.07 | BP89: 0.05 | BQ89: 0.12 | BR89: 0.35 | BS89: 0.26 | BT89: 0.1 | BU89: 0.62 | BV89: 0.16 | BW89: 0.42 | BX89: 0.55 | BY89: 0.13 | BZ89: 0.13 | CA89: 0.08 | CB89: 0.21 | CC89: 0.71 | CD89: 0.1 | CE89: 0.12 | CF89: 0.49 | CG89: 0.03 | CH89: 0.08 | CI89: 0.11 | CJ89: 0.75 | CK89: 0.03 | CL89: 0.1 | CM89: 0.13 | CN89: 0.87 | CO89: 0.15 | CP89: 0.72 | CQ89: 0.74 | CR89: 0.44 | CS89: 0.11 | CT89: 0.17 | CU89: 0.06 | CV89: 0.11 | CW89: 0.8 | CX89: 0.15 | CY89: 0.04 | CZ89: 0.01 | DA89: 0.01 | DB89: 0.16 | DC89: 0.8 | DD89: 0.21 | DE89: 0.77 | DF89: 0.57 | DG89: 0.23 | DH89: 0.8 | DI89: 0.14 | DJ89: 0.04 | DK89: 0.03 | DL89: 0.01 | DM89: 412581.18 | DN89: 225442.25 | DO89: 0.11 | DP89: 0.31 | DQ89: 0.22 | DR89: 0.08 | DS89: 0.1
A90: 2017-09-01 | B90: 88.3 | C90: 14.4 | D90: 102.7 | E90: 0.5 | F90: 0.1 | G90: 0.34 | H90: 0.4 | I90: -0.0782 | J90: 0.0693 | K90: 0.02683 | L90: 0.53 | M90: 0.06 | N90: 0.34 | O90: -0.47 | P90: 0.0382 | Q90: 0.042 | R90: 0.14 | S90: 0.45 | T90: 0.59 | U90: 0.2 | V90: 0.11 | W90: 0.31 | X90: 0.28 | Y90: 0.12 | Z90: 0.32 | AA90: 0.24 | AB90: 0.05 | AC90: 0.16 | AD90: 0.49 | AE90: 0.03 | AF90: 0.06 | AG90: 0.12 | AH90: 0.23 | AI90: 0.23 | AJ90: 0.41 | AK90: 0.64 | AL90: 0.18 | AM90: 0.08 | AN90: 0.26 | AO90: 0.38 | AP90: 0.29 | AQ90: 0.21 | AR90: 0.14 | AS90: 0.1 | AT90: 0.17 | AU90: 0.22 | AV90: 0.06 | AW90: 0.23 | AX90: 0.12 | AY90: 0.3 | AZ90: 0.57 | BA90: 0.03 | BB90: 0.35 | BC90: 0.54 | BD90: 0.043719 | BE90: 0.67 | BF90: 0.27 | BG90: 0.4 | BH90: 0.47 | BI90: 0.41 | BJ90: 0.06 | BK90: 0.15 | BL90: 0.35 | BM90: 0.5 | BN90: 0.39 | BO90: 0.05 | BP90: 0.04 | BQ90: 0.09 | BR90: 0.41 | BS90: 0.27 | BT90: 0.12 | BU90: 0.6 | BV90: 0.15 | BW90: 0.42 | BX90: 0.55 | BY90: 0.13 | BZ90: 0.15 | CA90: 0.1 | CB90: 0.25 | CC90: 0.67 | CD90: 0.11 | CE90: 0.13 | CF90: 0.43 | CG90: 0.04 | CH90: 0.07 | CI90: 0.15 | CJ90: 0.71 | CK90: 0.04 | CL90: 0.08 | CM90: 0.12 | CN90: 0.87 | CO90: 0.17 | CP90: 0.7 | CQ90: 0.75 | CR90: 0.41 | CS90: 0.12 | CT90: 0.16 | CU90: 0.06 | CV90: 0.13 | CW90: 0.8 | CX90: 0.16 | CY90: 0.02 | CZ90: 0 | DA90: 0.01 | DB90: 0.18 | DC90: 0.78 | DD90: 0.22 | DE90: 0.76 | DF90: 0.61 | DG90: 0.22 | DH90: 0.83 | DI90: 0.1 | DJ90: 0.05 | DK90: 0.02 | DL90: 0.03 | DM90: 451474.93 | DN90: 240000 | DO90: 0.14 | DP90: 0.31 | DQ90: 0.23 | DR90: 0.1 | DS90: 0.09
A91: 2017-10-01 | B91: 85.2 | C91: 13.5 | D91: 98.7 | E91: 0.48 | F91: 0.08 | G91: 0.36 | H91: 0.4 | I91: -0.0974 | J91: 0.0633 | K91: 0.022592 | L91: 0.5 | M91: 0.04 | N91: 0.36 | O91: -0.46 | P91: 0.0383 | Q91: 0.043 | R91: 0.15 | S91: 0.42 | T91: 0.57 | U91: 0.23 | V91: 0.12 | W91: 0.35 | X91: 0.22 | Y91: 0.12 | Z91: 0.32 | AA91: 0.18 | AB91: 0.05 | AC91: 0.24 | AD91: 0.45 | AE91: 0.06 | AF91: 0.07 | AG91: 0.09 | AH91: 0.25 | AI91: 0.21 | AJ91: 0.4 | AK91: 0.61 | AL91: 0.21 | AM91: 0.1 | AN91: 0.31 | AO91: 0.3 | AP91: 0.28 | AQ91: 0.19 | AR91: 0.18 | AS91: 0.05 | AT91: 0.19 | AU91: 0.15 | AV91: 0.1 | AW91: 0.14 | AX91: 0.14 | AY91: 0.34 | AZ91: 0.58 | BA91: 0.03 | BB91: 0.32 | BC91: 0.55 | BD91: 0.044202 | BE91: 0.67 | BF91: 0.25 | BG91: 0.42 | BH91: 0.48 | BI91: 0.38 | BJ91: 0.1 | BK91: 0.18 | BL91: 0.32 | BM91: 0.5 | BN91: 0.4 | BO91: 0.06 | BP91: 0.03 | BQ91: 0.09 | BR91: 0.41 | BS91: 0.25 | BT91: 0.11 | BU91: 0.62 | BV91: 0.14 | BW91: 0.39 | BX91: 0.59 | BY91: 0.2 | BZ91: 0.16 | CA91: 0.06 | CB91: =SUM(BZ91:CA91) -> 0.22 | CC91: =SUM(CD91:CF91) -> 0.69 | CD91: 0.14 | CE91: 0.11 | CF91: 0.44 | CG91: 0.05 | CH91: 0.08 | CI91: 0.18 | CJ91: 0.66 | CK91: 0.04 | CL91: 0.11 | CM91: 0.15 | CN91: 0.85 | CO91: 0.24 | CP91: 0.61 | CQ91: 0.7 | CR91: 0.42 | CS91: 0.12 | CT91: 0.15 | CU91: 0.06 | CV91: 0.14 | CW91: 0.82 | CX91: 0.16 | CY91: 0.02 | CZ91: 0 | DA91: 0 | DB91: 0.16 | DC91: 0.81 | DD91: 0.21 | DE91: 0.77 | DF91: 0.6 | DG91: 0.19 | DH91: 0.79 | DI91: 0.1 | DJ91: 0.07 | DK91: 0.05 | DL91: 0.02 | DM91: 407271.94 | DN91: 209277.76 | DO91: 0.14 | DP91: 0.32 | DQ91: 0.23 | DR91: 0.06 | DS91: 0.08
A92: 2017-11-01 | B92: 87.8 | C92: 15.1 | D92: 102.9 | E92: 0.53 | F92: 0.07 | G92: 0.35 | H92: 0.46 | I92: -0.0827 | J92: 0.0801 | K92: 0.036664 | L92: 0.56 | M92: 0.05 | N92: 0.33 | O92: -0.51 | P92: 0.0394 | Q92: 0.0448 | R92: 0.16 | S92: 0.45 | T92: 0.61 | U92: 0.22 | V92: 0.1 | W92: 0.32 | X92: 0.29 | Y92: 0.14 | Z92: 0.31 | AA92: 0.22 | AB92: 0.04 | AC92: 0.17 | AD92: 0.45 | AE92: 0.05 | AF92: 0.05 | AG92: 0.16 | AH92: 0.21 | AI92: 0.21 | AJ92: 0.41 | AK92: 0.62 | AL92: 0.19 | AM92: 0.09 | AN92: 0.28 | AO92: 0.34 | AP92: 0.24 | AQ92: 0.2 | AR92: 0.17 | AS92: 0.08 | AT92: 0.22 | AU92: 0.19 | AV92: 0.11 | AW92: 0.18 | AX92: 0.1 | AY92: 0.32 | AZ92: 0.6 | BA92: 0.02 | BB92: 0.34 | BC92: 0.58 | BD92: 0.048644 | BE92: 0.65 | BF92: 0.3 | BG92: 0.35 | BH92: 0.5 | BI92: 0.38 | BJ92: 0.12 | BK92: 0.22 | BL92: 0.28 | BM92: 0.5 | BN92: 0.37 | BO92: 0.08 | BP92: 0.03 | BQ92: 0.11 | BR92: 0.39 | BS92: 0.25 | BT92: 0.11 | BU92: 0.62 | BV92: 0.14 | BW92: 0.38 | BX92: 0.59 | BY92: 0.21 | BZ92: 0.13 | CA92: 0.06 | CB92: 0.19 | CC92: 0.73 | CD92: 0.14 | CE92: 0.14 | CF92: 0.45 | CG92: 0.03 | CH92: 0.07 | CI92: 0.15 | CJ92: 0.7 | CK92: 0.04 | CL92: 0.09 | CM92: 0.13 | CN92: 0.87 | CO92: 0.21 | CP92: 0.66 | CQ92: 0.74 | CR92: 0.42 | CS92: 0.13 | CT92: 0.16 | CU92: 0.06 | CV92: 0.11 | CW92: 0.8 | CX92: 0.17 | CY92: 0.02 | CZ92: 0.01 | DA92: 0.01 | DB92: 0.16 | DC92: 0.82 | DD92: 0.23 | DE92: 0.74 | DF92: 0.55 | DG92: 0.25 | DH92: 0.8 | DI92: 0.11 | DJ92: 0.05 | DK92: 0.03 | DL92: 0.02 | DM92: 445175.16 | DN92: 250000 | DO92: 0.11 | DP92: 0.28 | DQ92: 0.26 | DR92: 0.08 | DS92: 0.09
A93: 2017-12-01 | B93: 85.8 | C93: 14.9 | D93: 100.7 | E93: 0.5 | F93: 0.06 | G93: 0.37 | H93: 0.44 | I93: -0.0765 | J93: 0.0745 | K93: 0.03266 | L93: 0.56 | M93: 0.04 | N93: 0.32 | O93: -0.52 | P93: 0.039 | Q93: 0.0433 | R93: 0.14 | S93: 0.44 | T93: 0.58 | U93: 0.23 | V93: 0.11 | W93: 0.34 | X93: 0.24 | Y93: 0.11 | Z93: 0.32 | AA93: 0.16 | AB93: 0.06 | AC93: 0.24 | AD93: 0.41 | AE93: 0.06 | AF93: 0.09 | AG93: 0.09 | AH93: 0.22 | AI93: 0.21 | AJ93: 0.41 | AK93: 0.62 | AL93: 0.2 | AM93: 0.08 | AN93: 0.28 | AO93: 0.34 | AP93: 0.26 | AQ93: 0.2 | AR93: 0.15 | AS93: 0.08 | AT93: 0.23 | AU93: 0.15 | AV93: 0.03 | AW93: 0.2 | AX93: 0.11 | AY93: 0.29 | AZ93: 0.61 | BA93: 0.01 | BB93: 0.33 | BC93: 0.6 | BD93: 0.051811 | BE93: 0.69 | BF93: 0.27 | BG93: 0.42 | BH93: 0.52 | BI93: 0.41 | BJ93: 0.11 | BK93: 0.19 | BL93: 0.3 | BM93: 0.49 | BN93: 0.4 | BO93: 0.07 | BP93: 0.04 | BQ93: 0.11 | BR93: 0.38 | BS93: 0.26 | BT93: 0.1 | BU93: 0.62 | BV93: 0.16 | BW93: 0.44 | BX93: 0.52 | BY93: 0.08 | BZ93: 0.1 | CA93: 0.05 | CB93: 0.15 | CC93: 0.75 | CD93: 0.13 | CE93: 0.17 | CF93: 0.45 | CG93: 0.03 | CH93: 0.1 | CI93: 0.15 | CJ93: 0.67 | CK93: 0.03 | CL93: 0.12 | CM93: 0.15 | CN93: 0.83 | CO93: 0.19 | CP93: 0.64 | CQ93: 0.68 | CR93: 0.42 | CS93: 0.12 | CT93: 0.17 | CU93: 0.07 | CV93: 0.12 | CW93: 0.8 | CX93: 0.16 | CY93: 0.03 | CZ93: 0 | DA93: 0.01 | DB93: 0.14 | DC93: 0.83 | DD93: 0.19 | DE93: 0.78 | DF93: 0.5 | DG93: 0.26 | DH93: 0.76 | DI93: 0.14 | DJ93: 0.06 | DK93: 0.03 | DL93: 0.03 | DM93: 495170.37 | DN93: 250000 | DO93: 0.11 | DP93: 0.29 | DQ93: 0.24 | DR93: 0.07 | DS93: 0.1
A94: 2018-01-01 | B94: 89.5 | C94: 15.2 | D94: 104.7 | E94: 0.58 | F94: 0.06 | G94: 0.31 | H94: 0.52 | I94: -0.0856 | J94: 0.0718 | K94: 0.036508 | L94: 0.55 | M94: 0.05 | N94: 0.32 | O94: -0.5 | P94: 0.0399 | Q94: 0.0441 | R94: 0.16 | S94: 0.43 | T94: 0.59 | U94: 0.22 | V94: 0.1 | W94: 0.32 | X94: 0.27 | Y94: 0.14 | Z94: 0.33 | AA94: 0.17 | AB94: 0.05 | AC94: 0.21 | AD94: 0.44 | AE94: 0.08 | AF94: 0.04 | AG94: 0.1 | AH94: 0.24 | AI94: 0.26 | AJ94: 0.39 | AK94: 0.65 | AL94: 0.21 | AM94: 0.06 | AN94: 0.27 | AO94: 0.38 | AP94: 0.27 | AQ94: 0.15 | AR94: 0.18 | AS94: 0.06 | AT94: 0.22 | AU94: 0.15 | AV94: 0.13 | AW94: 0.17 | AX94: 0.12 | AY94: 0.28 | AZ94: 0.59 | BA94: 0.04 | BB94: 0.31 | BC94: 0.55 | BD94: 0.047898 | BE94: 0.67 | BF94: 0.28 | BG94: 0.39 | BH94: 0.5 | BI94: 0.38 | BJ94: 0.12 | BK94: 0.2 | BL94: 0.32 | BM94: 0.52 | BN94: 0.36 | BO94: 0.07 | BP94: 0.03 | BQ94: 0.1 | BR94: 0.42 | BS94: 0.27 | BT94: 0.11 | BU94: 0.6 | BV94: 0.16 | BW94: 0.39 | BX94: 0.57 | BY94: 0.18 | BZ94: 0.17 | CA94: 0.06 | CB94: 0.23 | CC94: 0.69 | CD94: 0.08 | CE94: 0.17 | CF94: 0.44 | CG94: 0.04 | CH94: 0.07 | CI94: 0.14 | CJ94: 0.72 | CK94: 0.04 | CL94: 0.09 | CM94: 0.13 | CN94: 0.86 | CO94: 0.19 | CP94: 0.67 | CQ94: 0.73 | CR94: 0.41 | CS94: 0.16 | CT94: 0.15 | CU94: 0.07 | CV94: 0.12 | CW94: 0.81 | CX94: 0.17 | CY94: 0.02 | CZ94: 0 | DA94: 0.01 | DB94: 0.17 | DC94: 0.79 | DD94: 0.2 | DE94: 0.78 | DF94: 0.56 | DG94: 0.21 | DH94: 0.77 | DI94: 0.12 | DJ94: 0.08 | DK94: 0.03 | DL94: 0.05 | DM94: 449283.13 | DN94: 265621.81 | DO94: 0.1 | DP94: 0.28 | DQ94: 0.27 | DR94: 0.08 | DS94: 0.09
A95: 2018-02-01 | B95: 85.8 | C95: 15.9 | D95: 101.7 | E95: 0.52 | F95: 0.07 | G95: 0.35 | H95: 0.45 | I95: -0.104 | J95: 0.0765 | K95: 0.0325 | L95: 0.62 | M95: 0.05 | N95: 0.25 | O95: -0.57 | P95: 0.0422 | Q95: 0.0504 | R95: 0.14 | S95: 0.43 | T95: 0.57 | U95: 0.24 | V95: 0.11 | W95: 0.35 | X95: 0.22 | Y95: 0.11 | Z95: 0.36 | AA95: 0.18 | AB95: 0.03 | AC95: 0.22 | AD95: 0.45 | AE95: 0.05 | AF95: 0.04 | AG95: 0.09 | AH95: 0.29 | AI95: 0.25 | AJ95: 0.38 | AK95: 0.63 | AL95: 0.2 | AM95: 0.07 | AN95: 0.27 | AO95: 0.36 | AP95: 0.25 | AQ95: 0.19 | AR95: 0.17 | AS95: 0.06 | AT95: 0.23 | AU95: 0.19 | AV95: 0.11 | AW95: 0.16 | AX95: 0.17 | AY95: 0.25 | AZ95: 0.59 | BA95: 0.04 | BB95: 0.32 | BC95: 0.55 | BD95: 0.044078 | BE95: 0.66 | BF95: 0.29 | BG95: 0.37 | BH95: 0.53 | BI95: 0.35 | BJ95: 0.18 | BK95: 0.2 | BL95: 0.29 | BM95: 0.49 | BN95: 0.4 | BO95: 0.06 | BP95: 0.03 | BQ95: 0.09 | BR95: 0.4 | BS95: 0.26 | BT95: 0.09 | BU95: 0.63 | BV95: 0.17 | BW95: 0.41 | BX95: 0.57 | BY95: 0.16 | BZ95: 0.14 | CA95: 0.07 | CB95: 0.21 | CC95: 0.75 | CD95: 0.1 | CE95: 0.16 | CF95: 0.49 | CG95: 0.05 | CH95: 0.06 | CI95: 0.12 | CJ95: 0.73 | CK95: 0.06 | CL95: 0.08 | CM95: 0.14 | CN95: 0.85 | CO95: 0.16 | CP95: 0.69 | CQ95: 0.71 | CR95: 0.42 | CS95: 0.12 | CT95: 0.17 | CU95: 0.08 | CV95: 0.15 | CW95: 0.81 | CX95: 0.17 | CY95: 0.01 | CZ95: 0 | DA95: 0.01 | DB95: 0.16 | DC95: 0.81 | DD95: 0.2 | DE95: 0.79 | DF95: 0.57 | DG95: 0.22 | DH95: 0.79 | DI95: 0.11 | DJ95: 0.07 | DK95: 0.03 | DL95: 0.04 | DM95: 465120.35 | DN95: 250000 | DO95: 0.1 | DP95: 0.31 | DQ95: 0.27 | DR95: 0.07 | DS95: 0.09
A96: 2018-03-01 | B96: 88.3 | C96: 15.4 | D96: 103.7 | E96: 0.51 | F96: 0.09 | G96: 0.35 | H96: 0.42 | I96: -0.093 | J96: 0.0755 | K96: 0.030135 | L96: 0.57 | M96: 0.05 | N96: 0.31 | O96: -0.52 | P96: 0.0443 | Q96: 0.0498 | R96: 0.16 | S96: 0.46 | T96: 0.62 | U96: 0.19 | V96: 0.11 | W96: 0.3 | X96: 0.32 | Y96: 0.12 | Z96: 0.28 | AA96: 0.18 | AB96: 0.09 | AC96: 0.22 | AD96: 0.36 | AE96: 0.09 | AF96: 0.06 | AG96: 0.11 | AH96: 0.26 | AI96: 0.25 | AJ96: 0.41 | AK96: 0.66 | AL96: 0.2 | AM96: 0.07 | AN96: 0.27 | AO96: 0.39 | AP96: 0.29 | AQ96: 0.16 | AR96: 0.16 | AS96: 0.07 | AT96: 0.26 | AU96: 0.15 | AV96: 0.1 | AW96: 0.17 | AX96: 0.16 | AY96: 0.29 | AZ96: 0.58 | BA96: 0.02 | BB96: 0.36 | BC96: 0.56 | BD96: 0.044738 | BE96: 0.7 | BF96: 0.26 | BG96: 0.44 | BH96: 0.53 | BI96: 0.38 | BJ96: 0.15 | BK96: 0.26 | BL96: 0.26 | BM96: 0.52 | BN96: 0.36 | BO96: 0.07 | BP96: 0.04 | BQ96: 0.11 | BR96: 0.41 | BS96: 0.28 | BT96: 0.11 | BU96: 0.58 | BV96: 0.17 | BW96: 0.37 | BX96: 0.59 | BY96: 0.22 | BZ96: 0.13 | CA96: 0.05 | CB96: 0.18 | CC96: 0.78 | CD96: 0.11 | CE96: 0.16 | CF96: 0.51 | CG96: 0.04 | CH96: 0.06 | CI96: 0.15 | CJ96: 0.72 | CK96: 0.05 | CL96: 0.09 | CM96: 0.14 | CN96: 0.85 | CO96: 0.2 | CP96: 0.65 | CQ96: 0.71 | CR96: 0.37 | CS96: 0.14 | CT96: 0.16 | CU96: 0.06 | CV96: 0.14 | CW96: 0.8 | CX96: 0.16 | CY96: 0.03 | CZ96: 0.01 | DA96: 0.01 | DB96: 0.13 | DC96: 0.83 | DD96: 0.19 | DE96: 0.78 | DF96: 0.58 | DG96: 0.25 | DH96: 0.83 | DI96: 0.09 | DJ96: 0.07 | DK96: 0.05 | DL96: 0.02 | DM96: 448375.88 | DN96: 250000 | DO96: 0.09 | DP96: 0.32 | DQ96: 0.26 | DR96: 0.08 | DS96: 0.09
A97: 2018-04-01 | B97: 91.7 | C97: 15.2 | D97: 106.9 | E97: 0.55 | F97: 0.06 | G97: 0.34 | H97: 0.49 | I97: -0.0788 | J97: 0.0794 | K97: 0.038942 | L97: 0.54 | M97: 0.06 | N97: 0.32 | O97: -0.48 | P97: 0.0444 | Q97: 0.0495 | R97: 0.18 | S97: 0.43 | T97: 0.61 | U97: 0.22 | V97: 0.1 | W97: 0.32 | X97: 0.29 | Y97: 0.11 | Z97: 0.31 | AA97: 0.22 | AB97: 0.03 | AC97: 0.2 | AD97: 0.42 | AE97: 0.05 | AF97: 0.07 | AG97: 0.12 | AH97: 0.17 | AI97: 0.28 | AJ97: 0.4 | AK97: 0.68 | AL97: 0.19 | AM97: 0.04 | AN97: 0.23 | AO97: 0.45 | AP97: 0.28 | AQ97: 0.18 | AR97: 0.15 | AS97: 0.09 | AT97: 0.23 | AU97: 0.19 | AV97: 0.08 | AW97: 0.2 | AX97: 0.14 | AY97: 0.31 | AZ97: 0.61 | BA97: 0.02 | BB97: 0.31 | BC97: 0.59 | BD97: 0.056488 | BE97: 0.66 | BF97: 0.28 | BG97: 0.38 | BH97: 0.51 | BI97: 0.38 | BJ97: 0.13 | BK97: 0.21 | BL97: 0.33 | BM97: 0.54 | BN97: 0.34 | BO97: 0.07 | BP97: 0.04 | BQ97: 0.11 | BR97: 0.43 | BS97: 0.28 | BT97: 0.1 | BU97: 0.6 | BV97: 0.18 | BW97: 0.43 | BX97: 0.54 | BY97: 0.11 | BZ97: 0.2 | CA97: 0.06 | CB97: 0.26 | CC97: 0.69 | CD97: 0.07 | CE97: 0.14 | CF97: 0.48 | CG97: 0.03 | CH97: 0.06 | CI97: 0.11 | CJ97: 0.77 | CK97: 0.03 | CL97: 0.09 | CM97: 0.12 | CN97: 0.88 | CO97: 0.14 | CP97: 0.74 | CQ97: 0.76 | CR97: 0.41 | CS97: 0.13 | CT97: 0.15 | CU97: 0.07 | CV97: 0.14 | CW97: 0.82 | CX97: 0.14 | CY97: 0.03 | CZ97: 0 | DA97: 0.01 | DB97: 0.16 | DC97: 0.81 | DD97: 0.22 | DE97: 0.76 | DF97: 0.66 | DG97: 0.17 | DH97: 0.83 | DI97: 0.1 | DJ97: 0.05 | DK97: 0.03 | DL97: 0.02 | DM97: 510871.92 | DN97: 275000 | DO97: 0.09 | DP97: 0.27 | DQ97: 0.27 | DR97: 0.09 | DS97: 0.13
A98: 2018-05-01 | B98: 92.3 | C98: 15.6 | D98: 107.9 | E98: 0.55 | F98: 0.06 | G98: 0.33 | H98: 0.49 | I98: -0.0824 | J98: 0.0731 | K98: 0.035261 | L98: 0.54 | M98: 0.05 | N98: 0.31 | O98: -0.49 | P98: 0.0458 | Q98: 0.051 | R98: 0.15 | S98: 0.44 | T98: 0.59 | U98: 0.23 | V98: 0.08 | W98: 0.31 | X98: 0.28 | Y98: 0.1 | Z98: 0.3 | AA98: 0.18 | AB98: 0.05 | AC98: 0.25 | AD98: 0.51 | AE98: 0.06 | AF98: 0.09 | AG98: 0.07 | AH98: 0.18 | AI98: 0.25 | AJ98: 0.42 | AK98: 0.67 | AL98: 0.16 | AM98: 0.05 | AN98: 0.21 | AO98: 0.46 | AP98: 0.26 | AQ98: 0.14 | AR98: 0.18 | AS98: 0.09 | AT98: 0.23 | AU98: 0.17 | AV98: 0.09 | AW98: 0.22 | AX98: 0.11 | AY98: 0.27 | AZ98: 0.61 | BA98: 0.02 | BB98: 0.31 | BC98: 0.59 | BD98: 0.046052 | BE98: 0.67 | BF98: 0.29 | BG98: 0.38 | BH98: 0.5 | BI98: 0.37 | BJ98: 0.13 | BK98: 0.21 | BL98: 0.27 | BM98: 0.48 | BN98: 0.4 | BO98: 0.07 | BP98: 0.03 | BQ98: 0.1 | BR98: 0.38 | BS98: 0.3 | BT98: 0.09 | BU98: 0.6 | BV98: 0.21 | BW98: 0.41 | BX98: 0.56 | BY98: 0.15 | BZ98: 0.18 | CA98: 0.05 | CB98: 0.23 | CC98: 0.68 | CD98: 0.06 | CE98: 0.15 | CF98: 0.47 | CG98: 0.04 | CH98: 0.06 | CI98: 0.16 | CJ98: 0.72 | CK98: 0.03 | CL98: 0.08 | CM98: 0.11 | CN98: 0.89 | CO98: 0.22 | CP98: 0.67 | CQ98: 0.78 | CR98: 0.4 | CS98: 0.15 | CT98: 0.12 | CU98: 0.07 | CV98: 0.12 | CW98: 0.81 | CX98: 0.16 | CY98: 0.02 | CZ98: 0 | DA98: 0.01 | DB98: 0.13 | DC98: 0.82 | DD98: 0.18 | DE98: 0.79 | DF98: 0.56 | DG98: 0.27 | DH98: 0.83 | DI98: 0.13 | DJ98: 0.04 | DK98: 0.03 | DL98: 0.01 | DM98: 376341.76 | DN98: 227037.89 | DO98: 0.15 | DP98: 0.29 | DQ98: 0.24 | DR98: 0.06 | DS98: 0.08
A99: 2018-06-18 | B99: 90.7 | C99: 16 | D99: 106.7 | E99: 0.55 | F99: 0.09 | G99: 0.31 | H99: =E99-F99 -> 0.46 | I99: -0.1277 | J99: 0.0683 | K99: 0.026072 | L99: 0.58 | M99: 0.05 | N99: 0.3 | O99: -0.53 | P99: 0.0456 | Q99: 0.0519 | R99: 0.16 | S99: 0.43 | T99: 0.59 | U99: 0.19 | V99: 0.12 | W99: 0.31 | X99: 0.28 | Y99: 0.12 | Z99: 0.25 | AA99: 0.23 | AB99: 0.04 | AC99: 0.23 | AD99: 0.5 | AE99: 0.08 | AF99: 0.1 | AG99: 0.07 | AH99: 0.18 | AI99: 0.29 | AJ99: 0.4 | AK99: 0.69 | AL99: 0.15 | AM99: 0.07 | AN99: 0.22 | AO99: 0.47 | AP99: 0.29 | AQ99: 0.12 | AR99: 0.18 | AS99: 0.08 | AT99: 0.26 | AU99: 0.17 | AV99: 0.06 | AW99: 0.18 | AX99: 0.17 | AY99: 0.3 | AZ99: 0.54 | BA99: 0.04 | BB99: 0.39 | BC99: 0.5 | BD99: 0.039534 | BE99: 0.68 | BF99: 0.26 | BG99: 0.42 | BH99: 0.53 | BI99: 0.36 | BJ99: 0.17 | BK99: 0.24 | BL99: 0.3 | BM99: 0.54 | BN99: 0.34 | BO99: 0.08 | BP99: 0.04 | BQ99: 0.12 | BR99: 0.42 | BS99: 0.28 | BT99: 0.09 | BU99: 0.62 | BV99: 0.19 | BW99: 0.38 | BX99: 0.58 | BY99: 0.2 | BZ99: 0.16 | CA99: 0.08 | CB99: 0.24 | CC99: 0.69 | CD99: 0.08 | CE99: 0.11 | CF99: 0.5 | CG99: 0.05 | CH99: 0.06 | CI99: 0.11 | CJ99: 0.76 | CK99: 0.05 | CL99: 0.07 | CM99: 0.12 | CN99: 0.88 | CO99: 0.15 | CP99: 0.73 | CQ99: 0.76 | CR99: 0.39 | CS99: 0.13 | CT99: 0.16 | CU99: 0.07 | CV99: 0.13 | CW99: 0.8 | CX99: 0.17 | CY99: 0.02 | CZ99: 0 | DA99: 0 | DB99: 0.16 | DC99: 0.81 | DD99: 0.18 | DE99: 0.8 | DF99: 0.61 | DG99: 0.22 | DH99: 0.83 | DI99: 0.09 | DJ99: 0.05 | DK99: 0.03 | DL99: 0.02 | DM99: 333144.59 | DN99: 225000 | DO99: 0.13 | DP99: 0.31 | DQ99: 0.26 | DR99: 0.08 | DS99: 0.07
A100: 2018-07-01 | B100: 86.5 | C100: 15 | D100: 101.5 | E100: 0.49 | F100: 0.1 | G100: 0.35 | H100: 0.39 | I100: -0.0863 | J100: 0.0651 | K100: 0.023269 | L100: 0.58 | M100: 0.06 | N100: 0.3 | O100: -0.52 | P100: 0.0455 | Q100: 0.0508 | R100: 0.15 | S100: 0.43 | T100: 0.58 | U100: 0.22 | V100: 0.12 | W100: 0.34 | X100: 0.24 | Y100: 0.1 | Z100: 0.23 | AA100: 0.23 | AB100: 0.07 | AC100: 0.2 | AD100: 0.47 | AE100: 0.11 | AF100: 0.06 | AG100: 0.11 | AH100: 0.17 | AI100: 0.31 | AJ100: 0.35 | AK100: 0.66 | AL100: 0.19 | AM100: 0.06 | AN100: 0.25 | AO100: 0.41 | AP100: 0.3 | AQ100: 0.11 | AR100: 0.16 | AS100: 0.07 | AT100: 0.22 | AU100: 0.14 | AV100: 0.06 | AW100: 0.21 | AX100: 0.15 | AY100: 0.28 | AZ100: 0.6 | BA100: 0.03 | BB100: 0.32 | BC100: 0.57 | BD100: 0.047589 | BE100: 0.65 | BF100: 0.3 | BG100: 0.35 | BH100: 0.55 | BI100: 0.37 | BJ100: 0.18 | BK100: 0.23 | BL100: 0.28 | BM100: 0.51 | BN100: 0.37 | BO100: 0.06 | BP100: 0.03 | BQ100: 0.09 | BR100: 0.42 | BS100: 0.31 | BT100: 0.1 | BU100: 0.59 | BV100: 0.21 | BW100: 0.39 | BX100: 0.57 | BY100: 0.18 | BZ100: 0.17 | CA100: 0.06 | CB100: 0.23 | CC100: 0.7 | CD100: 0.07 | CE100: 0.2 | CF100: 0.43 | CG100: 0.05 | CH100: 0.09 | CI100: 0.13 | CJ100: 0.72 | CK100: 0.05 | CL100: 0.12 | CM100: 0.17 | CN100: 0.82 | CO100: 0.17 | CP100: 0.65 | CQ100: 0.65 | CR100: 0.37 | CS100: 0.14 | CT100: 0.16 | CU100: 0.09 | CV100: 0.14 | CW100: 0.8 | CX100: 0.16 | CY100: 0.03 | CZ100: 0 | DA100: 0.01 | DB100: 0.19 | DC100: 0.78 | DD100: 0.22 | DE100: 0.76 | DF100: 0.62 | DG100: 0.21 | DH100: 0.83 | DI100: 0.07 | DJ100: 0.07 | DK100: 0.04 | DL100: 0.03 | DM100: 406741.41 | DN100: 250000 | DO100: 0.12 | DP100: 0.28 | DQ100: 0.28 | DR100: 0.08 | DS100: 0.07
A101: 2018-08-02 | B101: 88 | C101: 15.3 | D101: 103.3 | E101: 0.48 | F101: 0.1 | G101: 0.36 | H101: 0.38 | I101: -0.0804 | J101: 0.0742 | K101: 0.027576 | L101: 0.58 | M101: 0.06 | N101: 0.31 | O101: -0.52 | P101: 0.0454 | Q101: 0.0505 | R101: 0.16 | S101: 0.41 | T101: 0.57 | U101: 0.25 | V101: 0.11 | W101: 0.36 | X101: 0.21 | Y101: 0.1 | Z101: 0.26 | AA101: 0.24 | AB101: 0.03 | AC101: 0.27 | AD101: 0.49 | AE101: 0.07 | AF101: 0.05 | AG101: 0.11 | AH101: 0.19 | AI101: 0.25 | AJ101: 0.39 | AK101: 0.64 | AL101: 0.18 | AM101: 0.08 | AN101: 0.26 | AO101: 0.38 | AP101: 0.32 | AQ101: 0.16 | AR101: 0.16 | AS101: 0.04 | AT101: 0.24 | AU101: 0.16 | AV101: 0.05 | AW101: 0.17 | AX101: 0.17 | AY101: 0.29 | AZ101: 0.59 | BA101: 0.05 | BB101: 0.31 | BC101: 0.54 | BD101: 0.044468 | BE101: 0.67 | BF101: 0.28 | BG101: 0.39 | BH101: 0.51 | BI101: 0.41 | BJ101: 0.1 | BK101: 0.24 | BL101: 0.29 | BM101: 0.53 | BN101: 0.35 | BO101: 0.07 | BP101: 0.05 | BQ101: 0.12 | BR101: 0.41 | BS101: 0.31 | BT101: 0.09 | BU101: 0.59 | BV101: 0.22 | BW101: 0.41 | BX101: 0.58 | BY101: 0.17 | BZ101: 0.16 | CA101: 0.07 | CB101: 0.23 | CC101: 0.7 | CD101: 0.07 | CE101: 0.16 | CF101: 0.47 | CG101: 0.03 | CH101: 0.06 | CI101: 0.14 | CJ101: 0.74 | CK101: 0.04 | CL101: 0.06 | CM101: 0.1 | CN101: 0.9 | CO101: 0.19 | CP101: 0.71 | CQ101: 0.8 | CR101: 0.39 | CS101: 0.14 | CT101: 0.16 | CU101: 0.06 | CV101: 0.13 | CW101: 0.81 | CX101: 0.16 | CY101: 0.02 | CZ101: 0.01 | DA101: 0.01 | DB101: 0.17 | DC101: 0.79 | DD101: 0.21 | DE101: 0.78 | DF101: 0.63 | DG101: 0.2 | DH101: 0.83 | DI101: 0.1 | DJ101: 0.05 | DK101: 0.03 | DL101: 0.02 | DM101: 377565.32 | DN101: 240000 | DO101: 0.13 | DP101: 0.3 | DQ101: 0.27 | DR101: 0.08 | DS101: 0.07
A102: 2018-09-03 | B102: 87.7 | C102: 16 | D102: 103.7 | E102: 0.49 | F102: 0.1 | G102: 0.36 | H102: 0.39 | I102: -0.0975 | J102: 0.0725 | K102: 0.025775 | L102: 0.6 | M102: 0.04 | N102: 0.29 | O102: -0.56 | P102: 0.0452 | Q102: 0.0508 | R102: 0.16 | S102: 0.42 | T102: 0.58 | U102: 0.22 | V102: 0.1 | W102: 0.32 | X102: 0.26 | Y102: 0.11 | Z102: 0.24 | AA102: 0.21 | AB102: 0.05 | AC102: 0.29 | AD102: 0.51 | AE102: 0.07 | AF102: 0.06 | AG102: 0.09 | AH102: 0.17 | AI102: 0.26 | AJ102: 0.38 | AK102: 0.64 | AL102: 0.16 | AM102: 0.1 | AN102: 0.26 | AO102: 0.38 | AP102: 0.31 | AQ102: 0.11 | AR102: 0.15 | AS102: 0.06 | AT102: 0.28 | AU102: 0.22 | AV102: 0.06 | AW102: 0.23 | AX102: 0.18 | AY102: 0.21 | AZ102: 0.59 | BA102: 0.02 | BB102: 0.33 | BC102: 0.57 | BD102: 0.044828 | BE102: 0.66 | BF102: 0.3 | BG102: 0.36 | BH102: 0.55 | BI102: 0.34 | BJ102: 0.21 | BK102: 0.26 | BL102: 0.27 | BM102: 0.53 | BN102: 0.38 | BO102: 0.06 | BP102: 0.02 | BQ102: 0.08 | BR102: 0.45 | BS102: 0.28 | BT102: 0.09 | BU102: 0.61 | BV102: 0.19 | BW102: 0.41 | BX102: 0.56 | BY102: 0.15 | BZ102: 0.19 | CA102: 0.08 | CB102: 0.27 | CC102: 0.62 | CD102: 0.08 | CE102: 0.11 | CF102: 0.43 | CG102: 0.03 | CH102: 0.05 | CI102: 0.15 | CJ102: 0.75 | CK102: 0.03 | CL102: 0.07 | CM102: 0.1 | CN102: 0.89 | CO102: 0.19 | CP102: 0.7 | CQ102: 0.79 | CR102: 0.4 | CS102: 0.11 | CT102: 0.15 | CU102: 0.07 | CV102: 0.14 | CW102: 0.84 | CX102: 0.14 | CY102: 0.02 | CZ102: 0.01 | DA102: 0 | DB102: 0.14 | DC102: 0.82 | DD102: 0.22 | DE102: 0.76 | DF102: 0.6 | DG102: 0.21 | DH102: 0.81 | DI102: 0.11 | DJ102: 0.04 | DK102: 0.02 | DL102: 0.02 | DM102: 399572.68 | DN102: 250000 | DO102: 0.1 | DP102: 0.3 | DQ102: 0.26 | DR102: 0.08 | DS102: 0.1
A103: 2018-10-01 | B103: 85.7 | C103: 15.8 | D103: 101.5 | E103: 0.46 | F103: 0.09 | G103: 0.37 | H103: 0.37 | I103: -0.1089 | J103: 0.0788 | K103: 0.026447 | L103: 0.61 | M103: 0.04 | N103: 0.28 | O103: -0.57 | P103: 0.0472 | Q103: 0.0521 | R103: 0.15 | S103: 0.4 | T103: 0.55 | U103: 0.24 | V103: 0.1 | W103: 0.34 | X103: 0.21 | Y103: 0.11 | Z103: 0.23 | AA103: 0.19 | AB103: 0.05 | AC103: 0.3 | AD103: 0.42 | AE103: 0.13 | AF103: 0.08 | AG103: 0.08 | AH103: 0.21 | AI103: 0.25 | AJ103: 0.37 | AK103: 0.62 | AL103: 0.21 | AM103: 0.06 | AN103: 0.27 | AO103: 0.35 | AP103: 0.28 | AQ103: 0.13 | AR103: 0.19 | AS103: 0.07 | AT103: 0.26 | AU103: 0.18 | AV103: 0.1 | AW103: 0.22 | AX103: 0.14 | AY103: 0.24 | AZ103: 0.57 | BA103: 0.04 | BB103: 0.32 | BC103: 0.53 | BD103: 0.04321 | BE103: 0.69 | BF103: 0.26 | BG103: 0.43 | BH103: 0.59 | BI103: 0.33 | BJ103: 0.26 | BK103: 0.22 | BL103: 0.25 | BM103: 0.47 | BN103: 0.4 | BO103: 0.09 | BP103: 0.02 | BQ103: 0.11 | BR103: 0.36 | BS103: 0.29 | BT103: 0.1 | BU103: 0.58 | BV103: 0.19 | BW103: 0.45 | BX103: 0.52 | BY103: 0.07 | BZ103: 0.18 | CA103: 0.07 | CB103: 0.25 | CC103: 0.7 | CD103: 0.1 | CE103: 0.14 | CF103: 0.46 | CG103: 0.03 | CH103: 0.06 | CI103: 0.14 | CJ103: 0.73 | CK103: 0.04 | CL103: 0.07 | CM103: 0.11 | CN103: 0.89 | CO103: 0.19 | CP103: 0.7 | CQ103: 0.78 | CR103: 0.34 | CS103: 0.14 | CT103: 0.14 | CU103: 0.08 | CV103: 0.18 | CW103: 0.83 | CX103: 0.14 | CY103: 0.02 | CZ103: 0.01 | DA103: 0 | DB103: 0.12 | DC103: 0.86 | DD103: 0.19 | DE103: 0.78 | DF103: 0.53 | DG103: 0.24 | DH103: 0.77 | DI103: 0.12 | DJ103: 0.08 | DK103: 0.03 | DL103: 0.05 | DM103: 457385.94 | DN103: 250000 | DO103: 0.11 | DP103: 0.31 | DQ103: 0.26 | DR103: 0.07 | DS103: 0.1
A104: 2018-11-01 | B104: 86.2 | C104: 15.7 | D104: 101.9 | E104: 0.46 | F104: 0.13 | G104: 0.37 | H104: 0.33 | I104: -0.0826 | J104: 0.0775 | K104: 0.024912 | L104: 0.6 | M104: 0.04 | N104: 0.29 | O104: -0.56 | P104: 0.0483 | Q104: 0.053 | R104: 0.12 | S104: 0.45 | T104: 0.57 | U104: 0.24 | V104: 0.1 | W104: 0.34 | X104: 0.23 | Y104: 0.11 | Z104: 0.27 | AA104: 0.2 | AB104: 0.09 | AC104: 0.22 | AD104: 0.45 | AE104: 0.11 | AF104: 0.05 | AG104: 0.12 | AH104: 0.19 | AI104: 0.2 | AJ104: 0.43 | AK104: 0.63 | AL104: 0.21 | AM104: 0.07 | AN104: 0.28 | AO104: 0.35 | AP104: 0.28 | AQ104: 0.12 | AR104: 0.18 | AS104: 0.09 | AT104: 0.24 | AU104: 0.15 | AV104: 0.08 | AW104: 0.22 | AX104: 0.17 | AY104: 0.23 | AZ104: 0.6 | BA104: 0.04 | BB104: 0.33 | BC104: 0.56 | BD104: 0.043732 | BE104: 0.68 | BF104: 0.28 | BG104: 0.4 | BH104: 0.53 | BI104: 0.37 | BJ104: 0.16 | BK104: 0.2 | BL104: 0.31 | BM104: 0.51 | BN104: 0.38 | BO104: 0.07 | BP104: 0.03 | BQ104: 0.1 | BR104: 0.41 | BS104: 0.32 | BT104: 0.08 | BU104: 0.58 | BV104: 0.24 | BW104: 0.4 | BX104: 0.57 | BY104: 0.17 | BZ104: 0.19 | CA104: 0.09 | CB104: 0.28 | CC104: 0.69 | CD104: 0.1 | CE104: 0.15 | CF104: 0.44 | CG104: 0.04 | CH104: 0.05 | CI104: 0.12 | CJ104: 0.74 | CK104: 0.05 | CL104: 0.06 | CM104: 0.11 | CN104: 0.88 | CO104: 0.17 | CP104: 0.71 | CQ104: 0.77 | CR104: 0.4 | CS104: 0.11 | CT104: 0.16 | CU104: 0.08 | CV104: 0.12 | CW104: 0.83 | CX104: 0.15 | CY104: 0.01 | CZ104: 0.01 | DA104: 0 | DB104: 0.1 | DC104: 0.87 | DD104: 0.19 | DE104: 0.78 | DF104: 0.57 | DG104: 0.24 | DH104: 0.81 | DI104: 0.12 | DJ104: 0.05 | DK104: 0.03 | DL104: 0.02 | DM104: 414925.85 | DN104: 221737.63 | DO104: 0.13 | DP104: 0.31 | DQ104: 0.25 | DR104: 0.08 | DS104: 0.08
A105: 2018-12-01 | B105: 83.5 | C105: 15.2 | D105: 98.7 | E105: 0.45 | F105: 0.14 | G105: 0.37 | H105: 0.31 | I105: -0.0835 | J105: 0.0768 | K105: 0.02287 | L105: 0.61 | M105: 0.05 | N105: 0.26 | O105: -0.56 | P105: 0.0481 | Q105: 0.0518 | R105: 0.12 | S105: 0.4 | T105: 0.52 | U105: 0.27 | V105: 0.14 | W105: 0.41 | X105: 0.11 | Y105: 0.16 | Z105: 0.28 | AA105: 0.2 | AB105: 0.04 | AC105: 0.23 | AD105: 0.52 | AE105: 0.08 | AF105: 0.05 | AG105: 0.07 | AH105: 0.15 | AI105: 0.21 | AJ105: 0.43 | AK105: 0.64 | AL105: 0.18 | AM105: 0.1 | AN105: 0.28 | AO105: 0.36 | AP105: 0.31 | AQ105: 0.16 | AR105: 0.13 | AS105: 0.07 | AT105: 0.25 | AU105: 0.13 | AV105: 0.12 | AW105: 0.14 | AX105: 0.15 | AY105: 0.24 | AZ105: 0.58 | BA105: 0.03 | BB105: 0.33 | BC105: 0.55 | BD105: 0.046554 | BE105: 0.66 | BF105: 0.29 | BG105: 0.37 | BH105: 0.5 | BI105: 0.4 | BJ105: 0.1 | BK105: 0.22 | BL105: 0.26 | BM105: 0.48 | BN105: 0.38 | BO105: 0.09 | BP105: 0.03 | BQ105: 0.12 | BR105: 0.36 | BS105: 0.31 | BT105: 0.12 | BU105: 0.54 | BV105: 0.19 | BW105: 0.43 | BX105: 0.55 | BY105: 0.12 | BZ105: 0.2 | CA105: 0.04 | CB105: 0.24 | CC105: 0.69 | CD105: 0.1 | CE105: 0.15 | CF105: 0.44 | CG105: 0.04 | CH105: 0.05 | CI105: 0.13 | CJ105: 0.74 | CK105: 0.04 | CL105: 0.06 | CM105: 0.1 | CN105: 0.89 | CO105: 0.17 | CP105: 0.72 | CQ105: 0.79 | CR105: 0.41 | CS105: 0.12 | CT105: 0.15 | CU105: 0.09 | CV105: 0.14 | CW105: 0.83 | CX105: 0.13 | CY105: 0.04 | CZ105: 0.01 | DA105: 0 | DB105: 0.13 | DC105: 0.86 | DD105: 0.2 | DE105: 0.78 | DF105: 0.62 | DG105: 0.17 | DH105: 0.79 | DI105: 0.11 | DJ105: 0.07 | DK105: 0.04 | DL105: 0.03 | DM105: 460315.79 | DN105: 245332.39 | DO105: 0.11 | DP105: 0.3 | DQ105: 0.25 | DR105: 0.07 | DS105: 0.09
A106: 2019-01-01 | B106: 84.7 | C106: 14.8 | D106: 99.5 | E106: 0.45 | F106: 0.15 | G106: 0.36 | H106: 0.3 | I106: -0.0986 | J106: 0.0683 | K106: 0.015945 | L106: 0.59 | M106: 0.06 | N106: 0.3 | O106: -0.53 | P106: 0.0455 | Q106: 0.0504 | R106: 0.14 | S106: 0.39 | T106: 0.53 | U106: 0.26 | V106: 0.12 | W106: 0.38 | X106: 0.15 | Y106: 0.1 | Z106: 0.23 | AA106: 0.25 | AB106: 0.06 | AC106: 0.26 | AD106: 0.36 | AE106: 0.12 | AF106: 0.08 | AG106: 0.09 | AH106: 0.25 | AI106: 0.2 | AJ106: 0.43 | AK106: 0.63 | AL106: 0.2 | AM106: 0.08 | AN106: 0.28 | AO106: 0.35 | AP106: 0.29 | AQ106: 0.17 | AR106: 0.15 | AS106: 0.07 | AT106: 0.22 | AU106: 0.13 | AV106: 0.1 | AW106: 0.16 | AX106: 0.13 | AY106: 0.36 | AZ106: 0.58 | BA106: 0.06 | BB106: 0.34 | BC106: 0.52 | BD106: 0.038014 | BE106: 0.68 | BF106: 0.27 | BG106: 0.41 | BH106: 0.49 | BI106: 0.43 | BJ106: 0.06 | BK106: 0.22 | BL106: 0.29 | BM106: 0.51 | BN106: 0.38 | BO106: 0.07 | BP106: 0.04 | BQ106: 0.11 | BR106: 0.4 | BS106: 0.34 | BT106: 0.07 | BU106: 0.57 | BV106: 0.27 | BW106: 0.42 | BX106: 0.55 | BY106: 0.13 | BZ106: 0.15 | CA106: 0.06 | CB106: 0.21 | CC106: 0.74 | CD106: 0.1 | CE106: 0.16 | CF106: 0.48 | CG106: 0.03 | CH106: 0.08 | CI106: 0.12 | CJ106: 0.73 | CK106: 0.03 | CL106: 0.1 | CM106: 0.13 | CN106: 0.86 | CO106: 0.17 | CP106: 0.69 | CQ106: 0.73 | CR106: 0.42 | CS106: 0.12 | CT106: 0.16 | CU106: 0.1 | CV106: 0.12 | CW106: 0.82 | CX106: 0.14 | CY106: 0.03 | CZ106: 0.01 | DA106: 0 | DB106: 0.17 | DC106: 0.8 | DD106: 0.21 | DE106: 0.78 | DF106: 0.57 | DG106: 0.23 | DH106: 0.8 | DI106: 0.12 | DJ106: 0.05 | DK106: 0.03 | DL106: 0.02 | DM106: 394811.26 | DN106: 226998.41 | DO106: 0.13 | DP106: 0.33 | DQ106: 0.25 | DR106: 0.06 | DS106: 0.08
A107: 2019-02-01 | B107: 84.3 | C107: 14.6 | D107: 98.9 | E107: 0.43 | F107: 0.1 | G107: 0.41 | H107: 0.33 | I107: -0.0785 | J107: 0.0772 | K107: 0.025346 | L107: 0.55 | M107: 0.03 | N107: 0.34 | O107: -0.52 | P107: 0.0446 | Q107: 0.0506 | R107: 0.13 | S107: 0.4 | T107: 0.53 | U107: 0.26 | V107: 0.12 | W107: 0.38 | X107: 0.15 | Y107: 0.07 | Z107: 0.29 | AA107: 0.17 | AB107: 0.05 | AC107: 0.25 | AD107: 0.45 | AE107: 0.1 | AF107: 0.02 | AG107: 0.11 | AH107: 0.22 | AI107: 0.2 | AJ107: 0.4 | AK107: 0.6 | AL107: 0.23 | AM107: 0.07 | AN107: 0.3 | AO107: 0.3 | AP107: 0.28 | AQ107: 0.13 | AR107: 0.15 | AS107: 0.09 | AT107: 0.28 | AU107: 0.19 | AV107: 0.07 | AW107: 0.18 | AX107: 0.12 | AY107: 0.34 | AZ107: 0.56 | BA107: 0.03 | BB107: 0.35 | BC107: 0.53 | BD107: 0.043094 | BE107: 0.65 | BF107: 0.3 | BG107: 0.35 | BH107: 0.52 | BI107: 0.38 | BJ107: 0.14 | BK107: 0.16 | BL107: 0.29 | BM107: 0.45 | BN107: 0.42 | BO107: 0.07 | BP107: 0.05 | BQ107: 0.12 | BR107: 0.33 | BS107: 0.27 | BT107: 0.09 | BU107: 0.62 | BV107: 0.18 | BW107: 0.4 | BX107: 0.58 | BY107: 0.18 | BZ107: 0.19 | CA107: 0.05 | CB107: 0.24 | CC107: 0.69 | CD107: 0.07 | CE107: 0.12 | CF107: 0.5 | CG107: 0.04 | CH107: 0.06 | CI107: 0.15 | CJ107: 0.72 | CK107: 0.03 | CL107: 0.06 | CM107: 0.09 | CN107: 0.9 | CO107: 0.2 | CP107: 0.7 | CQ107: 0.81 | CR107: 0.43 | CS107: 0.14 | CT107: 0.12 | CU107: 0.07 | CV107: 0.12 | CW107: 0.86 | CX107: 0.11 | CY107: 0.02 | CZ107: 0 | DA107: 0 | DB107: 0.16 | DC107: 0.81 | DD107: 0.23 | DE107: 0.76 | DF107: 0.63 | DG107: 0.22 | DH107: 0.85 | DI107: 0.08 | DJ107: 0.05 | DK107: 0.03 | DL107: 0.02 | DM107: 401348.91 | DN107: 250000 | DO107: 0.12 | DP107: 0.31 | DQ107: 0.27 | DR107: 0.08 | DS107: 0.08
A108: 2019-03-01 | B108: 89.8 | C108: 14.3 | D108: =ROUND(63.5+100*(T108-W108+AK108-AN108+E108-F108+BS108-BT108+CN108-CM108)/5,1) -> 104.1 | E108: 0.49 | F108: 0.11 | G108: 0.35 | H108: 0.38 | I108: -0.0765 | J108: 0.0676 | K108: 0.024709 | L108: 0.51 | M108: 0.06 | N108: 0.35 | O108: -0.45 | P108: 0.0435 | Q108: 0.049 | R108: 0.14 | S108: 0.42 | T108: 0.56 | U108: 0.24 | V108: 0.1 | W108: 0.34 | X108: 0.22 | Y108: 0.14 | Z108: 0.23 | AA108: 0.21 | AB108: 0.04 | AC108: 0.24 | AD108: 0.51 | AE108: 0.05 | AF108: 0.06 | AG108: 0.07 | AH108: 0.17 | AI108: 0.21 | AJ108: 0.45 | AK108: 0.66 | AL108: 0.17 | AM108: 0.06 | AN108: 0.23 | AO108: 0.43 | AP108: 0.28 | AQ108: 0.12 | AR108: 0.17 | AS108: 0.05 | AT108: 0.27 | AU108: 0.21 | AV108: 0.11 | AW108: 0.16 | AX108: 0.17 | AY108: 0.23 | AZ108: 0.59 | BA108: 0.04 | BB108: 0.31 | BC108: 0.55 | BD108: 0.041479 | BE108: 0.69 | BF108: 0.26 | BG108: 0.43 | BH108: 0.51 | BI108: 0.39 | BJ108: 0.12 | BK108: 0.2 | BL108: 0.3 | BM108: 0.5 | BN108: 0.4 | BO108: 0.07 | BP108: 0.03 | BQ108: 0.1 | BR108: 0.4 | BS108: 0.27 | BT108: 0.07 | BU108: 0.63 | BV108: 0.2 | BW108: 0.4 | BX108: 0.58 | BY108: 0.18 | BZ108: 0.18 | CA108: 0.04 | CB108: 0.22 | CC108: 0.74 | CD108: 0.08 | CE108: 0.17 | CF108: 0.49 | CG108: 0.03 | CH108: 0.05 | CI108: 0.1 | CJ108: 0.78 | CK108: 0.03 | CL108: 0.07 | CM108: 0.1 | CN108: 0.9 | CO108: 0.14 | CP108: 0.76 | CQ108: 0.8 | CR108: 0.42 | CS108: 0.16 | CT108: 0.12 | CU108: 0.07 | CV108: 0.13 | CW108: 0.85 | CX108: 0.12 | CY108: 0.03 | CZ108: 0 | DA108: 0 | DB108: 0.15 | DC108: 0.81 | DD108: 0.19 | DE108: 0.79 | DF108: 0.65 | DG108: 0.19 | DH108: 0.84 | DI108: 0.08 | DJ108: 0.05 | DK108: 0.04 | DL108: 0.01 | DM108: 377422.4 | DN108: 225000 | DO108: 0.09 | DP108: 0.35 | DQ108: 0.23 | DR108: 0.08 | DS108: 0.07
A109: 2019-04-01 | B109: =ROUND(63.5+100*(T109-W109+AK109-AN109+E109-F109+M109-L109+BS109-BT109+CN109-CM109)/6,1) -> 88.3 | C109: 13 | D109: 101.3 | E109: 0.45 | F109: 0.09 | G109: 0.42 | H109: 0.36 | I109: -0.0717 | J109: 0.067 | K109: 0.023697 | L109: 0.46 | M109: 0.06 | N109: 0.41 | O109: -0.4 | P109: 0.0406 | Q109: 0.0482 | R109: 0.15 | S109: 0.38 | T109: 0.53 | U109: 0.26 | V109: 0.13 | W109: 0.39 | X109: 0.14 | Y109: 0.09 | Z109: 0.29 | AA109: 0.21 | AB109: 0.06 | AC109: 0.25 | AD109: 0.47 | AE109: 0.09 | AF109: 0.03 | AG109: 0.12 | AH109: 0.17 | AI109: 0.25 | AJ109: 0.42 | AK109: 0.67 | AL109: 0.17 | AM109: 0.07 | AN109: 0.24 | AO109: 0.43 | AP109: 0.25 | AQ109: 0.15 | AR109: 0.16 | AS109: 0.09 | AT109: 0.26 | AU109: 0.19 | AV109: 0.1 | AW109: 0.18 | AX109: 0.15 | AY109: 0.29 | AZ109: 0.61 | BA109: 0.02 | BB109: 0.31 | BC109: 0.59 | BD109: 0.045555 | BE109: 0.67 | BF109: 0.29 | BG109: 0.38 | BH109: 0.52 | BI109: 0.37 | BJ109: 0.15 | BK109: 0.24 | BL109: 0.27 | BM109: 0.51 | BN109: 0.39 | BO109: 0.06 | BP109: 0.02 | BQ109: 0.08 | BR109: 0.43 | BS109: 0.32 | BT109: 0.1 | BU109: 0.57 | BV109: 0.22 | BW109: 0.42 | BX109: 0.55 | BY109: 0.13 | BZ109: 0.19 | CA109: 0.04 | CB109: 0.23 | CC109: 0.7 | CD109: 0.11 | CE109: 0.13 | CF109: 0.46 | CG109: 0.03 | CH109: 0.08 | CI109: 0.12 | CJ109: 0.76 | CK109: 0.03 | CL109: 0.1 | CM109: 0.13 | CN109: 0.87 | CO109: 0.16 | CP109: 0.71 | CQ109: 0.74 | CR109: 0.37 | CS109: 0.12 | CT109: 0.19 | CU109: 0.09 | CV109: 0.14 | CW109: 0.86 | CX109: 0.11 | CY109: 0.02 | CZ109: 0 | DA109: 0 | DB109: 0.18 | DC109: 0.79 | DD109: 0.22 | DE109: 0.76 | DF109: 0.63 | DG109: 0.19 | DH109: 0.82 | DI109: 0.11 | DJ109: 0.04 | DK109: 0.01 | DL109: 0.03 | DM109: 455215.96 | DN109: 250000 | DO109: 0.12 | DP109: 0.29 | DQ109: 0.3 | DR109: 0.07 | DS109: 0.07
A110: 2019-05-01 | B110: 92 | C110: 13.1 | D110: 105.1 | E110: 0.5 | F110: 0.09 | G110: 0.35 | H110: 0.41 | I110: -0.0977 | J110: 0.0796 | K110: 0.031007 | L110: 0.43 | M110: 0.06 | N110: 0.4 | O110: =M110-L110 -> -0.37 | P110: 0.042 | Q110: 0.0482 | R110: 0.17 | S110: 0.43 | T110: =S110+R110 -> 0.6 | U110: 0.22 | V110: 0.11 | W110: =V110+U110 -> 0.33 | X110: =T110-W110 -> 0.27 | Y110: 0.09 | Z110: 0.28 | AA110: 0.2 | AB110: 0.05 | AC110: 0.26 | AD110: 0.53 | AE110: 0.08 | AF110: 0.08 | AG110: 0.07 | AH110: 0.16 | AI110: 0.27 | AJ110: 0.39 | AK110: =AJ110+AI110 -> 0.66 | AL110: 0.18 | AM110: 0.05 | AN110: =AM110+AL110 -> 0.23 | AO110: =AK110-AN110 -> 0.43 | AP110: 0.31 | AQ110: 0.16 | AR110: 0.16 | AS110: 0.06 | AT110: 0.22 | AU110: 0.16 | AV110: 0.11 | AW110: 0.24 | AX110: 0.13 | AY110: 0.28 | AZ110: 0.65 | BA110: 0.03 | BB110: 0.26 | BC110: 0.62 | BD110: 0.054193 | BE110: 0.65 | BF110: 0.31 | BG110: 0.34 | BH110: 0.53 | BI110: 0.34 | BJ110: 0.19 | BK110: 0.19 | BL110: 0.31 | BM110: =BL110+BK110 -> 0.5 | BN110: 0.37 | BO110: 0.07 | BP110: 0.04 | BQ110: 0.11 | BR110: 0.39 | BS110: 0.31 | BT110: 0.1 | BU110: 0.59 | BV110: =BS110-BT110 -> 0.21 | BW110: 0.38 | BX110: 0.59 | BY110: 0.21 | BZ110: 0.16 | CA110: 0.1 | CB110: =SUM(BZ110:CA110) -> 0.26 | CC110: =SUM(CD110:CF110) -> 0.69 | CD110: 0.1 | CE110: 0.11 | CF110: 0.48 | CG110: 0.05 | CH110: 0.05 | CI110: 0.12 | CJ110: 0.77 | CK110: 0.05 | CL110: 0.07 | CM110: =CL110+CK110 -> 0.12 | CN110: =CO110+CP110 -> 0.88 | CO110: 0.16 | CP110: 0.72 | CQ110: =CN110-CM110 -> 0.76 | CR110: 0.43 | CS110: 0.15 | CT110: 0.13 | CU110: 0.08 | CV110: 0.11 | CW110: 0.84 | CX110: 0.13 | CY110: 0.03 | CZ110: 0 | DA110: 0 | DB110: 0.18 | DC110: 0.78 | DD110: 0.21 | DE110: 0.76 | DF110: 0.63 | DG110: 0.24 | DH110: =DG110+DF110 -> 0.87 | DI110: 0.08 | DJ110: =DK110+DL110 -> 0.04 | DK110: 0.02 | DL110: 0.02 | DM110: 436067.67 | DN110: 250000 | DO110: 0.11 | DP110: 0.24 | DQ110: 0.3 | DR110: 0.08 | DS110: 0.09
A111: 2019-06-01 | B111: 91.5 | C111: 11.4 | D111: 102.9 | E111: 0.48 | F111: 0.1 | G111: 0.37 | H111: 0.38 | I111: -0.0865 | J111: 0.0704 | K111: 0.025142 | L111: 0.39 | M111: 0.1 | N111: 0.43 | O111: -0.29 | P111: 0.0399 | Q111: 0.0445 | R111: 0.16 | S111: 0.4 | T111: 0.56 | U111: 0.23 | V111: 0.1 | W111: 0.33 | X111: 0.23 | Y111: 0.09 | Z111: 0.24 | AA111: 0.19 | AB111: 0.07 | AC111: 0.31 | AD111: 0.51 | AE111: 0.07 | AF111: 0.05 | AG111: 0.09 | AH111: 0.15 | AI111: 0.27 | AJ111: 0.4 | AK111: 0.67 | AL111: 0.17 | AM111: 0.07 | AN111: 0.24 | AO111: 0.43 | AP111: 0.26 | AQ111: 0.16 | AR111: 0.17 | AS111: 0.1 | AT111: 0.26 | AU111: 0.16 | AV111: 0.12 | AW111: 0.16 | AX111: 0.14 | AY111: 0.35 | AZ111: 0.57 | BA111: 0.03 | BB111: 0.34 | BC111: 0.54 | BD111: 0.041781 | BE111: 0.63 | BF111: 0.31 | BG111: 0.32 | BH111: 0.52 | BI111: 0.4 | BJ111: 0.12 | BK111: 0.24 | BL111: 0.3 | BM111: 0.54 | BN111: 0.37 | BO111: 0.06 | BP111: 0.02 | BQ111: 0.08 | BR111: 0.46 | BS111: 0.29 | BT111: 0.09 | BU111: 0.61 | BV111: 0.2 | BW111: 0.4 | BX111: 0.59 | BY111: 0.19 | BZ111: 0.14 | CA111: 0.08 | CB111: 0.22 | CC111: 0.71 | CD111: 0.09 | CE111: 0.13 | CF111: 0.49 | CG111: 0.04 | CH111: 0.08 | CI111: 0.12 | CJ111: 0.74 | CK111: 0.03 | CL111: 0.1 | CM111: 0.13 | CN111: 0.86 | CO111: 0.16 | CP111: 0.7 | CQ111: 0.73 | CR111: 0.44 | CS111: 0.13 | CT111: 0.13 | CU111: 0.06 | CV111: 0.13 | CW111: 0.8 | CX111: 0.18 | CY111: 0.02 | CZ111: 0 | DA111: 0.01 | DB111: 0.18 | DC111: 0.8 | DD111: 0.25 | DE111: 0.74 | DF111: 0.63 | DG111: 0.21 | DH111: 0.84 | DI111: 0.09 | DJ111: 0.05 | DK111: 0.01 | DL111: 0.04 | DM111: 436389.27 | DN111: 241837.95 | DO111: 0.09 | DP111: 0.31 | DQ111: 0.25 | DR111: 0.06 | DS111: 0.07
A112: 2019-07-01 | B112: 93.7 | C112: 11.6 | D112: 105.3 | E112: 0.45 | F112: 0.08 | G112: 0.41 | H112: 0.37 | I112: -0.0759 | J112: 0.0734 | K112: 0.026958 | L112: 0.39 | M112: 0.11 | N112: 0.42 | O112: -0.28 | P112: 0.0373 | Q112: 0.0409 | R112: 0.15 | S112: 0.42 | T112: 0.57 | U112: 0.22 | V112: 0.09 | W112: 0.31 | X112: 0.26 | Y112: 0.07 | Z112: 0.27 | AA112: 0.25 | AB112: 0.05 | AC112: 0.25 | AD112: 0.55 | AE112: 0.06 | AF112: 0.06 | AG112: 0.06 | AH112: 0.18 | AI112: 0.23 | AJ112: 0.44 | AK112: 0.67 | AL112: 0.17 | AM112: 0.06 | AN112: 0.23 | AO112: 0.44 | AP112: 0.29 | AQ112: 0.17 | AR112: 0.13 | AS112: 0.08 | AT112: 0.26 | AU112: 0.11 | AV112: 0.12 | AW112: 0.27 | AX112: 0.21 | AY112: 0.18 | AZ112: 0.6 | BA112: 0.03 | BB112: 0.32 | BC112: 0.57 | BD112: 0.046935 | BE112: 0.66 | BF112: 0.29 | BG112: 0.37 | BH112: 0.55 | BI112: 0.35 | BJ112: 0.2 | BK112: 0.22 | BL112: 0.26 | BM112: 0.48 | BN112: 0.39 | BO112: 0.08 | BP112: 0.03 | BQ112: 0.11 | BR112: 0.37 | BS112: 0.3 | BT112: 0.09 | BU112: 0.59 | BV112: 0.21 | BW112: 0.4 | BX112: 0.57 | BY112: 0.17 | BZ112: 0.14 | CA112: 0.07 | CB112: 0.21 | CC112: 0.71 | CD112: 0.07 | CE112: 0.17 | CF112: 0.47 | CG112: 0.03 | CH112: 0.05 | CI112: 0.13 | CJ112: 0.77 | CK112: 0.03 | CL112: 0.06 | CM112: 0.09 | CN112: 0.9 | CO112: 0.17 | CP112: 0.73 | CQ112: 0.81 | CR112: 0.39 | CS112: 0.12 | CT112: 0.14 | CU112: 0.09 | CV112: 0.15 | CW112: 0.85 | CX112: 0.13 | CY112: 0.02 | CZ112: 0 | DA112: 0 | DB112: 0.16 | DC112: 0.8 | DD112: 0.22 | DE112: 0.76 | DF112: 0.59 | DG112: 0.23 | DH112: 0.82 | DI112: 0.08 | DJ112: 0.06 | DK112: 0.01 | DL112: 0.05 | DM112: 385724.43 | DN112: 240000 | DO112: 0.11 | DP112: 0.3 | DQ112: 0.26 | DR112: 0.06 | DS112: 0.08
A113: 2019-08-01 | B113: 93.8 | C113: 9.5 | D113: 103.3 | E113: 0.47 | F113: 0.11 | G113: 0.36 | H113: 0.36 | I113: -0.0861 | J113: 0.0702 | K113: 0.023523 | L113: 0.33 | M113: 0.16 | N113: 0.42 | O113: -0.17 | P113: 0.0375 | Q113: 0.0404 | R113: 0.15 | S113: 0.43 | T113: 0.58 | U113: 0.2 | V113: 0.13 | W113: 0.33 | X113: 0.25 | Y113: 0.11 | Z113: 0.37 | AA113: 0.16 | AB113: 0.04 | AC113: 0.21 | AD113: 0.54 | AE113: 0.05 | AF113: 0.04 | AG113: 0.07 | AH113: 0.19 | AI113: 0.24 | AJ113: 0.41 | AK113: 0.65 | AL113: 0.17 | AM113: 0.08 | AN113: 0.25 | AO113: 0.4 | AP113: 0.32 | AQ113: 0.16 | AR113: 0.11 | AS113: 0.06 | AT113: 0.25 | AU113: 0.13 | AV113: 0.04 | AW113: 0.16 | AX113: 0.13 | AY113: 0.3 | AZ113: 0.59 | BA113: 0.03 | BB113: 0.32 | BC113: =AZ113-BA113 -> 0.56 | BD113: 0.046027 | BE113: 0.66 | BF113: 0.29 | BG113: =BE113-BF113 -> 0.37 | BH113: 0.5 | BI113: 0.41 | BJ113: =BH113-BI113 -> 0.09 | BK113: 0.19 | BL113: 0.3 | BM113: 0.49 | BN113: 0.4 | BO113: 0.06 | BP113: 0.04 | BQ113: =BO113+BP113 -> 0.1 | BR113: =BM113-BQ113 -> 0.39 | BS113: 0.31 | BT113: 0.1 | BU113: 0.58 | BV113: 0.21 | BW113: 0.36 | BX113: 0.62 | BY113: =BX113-BW113 -> 0.26 | BZ113: 0.14 | CA113: 0.04 | CB113: 0.18 | CC113: 0.76 | CD113: 0.1 | CE113: 0.11 | CF113: 0.55 | CG113: 0.04 | CH113: 0.06 | CI113: 0.13 | CJ113: 0.75 | CK113: 0.04 | CL113: 0.07 | CM113: 0.11 | CN113: 0.88 | CO113: 0.17 | CP113: 0.71 | CQ113: 0.77 | CR113: 0.41 | CS113: 0.14 | CT113: 0.14 | CU113: 0.08 | CV113: 0.13 | CW113: 0.85 | CX113: 0.11 | CY113: 0.02 | CZ113: 0.01 | DA113: 0 | DB113: 0.19 | DC113: 0.77 | DD113: 0.22 | DE113: 0.76 | DF113: 0.59 | DG113: 0.21 | DH113: 0.8 | DI113: 0.14 | DJ113: 0.03 | DK113: 0.01 | DL113: 0.02 | DM113: 442853.77 | DN113: 250000 | DO113: 0.11 | DP113: 0.29 | DQ113: 0.25 | DR113: 0.08 | DS113: 0.09
A114: 2019-09-01 | B114: =ROUND(63.5+100*(T114-W114+AK114-AN114+E114-F114+M114-L114+BS114-BT114+CN114-CM114)/6,1) -> 91.5 | C114: 10.2 | D114: =ROUND(63.5+100*(T114-W114+AK114-AN114+E114-F114+BS114-BT114+CN114-CM114)/5,1) -> 101.7 | E114: 0.43 | F114: 0.14 | G114: 0.36 | H114: =E114-F114 -> 0.29 | I114: -0.0752 | J114: 0.0646 | K114: 0.01725 | L114: 0.38 | M114: 0.15 | N114: 0.4 | O114: -0.23 | P114: 0.0358 | Q114: 0.0401 | R114: 0.2 | S114: 0.39 | T114: 0.59 | U114: 0.2 | V114: 0.11 | W114: 0.31 | X114: 0.28 | Y114: 0.09 | Z114: 0.37 | AA114: 0.16 | AB114: 0.05 | AC114: 0.2 | AD114: 0.47 | AE114: 0.04 | AF114: 0.04 | AG114: 0.06 | AH114: 0.26 | AI114: 0.28 | AJ114: 0.39 | AK114: 0.67 | AL114: 0.18 | AM114: 0.05 | AN114: 0.23 | AO114: 0.44 | AP114: 0.28 | AQ114: 0.2 | AR114: 0.08 | AS114: 0.1 | AT114: 0.24 | AU114: 0.11 | AV114: 0.1 | AW114: 0.22 | AX114: 0.12 | AY114: 0.33 | AZ114: 0.56 | BA114: 0.04 | BB114: 0.34 | BC114: 0.52 | BD114: 0.042312 | BE114: 0.69 | BF114: 0.27 | BG114: 0.42 | BH114: 0.51 | BI114: 0.4 | BJ114: 0.11 | BK114: 0.2 | BL114: 0.28 | BM114: 0.48 | BN114: 0.42 | BO114: 0.06 | BP114: 0.03 | BQ114: 0.09 | BR114: 0.39 | BS114: 0.31 | BT114: 0.1 | BU114: 0.58 | BV114: 0.21 | BW114: 0.37 | BX114: 0.59 | BY114: 0.22 | BZ114: 0.13 | CA114: 0.06 | CB114: 0.19 | CC114: 0.76 | CD114: 0.14 | CE114: 0.12 | CF114: 0.5 | CG114: 0.05 | CH114: 0.07 | CI114: 0.13 | CJ114: 0.73 | CK114: 0.06 | CL114: 0.09 | CM114: 0.15 | CN114: 0.84 | CO114: 0.18 | CP114: 0.66 | CQ114: 0.69 | CR114: 0.43 | CS114: 0.12 | CT114: 0.14 | CU114: 0.1 | CV114: 0.12 | CW114: 0.84 | CX114: 0.13 | CY114: 0.02 | CZ114: 0 | DA114: 0.01 | DB114: 0.16 | DC114: 0.81 | DD114: 0.19 | DE114: 0.78 | DF114: 0.62 | DG114: 0.19 | DH114: 0.81 | DI114: 0.11 | DJ114: 0.06 | DK114: 0.04 | DL114: 0.02 | DM114: 375401.42 | DN114: 270000 | DO114: 0.09 | DP114: 0.28 | DQ114: 0.29 | DR114: 0.08 | DS114: 0.07
A115: 2019-10-01 | B115: 88.8 | C115: 10.1 | D115: 98.9 | E115: 0.41 | F115: 0.14 | G115: 0.39 | H115: 0.27 | I115: -0.0847 | J115: 0.0735 | K115: 0.018277 | L115: 0.37 | M115: 0.12 | N115: 0.44 | O115: =M115-L115 -> -0.25 | P115: 0.0364 | Q115: 0.0408 | R115: 0.16 | S115: 0.41 | T115: =S115+R115 -> 0.57 | U115: 0.26 | V115: 0.1 | W115: =V115+U115 -> 0.36 | X115: =T115-W115 -> 0.21 | Y115: 0.1 | Z115: 0.35 | AA115: 0.19 | AB115: 0.05 | AC115: 0.22 | AD115: 0.55 | AE115: 0.08 | AF115: 0.05 | AG115: 0.06 | AH115: 0.19 | AI115: 0.27 | AJ115: 0.4 | AK115: =AJ115+AI115 -> 0.67 | AL115: 0.2 | AM115: 0.06 | AN115: =AM115+AL115 -> 0.26 | AO115: =AK115-AN115 -> 0.41 | AP115: 0.31 | AQ115: 0.17 | AR115: 0.13 | AS115: 0.08 | AT115: 0.21 | AU115: 0.13 | AV115: 0.1 | AW115: 0.17 | AX115: 0.12 | AY115: 0.31 | AZ115: 0.57 | BA115: 0.04 | BB115: 0.32 | BC115: 0.53 | BD115: 0.043454 | BE115: 0.67 | BF115: 0.29 | BG115: 0.38 | BH115: 0.54 | BI115: 0.38 | BJ115: 0.16 | BK115: 0.25 | BL115: 0.28 | BM115: =BL115+BK115 -> 0.53 | BN115: 0.37 | BO115: 0.07 | BP115: 0.02 | BQ115: 0.09 | BR115: 0.44 | BS115: 0.28 | BT115: 0.12 | BU115: 0.59 | BV115: =BS115-BT115 -> 0.16 | BW115: 0.4 | BX115: 0.57 | BY115: 0.17 | BZ115: 0.18 | CA115: 0.05 | CB115: =SUM(BZ115:CA115) -> 0.23 | CC115: =SUM(CD115:CF115) -> 0.7 | CD115: 0.08 | CE115: 0.13 | CF115: 0.49 | CG115: 0.05 | CH115: 0.07 | CI115: 0.16 | CJ115: 0.69 | CK115: 0.05 | CL115: 0.09 | CM115: =CL115+CK115 -> 0.14 | CN115: =CO115+CP115 -> 0.86 | CO115: 0.22 | CP115: 0.64 | CQ115: =CN115-CM115 -> 0.72 | CR115: 0.4 | CS115: 0.13 | CT115: 0.17 | CU115: 0.07 | CV115: 0.14 | CW115: 0.79 | CX115: 0.17 | CY115: 0.03 | CZ115: 0 | DA115: 0 | DB115: 0.11 | DC115: 0.87 | DD115: 0.21 | DE115: 0.77 | DF115: 0.63 | DG115: 0.2 | DH115: =DG115+DF115 -> 0.83 | DI115: 0.09 | DJ115: =DK115+DL115 -> 0.05 | DK115: 0.03 | DL115: 0.02 | DM115: 343870.43 | DN115: 250000 | DO115: 0.08 | DP115: 0.33 | DQ115: 0.26 | DR115: 0.1 | DS115: 0.07
A116: 2019-11-01 | B116: 91.5 | C116: 11.2 | D116: 102.7 | E116: 0.44 | F116: 0.1 | G116: 0.4 | H116: 0.34 | I116: -0.055 | J116: 0.0772 | K116: 0.028468 | L116: 0.39 | M116: 0.11 | N116: 0.42 | O116: -0.28 | P116: 0.0378 | Q116: 0.0405 | R116: 0.2 | S116: 0.41 | T116: 0.61 | U116: 0.21 | V116: 0.08 | W116: 0.29 | X116: 0.32 | Y116: 0.13 | Z116: 0.35 | AA116: 0.15 | AB116: 0.04 | AC116: 0.21 | AD116: 0.5 | AE116: 0.07 | AF116: 0.03 | AG116: 0.06 | AH116: 0.24 | AI116: 0.23 | AJ116: 0.43 | AK116: 0.66 | AL116: 0.19 | AM116: 0.07 | AN116: 0.26 | AO116: 0.4 | AP116: 0.26 | AQ116: 0.23 | AR116: 0.11 | AS116: 0.09 | AT116: 0.21 | AU116: 0.11 | AV116: 0.05 | AW116: 0.19 | AX116: 0.17 | AY116: 0.25 | AZ116: 0.6 | BA116: 0.02 | BB116: 0.31 | BC116: 0.58 | BD116: 0.042556 | BE116: 0.67 | BF116: 0.28 | BG116: 0.39 | BH116: 0.57 | BI116: 0.33 | BJ116: 0.24 | BK116: 0.2 | BL116: 0.31 | BM116: 0.51 | BN116: 0.39 | BO116: 0.07 | BP116: 0.02 | BQ116: 0.09 | BR116: 0.42 | BS116: 0.28 | BT116: 0.1 | BU116: 0.6 | BV116: 0.18 | BW116: 0.39 | BX116: 0.59 | BY116: 0.2 | BZ116: 0.17 | CA116: 0.04 | CB116: 0.21 | CC116: 0.69 | CD116: 0.11 | CE116: 0.09 | CF116: 0.49 | CG116: 0.04 | CH116: 0.07 | CI116: 0.12 | CJ116: 0.74 | CK116: 0.05 | CL116: 0.09 | CM116: 0.14 | CN116: 0.86 | CO116: 0.15 | CP116: 0.71 | CQ116: 0.72 | CR116: 0.41 | CS116: 0.13 | CT116: 0.14 | CU116: 0.05 | CV116: 0.15 | CW116: 0.8 | CX116: 0.16 | CY116: 0.03 | CZ116: 0 | DA116: 0.01 | DB116: 0.12 | DC116: 0.84 | DD116: 0.21 | DE116: 0.77 | DF116: 0.65 | DG116: 0.19 | DH116: =DG116+DF116 -> 0.84 | DI116: 0.09 | DJ116: =DK116+DL116 -> 0.04 | DK116: 0.02 | DL116: 0.02 | DM116: 360876.14 | DN116: 250000 | DO116: 0.1 | DP116: 0.27 | DQ116: 0.29 | DR116: 0.08 | DS116: 0.06
A117: 2019-12-01 | B117: 91.7 | C117: 12 | D117: 103.7 | E117: 0.5 | F117: 0.1 | G117: 0.35 | H117: 0.4 | I117: -0.0865 | J117: 0.0754 | K117: 0.02905 | L117: 0.39 | M117: 0.07 | N117: 0.46 | O117: -0.32 | P117: 0.0368 | Q117: 0.0415 | R117: 0.16 | S117: 0.43 | T117: 0.59 | U117: 0.23 | V117: 0.09 | W117: 0.32 | X117: 0.27 | Y117: 0.08 | Z117: 0.35 | AA117: 0.12 | AB117: 0.05 | AC117: 0.27 | AD117: 0.49 | AE117: 0.05 | AF117: 0.03 | AG117: 0.12 | AH117: 0.2 | AI117: 0.27 | AJ117: 0.38 | AK117: 0.65 | AL117: 0.16 | AM117: 0.06 | AN117: 0.22 | AO117: 0.43 | AP117: 0.27 | AQ117: 0.14 | AR117: 0.13 | AS117: 0.09 | AT117: 0.26 | AU117: 0.19 | AV117: 0.14 | AW117: 0.16 | AX117: 0.1 | AY117: 0.27 | AZ117: 0.61 | BA117: 0.04 | BB117: 0.3 | BC117: 0.57 | BD117: 0.048102 | BE117: 0.66 | BF117: 0.28 | BG117: 0.38 | BH117: 0.53 | BI117: 0.36 | BJ117: 0.17 | BK117: 0.24 | BL117: 0.26 | BM117: 0.5 | BN117: 0.4 | BO117: 0.07 | BP117: 0.02 | BQ117: 0.09 | BR117: 0.41 | BS117: 0.28 | BT117: 0.11 | BU117: 0.6 | BV117: 0.17 | BW117: 0.4 | BX117: 0.58 | BY117: 0.18 | BZ117: 0.22 | CA117: 0.04 | CB117: 0.26 | CC117: 0.67 | CD117: 0.05 | CE117: 0.12 | CF117: 0.5 | CG117: 0.04 | CH117: 0.06 | CI117: 0.16 | CJ117: 0.7 | CK117: 0.04 | CL117: 0.08 | CM117: 0.12 | CN117: 0.86 | CO117: 0.21 | CP117: 0.65 | CQ117: 0.74 | CR117: 0.39 | CS117: 0.13 | CT117: 0.15 | CU117: 0.08 | CV117: 0.12 | CW117: 0.81 | CX117: 0.16 | CY117: 0.02 | CZ117: 0.01 | DA117: 0.01 | DB117: 0.13 | DC117: 0.85 | DD117: 0.22 | DE117: 0.76 | DF117: 0.68 | DG117: 0.16 | DH117: =DG117+DF117 -> 0.84 | DI117: 0.08 | DJ117: =DK117+DL117 -> 0.05 | DK117: 0.02 | DL117: 0.03 | DM117: 382393.87 | DN117: 250000 | DO117: 0.1 | DP117: 0.28 | DQ117: 0.27 | DR117: 0.09 | DS117: 0.09
A118: 2020-01-01 | B118: 93 | C118: =D118-B118 -> 11.1 | D118: 104.1 | E118: 0.48 | F118: 0.07 | G118: 0.38 | H118: 0.41 | I118: -0.1204 | J118: 0.07 | K118: 0.025172 | L118: 0.33 | M118: 0.07 | N118: 0.48 | O118: -0.26 | P118: N/A | Q118: N/A | R118: 0.19 | S118: 0.4 | T118: 0.59 | U118: 0.22 | V118: 0.08 | W118: 0.3 | X118: 0.29 | Y118: 0.08 | Z118: 0.33 | AA118: 0.13 | AB118: 0.04 | AC118: 0.26 | AD118: 0.48 | AE118: 0.07 | AF118: 0.04 | AG118: 0.1 | AH118: 0.24 | AI118: 0.26 | AJ118: 0.4 | AK118: 0.66 | AL118: 0.17 | AM118: 0.04 | AN118: 0.21 | AO118: 0.45 | AP118: 0.26 | AQ118: 0.19 | AR118: 0.15 | AS118: 0.06 | AT118: 0.24 | AU118: 0.13 | AV118: 0.08 | AW118: 0.14 | AX118: 0.18 | AY118: 0.32 | AZ118: 0.6 | BA118: 0.03 | BB118: 0.32 | BC118: =AZ118-BA118 -> 0.57 | BD118: 0.046494 | BE118: 0.64 | BF118: 0.32 | BG118: =BE118-BF118 -> 0.32 | BH118: 0.58 | BI118: 0.34 | BJ118: =BH118-BI118 -> 0.24 | BK118: 0.27 | BL118: 0.27 | BM118: 0.54 | BN118: 0.36 | BO118: 0.05 | BP118: 0.04 | BQ118: =BO118+BP118 -> 0.09 | BR118: =BM118-BQ118 -> 0.45 | BS118: 0.27 | BT118: 0.11 | BU118: 0.61 | BV118: 0.16 | BW118: 0.38 | BX118: 0.58 | BY118: =BX118-BW118 -> 0.2 | BZ118: 0.17 | CA118: 0.07 | CB118: 0.24 | CC118: 0.72 | CD118: 0.08 | CE118: 0.2 | CF118: 0.44 | CG118: 0.06 | CH118: 0.07 | CI118: 0.15 | CJ118: 0.7 | CK118: 0.05 | CL118: 0.09 | CM118: 0.14 | CN118: 0.86 | CO118: 0.19 | CP118: 0.67 | CQ118: 0.72 | CR118: 0.37 | CS118: 0.15 | CT118: 0.16 | CU118: 0.06 | CV118: 0.14 | CW118: 0.8 | CX118: 0.17 | CY118: 0.02 | CZ118: 0.01 | DA118: 0.01 | DB118: N/A | DC118: N/A | DD118: N/A | DE118: N/A | DF118: N/A | DG118: N/A | DH118: N/A | DI118: N/A | DJ118: N/A | DK118: N/A | DL118: N/A | DM118: N/A | DN118: N/A | DO118: N/A | DP118: N/A | DQ118: N/A | DR118: N/A | DS118: N/A
A119: 2020-02-01 | B119: =ROUND(63.5+100*(T119-W119+AK119-AN119+E119-F119+M119-L119+BS119-BT119+CN119-CM119)/6,1) -> 92.5 | C119: 11.8 | D119: =ROUND(63.5+100*(T119-W119+AK119-AN119+E119-F119+BS119-BT119+CN119-CM119)/5,1) -> 104.3 | E119: 0.47 | F119: 0.08 | G119: 0.38 | H119: =E119-F119 -> 0.39 | I119: -0.0974 | J119: 0.077 | K119: 0.028398 | L119: 0.38 | M119: 0.08 | N119: 0.46 | O119: -0.3 | P119: N/A | Q119: N/A | R119: 0.18 | S119: 0.41 | T119: 0.59 | U119: 0.21 | V119: 0.11 | W119: 0.32 | X119: 0.27 | Y119: 0.1 | Z119: 0.32 | AA119: 0.18 | AB119: 0.05 | AC119: 0.23 | AD119: 0.51 | AE119: 0.05 | AF119: 0.1 | AG119: 0.14 | AH119: 0.13 | AI119: 0.27 | AJ119: 0.4 | AK119: 0.67 | AL119: 0.15 | AM119: 0.07 | AN119: 0.22 | AO119: 0.45 | AP119: 0.27 | AQ119: 0.17 | AR119: 0.13 | AS119: 0.08 | AT119: 0.24 | AU119: 0.11 | AV119: 0.07 | AW119: 0.22 | AX119: 0.18 | AY119: 0.29 | AZ119: 0.6 | BA119: 0.03 | BB119: 0.32 | BC119: 0.57 | BD119: 0.051222 | BE119: 0.67 | BF119: 0.3 | BG119: 0.37 | BH119: 0.61 | BI119: 0.33 | BJ119: 0.28 | BK119: 0.23 | BL119: 0.28 | BM119: 0.51 | BN119: 0.37 | BO119: 0.07 | BP119: 0.04 | BQ119: 0.11 | BR119: 0.4 | BS119: 0.32 | BT119: 0.11 | BU119: 0.56 | BV119: 0.21 | BW119: 0.39 | BX119: 0.59 | BY119: 0.2 | BZ119: 0.14 | CA119: 0.06 | CB119: 0.2 | CC119: 0.7 | CD119: 0.11 | CE119: 0.11 | CF119: 0.48 | CG119: 0.06 | CH119: 0.06 | CI119: 0.15 | CJ119: 0.7 | CK119: 0.05 | CL119: 0.08 | CM119: 0.13 | CN119: 0.85 | CO119: 0.19 | CP119: 0.66 | CQ119: 0.72 | CR119: 0.43 | CS119: 0.14 | CT119: 0.13 | CU119: 0.07 | CV119: 0.15 | CW119: 0.77 | CX119: 0.19 | CY119: 0.02 | CZ119: 0.01 | DA119: 0 | DB119: N/A | DC119: N/A | DD119: N/A | DE119: N/A | DF119: N/A | DG119: N/A | DH119: N/A | DI119: N/A | DJ119: N/A | DK119: N/A | DL119: N/A | DM119: N/A | DN119: N/A | DO119: N/A | DP119: N/A | DQ119: N/A | DR119: N/A | DS119: N/A
A120: 2020-03-01 | B120: 80.8 | C120: 7.3 | D120: 88.1 | E120: 0.39 | F120: 0.22 | G120: 0.32 | H120: 0.17 | I120: -0.1059 | J120: 0.0771 | K120: 0.006771 | L120: 0.39 | M120: 0.2 | N120: 0.33 | O120: =M120-L120 -> -0.19 | P120: N/A | Q120: N/A | R120: 0.19 | S120: 0.37 | T120: =S120+R120 -> 0.56 | U120: 0.23 | V120: 0.13 | W120: =V120+U120 -> 0.36 | X120: =T120-W120 -> 0.2 | Y120: 0.12 | Z120: 0.44 | AA120: 0.09 | AB120: 0.05 | AC120: 0.2 | AD120: 0.33 | AE120: 0.03 | AF120: 0.09 | AG120: 0.08 | AH120: 0.32 | AI120: 0.21 | AJ120: 0.31 | AK120: =AJ120+AI120 -> 0.52 | AL120: 0.25 | AM120: 0.11 | AN120: =AM120+AL120 -> 0.36 | AO120: =AK120-AN120 -> 0.16 | AP120: 0.27 | AQ120: 0.21 | AR120: 0.14 | AS120: 0.08 | AT120: 0.21 | AU120: 0.16 | AV120: 0.05 | AW120: 0.09 | AX120: 0.09 | AY120: 0.47 | AZ120: 0.52 | BA120: 0.07 | BB120: 0.36 | BC120: 0.45 | BD120: 0.035136 | BE120: 0.66 | BF120: 0.3 | BG120: 0.36 | BH120: 0.44 | BI120: 0.46 | BJ120: -0.02 | BK120: 0.2 | BL120: 0.29 | BM120: =BL120+BK120 -> 0.49 | BN120: 0.36 | BO120: 0.08 | BP120: 0.04 | BQ120: 0.12 | BR120: 0.37 | BS120: 0.27 | BT120: 0.11 | BU120: 0.61 | BV120: =BS120-BT120 -> 0.16 | BW120: 0.42 | BX120: 0.56 | BY120: 0.14 | BZ120: 0.14 | CA120: 0.06 | CB120: =SUM(BZ120:CA120) -> 0.2 | CC120: =SUM(CD120:CF120) -> 0.74 | CD120: 0.08 | CE120: 0.17 | CF120: 0.49 | CG120: 0.07 | CH120: 0.11 | CI120: 0.12 | CJ120: 0.7 | CK120: 0.08 | CL120: 0.15 | CM120: =CL120+CK120 -> 0.23 | CN120: =CO120+CP120 -> 0.77 | CO120: 0.15 | CP120: 0.62 | CQ120: =CN120-CM120 -> 0.54 | CR120: 0.38 | CS120: 0.15 | CT120: 0.13 | CU120: 0.09 | CV120: 0.16 | CW120: 0.81 | CX120: 0.16 | CY120: 0.01 | CZ120: 0.01 | DA120: 0 | DB120: N/A | DC120: N/A | DD120: N/A | DE120: N/A | DF120: N/A | DG120: N/A | DH120: N/A | DI120: N/A | DJ120: N/A | DK120: N/A | DL120: N/A | DM120: N/A | DN120: N/A | DO120: N/A | DP120: N/A | DQ120: N/A | DR120: N/A | DS120: N/A
A121: 2020-04-01 | B121: 63 | C121: 1.9 | D121: 64.9 | E121: 0.23 | F121: 0.34 | G121: 0.36 | H121: -0.11 | I121: -0.1331 | J121: 0.1088 | K121: -0.02023 | L121: 0.33 | M121: 0.23 | N121: 0.35 | O121: -0.1 | P121: N/A | Q121: N/A | R121: 0.16 | S121: 0.32 | T121: 0.48 | U121: 0.25 | V121: 0.21 | W121: 0.46 | X121: 0.02 | Y121: 0.11 | Z121: 0.44 | AA121: 0.13 | AB121: 0.02 | AC121: 0.12 | AD121: 0.17 | AE121: 0.02 | AF121: 0.02 | AG121: 0.06 | AH121: 0.52 | AI121: 0.08 | AJ121: 0.21 | AK121: 0.29 | AL121: 0.38 | AM121: 0.27 | AN121: 0.65 | AO121: -0.36 | AP121: 0.14 | AQ121: 0.29 | AR121: 0.11 | AS121: 0.16 | AT121: 0.15 | AU121: 0.05 | AV121: 0.04 | AW121: 0.04 | AX121: 0.07 | AY121: 0.52 | AZ121: 0.29 | BA121: 0.14 | BB121: 0.49 | BC121: 0.15 | BD121: 0.016519 | BE121: 0.65 | BF121: 0.29 | BG121: 0.36 | BH121: 0.34 | BI121: 0.53 | BJ121: -0.19 | BK121: 0.15 | BL121: 0.25 | BM121: 0.4 | BN121: 0.45 | BO121: 0.08 | BP121: 0.05 | BQ121: 0.13 | BR121: 0.27 | BS121: 0.2 | BT121: 0.21 | BU121: 0.58 | BV121: -0.01 | BW121: 0.4 | BX121: 0.55 | BY121: 0.15 | BZ121: 0.14 | CA121: 0.11 | CB121: 0.25 | CC121: 0.65 | CD121: 0.05 | CE121: 0.17 | CF121: 0.43 | CG121: 0.1 | CH121: 0.12 | CI121: 0.17 | CJ121: 0.55 | CK121: 0.08 | CL121: 0.15 | CM121: 0.23 | CN121: 0.76 | CO121: 0.24 | CP121: 0.52 | CQ121: 0.53 | CR121: 0.38 | CS121: 0.12 | CT121: 0.17 | CU121: 0.09 | CV121: 0.12 | CW121: 0.74 | CX121: 0.12 | CY121: 0.04 | CZ121: 0.07 | DA121: 0.02 | DB121: N/A | DC121: N/A | DD121: N/A | DE121: N/A | DF121: N/A | DG121: N/A | DH121: N/A | DI121: N/A | DJ121: N/A | DK121: N/A | DL121: N/A | DM121: N/A | DN121: N/A | DO121: N/A | DP121: N/A | DQ121: N/A | DR121: N/A | DS121: N/A
A122: 2020-05-01 | B122: 67.5 | C122: 0.8 | D122: 68.3 | E122: 0.26 | F122: 0.35 | G122: 0.3 | H122: -0.09 | I122: -0.1233 | J122: 0.1223 | K122: -0.011357 | L122: 0.25 | M122: 0.25 | N122: 0.43 | O122: 0 | P122: N/A | Q122: N/A | R122: 0.17 | S122: 0.35 | T122: 0.52 | U122: 0.23 | V122: 0.16 | W122: 0.39 | X122: 0.13 | Y122: 0.12 | Z122: 0.5 | AA122: 0.08 | AB122: 0.02 | AC122: 0.14 | AD122: 0.12 | AE122: 0.04 | AF122: 0.06 | AG122: 0.11 | AH122: 0.43 | AI122: 0.07 | AJ122: 0.25 | AK122: 0.32 | AL122: 0.34 | AM122: 0.28 | AN122: 0.62 | AO122: -0.3 | AP122: 0.18 | AQ122: 0.29 | AR122: 0.14 | AS122: 0.08 | AT122: 0.14 | AU122: 0.11 | AV122: 0.02 | AW122: 0.06 | AX122: 0.09 | AY122: 0.52 | AZ122: 0.34 | BA122: 0.13 | BB122: 0.47 | BC122: 0.21 | BD122: 0.020824 | BE122: 0.66 | BF122: 0.28 | BG122: 0.38 | BH122: 0.29 | BI122: 0.6 | BJ122: -0.31 | BK122: 0.15 | BL122: 0.26 | BM122: 0.41 | BN122: 0.42 | BO122: 0.1 | BP122: 0.04 | BQ122: 0.14 | BR122: 0.27 | BS122: 0.18 | BT122: 0.19 | BU122: 0.61 | BV122: -0.01 | BW122: 0.37 | BX122: 0.57 | BY122: 0.2 | BZ122: 0.12 | CA122: 0.05 | CB122: 0.17 | CC122: 0.72 | CD122: 0.14 | CE122: 0.17 | CF122: 0.41 | CG122: 0.08 | CH122: 0.12 | CI122: 0.19 | CJ122: 0.56 | CK122: 0.08 | CL122: 0.16 | CM122: 0.24 | CN122: 0.75 | CO122: 0.24 | CP122: 0.51 | CQ122: 0.51 | CR122: 0.42 | CS122: 0.14 | CT122: 0.14 | CU122: 0.09 | CV122: 0.12 | CW122: 0.73 | CX122: 0.13 | CY122: 0.09 | CZ122: 0.03 | DA122: 0.02 | DB122: N/A | DC122: N/A | DD122: N/A | DE122: N/A | DF122: N/A | DG122: N/A | DH122: N/A | DI122: N/A | DJ122: N/A | DK122: N/A | DL122: N/A | DM122: N/A | DN122: N/A | DO122: N/A | DP122: N/A | DQ122: N/A | DR122: N/A | DS122: N/A
A123: 2020-06-01 | B123: 76.5 | C123: =D123-B123 -> 5.6 | D123: 82.1 | E123: 0.34 | F123: 0.25 | G123: 0.31 | H123: 0.09 | I123: -0.136 | J123: 0.0877 | K123: -0.004182 | L123: 0.32 | M123: 0.17 | N123: 0.42 | O123: -0.15 | P123: N/A | Q123: N/A | R123: 0.2 | S123: 0.41 | T123: 0.61 | U123: 0.16 | V123: 0.11 | W123: 0.27 | X123: 0.34 | Y123: 0.16 | Z123: 0.47 | AA123: 0.07 | AB123: 0.04 | AC123: 0.09 | AD123: 0.18 | AE123: 0.05 | AF123: 0.04 | AG123: 0.04 | AH123: 0.43 | AI123: 0.16 | AJ123: 0.25 | AK123: 0.41 | AL123: 0.3 | AM123: 0.18 | AN123: 0.48 | AO123: -0.07 | AP123: 0.16 | AQ123: 0.32 | AR123: 0.19 | AS123: 0.07 | AT123: 0.1 | AU123: 0.17 | AV123: 0.02 | AW123: 0.06 | AX123: 0.08 | AY123: 0.45 | AZ123: 0.43 | BA123: 0.13 | BB123: 0.35 | BC123: =AZ123-BA123 -> 0.3 | BD123: 0.022084 | BE123: 0.69 | BF123: 0.26 | BG123: =BE123-BF123 -> 0.43 | BH123: 0.33 | BI123: 0.57 | BJ123: =BH123-BI123 -> -0.24 | BK123: 0.15 | BL123: 0.26 | BM123: 0.41 | BN123: 0.44 | BO123: 0.08 | BP123: 0.04 | BQ123: =BO123+BP123 -> 0.12 | BR123: =BM123-BQ123 -> 0.29 | BS123: 0.25 | BT123: 0.16 | BU123: 0.58 | BV123: 0.09 | BW123: 0.38 | BX123: 0.55 | BY123: =BX123-BW123 -> 0.17 | BZ123: 0.16 | CA123: 0.1 | CB123: 0.26 | CC123: 0.66 | CD123: 0.13 | CE123: 0.18 | CF123: 0.35 | CG123: 0.08 | CH123: 0.14 | CI123: 0.16 | CJ123: 0.58 | CK123: 0.07 | CL123: 0.19 | CM123: 0.26 | CN123: 0.74 | CO123: 0.21 | CP123: 0.53 | CQ123: 0.48 | CR123: 0.4 | CS123: 0.13 | CT123: 0.15 | CU123: 0.08 | CV123: 0.12 | CW123: 0.76 | CX123: 0.15 | CY123: 0.06 | CZ123: 0.01 | DA123: 0.02 | DB123: N/A | DC123: N/A | DD123: N/A | DE123: N/A | DF123: N/A | DG123: N/A | DH123: N/A | DI123: N/A | DJ123: N/A | DK123: N/A | DL123: N/A | DM123: N/A | DN123: N/A | DO123: N/A | DP123: N/A | DQ123: N/A | DR123: N/A | DS123: N/A
A124: 2020-07-01 | B124: =ROUND(63.5+100*(T124-W124+AK124-AN124+E124-F124+M124-L124+BS124-BT124+CN124-CM124)/6,1) -> 74.2 | C124: 5.9 | D124: =ROUND(63.5+100*(T124-W124+AK124-AN124+E124-F124+BS124-BT124+CN124-CM124)/5,1) -> 80.1 | E124: 0.35 | F124: 0.23 | G124: 0.34 | H124: =E124-F124 -> 0.12 | I124: -0.1055 | J124: 0.0802 | K124: 0.003805 | L124: 0.35 | M124: 0.16 | N124: 0.42 | O124: -0.19 | P124: N/A | Q124: N/A | R124: 0.19 | S124: 0.34 | T124: 0.53 | U124: 0.25 | V124: 0.13 | W124: 0.38 | X124: 0.15 | Y124: 0.13 | Z124: 0.47 | AA124: 0.15 | AB124: 0.03 | AC124: 0.12 | AD124: 0.21 | AE124: 0.04 | AF124: 0.04 | AG124: 0.09 | AH124: 0.47 | AI124: 0.16 | AJ124: 0.29 | AK124: 0.45 | AL124: 0.32 | AM124: 0.16 | AN124: 0.48 | AO124: -0.03 | AP124: 0.22 | AQ124: 0.31 | AR124: 0.18 | AS124: 0.06 | AT124: 0.15 | AU124: 0.14 | AV124: 0.02 | AW124: 0.08 | AX124: 0.07 | AY124: 0.57 | AZ124: 0.45 | BA124: 0.11 | BB124: 0.4 | BC124: 0.34 | BD124: 0.029669 | BE124: 0.7 | BF124: 0.26 | BG124: 0.44 | BH124: 0.34 | BI124: 0.56 | BJ124: -0.22 | BK124: 0.18 | BL124: 0.22 | BM124: 0.4 | BN124: 0.43 | BO124: 0.1 | BP124: 0.03 | BQ124: 0.13 | BR124: 0.27 | BS124: 0.22 | BT124: 0.16 | BU124: 0.62 | BV124: 0.06 | BW124: 0.38 | BX124: 0.58 | BY124: 0.2 | BZ124: 0.13 | CA124: 0.03 | CB124: 0.16 | CC124: 0.77 | CD124: 0.09 | CE124: 0.16 | CF124: 0.52 | CG124: 0.07 | CH124: 0.12 | CI124: 0.15 | CJ124: 0.63 | CK124: 0.07 | CL124: 0.16 | CM124: 0.23 | CN124: 0.76 | CO124: 0.19 | CP124: 0.57 | CQ124: 0.53 | CR124: 0.42 | CS124: 0.12 | CT124: 0.14 | CU124: 0.08 | CV124: 0.13 | CW124: 0.76 | CX124: 0.14 | CY124: 0.08 | CZ124: 0.01 | DA124: 0.01 | DB124: N/A | DC124: N/A | DD124: N/A | DE124: N/A | DF124: N/A | DG124: N/A | DH124: N/A | DI124: N/A | DJ124: N/A | DK124: N/A | DL124: N/A | DM124: N/A | DN124: N/A | DO124: N/A | DP124: N/A | DQ124: N/A | DR124: N/A | DS124: N/A
A125: 2020-08-01 | B125: 77.5 | C125: 6 | D125: 83.5 | E125: 0.33 | F125: 0.26 | G125: 0.34 | H125: 0.07 | I125: -0.136 | J125: 0.0823 | K125: -0.008201 | L125: 0.33 | M125: 0.17 | N125: 0.45 | O125: =M125-L125 -> -0.16 | P125: N/A | Q125: N/A | R125: 0.21 | S125: 0.38 | T125: =S125+R125 -> 0.59 | U125: 0.2 | V125: 0.15 | W125: =V125+U125 -> 0.35 | X125: =T125-W125 -> 0.24 | Y125: 0.13 | Z125: 0.51 | AA125: 0.12 | AB125: 0.03 | AC125: 0.08 | AD125: 0.24 | AE125: 0.04 | AF125: 0.05 | AG125: 0.07 | AH125: 0.44 | AI125: 0.22 | AJ125: 0.26 | AK125: =AJ125+AI125 -> 0.48 | AL125: 0.24 | AM125: 0.2 | AN125: =AM125+AL125 -> 0.44 | AO125: =AK125-AN125 -> 0.04 | AP125: 0.25 | AQ125: 0.28 | AR125: 0.2 | AS125: 0.06 | AT125: 0.09 | AU125: 0.13 | AV125: 0.05 | AW125: 0.09 | AX125: 0.11 | AY125: 0.47 | AZ125: 0.49 | BA125: 0.12 | BB125: 0.33 | BC125: 0.37 | BD125: 0.041517 | BE125: 0.69 | BF125: 0.26 | BG125: 0.43 | BH125: 0.31 | BI125: 0.6 | BJ125: -0.29 | BK125: 0.18 | BL125: 0.26 | BM125: =BL125+BK125 -> 0.44 | BN125: 0.39 | BO125: 0.08 | BP125: 0.05 | BQ125: 0.13 | BR125: 0.31 | BS125: 0.25 | BT125: 0.16 | BU125: 0.59 | BV125: =BS125-BT125 -> 0.09 | BW125: 0.39 | BX125: 0.58 | BY125: 0.19 | BZ125: 0.14 | CA125: 0.06 | CB125: =SUM(BZ125:CA125) -> 0.2 | CC125: =SUM(CD125:CF125) -> 0.73 | CD125: 0.12 | CE125: 0.16 | CF125: 0.45 | CG125: 0.09 | CH125: 0.11 | CI125: 0.14 | CJ125: 0.62 | CK125: 0.08 | CL125: 0.14 | CM125: =CL125+CK125 -> 0.22 | CN125: =CO125+CP125 -> 0.78 | CO125: 0.2 | CP125: 0.58 | CQ125: =CN125-CM125 -> 0.56 | CR125: 0.43 | CS125: 0.15 | CT125: 0.13 | CU125: 0.07 | CV125: 0.1 | CW125: 0.77 | CX125: 0.16 | CY125: 0.05 | CZ125: 0.02 | DA125: 0.01 | DB125: N/A | DC125: N/A | DD125: N/A | DE125: N/A | DF125: N/A | DG125: N/A | DH125: N/A | DI125: N/A | DJ125: N/A | DK125: N/A | DL125: N/A | DM125: N/A | DN125: N/A | DO125: N/A | DP125: N/A | DQ125: N/A | DR125: N/A | DS125: N/A
A126: 2020-09-01 | B126: 81 | C126: 8.9 | D126: 89.9 | E126: 0.41 | F126: 0.17 | G126: 0.34 | H126: 0.24 | I126: -0.1011 | J126: 0.0951 | K126: 0.021804 | L126: 0.38 | M126: 0.11 | N126: 0.44 | O126: -0.27 | P126: N/A | Q126: N/A | R126: 0.21 | S126: 0.33 | T126: 0.54 | U126: 0.23 | V126: 0.15 | W126: 0.38 | X126: 0.16 | Y126: 0.13 | Z126: 0.5 | AA126: 0.12 | AB126: 0.03 | AC126: 0.09 | AD126: 0.32 | AE126: 0.04 | AF126: 0.06 | AG126: 0.03 | AH126: 0.38 | AI126: 0.27 | AJ126: 0.29 | AK126: 0.56 | AL126: 0.26 | AM126: 0.12 | AN126: 0.38 | AO126: 0.18 | AP126: 0.23 | AQ126: 0.24 | AR126: 0.18 | AS126: 0.07 | AT126: 0.09 | AU126: 0.14 | AV126: 0.02 | AW126: 0.08 | AX126: 0.11 | AY126: 0.46 | AZ126: 0.45 | BA126: 0.09 | BB126: 0.4 | BC126: 0.36 | BD126: 0.03393 | BE126: 0.71 | BF126: 0.24 | BG126: 0.47 | BH126: 0.4 | BI126: 0.53 | BJ126: -0.13 | BK126: 0.2 | BL126: 0.27 | BM126: 0.47 | BN126: 0.39 | BO126: 0.07 | BP126: 0.03 | BQ126: 0.1 | BR126: 0.37 | BS126: 0.24 | BT126: 0.17 | BU126: 0.59 | BV126: 0.07 | BW126: 0.4 | BX126: 0.57 | BY126: 0.17 | BZ126: 0.16 | CA126: 0.1 | CB126: 0.26 | CC126: 0.68 | CD126: 0.07 | CE126: 0.09 | CF126: 0.52 | CG126: 0.07 | CH126: 0.08 | CI126: 0.18 | CJ126: 0.63 | CK126: 0.05 | CL126: 0.11 | CM126: 0.16 | CN126: 0.83 | CO126: 0.26 | CP126: 0.57 | CQ126: 0.67 | CR126: 0.41 | CS126: 0.12 | CT126: 0.18 | CU126: 0.07 | CV126: 0.12 | CW126: 0.73 | CX126: 0.21 | CY126: 0.05 | CZ126: 0.01 | DA126: 0.01 | DB126: N/A | DC126: N/A | DD126: N/A | DE126: N/A | DF126: N/A | DG126: N/A | DH126: N/A | DI126: N/A | DJ126: N/A | DK126: N/A | DL126: N/A | DM126: N/A | DN126: N/A | DO126: N/A | DP126: N/A | DQ126: N/A | DR126: N/A | DS126: N/A
A127: 2020-10-01 | B127: 81.7 | C127: 7.8 | D127: 89.5 | E127: 0.4 | F127: 0.2 | G127: 0.31 | H127: 0.2 | I127: -0.1152 | J127: 0.0709 | K127: 0.00532 | L127: 0.32 | M127: 0.11 | N127: 0.49 | O127: -0.21 | P127: N/A | Q127: N/A | R127: 0.23 | S127: 0.37 | T127: 0.6 | U127: 0.21 | V127: 0.14 | W127: 0.35 | X127: 0.25 | Y127: 0.13 | Z127: 0.51 | AA127: 0.12 | AB127: 0.03 | AC127: 0.11 | AD127: 0.3 | AE127: 0.04 | AF127: 0.07 | AG127: 0.05 | AH127: 0.38 | AI127: 0.28 | AJ127: 0.31 | AK127: 0.59 | AL127: 0.23 | AM127: 0.12 | AN127: 0.35 | AO127: 0.24 | AP127: 0.29 | AQ127: 0.24 | AR127: 0.16 | AS127: 0.07 | AT127: 0.11 | AU127: 0.13 | AV127: 0.04 | AW127: 0.13 | AX127: 0.09 | AY127: 0.46 | AZ127: 0.46 | BA127: 0.08 | BB127: 0.39 | BC127: 0.38 | BD127: 0.031594 | BE127: 0.69 | BF127: 0.27 | BG127: 0.42 | BH127: 0.39 | BI127: 0.51 | BJ127: -0.12 | BK127: 0.19 | BL127: 0.22 | BM127: 0.41 | BN127: 0.41 | BO127: 0.08 | BP127: 0.04 | BQ127: 0.12 | BR127: 0.29 | BS127: 0.23 | BT127: 0.2 | BU127: 0.55 | BV127: 0.03 | BW127: 0.38 | BX127: 0.59 | BY127: 0.21 | BZ127: 0.17 | CA127: 0.06 | CB127: 0.23 | CC127: 0.7 | CD127: 0.09 | CE127: 0.1 | CF127: 0.51 | CG127: 0.09 | CH127: 0.1 | CI127: 0.13 | CJ127: 0.64 | CK127: 0.07 | CL127: 0.14 | CM127: 0.21 | CN127: 0.79 | CO127: 0.17 | CP127: 0.62 | CQ127: 0.58 | CR127: 0.42 | CS127: 0.12 | CT127: 0.17 | CU127: 0.07 | CV127: 0.11 | CW127: 0.77 | CX127: 0.16 | CY127: 0.05 | CZ127: 0.02 | DA127: 0 | DB127: N/A | DC127: N/A | DD127: N/A | DE127: N/A | DF127: N/A | DG127: N/A | DH127: N/A | DI127: N/A | DJ127: N/A | DK127: N/A | DL127: N/A | DM127: N/A | DN127: N/A | DO127: N/A | DP127: N/A | DQ127: N/A | DR127: N/A | DS127: N/A
A128: 2020-11-01 | B128: 80 | C128: =D128-B128 -> 10.3 | D128: 90.3 | E128: 0.41 | F128: 0.13 | G128: 0.35 | H128: 0.28 | I128: -0.105 | J128: 0.0915 | K128: 0.023865 | L128: 0.43 | M128: 0.08 | N128: 0.4 | O128: -0.35 | P128: N/A | Q128: N/A | R128: 0.21 | S128: 0.36 | T128: 0.57 | U128: 0.24 | V128: 0.11 | W128: 0.35 | X128: 0.22 | Y128: 0.12 | Z128: 0.53 | AA128: 0.11 | AB128: 0.03 | AC128: 0.1 | AD128: 0.29 | AE128: 0.01 | AF128: 0.05 | AG128: 0.05 | AH128: 0.44 | AI128: 0.25 | AJ128: 0.34 | AK128: 0.59 | AL128: 0.22 | AM128: 0.11 | AN128: 0.33 | AO128: 0.26 | AP128: 0.24 | AQ128: 0.26 | AR128: 0.19 | AS128: 0.07 | AT128: 0.14 | AU128: 0.15 | AV128: 0.06 | AW128: 0.14 | AX128: 0.08 | AY128: 0.44 | AZ128: 0.52 | BA128: 0.09 | BB128: 0.34 | BC128: =AZ128-BA128 -> 0.43 | BD128: 0.041953 | BE128: 0.67 | BF128: 0.29 | BG128: =BE128-BF128 -> 0.38 | BH128: 0.42 | BI128: 0.48 | BJ128: =BH128-BI128 -> -0.06 | BK128: 0.18 | BL128: 0.22 | BM128: 0.4 | BN128: 0.41 | BO128: 0.06 | BP128: 0.07 | BQ128: =BO128+BP128 -> 0.13 | BR128: =BM128-BQ128 -> 0.27 | BS128: 0.24 | BT128: 0.18 | BU128: 0.57 | BV128: 0.06 | BW128: 0.35 | BX128: 0.62 | BY128: =BX128-BW128 -> 0.27 | BZ128: 0.13 | CA128: 0.07 | CB128: 0.2 | CC128: 0.76 | CD128: 0.13 | CE128: 0.12 | CF128: 0.51 | CG128: 0.1 | CH128: 0.1 | CI128: 0.17 | CJ128: 0.6 | CK128: 0.1 | CL128: 0.14 | CM128: 0.24 | CN128: 0.76 | CO128: 0.24 | CP128: 0.52 | CQ128: 0.52 | CR128: 0.41 | CS128: 0.12 | CT128: 0.16 | CU128: 0.08 | CV128: 0.11 | CW128: 0.74 | CX128: 0.17 | CY128: 0.06 | CZ128: 0.01 | DA128: 0.01 | DB128: N/A | DC128: N/A | DD128: N/A | DE128: N/A | DF128: N/A | DG128: N/A | DH128: N/A | DI128: N/A | DJ128: N/A | DK128: N/A | DL128: N/A | DM128: N/A | DN128: N/A | DO128: N/A | DP128: N/A | DQ128: N/A | DR128: N/A | DS128: N/A
A129: 2020-12-01 | B129: =ROUND(63.5+100*(T129-W129+AK129-AN129+E129-F129+M129-L129+BS129-BT129+CN129-CM129)/6,1) -> 74 | C129: =D129-B129 -> 9.1 | D129: =ROUND(63.5+100*(T129-W129+AK129-AN129+E129-F129+BS129-BT129+CN129-CM129)/5,1) -> 83.1 | E129: 0.41 | F129: 0.16 | G129: 0.34 | H129: =E129-F129 -> 0.25 | I129: -0.1079 | J129: 0.0932 | K129: 0.020948 | L129: 0.43 | M129: 0.08 | N129: 0.39 | O129: -0.35 | P129: N/A | Q129: N/A | R129: 0.18 | S129: 0.34 | T129: 0.52 | U129: 0.23 | V129: 0.16 | W129: 0.39 | X129: 0.13 | Y129: 0.09 | Z129: 0.53 | AA129: 0.13 | AB129: 0.03 | AC129: 0.09 | AD129: 0.28 | AE129: 0.02 | AF129: 0.07 | AG129: 0.07 | AH129: 0.4 | AI129: 0.25 | AJ129: 0.25 | AK129: 0.5 | AL129: 0.28 | AM129: 0.14 | AN129: 0.42 | AO129: 0.08 | AP129: 0.28 | AQ129: 0.22 | AR129: 0.2 | AS129: 0.1 | AT129: 0.09 | AU129: 0.09 | AV129: 0.04 | AW129: 0.11 | AX129: 0.11 | AY129: 0.49 | AZ129: 0.47 | BA129: 0.09 | BB129: 0.39 | BC129: =AZ129-BA129 -> 0.38 | BD129: 0.039732 | BE129: 0.62 | BF129: 0.3 | BG129: =BE129-BF129 -> 0.32 | BH129: 0.36 | BI129: 0.55 | BJ129: =BH129-BI129 -> -0.19 | BK129: 0.13 | BL129: 0.28 | BM129: 0.41 | BN129: 0.39 | BO129: 0.09 | BP129: 0.07 | BQ129: =BO129+BP129 -> 0.16 | BR129: =BM129-BQ129 -> 0.25 | BS129: 0.2 | BT129: 0.18 | BU129: 0.61 | BV129: 0.02 | BW129: 0.38 | BX129: 0.56 | BY129: =BX129-BW129 -> 0.18 | BZ129: 0.18 | CA129: 0.07 | CB129: 0.25 | CC129: 0.68 | CD129: 0.12 | CE129: 0.16 | CF129: 0.4 | CG129: 0.09 | CH129: 0.12 | CI129: 0.17 | CJ129: 0.6 | CK129: 0.09 | CL129: 0.16 | CM129: 0.25 | CN129: 0.75 | CO129: 0.21 | CP129: 0.54 | CQ129: 0.5 | CR129: 0.38 | CS129: 0.11 | CT129: 0.14 | CU129: 0.09 | CV129: 0.14 | CW129: 0.79 | CX129: 0.14 | CY129: 0.03 | CZ129: 0.01 | DA129: 0.02 | DB129: N/A | DC129: N/A | DD129: N/A | DE129: N/A | DF129: N/A | DG129: N/A | DH129: N/A | DI129: N/A | DJ129: N/A | DK129: N/A | DL129: N/A | DM129: N/A | DN129: N/A | DO129: N/A | DP129: N/A | DQ129: N/A | DR129: N/A | DS129: N/A
A130: 2021-01-01 | B130: =ROUND(63.5+100*(T130-W130+AK130-AN130+E130-F130+M130-L130+BS130-BT130+CN130-CM130)/6,1) -> 77.7 | C130: =D130-B130 -> 10 | D130: =ROUND(63.5+100*(T130-W130+AK130-AN130+E130-F130+BS130-BT130+CN130-CM130)/5,1) -> 87.7 | E130: 0.41 | F130: 0.17 | G130: 0.34 | H130: =E130-F130 -> 0.24 | I130: -0.1294 | J130: 0.0899 | K130: 0.014861 | L130: 0.45 | M130: 0.09 | N130: 0.37 | O130: =M130-L130 -> -0.36 | P130: N/A | Q130: N/A | R130: 0.18 | S130: 0.34 | T130: =S130+R130 -> 0.52 | U130: 0.22 | V130: 0.15 | W130: =V130+U130 -> 0.37 | X130: =T130-W130 -> 0.15 | Y130: 0.11 | Z130: 0.53 | AA130: 0.13 | AB130: 0.03 | AC130: 0.08 | AD130: 0.38 | AE130: 0.01 | AF130: 0.06 | AG130: 0.07 | AH130: 0.38 | AI130: 0.29 | AJ130: 0.28 | AK130: =AJ130+AI130 -> 0.57 | AL130: 0.21 | AM130: 0.12 | AN130: =AM130+AL130 -> 0.33 | AO130: =AK130-AN130 -> 0.24 | AP130: 0.29 | AQ130: 0.21 | AR130: 0.2 | AS130: 0.09 | AT130: 0.08 | AU130: 0.16 | AV130: 0.04 | AW130: 0.08 | AX130: 0.09 | AY130: 0.49 | AZ130: 0.5 | BA130: 0.09 | BB130: 0.34 | BC130: =AZ130-BA130 -> 0.41 | BD130: 0.037071 | BE130: 0.7 | BF130: 0.25 | BG130: =BE130-BF130 -> 0.45 | BH130: 0.29 | BI130: 0.58 | BJ130: =BH130-BI130 -> -0.29 | BK130: 0.15 | BL130: 0.26 | BM130: =BL130+BK130 -> 0.41 | BN130: 0.39 | BO130: 0.09 | BP130: 0.07 | BQ130: =BO130+BP130 -> 0.16 | BR130: =BM130-BQ130 -> 0.25 | BS130: 0.21 | BT130: 0.14 | BU130: 0.64 | BV130: =BS130-BT130 -> 0.07 | BW130: 0.38 | BX130: 0.57 | BY130: =BX130-BW130 -> 0.19 | BZ130: N/A | CA130: N/A | CB130: N/A | CC130: N/A | CD130: N/A | CE130: N/A | CF130: N/A | CG130: 0.07 | CH130: 0.13 | CI130: 0.16 | CJ130: 0.6 | CK130: 0.06 | CL130: 0.18 | CM130: =CL130+CK130 -> 0.24 | CN130: =CO130+CP130 -> 0.75 | CO130: 0.23 | CP130: 0.52 | CQ130: =CN130-CM130 -> 0.51 | CR130: 0.38 | CS130: 0.15 | CT130: 0.18 | CU130: 0.06 | CV130: 0.11 | CW130: 0.79 | CX130: 0.14 | CY130: 0.04 | CZ130: 0.02 | DA130: 0.01 | DB130: N/A | DC130: N/A | DD130: N/A | DE130: N/A | DF130: N/A | DG130: N/A | DH130: N/A | DI130: N/A | DJ130: N/A | DK130: N/A | DL130: N/A | DM130: N/A | DN130: N/A | DO130: N/A | DP130: N/A | DQ130: N/A | DR130: N/A | DS130: N/A
A131: 2021-02-01 | B131: =ROUND(63.5+100*(T131-W131+AK131-AN131+E131-F131+M131-L131+BS131-BT131+CN131-CM131)/6,1) -> 76.5 | C131: =D131-B131 -> 10.4 | D131: =ROUND(63.5+100*(T131-W131+AK131-AN131+E131-F131+BS131-BT131+CN131-CM131)/5,1) -> 86.9 | E131: 0.47 | F131: 0.18 | G131: 0.29 | H131: =E131-F131 -> 0.29 | I131: -0.139 | J131: 0.0935 | K131: 0.018925 | L131: 0.47 | M131: 0.08 | N131: 0.38 | O131: =M131-L131 -> -0.39 | P131: N/A | Q131: N/A | R131: 0.16 | S131: 0.32 | T131: =S131+R131 -> 0.48 | U131: 0.25 | V131: 0.18 | W131: =V131+U131 -> 0.43 | X131: =T131-W131 -> 0.05 | Y131: 0.13 | Z131: 0.51 | AA131: 0.11 | AB131: 0.04 | AC131: 0.11 | AD131: 0.27 | AE131: 0.01 | AF131: 0.09 | AG131: 0.05 | AH131: 0.41 | AI131: 0.26 | AJ131: 0.29 | AK131: =AJ131+AI131 -> 0.55 | AL131: 0.21 | AM131: 0.14 | AN131: =AM131+AL131 -> 0.35 | AO131: =AK131-AN131 -> 0.2 | AP131: 0.33 | AQ131: 0.21 | AR131: 0.18 | AS131: 0.04 | AT131: 0.1 | AU131: 0.12 | AV131: 0.03 | AW131: 0.1 | AX131: 0.07 | AY131: 0.5 | AZ131: 0.58 | BA131: 0.07 | BB131: 0.3 | BC131: =AZ131-BA131 -> 0.51 | BD131: 0.053277 | BE131: 0.67 | BF131: 0.27 | BG131: =BE131-BF131 -> 0.4 | BH131: 0.34 | BI131: 0.52 | BJ131: =BH131-BI131 -> -0.18 | BK131: 0.18 | BL131: 0.21 | BM131: =BL131+BK131 -> 0.39 | BN131: 0.41 | BO131: 0.09 | BP131: 0.08 | BQ131: =BO131+BP131 -> 0.17 | BR131: =BM131-BQ131 -> 0.22 | BS131: 0.17 | BT131: 0.19 | BU131: 0.61 | BV131: =BS131-BT131 -> -0.02 | BW131: 0.43 | BX131: 0.54 | BY131: =BX131-BW131 -> 0.11 | BZ131: N/A | CA131: N/A | CB131: N/A | CC131: N/A | CD131: N/A | CE131: N/A | CF131: N/A | CG131: N/A | CH131: N/A | CI131: N/A | CJ131: N/A | CK131: 0.05 | CL131: 0.12 | CM131: =CL131+CK131 -> 0.17 | CN131: =CO131+CP131 -> 0.82 | CO131: 0.19 | CP131: 0.63 | CQ131: =CN131-CM131 -> 0.65 | CR131: 0.4 | CS131: 0.14 | CT131: 0.13 | CU131: 0.09 | CV131: 0.11 | CW131: 0.78 | CX131: 0.1 | CY131: 0.08 | CZ131: 0.03 | DA131: 0.01 | DB131: N/A | DC131: N/A | DD131: N/A | DE131: N/A | DF131: N/A | DG131: N/A | DH131: N/A | DI131: N/A | DJ131: N/A | DK131: N/A | DL131: N/A | DM131: N/A | DN131: N/A | DO131: N/A | DP131: N/A | DQ131: N/A | DR131: N/A | DS131: N/A
A132: Min | B132: =MIN(B3:B131) -> 59.3 | C132: 0.8 | D132: 64.3 | E132: 0.18 | F132: 0.05 | G132: 0.29 | H132: -0.11 | I132: -0.139 | J132: 0.0589 | K132: -0.02023 | L132: 0.25 | M132: 0.03 | N132: 0.25 | O132: -0.6 | P132: 0.0342 | Q132: 0.0401 | R132: 0.12 | S132: 0.29 | T132: 0.48 | U132: 0.12 | V132: 0.06 | W132: 0.19 | X132: 0.02 | Y132: 0.07 | Z132: 0.23 | AA132: 0.07 | AB132: 0.01 | AC132: 0.06 | AD132: 0.12 | AE132: 0.01 | AF132: 0.01 | AG132: 0.03 | AH132: =MIN(AH3:AH131) -> 0.13 | AI132: 0.01 | AJ132: 0.06 | AK132: 0.08 | AL132: 0.15 | AM132: 0.04 | AN132: 0.21 | AO132: -0.8 | AP132: 0.1 | AQ132: 0.11 | AR132: 0.08 | AS132: 0.04 | AT132: 0.08 | AU132: 0.05 | AV132: 0.02 | AW132: 0.04 | AX132: 0.07 | AY132: 0.18 | AZ132: 0.29 | BA132: 0.01 | BB132: 0.26 | BC132: 0.15 | BD132: 0.016519 | BE132: 0.6 | BF132: 0.24 | BG132: 0.26 | BH132: 0.14 | BI132: 0.33 | BJ132: -0.64 | BK132: 0.09 | BL132: 0.21 | BM132: 0.35 | BN132: =MIN(BN3:BN131) -> 0.34 | BO132: 0.04 | BP132: 0.02 | BQ132: 0.07 | BR132: 0.14 | BS132: 0.17 | BT132: 0.07 | BU132: 0.54 | BV132: -0.03 | BW132: 0.35 | BX132: 0.4 | BY132: -0.17 | BZ132: 0.1 | CA132: 0.03 | CB132: 0.15 | CC132: 0.62 | CD132: 0.05 | CE132: 0.09 | CF132: 0.28 | CG132: 0.03 | CH132: 0.05 | CI132: 0.1 | CJ132: 0.55 | CK132: 0.02 | CL132: 0.06 | CM132: 0.09 | CN132: 0.72 | CO132: 0.14 | CP132: 0.49 | CQ132: 0.44 | CR132: 0.34 | CS132: 0.06 | CT132: =MIN(CT3:CT131) -> 0.11 | CU132: 0.05 | CV132: 0.06 | CW132: 0.72 | CX132: 0.1 | CY132: 0.01 | CZ132: 0 | DA132: 0 | DB132: 0.1 | DC132: 0.77 | DD132: 0.17 | DE132: 0.73 | DF132: 0.34 | DG132: 0.16 | DH132: 0.56 | DI132: 0.07 | DJ132: 0.03 | DK132: 0.01 | DL132: 0.01 | DM132: 264368.85 | DN132: 180000 | DO132: 0.08 | DP132: 0.24 | DQ132: 0.2 | DR132: 0.05 | DS132: 0.04
A133: Max | B133: =MAX(B3:B131) -> 93.8 | C133: 16.2 | D133: 107.9 | E133: 0.58 | F133: 0.35 | G133: 0.55 | H133: 0.52 | I133: -0.055 | J133: 0.1223 | K133: 0.039467 | L133: 0.64 | M133: 0.25 | N133: 0.51 | O133: 0 | P133: 0.0483 | Q133: 0.0542 | R133: 0.4 | S133: 0.53 | T133: 0.76 | U133: 0.27 | V133: 0.21 | W133: 0.46 | X133: 0.57 | Y133: 0.29 | Z133: 0.53 | AA133: 0.25 | AB133: 0.09 | AC133: 0.31 | AD133: 0.55 | AE133: 0.16 | AF133: 0.11 | AG133: 0.24 | AH133: =MAX(AH3:AH131) -> 0.53 | AI133: 0.31 | AJ133: 0.45 | AK133: 0.69 | AL133: 0.44 | AM133: 0.56 | AN133: 0.89 | AO133: 0.47 | AP133: 0.33 | AQ133: 0.37 | AR133: 0.2 | AS133: 0.16 | AT133: 0.28 | AU133: 0.33 | AV133: 0.14 | AW133: 0.27 | AX133: 0.21 | AY133: 0.57 | AZ133: 0.65 | BA133: 0.14 | BB133: 0.52 | BC133: 0.62 | BD133: 0.056488 | BE133: 0.71 | BF133: 0.35 | BG133: 0.47 | BH133: 0.61 | BI133: 0.79 | BJ133: 0.28 | BK133: 0.27 | BL133: 0.35 | BM133: 0.54 | BN133: =MAX(BN3:BN131) -> 0.46 | BO133: 0.15 | BP133: 0.09 | BQ133: 0.22 | BR133: 0.46 | BS133: 0.34 | BT133: 0.21 | BU133: 0.66 | BV133: 0.27 | BW133: 0.57 | BX133: 0.62 | BY133: 0.27 | BZ133: 0.22 | CA133: 0.16 | CB133: 0.33 | CC133: 0.78 | CD133: 0.24 | CE133: 0.24 | CF133: 0.55 | CG133: 0.1 | CH133: 0.15 | CI133: 0.19 | CJ133: 0.78 | CK133: 0.11 | CL133: 0.19 | CM133: 0.28 | CN133: 0.9 | CO133: 0.26 | CP133: 0.76 | CQ133: 0.81 | CR133: 0.5 | CS133: 0.17 | CT133: =MAX(CT3:CT131) -> 0.19 | CU133: 0.1 | CV133: 0.19 | CW133: 0.86 | CX133: 0.21 | CY133: 0.09 | CZ133: 0.07 | DA133: 0.03 | DB133: 0.2 | DC133: 0.88 | DD133: 0.26 | DE133: 0.82 | DF133: 0.68 | DG133: 0.27 | DH133: 0.87 | DI133: 0.2 | DJ133: 0.24 | DK133: 0.15 | DL133: 0.11 | DM133: 512066.29 | DN133: 275000 | DO133: 0.2 | DP133: 0.36 | DQ133: 0.3 | DR133: 0.12 | DS133: 0.13
A134: St. Dev. | B134: =STDEV(B3:B131) -> 8.847448318 | C134: 3.464838992 | D134: 11.68975694 | E134: 0.09345113862 | F134: 0.06113311502 | G134: 0.0626802633 | H134: 0.1482085776 | I134: 0.0157657 | J134: 0.01027389073 | K134: 0.0118935633 | L134: 0.08698832954 | M134: 0.038572047 | N134: 0.06496924586 | O134: 0.1172959221 | P134: 0.003431805135 | Q134: 0.003974743688 | R134: 0.07899923645 | S134: 0.05556996341 | T134: 0.0615108746 | U134: 0.03593352902 | V134: 0.02384721028 | W134: 0.04754358466 | X134: 0.1072147265 | Y134: 0.05647027294 | Z134: 0.07374901533 | AA134: 0.03867176771 | AB134: 0.01528500103 | AC134: 0.06591347596 | AD134: 0.1201140078 | AE134: 0.02856859208 | AF134: 0.02353143205 | AG134: 0.04074761002 | AH134: =STDEV(AH3:AH131) -> 0.1097527168 | AI134: 0.09084837814 | AJ134: 0.1172793471 | AK134: 0.1962623435 | AL134: 0.08107457209 | AM134: 0.1638453181 | AN134: 0.2231039567 | AO134: 0.41906531 | AP134: 0.05851258999 | AQ134: 0.06914921469 | AR134: 0.02595765389 | AS134: 0.0193035004 | AT134: 0.04716855222 | AU134: 0.06281285335 | AV134: 0.02785441137 | AW134: 0.04335961462 | AX134: 0.0322092558 | AY134: 0.07754763932 | AZ134: 0.06690422186 | BA134: 0.02477906249 | BB134: 0.05484131884 | BC134: 0.08592738224 | BD134: 0.006492018637 | BE134: 0.02135235268 | BF134: 0.02127563433 | BG134: 0.0412821404 | BH134: 0.09581409901 | BI134: 0.1044614047 | BJ134: 0.1991011171 | BK134: 0.03514211871 | BL134: 0.02423939871 | BM134: 0.04392159042 | BN134: =STDEV(BN3:BN131) -> 0.02490704618 | BO134: 0.02256074917 | BP134: 0.01388194271 | BQ134: 0.03290022649 | BR134: 0.07275225096 | BS134: 0.0378582692 | BT134: 0.03496381712 | BU134: 0.02444093894 | BV134: 0.06869324648 | BW134: 0.06071112419 | BX134: 0.05799531774 | BY134: 0.1182439237 | BZ134: 0.02522514542 | CA134: 0.02804731125 | CB134: 0.03375326043 | CC134: 0.03140862441 | CD134: 0.04285537221 | CE134: 0.02918871361 | CF134: 0.06337910055 | CG134: 0.01946551152 | CH134: 0.02497342271 | CI134: 0.02098622387 | CJ134: 0.05848829128 | CK134: 0.02070044452 | CL134: 0.03446916375 | CM134: 0.0504350124 | CN134: 0.05020936558 | CO134: 0.0300251995 | CP134: 0.06908992233 | CQ134: 0.1003896819 | CR134: 0.02854681711 | CS134: 0.01792882788 | CT134: =STDEV(CT3:CT131) -> 0.01842958784 | CU134: 0.0117252392 | CV134: 0.02220610109 | CW134: 0.03042098891 | CX134: 0.02210874374 | CY134: 0.01644537144 | CZ134: 0.009520372477 | DA134: 0.006840431281 | DB134: 0.02106363176 | DC134: 0.02585029954 | DD134: 0.01924284649 | DE134: 0.01875294401 | DF134: 0.07582981065 | DG134: 0.02447090771 | DH134: 0.08095209571 | DI134: 0.03341188304 | DJ134: 0.05645002785 | DK134: 0.03359175192 | DL134: 0.0258060004 | DM134: 55453.27352 | DN134: 21855.29281 | DO134: 0.02643527056 | DP134: 0.0229492193 | DQ134: 0.02504584033 | DR134: 0.01470760774 | DS134: 0.01726154061

Sheet Month-to-Month Change
B1: Home Purchase Sentiment Index | D1: Share of respondents who say home prices will go up/go down/stay the same in the next 12 months (15) | H1: Average Home Price Decrease Expectation (Q16) | I1: Average Home Price Increase Expectation (Q17) | J1: Average Home Price Change Expectation | K1: Share of respondents who say mortgage rates will go up/go down/stay the same in the next 12 months (20B) | P1: With current Freddie Mac rate provided (20F) | Q1: Share of respondents who say it is a good time to buy (12) | X1: Please tell me the primary reason why you think this is a good time to buy a house (12b) | AC1: Please tell me the primary reason why you think this is a bad time to buy a house (12c) | AH1: Share of respondents who say it is a good time to sell (13) | AO1: Please tell me the primary reason why you think this is a good time to sell a house (13c) | AT1: Please tell me the primary reason why you think this is a bad time to sell a house (13d) | AY1: Share of respondents who say home rental prices will go up/go down/stay the same in the next 12 months (18) | BC1: Average Rental Price Level Expectation | BD1: Share of respondents who say they would buy/rent if they were going to move (31) | BG1: Direction of economy (10) | BJ1: Share of respondents who expect their financial situation to get better/get worse/stay the same over the next 12 months (11) | BR1: Share of respondents who say their household income is significantly higher/significantly lower/about the same than it was 12 months ago (116) | BV1: Do you think it will be difficult or easy for you to get a home mortgage today? (22) | BY1: Thinking about the total amount you owe on your home compared to the value of your home today, would you say the total amount you owe on your home is: (91) | CF1: How concerned are you that you will lose your job in the next twelve months? (112B) | CJ1: How concerned are you that you will lose your job in the next twelve months? (112B filtered) | CQ1: When do you expect to move next? (13bb) | CV1: Employment Type (QEmployment) | DA1: Which is closer to your view? (47, financial reasons) | DC1: Which is closer to your view? (47bb, lifestyle reasons) | DE1: Thinking about the value of your home today compared to what you paid for the home, would you say your home is worth: (99) | DL1: Current Home Selling Price (223 filtered) | DN1: Current Home Selling Price (223a filtered)
B2: HPSI | C2: HPSI without rates | D2: Go Up | E2: Go Down | F2: Stay the Same | G2: Net | K2: Go Up | L2: Go Down | M2: Stay the Same | N2: Net | P2: Mean | Q2: Very Good Time to Buy | R2: Somewhat Good Time to Buy | S2: Good Time to Buy | T2: Somewhat Bad Time to Buy | U2: Very Bad Time to Buy | V2: Bad Time to Buy | W2: Net | X2: Home prices are low | Y2: Mortgage rates are favorable | Z2: There are many homes available on the market | AA2: It is easy to qualify for a mortgage | AB2: Economic conditions overall are favorable | AC2: Home prices are high | AD2: Mortgage rates are not favorable | AE2: There are not many homes available on the market | AF2: It is difficult to qualify for a mortgage | AG2: Economic conditions overall are not favorable | AH2: Very Good Time to Sell | AI2: Somewhat Good Time to Sell | AJ2: Good Time to Sell | AK2: Somewhat Bad Time to Sell | AL2: Very Bad Time to Sell | AM2: Bad Time to Sell | AN2: Net | AO2: Home prices are high | AP2: Mortgage rates are favorable | AQ2: There are not many homes available on the market | AR2: It is easy for buyers to qualify for a mortgage | AS2: Economic conditions overall are favorable | AT2: Home prices are low | AU2: Mortgage rates are not favorable | AV2: There are many homes available on the market | AW2: It is difficult for buyers to qualify for a mortgage | AX2: Economic conditions overall are not favorable | AY2: Go Up | AZ2: Go Down | BA2: Stay the Same | BB2: Net Rental Prices Will Go Up | BD2: Buy | BE2: Rent | BF2: Net Buy on Next Move | BG2: Right Track | BH2: Wrong Track | BI2: Net Right Track | BJ2: Much Better | BK2: Somewhat Better | BL2: Get Better | BM2: Stay the Same | BN2: Somewhat Worse | BO2: Much Worse | BP2: Get Worse | BQ2: Net Get Better | BR2: Significantly Higher | BS2: Significantly Lower | BT2: About the Same | BU2: Net | BV2: Difficult | BW2: Easy | BX2: Net Easy | BY2: At least 20% more | BZ2: About 5-20% more | CA2: Underwater | CB2: At/Above Water | CC2: About the Same | CD2: About 5-20% less | CE2: At least 20% less | CF2: Very Concerned | CG2: Somewhat Concerned | CH2: Not Very Concerned | CI2: Not at All Concerned | CJ2: Very Concerned | CK2: Somewhat Concerned | CL2: Concerned | CM2: Not Concerned | CN2: Not Very Concerned | CO2: Not at All Concerned | CP2: Net | CQ2: Never | CR2: Less than 1 year | CS2: 1-3 years | CT2: 3-5 years | CU2: More than 5 years | CV2: Employed Full-Time | CW2: Employed Part-Time | CX2: Unemployed | CY2: Discouraged Worker | CZ2: Employed Part-Time For Econ Reasons | DA2: Renting makes more sense | DB2: Owning makes more sense | DC2: Renting makes more sense | DD2: Owning makes more sense | DE2: At least 20% more than you paid | DF2: About 5-20% more than you paid | DG2: Home Value Increase | DH2: About the Same | DI2: Home Value Decrease | DJ2: About 5-20% less than you paid | DK2: At least 20% less than you paid | DL2: Mean | DM2: Median | DN2: Less than $100,000 | DO2: $100,000-$249,999 | DP2: $250,000-$499,999 | DQ2: $500,000-$749,999 | DR2: $750,000 or more
A3: Jun-Jul 10 | D3: ='All Respondents'!E4-'All Respondents'!E3 -> -0.02 | E3: ='All Respondents'!F4-'All Respondents'!F3 -> 0.03 | F3: ='All Respondents'!G4-'All Respondents'!G3 -> 0 | G3: ='All Respondents'!H4-'All Respondents'!H3 -> -0.05 | H3: ='All Respondents'!I4-'All Respondents'!I3 -> 0.0333 | I3: ='All Respondents'!J4-'All Respondents'!J3 -> -0.0305 | J3: ='All Respondents'!K4-'All Respondents'!K3 -> -0.007827 | K3: ='All Respondents'!L4-'All Respondents'!L3 -> -0.03 | L3: ='All Respondents'!M4-'All Respondents'!M3 -> 0 | M3: ='All Respondents'!N4-'All Respondents'!N3 -> 0.03 | N3: ='All Respondents'!O4-'All Respondents'!O3 -> 0.03 | Q3: ='All Respondents'!R4-'All Respondents'!R3 -> -0.05 | R3: ='All Respondents'!S4-'All Respondents'!S3 -> 0.02 | S3: ='All Respondents'!T4-'All Respondents'!T3 -> -0.03 | T3: ='All Respondents'!U4-'All Respondents'!U3 -> 0.03 | U3: ='All Respondents'!V4-'All Respondents'!V3 -> 0.01 | V3: ='All Respondents'!W4-'All Respondents'!W3 -> 0.04 | W3: ='All Respondents'!X4-'All Respondents'!X3 -> -0.07 | AH3: ='All Respondents'!AI4-'All Respondents'!AI3 -> 0 | AI3: ='All Respondents'!AJ4-'All Respondents'!AJ3 -> -0.01 | AJ3: ='All Respondents'!AK4-'All Respondents'!AK3 -> -0.01 | AK3: ='All Respondents'!AL4-'All Respondents'!AL3 -> -0.04 | AL3: ='All Respondents'!AM4-'All Respondents'!AM3 -> 0.05 | AM3: ='All Respondents'!AN4-'All Respondents'!AN3 -> 0.01 | AN3: ='All Respondents'!AO4-'All Respondents'!AO3 -> -0.02 | AY3: ='All Respondents'!AZ4-'All Respondents'!AZ3 -> -0.01 | AZ3: ='All Respondents'!BA4-'All Respondents'!BA3 -> -0.01 | BA3: ='All Respondents'!BB4-'All Respondents'!BB3 -> 0 | BB3: ='All Respondents'!BC4-'All Respondents'!BC3 -> 0 | BC3: ='All Respondents'!BD4-'All Respondents'!BD3 -> -0.00144 | BD3: ='All Respondents'!BE4-'All Respondents'!BE3 -> 0.01 | BE3: ='All Respondents'!BF4-'All Respondents'!BF3 -> -0.01 | BF3: ='All Respondents'!BG4-'All Respondents'!BG3 -> 0.02 | BG3: ='All Respondents'!BH4-'All Respondents'!BH3 -> -0.02 | BH3: ='All Respondents'!BI4-'All Respondents'!BI3 -> 0.02 | BI3: ='All Respondents'!BJ4-'All Respondents'!BJ3 -> -0.04 | BJ3: ='All Respondents'!BK4-'All Respondents'!BK3 -> 0.01 | BK3: ='All Respondents'!BL4-'All Respondents'!BL3 -> -0.06 | BL3: ='All Respondents'!BM4-'All Respondents'!BM3 -> -0.05 | BM3: ='All Respondents'!BN4-'All Respondents'!BN3 -> 0.02 | BN3: ='All Respondents'!BO4-'All Respondents'!BO3 -> 0.03 | BO3: ='All Respondents'!BP4-'All Respondents'!BP3 -> 0.01 | BP3: ='All Respondents'!BQ4-'All Respondents'!BQ3 -> 0.04 | BQ3: ='All Respondents'!BR4-'All Respondents'!BR3 -> -0.09 | BR3: ='All Respondents'!BS4-'All Respondents'!BS3 -> 0.03 | BS3: ='All Respondents'!BT4-'All Respondents'!BT3 -> -0.01 | BT3: ='All Respondents'!BU4-'All Respondents'!BU3 -> -0.03 | BU3: ='All Respondents'!BV4-'All Respondents'!BV3 -> 0.04 | BV3: ='All Respondents'!BW4-'All Respondents'!BW3 -> 0.02 | BW3: ='All Respondents'!BX4-'All Respondents'!BX3 -> -0.02 | BX3: ='All Respondents'!BY4-'All Respondents'!BY3 -> -0.04 | BY3: ='All Respondents'!BZ4-'All Respondents'!BZ3 -> -0.01 | BZ3: ='All Respondents'!CA4-'All Respondents'!CA3 -> 0 | CA3: ='All Respondents'!CB4-'All Respondents'!CB3 -> -0.01 | CB3: ='All Respondents'!CC4-'All Respondents'!CC3 -> 0.05 | CC3: ='All Respondents'!CD4-'All Respondents'!CD3 -> 0.02 | CD3: ='All Respondents'!CE4-'All Respondents'!CE3 -> 0.01 | CE3: ='All Respondents'!CF4-'All Respondents'!CF3 -> 0.02 | DA3: ='All Respondents'!DB4-'All Respondents'!DB3 -> -0.01 | DB3: ='All Respondents'!DC4-'All Respondents'!DC3 -> 0.01 | DE3: ='All Respondents'!DF4-'All Respondents'!DF3 -> 0 | DF3: ='All Respondents'!DG4-'All Respondents'!DG3 -> 0.02 | DG3: ='All Respondents'!DH4-'All Respondents'!DH3 -> 0.02 | DH3: ='All Respondents'!DI4-'All Respondents'!DI3 -> 0 | DI3: ='All Respondents'!DJ4-'All Respondents'!DJ3 -> -0.01 | DJ3: ='All Respondents'!DK4-'All Respondents'!DK3 -> 0 | DK3: ='All Respondents'!DL4-'All Respondents'!DL3 -> -0.01
A4: Jul-Aug 10 | D4: ='All Respondents'!E5-'All Respondents'!E4 -> -0.04 | E4: ='All Respondents'!F5-'All Respondents'!F4 -> -0.04 | F4: ='All Respondents'!G5-'All Respondents'!G4 -> 0.07 | G4: ='All Respondents'!H5-'All Respondents'!H4 -> 0 | H4: ='All Respondents'!I5-'All Respondents'!I4 -> -0.0156 | I4: ='All Respondents'!J5-'All Respondents'!J4 -> 0.0025 | J4: ='All Respondents'!K5-'All Respondents'!K4 -> -0.001699 | K4: ='All Respondents'!L5-'All Respondents'!L4 -> 0 | L4: ='All Respondents'!M5-'All Respondents'!M4 -> 0.01 | M4: ='All Respondents'!N5-'All Respondents'!N4 -> -0.01 | N4: ='All Respondents'!O5-'All Respondents'!O4 -> 0.01 | Q4: ='All Respondents'!R5-'All Respondents'!R4 -> 0.04 | R4: ='All Respondents'!S5-'All Respondents'!S4 -> -0.03 | S4: ='All Respondents'!T5-'All Respondents'!T4 -> 0.01 | T4: ='All Respondents'!U5-'All Respondents'!U4 -> -0.03 | U4: ='All Respondents'!V5-'All Respondents'!V4 -> -0.01 | V4: ='All Respondents'!W5-'All Respondents'!W4 -> -0.04 | W4: ='All Respondents'!X5-'All Respondents'!X4 -> 0.05 | AH4: ='All Respondents'!AI5-'All Respondents'!AI4 -> 0 | AI4: ='All Respondents'!AJ5-'All Respondents'!AJ4 -> 0 | AJ4: ='All Respondents'!AK5-'All Respondents'!AK4 -> 0 | AK4: ='All Respondents'!AL5-'All Respondents'!AL4 -> 0.01 | AL4: ='All Respondents'!AM5-'All Respondents'!AM4 -> -0.01 | AM4: ='All Respondents'!AN5-'All Respondents'!AN4 -> 0 | AN4: ='All Respondents'!AO5-'All Respondents'!AO4 -> 0 | AY4: ='All Respondents'!AZ5-'All Respondents'!AZ4 -> 0 | AZ4: ='All Respondents'!BA5-'All Respondents'!BA4 -> -0.01 | BA4: ='All Respondents'!BB5-'All Respondents'!BB4 -> 0.03 | BB4: ='All Respondents'!BC5-'All Respondents'!BC4 -> 0.01 | BC4: ='All Respondents'!BD5-'All Respondents'!BD4 -> -0.002063 | BD4: ='All Respondents'!BE5-'All Respondents'!BE4 -> -0.04 | BE4: ='All Respondents'!BF5-'All Respondents'!BF4 -> 0.03 | BF4: ='All Respondents'!BG5-'All Respondents'!BG4 -> -0.07 | BG4: ='All Respondents'!BH5-'All Respondents'!BH4 -> 0 | BH4: ='All Respondents'!BI5-'All Respondents'!BI4 -> 0 | BI4: ='All Respondents'!BJ5-'All Respondents'!BJ4 -> 0 | BJ4: ='All Respondents'!BK5-'All Respondents'!BK4 -> -0.02 | BK4: ='All Respondents'!BL5-'All Respondents'!BL4 -> 0.01 | BL4: ='All Respondents'!BM5-'All Respondents'!BM4 -> -0.01 | BM4: ='All Respondents'!BN5-'All Respondents'!BN4 -> 0.01 | BN4: ='All Respondents'!BO5-'All Respondents'!BO4 -> 0.02 | BO4: ='All Respondents'!BP5-'All Respondents'!BP4 -> -0.02 | BP4: ='All Respondents'!BQ5-'All Respondents'!BQ4 -> 0 | BQ4: ='All Respondents'!BR5-'All Respondents'!BR4 -> -0.01 | BR4: ='All Respondents'!BS5-'All Respondents'!BS4 -> -0.04 | BS4: ='All Respondents'!BT5-'All Respondents'!BT4 -> 0.01 | BT4: ='All Respondents'!BU5-'All Respondents'!BU4 -> 0.03 | BU4: ='All Respondents'!BV5-'All Respondents'!BV4 -> -0.05 | BV4: ='All Respondents'!BW5-'All Respondents'!BW4 -> 0 | BW4: ='All Respondents'!BX5-'All Respondents'!BX4 -> -0.01 | BX4: ='All Respondents'!BY5-'All Respondents'!BY4 -> -0.01 | BY4: ='All Respondents'!BZ5-'All Respondents'!BZ4 -> -0.04 | BZ4: ='All Respondents'!CA5-'All Respondents'!CA4 -> 0.01 | CA4: ='All Respondents'!CB5-'All Respondents'!CB4 -> -0.03 | CB4: ='All Respondents'!CC5-'All Respondents'!CC4 -> 0.03 | CC4: ='All Respondents'!CD5-'All Respondents'!CD4 -> 0.07 | CD4: ='All Respondents'!CE5-'All Respondents'!CE4 -> 0.02 | CE4: ='All Respondents'!CF5-'All Respondents'!CF4 -> -0.06 | DA4: ='All Respondents'!DB5-'All Respondents'!DB4 -> 0 | DB4: ='All Respondents'!DC5-'All Respondents'!DC4 -> 0 | DE4: ='All Respondents'!DF5-'All Respondents'!DF4 -> -0.01 | DF4: ='All Respondents'!DG5-'All Respondents'!DG4 -> -0.02 | DG4: ='All Respondents'!DH5-'All Respondents'!DH4 -> -0.03 | DH4: ='All Respondents'!DI5-'All Respondents'!DI4 -> 0.01 | DI4: ='All Respondents'!DJ5-'All Respondents'!DJ4 -> 0.02 | DJ4: ='All Respondents'!DK5-'All Respondents'!DK4 -> 0.02 | DK4: ='All Respondents'!DL5-'All Respondents'!DL4 -> 0
A5: Aug-Sep 10 | D5: ='All Respondents'!E6-'All Respondents'!E5 -> 0.02 | E5: ='All Respondents'!F6-'All Respondents'!F5 -> 0.03 | F5: ='All Respondents'!G6-'All Respondents'!G5 -> -0.05 | G5: ='All Respondents'!H6-'All Respondents'!H5 -> -0.01 | H5: ='All Respondents'!I6-'All Respondents'!I5 -> 0.0093 | I5: ='All Respondents'!J6-'All Respondents'!J5 -> 0.0092 | J5: ='All Respondents'!K6-'All Respondents'!K5 -> 0.002856 | K5: ='All Respondents'!L6-'All Respondents'!L5 -> -0.02 | L5: ='All Respondents'!M6-'All Respondents'!M5 -> 0 | M5: ='All Respondents'!N6-'All Respondents'!N5 -> 0 | N5: ='All Respondents'!O6-'All Respondents'!O5 -> 0.02 | Q5: ='All Respondents'!R6-'All Respondents'!R5 -> 0.03 | R5: ='All Respondents'!S6-'All Respondents'!S5 -> -0.01 | S5: ='All Respondents'!T6-'All Respondents'!T5 -> 0.02 | T5: ='All Respondents'!U6-'All Respondents'!U5 -> 0 | U5: ='All Respondents'!V6-'All Respondents'!V5 -> 0 | V5: ='All Respondents'!W6-'All Respondents'!W5 -> 0 | W5: ='All Respondents'!X6-'All Respondents'!X5 -> 0.02 | AH5: ='All Respondents'!AI6-'All Respondents'!AI5 -> -0.01 | AI5: ='All Respondents'!AJ6-'All Respondents'!AJ5 -> -0.03 | AJ5: ='All Respondents'!AK6-'All Respondents'!AK5 -> -0.04 | AK5: ='All Respondents'!AL6-'All Respondents'!AL5 -> -0.02 | AL5: ='All Respondents'!AM6-'All Respondents'!AM5 -> 0.06 | AM5: ='All Respondents'!AN6-'All Respondents'!AN5 -> 0.04 | AN5: ='All Respondents'!AO6-'All Respondents'!AO5 -> -0.08 | AY5: ='All Respondents'!AZ6-'All Respondents'!AZ5 -> -0.01 | AZ5: ='All Respondents'!BA6-'All Respondents'!BA5 -> -0.02 | BA5: ='All Respondents'!BB6-'All Respondents'!BB5 -> 0.03 | BB5: ='All Respondents'!BC6-'All Respondents'!BC5 -> 0.01 | BC5: ='All Respondents'!BD6-'All Respondents'!BD5 -> 0.000645 | BD5: ='All Respondents'!BE6-'All Respondents'!BE5 -> -0.01 | BE5: ='All Respondents'!BF6-'All Respondents'!BF5 -> 0.01 | BF5: ='All Respondents'!BG6-'All Respondents'!BG5 -> -0.02 | BG5: ='All Respondents'!BH6-'All Respondents'!BH5 -> -0.03 | BH5: ='All Respondents'!BI6-'All Respondents'!BI5 -> 0.03 | BI5: ='All Respondents'!BJ6-'All Respondents'!BJ5 -> -0.06 | BJ5: ='All Respondents'!BK6-'All Respondents'!BK5 -> 0.01 | BK5: ='All Respondents'!BL6-'All Respondents'!BL5 -> -0.01 | BL5: ='All Respondents'!BM6-'All Respondents'!BM5 -> 0 | BM5: ='All Respondents'!BN6-'All Respondents'!BN5 -> 0 | BN5: ='All Respondents'!BO6-'All Respondents'!BO5 -> -0.02 | BO5: ='All Respondents'!BP6-'All Respondents'!BP5 -> 0.01 | BP5: ='All Respondents'!BQ6-'All Respondents'!BQ5 -> -0.01 | BQ5: ='All Respondents'!BR6-'All Respondents'!BR5 -> 0.01 | BR5: ='All Respondents'!BS6-'All Respondents'!BS5 -> 0.01 | BS5: ='All Respondents'!BT6-'All Respondents'!BT5 -> 0 | BT5: ='All Respondents'!BU6-'All Respondents'!BU5 -> -0.01 | BU5: ='All Respondents'!BV6-'All Respondents'!BV5 -> 0.01 | BV5: ='All Respondents'!BW6-'All Respondents'!BW5 -> 0.02 | BW5: ='All Respondents'!BX6-'All Respondents'!BX5 -> -0.01 | BX5: ='All Respondents'!BY6-'All Respondents'!BY5 -> -0.03 | BY5: ='All Respondents'!BZ6-'All Respondents'!BZ5 -> 0.09 | BZ5: ='All Respondents'!CA6-'All Respondents'!CA5 -> -0.04 | CA5: ='All Respondents'!CB6-'All Respondents'!CB5 -> 0.05 | CB5: ='All Respondents'!CC6-'All Respondents'!CC5 -> -0.08 | CC5: ='All Respondents'!CD6-'All Respondents'!CD5 -> -0.07 | CD5: ='All Respondents'!CE6-'All Respondents'!CE5 -> -0.03 | CE5: ='All Respondents'!CF6-'All Respondents'!CF5 -> 0.02 | DA5: ='All Respondents'!DB6-'All Respondents'!DB5 -> 0.02 | DB5: ='All Respondents'!DC6-'All Respondents'!DC5 -> -0.01 | DE5: ='All Respondents'!DF6-'All Respondents'!DF5 -> 0 | DF5: ='All Respondents'!DG6-'All Respondents'!DG5 -> -0.02 | DG5: ='All Respondents'!DH6-'All Respondents'!DH5 -> -0.02 | DH5: ='All Respondents'!DI6-'All Respondents'!DI5 -> 0.01 | DI5: ='All Respondents'!DJ6-'All Respondents'!DJ5 -> 0.01 | DJ5: ='All Respondents'!DK6-'All Respondents'!DK5 -> -0.01 | DK5: ='All Respondents'!DL6-'All Respondents'!DL5 -> 0.02
A6: Sep-Oct 10 | D6: ='All Respondents'!E7-'All Respondents'!E6 -> -0.02 | E6: ='All Respondents'!F7-'All Respondents'!F6 -> 0.01 | F6: ='All Respondents'!G7-'All Respondents'!G6 -> 0.01 | G6: ='All Respondents'!H7-'All Respondents'!H6 -> -0.03 | H6: ='All Respondents'!I7-'All Respondents'!I6 -> -0.0037 | I6: ='All Respondents'!J7-'All Respondents'!J6 -> 0.0001 | J6: ='All Respondents'!K7-'All Respondents'!K6 -> -0.003603 | K6: ='All Respondents'!L7-'All Respondents'!L6 -> 0.03 | L6: ='All Respondents'!M7-'All Respondents'!M6 -> -0.02 | M6: ='All Respondents'!N7-'All Respondents'!N6 -> -0.01 | N6: ='All Respondents'!O7-'All Respondents'!O6 -> -0.05 | Q6: ='All Respondents'!R7-'All Respondents'!R6 -> 0 | R6: ='All Respondents'!S7-'All Respondents'!S6 -> -0.03 | S6: ='All Respondents'!T7-'All Respondents'!T6 -> -0.03 | T6: ='All Respondents'!U7-'All Respondents'!U6 -> 0 | U6: ='All Respondents'!V7-'All Respondents'!V6 -> 0.02 | V6: ='All Respondents'!W7-'All Respondents'!W6 -> 0.02 | W6: ='All Respondents'!X7-'All Respondents'!X6 -> -0.05 | AH6: ='All Respondents'!AI7-'All Respondents'!AI6 -> 0.01 | AI6: ='All Respondents'!AJ7-'All Respondents'!AJ6 -> 0.01 | AJ6: ='All Respondents'!AK7-'All Respondents'!AK6 -> 0.02 | AK6: ='All Respondents'!AL7-'All Respondents'!AL6 -> -0.02 | AL6: ='All Respondents'!AM7-'All Respondents'!AM6 -> -0.01 | AM6: ='All Respondents'!AN7-'All Respondents'!AN6 -> -0.03 | AN6: ='All Respondents'!AO7-'All Respondents'!AO6 -> 0.05 | AY6: ='All Respondents'!AZ7-'All Respondents'!AZ6 -> 0 | AZ6: ='All Respondents'!BA7-'All Respondents'!BA6 -> 0.01 | BA6: ='All Respondents'!BB7-'All Respondents'!BB6 -> -0.02 | BB6: ='All Respondents'!BC7-'All Respondents'!BC6 -> -0.01 | BC6: ='All Respondents'!BD7-'All Respondents'!BD6 -> 0.001218 | BD6: ='All Respondents'!BE7-'All Respondents'!BE6 -> 0.02 | BE6: ='All Respondents'!BF7-'All Respondents'!BF6 -> -0.01 | BF6: ='All Respondents'!BG7-'All Respondents'!BG6 -> 0.03 | BG6: ='All Respondents'!BH7-'All Respondents'!BH6 -> 0.02 | BH6: ='All Respondents'!BI7-'All Respondents'!BI6 -> -0.02 | BI6: ='All Respondents'!BJ7-'All Respondents'!BJ6 -> 0.04 | BJ6: ='All Respondents'!BK7-'All Respondents'!BK6 -> 0.01 | BK6: ='All Respondents'!BL7-'All Respondents'!BL6 -> 0 | BL6: ='All Respondents'!BM7-'All Respondents'!BM6 -> 0.01 | BM6: ='All Respondents'!BN7-'All Respondents'!BN6 -> -0.01 | BN6: ='All Respondents'!BO7-'All Respondents'!BO6 -> 0.01 | BO6: ='All Respondents'!BP7-'All Respondents'!BP6 -> 0 | BP6: ='All Respondents'!BQ7-'All Respondents'!BQ6 -> 0.01 | BQ6: ='All Respondents'!BR7-'All Respondents'!BR6 -> 0 | BR6: ='All Respondents'!BS7-'All Respondents'!BS6 -> 0.01 | BS6: ='All Respondents'!BT7-'All Respondents'!BT6 -> 0 | BT6: ='All Respondents'!BU7-'All Respondents'!BU6 -> -0.01 | BU6: ='All Respondents'!BV7-'All Respondents'!BV6 -> 0.01 | BV6: ='All Respondents'!BW7-'All Respondents'!BW6 -> -0.02 | BW6: ='All Respondents'!BX7-'All Respondents'!BX6 -> 0.01 | BX6: ='All Respondents'!BY7-'All Respondents'!BY6 -> 0.03 | BY6: ='All Respondents'!BZ7-'All Respondents'!BZ6 -> -0.03 | BZ6: ='All Respondents'!CA7-'All Respondents'!CA6 -> 0.02 | CA6: ='All Respondents'!CB7-'All Respondents'!CB6 -> -0.01 | CB6: ='All Respondents'!CC7-'All Respondents'!CC6 -> 0.05 | CC6: ='All Respondents'!CD7-'All Respondents'!CD6 -> -0.01 | CD6: ='All Respondents'!CE7-'All Respondents'!CE6 -> 0.03 | CE6: ='All Respondents'!CF7-'All Respondents'!CF6 -> 0.03 | DA6: ='All Respondents'!DB7-'All Respondents'!DB6 -> -0.02 | DB6: ='All Respondents'!DC7-'All Respondents'!DC6 -> 0 | DE6: ='All Respondents'!DF7-'All Respondents'!DF6 -> -0.01 | DF6: ='All Respondents'!DG7-'All Respondents'!DG6 -> 0.01 | DG6: ='All Respondents'!DH7-'All Respondents'!DH6 -> 0 | DH6: ='All Respondents'!DI7-'All Respondents'!DI6 -> 0.01 | DI6: ='All Respondents'!DJ7-'All Respondents'!DJ6 -> -0.02 | DJ6: ='All Respondents'!DK7-'All Respondents'!DK6 -> 0 | DK6: ='All Respondents'!DL7-'All Respondents'!DL6 -> -0.02
A7: Oct-Nov 10 | D7: ='All Respondents'!E8-'All Respondents'!E7 -> 0.03 | E7: ='All Respondents'!F8-'All Respondents'!F7 -> -0.03 | F7: ='All Respondents'!G8-'All Respondents'!G7 -> 0.01 | G7: ='All Respondents'!H8-'All Respondents'!H7 -> 0.06 | H7: ='All Respondents'!I8-'All Respondents'!I7 -> -0.008 | I7: ='All Respondents'!J8-'All Respondents'!J7 -> -0.0043 | J7: ='All Respondents'!K8-'All Respondents'!K7 -> 0.0032 | K7: ='All Respondents'!L8-'All Respondents'!L7 -> 0.03 | L7: ='All Respondents'!M8-'All Respondents'!M7 -> -0.02 | M7: ='All Respondents'!N8-'All Respondents'!N7 -> 0.01 | N7: ='All Respondents'!O8-'All Respondents'!O7 -> -0.05 | Q7: ='All Respondents'!R8-'All Respondents'!R7 -> -0.02 | R7: ='All Respondents'!S8-'All Respondents'!S7 -> -0.01 | S7: ='All Respondents'!T8-'All Respondents'!T7 -> -0.03 | T7: ='All Respondents'!U8-'All Respondents'!U7 -> 0.04 | U7: ='All Respondents'!V8-'All Respondents'!V7 -> 0.01 | V7: ='All Respondents'!W8-'All Respondents'!W7 -> 0.05 | W7: ='All Respondents'!X8-'All Respondents'!X7 -> -0.08 | AH7: ='All Respondents'!AI8-'All Respondents'!AI7 -> 0 | AI7: ='All Respondents'!AJ8-'All Respondents'!AJ7 -> 0 | AJ7: ='All Respondents'!AK8-'All Respondents'!AK7 -> 0 | AK7: ='All Respondents'!AL8-'All Respondents'!AL7 -> 0.05 | AL7: ='All Respondents'!AM8-'All Respondents'!AM7 -> -0.03 | AM7: ='All Respondents'!AN8-'All Respondents'!AN7 -> 0.02 | AN7: ='All Respondents'!AO8-'All Respondents'!AO7 -> -0.02 | AY7: ='All Respondents'!AZ8-'All Respondents'!AZ7 -> 0.03 | AZ7: ='All Respondents'!BA8-'All Respondents'!BA7 -> -0.01 | BA7: ='All Respondents'!BB8-'All Respondents'!BB7 -> -0.02 | BB7: ='All Respondents'!BC8-'All Respondents'!BC7 -> 0.04 | BC7: ='All Respondents'!BD8-'All Respondents'!BD7 -> 0.001296 | BD7: ='All Respondents'!BE8-'All Respondents'!BE7 -> 0 | BE7: ='All Respondents'!BF8-'All Respondents'!BF7 -> -0.01 | BF7: ='All Respondents'!BG8-'All Respondents'!BG7 -> 0.01 | BG7: ='All Respondents'!BH8-'All Respondents'!BH7 -> 0.03 | BH7: ='All Respondents'!BI8-'All Respondents'!BI7 -> -0.04 | BI7: ='All Respondents'!BJ8-'All Respondents'!BJ7 -> 0.07 | BJ7: ='All Respondents'!BK8-'All Respondents'!BK7 -> 0 | BK7: ='All Respondents'!BL8-'All Respondents'!BL7 -> 0.02 | BL7: ='All Respondents'!BM8-'All Respondents'!BM7 -> 0.02 | BM7: ='All Respondents'!BN8-'All Respondents'!BN7 -> 0 | BN7: ='All Respondents'!BO8-'All Respondents'!BO7 -> -0.02 | BO7: ='All Respondents'!BP8-'All Respondents'!BP7 -> 0 | BP7: ='All Respondents'!BQ8-'All Respondents'!BQ7 -> -0.02 | BQ7: ='All Respondents'!BR8-'All Respondents'!BR7 -> 0.04 | BR7: ='All Respondents'!BS8-'All Respondents'!BS7 -> 0.02 | BS7: ='All Respondents'!BT8-'All Respondents'!BT7 -> -0.05 | BT7: ='All Respondents'!BU8-'All Respondents'!BU7 -> 0.03 | BU7: ='All Respondents'!BV8-'All Respondents'!BV7 -> 0.07 | BV7: ='All Respondents'!BW8-'All Respondents'!BW7 -> 0.02 | BW7: ='All Respondents'!BX8-'All Respondents'!BX7 -> 0.01 | BX7: ='All Respondents'!BY8-'All Respondents'!BY7 -> -0.01 | BY7: ='All Respondents'!BZ8-'All Respondents'!BZ7 -> -0.02 | BZ7: ='All Respondents'!CA8-'All Respondents'!CA7 -> 0.01 | CA7: ='All Respondents'!CB8-'All Respondents'!CB7 -> -0.01 | CB7: ='All Respondents'!CC8-'All Respondents'!CC7 -> -0.01 | CC7: ='All Respondents'!CD8-'All Respondents'!CD7 -> 0.02 | CD7: ='All Respondents'!CE8-'All Respondents'!CE7 -> -0.02 | CE7: ='All Respondents'!CF8-'All Respondents'!CF7 -> -0.01 | DA7: ='All Respondents'!DB8-'All Respondents'!DB7 -> 0.02 | DB7: ='All Respondents'!DC8-'All Respondents'!DC7 -> -0.01 | DE7: ='All Respondents'!DF8-'All Respondents'!DF7 -> 0.01 | DF7: ='All Respondents'!DG8-'All Respondents'!DG7 -> 0.03 | DG7: ='All Respondents'!DH8-'All Respondents'!DH7 -> 0.04 | DH7: ='All Respondents'!DI8-'All Respondents'!DI7 -> -0.01 | DI7: ='All Respondents'!DJ8-'All Respondents'!DJ7 -> -0.02 | DJ7: ='All Respondents'!DK8-'All Respondents'!DK7 -> -0.01 | DK7: ='All Respondents'!DL8-'All Respondents'!DL7 -> -0.01
A8: Nov-Dec 10 | D8: ='All Respondents'!E9-'All Respondents'!E8 -> -0.03 | E8: ='All Respondents'!F9-'All Respondents'!F8 -> 0 | F8: ='All Respondents'!G9-'All Respondents'!G8 -> 0.04 | G8: ='All Respondents'!H9-'All Respondents'!H8 -> -0.03 | H8: ='All Respondents'!I9-'All Respondents'!I8 -> 0.0116 | I8: ='All Respondents'!J9-'All Respondents'!J8 -> -0.0059 | J8: ='All Respondents'!K9-'All Respondents'!K8 -> -0.002084 | K8: ='All Respondents'!L9-'All Respondents'!L8 -> -0.04 | L8: ='All Respondents'!M9-'All Respondents'!M8 -> 0.03 | M8: ='All Respondents'!N9-'All Respondents'!N8 -> -0.01 | N8: ='All Respondents'!O9-'All Respondents'!O8 -> 0.07 | Q8: ='All Respondents'!R9-'All Respondents'!R8 -> -0.02 | R8: ='All Respondents'!S9-'All Respondents'!S8 -> 0.02 | S8: ='All Respondents'!T9-'All Respondents'!T8 -> 0 | T8: ='All Respondents'!U9-'All Respondents'!U8 -> -0.03 | U8: ='All Respondents'!V9-'All Respondents'!V8 -> 0.01 | V8: ='All Respondents'!W9-'All Respondents'!W8 -> -0.02 | W8: ='All Respondents'!X9-'All Respondents'!X8 -> 0.02 | AH8: ='All Respondents'!AI9-'All Respondents'!AI8 -> -0.01 | AI8: ='All Respondents'!AJ9-'All Respondents'!AJ8 -> -0.01 | AJ8: ='All Respondents'!AK9-'All Respondents'!AK8 -> -0.02 | AK8: ='All Respondents'!AL9-'All Respondents'!AL8 -> -0.01 | AL8: ='All Respondents'!AM9-'All Respondents'!AM8 -> 0.03 | AM8: ='All Respondents'!AN9-'All Respondents'!AN8 -> 0.02 | AN8: ='All Respondents'!AO9-'All Respondents'!AO8 -> -0.04 | AY8: ='All Respondents'!AZ9-'All Respondents'!AZ8 -> -0.03 | AZ8: ='All Respondents'!BA9-'All Respondents'!BA8 -> 0 | BA8: ='All Respondents'!BB9-'All Respondents'!BB8 -> 0.04 | BB8: ='All Respondents'!BC9-'All Respondents'!BC8 -> -0.03 | BC8: ='All Respondents'!BD9-'All Respondents'!BD8 -> -0.000823 | BD8: ='All Respondents'!BE9-'All Respondents'!BE8 -> 0.04 | BE8: ='All Respondents'!BF9-'All Respondents'!BF8 -> -0.04 | BF8: ='All Respondents'!BG9-'All Respondents'!BG8 -> 0.08 | BG8: ='All Respondents'!BH9-'All Respondents'!BH8 -> -0.03 | BH8: ='All Respondents'!BI9-'All Respondents'!BI8 -> 0.06 | BI8: ='All Respondents'!BJ9-'All Respondents'!BJ8 -> -0.09 | BJ8: ='All Respondents'!BK9-'All Respondents'!BK8 -> -0.04 | BK8: ='All Respondents'!BL9-'All Respondents'!BL8 -> -0.01 | BL8: ='All Respondents'!BM9-'All Respondents'!BM8 -> -0.05 | BM8: ='All Respondents'!BN9-'All Respondents'!BN8 -> 0.02 | BN8: ='All Respondents'!BO9-'All Respondents'!BO8 -> 0.01 | BO8: ='All Respondents'!BP9-'All Respondents'!BP8 -> 0 | BP8: ='All Respondents'!BQ9-'All Respondents'!BQ8 -> 0.01 | BQ8: ='All Respondents'!BR9-'All Respondents'!BR8 -> -0.06 | BR8: ='All Respondents'!BS9-'All Respondents'!BS8 -> -0.05 | BS8: ='All Respondents'!BT9-'All Respondents'!BT8 -> 0.04 | BT8: ='All Respondents'!BU9-'All Respondents'!BU8 -> 0.02 | BU8: ='All Respondents'!BV9-'All Respondents'!BV8 -> -0.09 | BV8: ='All Respondents'!BW9-'All Respondents'!BW8 -> -0.04 | BW8: ='All Respondents'!BX9-'All Respondents'!BX8 -> 0.03 | BX8: ='All Respondents'!BY9-'All Respondents'!BY8 -> 0.07 | BY8: ='All Respondents'!BZ9-'All Respondents'!BZ8 -> 0 | BZ8: ='All Respondents'!CA9-'All Respondents'!CA8 -> 0 | CA8: ='All Respondents'!CB9-'All Respondents'!CB8 -> 0 | CB8: ='All Respondents'!CC9-'All Respondents'!CC8 -> 0 | CC8: ='All Respondents'!CD9-'All Respondents'!CD8 -> 0 | CD8: ='All Respondents'!CE9-'All Respondents'!CE8 -> -0.01 | CE8: ='All Respondents'!CF9-'All Respondents'!CF8 -> 0.01 | DA8: ='All Respondents'!DB9-'All Respondents'!DB8 -> -0.01 | DB8: ='All Respondents'!DC9-'All Respondents'!DC8 -> 0.02 | DE8: ='All Respondents'!DF9-'All Respondents'!DF8 -> 0 | DF8: ='All Respondents'!DG9-'All Respondents'!DG8 -> -0.02 | DG8: ='All Respondents'!DH9-'All Respondents'!DH8 -> -0.02 | DH8: ='All Respondents'!DI9-'All Respondents'!DI8 -> 0 | DI8: ='All Respondents'!DJ9-'All Respondents'!DJ8 -> 0.02 | DJ8: ='All Respondents'!DK9-'All Respondents'!DK8 -> 0 | DK8: ='All Respondents'!DL9-'All Respondents'!DL8 -> 0.02
A9: Dec 10-Jan 11 | D9: ='All Respondents'!E10-'All Respondents'!E9 -> 0.04 | E9: ='All Respondents'!F10-'All Respondents'!F9 -> -0.01 | F9: ='All Respondents'!G10-'All Respondents'!G9 -> -0.06 | G9: ='All Respondents'!H10-'All Respondents'!H9 -> 0.05 | H9: ='All Respondents'!I10-'All Respondents'!I9 -> 0.0061 | I9: ='All Respondents'!J10-'All Respondents'!J9 -> -0.0042 | J9: ='All Respondents'!K10-'All Respondents'!K9 -> 0.004149 | K9: ='All Respondents'!L10-'All Respondents'!L9 -> -0.03 | L9: ='All Respondents'!M10-'All Respondents'!M9 -> -0.05 | M9: ='All Respondents'!N10-'All Respondents'!N9 -> 0.08 | N9: ='All Respondents'!O10-'All Respondents'!O9 -> -0.02 | Q9: ='All Respondents'!R10-'All Respondents'!R9 -> -0.01 | R9: ='All Respondents'!S10-'All Respondents'!S9 -> 0.04 | S9: ='All Respondents'!T10-'All Respondents'!T9 -> 0.03 | T9: ='All Respondents'!U10-'All Respondents'!U9 -> -0.01 | U9: ='All Respondents'!V10-'All Respondents'!V9 -> -0.02 | V9: ='All Respondents'!W10-'All Respondents'!W9 -> -0.03 | W9: ='All Respondents'!X10-'All Respondents'!X9 -> 0.06 | AH9: ='All Respondents'!AI10-'All Respondents'!AI9 -> -0.01 | AI9: ='All Respondents'!AJ10-'All Respondents'!AJ9 -> 0.03 | AJ9: ='All Respondents'!AK10-'All Respondents'!AK9 -> 0.02 | AK9: ='All Respondents'!AL10-'All Respondents'!AL9 -> -0.01 | AL9: ='All Respondents'!AM10-'All Respondents'!AM9 -> -0.01 | AM9: ='All Respondents'!AN10-'All Respondents'!AN9 -> -0.02 | AN9: ='All Respondents'!AO10-'All Respondents'!AO9 -> 0.04 | AY9: ='All Respondents'!AZ10-'All Respondents'!AZ9 -> 0.03 | AZ9: ='All Respondents'!BA10-'All Respondents'!BA9 -> -0.01 | BA9: ='All Respondents'!BB10-'All Respondents'!BB9 -> -0.03 | BB9: ='All Respondents'!BC10-'All Respondents'!BC9 -> 0.04 | BC9: ='All Respondents'!BD10-'All Respondents'!BD9 -> 0.002607 | BD9: ='All Respondents'!BE10-'All Respondents'!BE9 -> 0 | BE9: ='All Respondents'!BF10-'All Respondents'!BF9 -> 0.01 | BF9: ='All Respondents'!BG10-'All Respondents'!BG9 -> -0.01 | BG9: ='All Respondents'!BH10-'All Respondents'!BH9 -> 0.05 | BH9: ='All Respondents'!BI10-'All Respondents'!BI9 -> -0.05 | BI9: ='All Respondents'!BJ10-'All Respondents'!BJ9 -> 0.1 | BJ9: ='All Respondents'!BK10-'All Respondents'!BK9 -> 0.04 | BK9: ='All Respondents'!BL10-'All Respondents'!BL9 -> 0.03 | BL9: ='All Respondents'!BM10-'All Respondents'!BM9 -> 0.07 | BM9: ='All Respondents'!BN10-'All Respondents'!BN9 -> 0 | BN9: ='All Respondents'!BO10-'All Respondents'!BO9 -> -0.03 | BO9: ='All Respondents'!BP10-'All Respondents'!BP9 -> -0.01 | BP9: ='All Respondents'!BQ10-'All Respondents'!BQ9 -> -0.04 | BQ9: ='All Respondents'!BR10-'All Respondents'!BR9 -> 0.11 | BR9: ='All Respondents'!BS10-'All Respondents'!BS9 -> 0.05 | BS9: ='All Respondents'!BT10-'All Respondents'!BT9 -> -0.01 | BT9: ='All Respondents'!BU10-'All Respondents'!BU9 -> -0.06 | BU9: ='All Respondents'!BV10-'All Respondents'!BV9 -> 0.06 | BV9: ='All Respondents'!BW10-'All Respondents'!BW9 -> 0.03 | BW9: ='All Respondents'!BX10-'All Respondents'!BX9 -> -0.04 | BX9: ='All Respondents'!BY10-'All Respondents'!BY9 -> -0.07 | BY9: ='All Respondents'!BZ10-'All Respondents'!BZ9 -> -0.02 | BZ9: ='All Respondents'!CA10-'All Respondents'!CA9 -> -0.04 | CA9: ='All Respondents'!CB10-'All Respondents'!CB9 -> -0.06 | CB9: ='All Respondents'!CC10-'All Respondents'!CC9 -> 0.05 | CC9: ='All Respondents'!CD10-'All Respondents'!CD9 -> 0.03 | CD9: ='All Respondents'!CE10-'All Respondents'!CE9 -> -0.02 | CE9: ='All Respondents'!CF10-'All Respondents'!CF9 -> 0.04 | DA9: ='All Respondents'!DB10-'All Respondents'!DB9 -> -0.01 | DB9: ='All Respondents'!DC10-'All Respondents'!DC9 -> 0.01 | DE9: ='All Respondents'!DF10-'All Respondents'!DF9 -> -0.04 | DF9: ='All Respondents'!DG10-'All Respondents'!DG9 -> 0.01 | DG9: ='All Respondents'!DH10-'All Respondents'!DH9 -> -0.03 | DH9: ='All Respondents'!DI10-'All Respondents'!DI9 -> 0.01 | DI9: ='All Respondents'!DJ10-'All Respondents'!DJ9 -> 0.01 | DJ9: ='All Respondents'!DK10-'All Respondents'!DK9 -> 0.01 | DK9: ='All Respondents'!DL10-'All Respondents'!DL9 -> 0
A10: Jan-Feb 11 | D10: ='All Respondents'!E11-'All Respondents'!E10 -> 0.02 | E10: ='All Respondents'!F11-'All Respondents'!F10 -> -0.03 | F10: ='All Respondents'!G11-'All Respondents'!G10 -> 0.02 | G10: ='All Respondents'!H11-'All Respondents'!H10 -> 0.05 | H10: ='All Respondents'!I11-'All Respondents'!I10 -> 0.0065 | I10: ='All Respondents'!J11-'All Respondents'!J10 -> -0.0079 | J10: ='All Respondents'!K11-'All Respondents'!K10 -> 0.002784 | K10: ='All Respondents'!L11-'All Respondents'!L10 -> 0.05 | L10: ='All Respondents'!M11-'All Respondents'!M10 -> -0.01 | M10: ='All Respondents'!N11-'All Respondents'!N10 -> -0.03 | N10: ='All Respondents'!O11-'All Respondents'!O10 -> -0.06 | Q10: ='All Respondents'!R11-'All Respondents'!R10 -> -0.01 | R10: ='All Respondents'!S11-'All Respondents'!S10 -> 0 | S10: ='All Respondents'!T11-'All Respondents'!T10 -> -0.01 | T10: ='All Respondents'!U11-'All Respondents'!U10 -> 0.02 | U10: ='All Respondents'!V11-'All Respondents'!V10 -> -0.02 | V10: ='All Respondents'!W11-'All Respondents'!W10 -> 0 | W10: ='All Respondents'!X11-'All Respondents'!X10 -> -0.01 | AH10: ='All Respondents'!AI11-'All Respondents'!AI10 -> 0.01 | AI10: ='All Respondents'!AJ11-'All Respondents'!AJ10 -> -0.02 | AJ10: ='All Respondents'!AK11-'All Respondents'!AK10 -> -0.01 | AK10: ='All Respondents'!AL11-'All Respondents'!AL10 -> 0.03 | AL10: ='All Respondents'!AM11-'All Respondents'!AM10 -> -0.04 | AM10: ='All Respondents'!AN11-'All Respondents'!AN10 -> -0.01 | AN10: ='All Respondents'!AO11-'All Respondents'!AO10 -> 0 | AY10: ='All Respondents'!AZ11-'All Respondents'!AZ10 -> 0.03 | AZ10: ='All Respondents'!BA11-'All Respondents'!BA10 -> 0.01 | BA10: ='All Respondents'!BB11-'All Respondents'!BB10 -> -0.03 | BB10: ='All Respondents'!BC11-'All Respondents'!BC10 -> 0.02 | BC10: ='All Respondents'!BD11-'All Respondents'!BD10 -> -0.001507 | BD10: ='All Respondents'!BE11-'All Respondents'!BE10 -> -0.02 | BE10: ='All Respondents'!BF11-'All Respondents'!BF10 -> 0.02 | BF10: ='All Respondents'!BG11-'All Respondents'!BG10 -> -0.04 | BG10: ='All Respondents'!BH11-'All Respondents'!BH10 -> 0.01 | BH10: ='All Respondents'!BI11-'All Respondents'!BI10 -> -0.04 | BI10: ='All Respondents'!BJ11-'All Respondents'!BJ10 -> 0.05 | BJ10: ='All Respondents'!BK11-'All Respondents'!BK10 -> -0.01 | BK10: ='All Respondents'!BL11-'All Respondents'!BL10 -> -0.02 | BL10: ='All Respondents'!BM11-'All Respondents'!BM10 -> -0.03 | BM10: ='All Respondents'!BN11-'All Respondents'!BN10 -> 0.01 | BN10: ='All Respondents'!BO11-'All Respondents'!BO10 -> 0.02 | BO10: ='All Respondents'!BP11-'All Respondents'!BP10 -> -0.01 | BP10: ='All Respondents'!BQ11-'All Respondents'!BQ10 -> 0.01 | BQ10: ='All Respondents'!BR11-'All Respondents'!BR10 -> -0.04 | BR10: ='All Respondents'!BS11-'All Respondents'!BS10 -> 0 | BS10: ='All Respondents'!BT11-'All Respondents'!BT10 -> 0 | BT10: ='All Respondents'!BU11-'All Respondents'!BU10 -> 0.01 | BU10: ='All Respondents'!BV11-'All Respondents'!BV10 -> 0 | BV10: ='All Respondents'!BW11-'All Respondents'!BW10 -> -0.04 | BW10: ='All Respondents'!BX11-'All Respondents'!BX10 -> 0.04 | BX10: ='All Respondents'!BY11-'All Respondents'!BY10 -> 0.08 | BY10: ='All Respondents'!BZ11-'All Respondents'!BZ10 -> 0.02 | BZ10: ='All Respondents'!CA11-'All Respondents'!CA10 -> 0.03 | CA10: ='All Respondents'!CB11-'All Respondents'!CB10 -> 0.05 | CB10: ='All Respondents'!CC11-'All Respondents'!CC10 -> -0.02 | CC10: ='All Respondents'!CD11-'All Respondents'!CD10 -> -0.02 | CD10: ='All Respondents'!CE11-'All Respondents'!CE10 -> 0.02 | CE10: ='All Respondents'!CF11-'All Respondents'!CF10 -> -0.02 | DA10: ='All Respondents'!DB11-'All Respondents'!DB10 -> 0 | DB10: ='All Respondents'!DC11-'All Respondents'!DC10 -> 0.01 | DE10: ='All Respondents'!DF11-'All Respondents'!DF10 -> 0.06 | DF10: ='All Respondents'!DG11-'All Respondents'!DG10 -> -0.02 | DG10: ='All Respondents'!DH11-'All Respondents'!DH10 -> 0.04 | DH10: ='All Respondents'!DI11-'All Respondents'!DI10 -> -0.01 | DI10: ='All Respondents'!DJ11-'All Respondents'!DJ10 -> -0.01 | DJ10: ='All Respondents'!DK11-'All Respondents'!DK10 -> -0.01 | DK10: ='All Respondents'!DL11-'All Respondents'!DL10 -> 0
A11: Feb-Mar 11 | D11: ='All Respondents'!E12-'All Respondents'!E11 -> 0.02 | E11: ='All Respondents'!F12-'All Respondents'!F11 -> 0.05 | F11: ='All Respondents'!G12-'All Respondents'!G11 -> -0.08 | G11: ='All Respondents'!H12-'All Respondents'!H11 -> -0.03 | H11: ='All Respondents'!I12-'All Respondents'!I11 -> -0.0032 | I11: ='All Respondents'!J12-'All Respondents'!J11 -> 0.0107 | J11: ='All Respondents'!K12-'All Respondents'!K11 -> 0.000141 | K11: ='All Respondents'!L12-'All Respondents'!L11 -> 0.01 | L11: ='All Respondents'!M12-'All Respondents'!M11 -> 0.01 | M11: ='All Respondents'!N12-'All Respondents'!N11 -> -0.02 | N11: ='All Respondents'!O12-'All Respondents'!O11 -> 0 | Q11: ='All Respondents'!R12-'All Respondents'!R11 -> -0.02 | R11: ='All Respondents'!S12-'All Respondents'!S11 -> 0.01 | S11: ='All Respondents'!T12-'All Respondents'!T11 -> -0.01 | T11: ='All Respondents'!U12-'All Respondents'!U11 -> 0.03 | U11: ='All Respondents'!V12-'All Respondents'!V11 -> -0.01 | V11: ='All Respondents'!W12-'All Respondents'!W11 -> 0.02 | W11: ='All Respondents'!X12-'All Respondents'!X11 -> -0.03 | AH11: ='All Respondents'!AI12-'All Respondents'!AI11 -> 0 | AI11: ='All Respondents'!AJ12-'All Respondents'!AJ11 -> 0.02 | AJ11: ='All Respondents'!AK12-'All Respondents'!AK11 -> 0.02 | AK11: ='All Respondents'!AL12-'All Respondents'!AL11 -> -0.01 | AL11: ='All Respondents'!AM12-'All Respondents'!AM11 -> -0.01 | AM11: ='All Respondents'!AN12-'All Respondents'!AN11 -> -0.02 | AN11: ='All Respondents'!AO12-'All Respondents'!AO11 -> 0.04 | AY11: ='All Respondents'!AZ12-'All Respondents'!AZ11 -> 0.03 | AZ11: ='All Respondents'!BA12-'All Respondents'!BA11 -> -0.01 | BA11: ='All Respondents'!BB12-'All Respondents'!BB11 -> -0.02 | BB11: ='All Respondents'!BC12-'All Respondents'!BC11 -> 0.04 | BC11: ='All Respondents'!BD12-'All Respondents'!BD11 -> 0.001073 | BD11: ='All Respondents'!BE12-'All Respondents'!BE11 -> -0.01 | BE11: ='All Respondents'!BF12-'All Respondents'!BF11 -> 0.01 | BF11: ='All Respondents'!BG12-'All Respondents'!BG11 -> -0.02 | BG11: ='All Respondents'!BH12-'All Respondents'!BH11 -> -0.05 | BH11: ='All Respondents'!BI12-'All Respondents'!BI11 -> 0.09 | BI11: ='All Respondents'!BJ12-'All Respondents'!BJ11 -> -0.14 | BJ11: ='All Respondents'!BK12-'All Respondents'!BK11 -> -0.02 | BK11: ='All Respondents'!BL12-'All Respondents'!BL11 -> -0.02 | BL11: ='All Respondents'!BM12-'All Respondents'!BM11 -> -0.04 | BM11: ='All Respondents'!BN12-'All Respondents'!BN11 -> -0.04 | BN11: ='All Respondents'!BO12-'All Respondents'!BO11 -> 0.05 | BO11: ='All Respondents'!BP12-'All Respondents'!BP11 -> 0.03 | BP11: ='All Respondents'!BQ12-'All Respondents'!BQ11 -> 0.08 | BQ11: ='All Respondents'!BR12-'All Respondents'!BR11 -> -0.12 | BR11: ='All Respondents'!BS12-'All Respondents'!BS11 -> -0.03 | BS11: ='All Respondents'!BT12-'All Respondents'!BT11 -> 0.01 | BT11: ='All Respondents'!BU12-'All Respondents'!BU11 -> 0.02 | BU11: ='All Respondents'!BV12-'All Respondents'!BV11 -> -0.04 | BV11: ='All Respondents'!BW12-'All Respondents'!BW11 -> 0.05 | BW11: ='All Respondents'!BX12-'All Respondents'!BX11 -> -0.04 | BX11: ='All Respondents'!BY12-'All Respondents'!BY11 -> -0.09 | BY11: ='All Respondents'!BZ12-'All Respondents'!BZ11 -> -0.04 | BZ11: ='All Respondents'!CA12-'All Respondents'!CA11 -> -0.01 | CA11: ='All Respondents'!CB12-'All Respondents'!CB11 -> -0.05 | CB11: ='All Respondents'!CC12-'All Respondents'!CC11 -> 0.02 | CC11: ='All Respondents'!CD12-'All Respondents'!CD11 -> -0.02 | CD11: ='All Respondents'!CE12-'All Respondents'!CE11 -> 0 | CE11: ='All Respondents'!CF12-'All Respondents'!CF11 -> 0.04 | DA11: ='All Respondents'!DB12-'All Respondents'!DB11 -> 0 | DB11: ='All Respondents'!DC12-'All Respondents'!DC11 -> -0.01 | DE11: ='All Respondents'!DF12-'All Respondents'!DF11 -> -0.04 | DF11: ='All Respondents'!DG12-'All Respondents'!DG11 -> 0.02 | DG11: ='All Respondents'!DH12-'All Respondents'!DH11 -> -0.02 | DH11: ='All Respondents'!DI12-'All Respondents'!DI11 -> -0.01 | DI11: ='All Respondents'!DJ12-'All Respondents'!DJ11 -> 0.03 | DJ11: ='All Respondents'!DK12-'All Respondents'!DK11 -> 0.03 | DK11: ='All Respondents'!DL12-'All Respondents'!DL11 -> 0
A12: Mar-Apr 11 | B12: ='All Respondents'!B13-'All Respondents'!B12 -> 2.5 | C12: ='All Respondents'!D13-'All Respondents'!D12 -> 3 | D12: ='All Respondents'!E13-'All Respondents'!E12 -> -0.03 | E12: ='All Respondents'!F13-'All Respondents'!F12 -> 0 | F12: ='All Respondents'!G13-'All Respondents'!G12 -> 0.05 | G12: ='All Respondents'!H13-'All Respondents'!H12 -> -0.03 | H12: ='All Respondents'!I13-'All Respondents'!I12 -> -0.0019 | I12: ='All Respondents'!J13-'All Respondents'!J12 -> 0.0116 | J12: ='All Respondents'!K13-'All Respondents'!K12 -> 0.000641 | K12: ='All Respondents'!L13-'All Respondents'!L12 -> 0 | L12: ='All Respondents'!M13-'All Respondents'!M12 -> 0 | M12: ='All Respondents'!N13-'All Respondents'!N12 -> -0.04 | N12: ='All Respondents'!O13-'All Respondents'!O12 -> 0 | Q12: ='All Respondents'!R13-'All Respondents'!R12 -> 0.05 | R12: ='All Respondents'!S13-'All Respondents'!S12 -> 0 | S12: ='All Respondents'!T13-'All Respondents'!T12 -> 0.05 | T12: ='All Respondents'!U13-'All Respondents'!U12 -> -0.05 | U12: ='All Respondents'!V13-'All Respondents'!V12 -> 0.01 | V12: ='All Respondents'!W13-'All Respondents'!W12 -> -0.04 | W12: ='All Respondents'!X13-'All Respondents'!X12 -> 0.09 | AH12: ='All Respondents'!AI13-'All Respondents'!AI12 -> 0 | AI12: ='All Respondents'!AJ13-'All Respondents'!AJ12 -> -0.01 | AJ12: ='All Respondents'!AK13-'All Respondents'!AK12 -> -0.01 | AK12: ='All Respondents'!AL13-'All Respondents'!AL12 -> 0.02 | AL12: ='All Respondents'!AM13-'All Respondents'!AM12 -> 0.01 | AM12: ='All Respondents'!AN13-'All Respondents'!AN12 -> 0.03 | AN12: ='All Respondents'!AO13-'All Respondents'!AO12 -> -0.04 | AY12: ='All Respondents'!AZ13-'All Respondents'!AZ12 -> -0.03 | AZ12: ='All Respondents'!BA13-'All Respondents'!BA12 -> 0 | BA12: ='All Respondents'!BB13-'All Respondents'!BB12 -> 0 | BB12: ='All Respondents'!BC13-'All Respondents'!BC12 -> -0.03 | BC12: ='All Respondents'!BD13-'All Respondents'!BD12 -> -0.000156 | BD12: ='All Respondents'!BE13-'All Respondents'!BE12 -> 0 | BE12: ='All Respondents'!BF13-'All Respondents'!BF12 -> 0 | BF12: ='All Respondents'!BG13-'All Respondents'!BG12 -> 0 | BG12: ='All Respondents'!BH13-'All Respondents'!BH12 -> -0.01 | BH12: ='All Respondents'!BI13-'All Respondents'!BI12 -> 0 | BI12: ='All Respondents'!BJ13-'All Respondents'!BJ12 -> -0.01 | BJ12: ='All Respondents'!BK13-'All Respondents'!BK12 -> -0.01 | BK12: ='All Respondents'!BL13-'All Respondents'!BL12 -> 0.02 | BL12: ='All Respondents'!BM13-'All Respondents'!BM12 -> 0.01 | BM12: ='All Respondents'!BN13-'All Respondents'!BN12 -> 0.03 | BN12: ='All Respondents'!BO13-'All Respondents'!BO12 -> -0.04 | BO12: ='All Respondents'!BP13-'All Respondents'!BP12 -> 0 | BP12: ='All Respondents'!BQ13-'All Respondents'!BQ12 -> -0.04 | BQ12: ='All Respondents'!BR13-'All Respondents'!BR12 -> 0.05 | BR12: ='All Respondents'!BS13-'All Respondents'!BS12 -> 0.04 | BS12: ='All Respondents'!BT13-'All Respondents'!BT12 -> -0.02 | BT12: ='All Respondents'!BU13-'All Respondents'!BU12 -> -0.02 | BU12: ='All Respondents'!BV13-'All Respondents'!BV12 -> 0.06 | BV12: ='All Respondents'!BW13-'All Respondents'!BW12 -> -0.02 | BW12: ='All Respondents'!BX13-'All Respondents'!BX12 -> 0.02 | BX12: ='All Respondents'!BY13-'All Respondents'!BY12 -> 0.04 | BY12: ='All Respondents'!BZ13-'All Respondents'!BZ12 -> 0.05 | BZ12: ='All Respondents'!CA13-'All Respondents'!CA12 -> 0.01 | CA12: ='All Respondents'!CB13-'All Respondents'!CB12 -> 0.06 | CB12: ='All Respondents'!CC13-'All Respondents'!CC12 -> -0.04 | CC12: ='All Respondents'!CD13-'All Respondents'!CD12 -> -0.01 | CD12: ='All Respondents'!CE13-'All Respondents'!CE12 -> 0.02 | CE12: ='All Respondents'!CF13-'All Respondents'!CF12 -> -0.05 | CF12: ='All Respondents'!CG13-'All Respondents'!CG12 -> -0.03 | CG12: ='All Respondents'!CH13-'All Respondents'!CH12 -> -0.03 | CH12: ='All Respondents'!CI13-'All Respondents'!CI12 -> 0.01 | CI12: ='All Respondents'!CJ13-'All Respondents'!CJ12 -> 0.02 | CJ12: ='All Respondents'!CK13-'All Respondents'!CK12 -> -0.02 | CK12: ='All Respondents'!CL13-'All Respondents'!CL12 -> -0.02 | CL12: ='All Respondents'!CM13-'All Respondents'!CM12 -> -0.04 | CM12: ='All Respondents'!CN13-'All Respondents'!CN12 -> 0.03 | CN12: ='All Respondents'!CO13-'All Respondents'!CO12 -> 0.01 | CO12: ='All Respondents'!CP13-'All Respondents'!CP12 -> 0.02 | CP12: ='All Respondents'!CQ13-'All Respondents'!CQ12 -> 0.07 | DA12: ='All Respondents'!DB13-'All Respondents'!DB12 -> 0.01 | DB12: ='All Respondents'!DC13-'All Respondents'!DC12 -> -0.01 | DE12: ='All Respondents'!DF13-'All Respondents'!DF12 -> 0.01 | DF12: ='All Respondents'!DG13-'All Respondents'!DG12 -> 0 | DG12: ='All Respondents'!DH13-'All Respondents'!DH12 -> 0.01 | DH12: ='All Respondents'!DI13-'All Respondents'!DI12 -> -0.01 | DI12: ='All Respondents'!DJ13-'All Respondents'!DJ12 -> -0.01 | DJ12: ='All Respondents'!DK13-'All Respondents'!DK12 -> -0.02 | DK12: ='All Respondents'!DL13-'All Respondents'!DL12 -> 0.01
A13: Apr-May 11 | B13: ='All Respondents'!B14-'All Respondents'!B13 -> -2.2 | C13: ='All Respondents'!D14-'All Respondents'!D13 -> -3.2 | D13: ='All Respondents'!E14-'All Respondents'!E13 -> -0.03 | E13: ='All Respondents'!F14-'All Respondents'!F13 -> 0 | F13: ='All Respondents'!G14-'All Respondents'!G13 -> 0.02 | G13: ='All Respondents'!H14-'All Respondents'!H13 -> -0.03 | H13: ='All Respondents'!I14-'All Respondents'!I13 -> -0.0026 | I13: ='All Respondents'!J14-'All Respondents'!J13 -> -0.0062 | J13: ='All Respondents'!K14-'All Respondents'!K13 -> -0.004994 | K13: ='All Respondents'!L14-'All Respondents'!L13 -> -0.04 | L13: ='All Respondents'!M14-'All Respondents'!M13 -> -0.01 | M13: ='All Respondents'!N14-'All Respondents'!N13 -> 0.06 | N13: ='All Respondents'!O14-'All Respondents'!O13 -> 0.03 | Q13: ='All Respondents'!R14-'All Respondents'!R13 -> -0.01 | R13: ='All Respondents'!S14-'All Respondents'!S13 -> -0.05 | S13: ='All Respondents'!T14-'All Respondents'!T13 -> -0.06 | T13: ='All Respondents'!U14-'All Respondents'!U13 -> 0.04 | U13: ='All Respondents'!V14-'All Respondents'!V13 -> 0.01 | V13: ='All Respondents'!W14-'All Respondents'!W13 -> 0.05 | W13: ='All Respondents'!X14-'All Respondents'!X13 -> -0.11 | AH13: ='All Respondents'!AI14-'All Respondents'!AI13 -> 0.01 | AI13: ='All Respondents'!AJ14-'All Respondents'!AJ13 -> -0.01 | AJ13: ='All Respondents'!AK14-'All Respondents'!AK13 -> 0 | AK13: ='All Respondents'!AL14-'All Respondents'!AL13 -> -0.01 | AL13: ='All Respondents'!AM14-'All Respondents'!AM13 -> -0.01 | AM13: ='All Respondents'!AN14-'All Respondents'!AN13 -> -0.02 | AN13: ='All Respondents'!AO14-'All Respondents'!AO13 -> 0.02 | AY13: ='All Respondents'!AZ14-'All Respondents'!AZ13 -> 0.03 | AZ13: ='All Respondents'!BA14-'All Respondents'!BA13 -> -0.02 | BA13: ='All Respondents'!BB14-'All Respondents'!BB13 -> 0 | BB13: ='All Respondents'!BC14-'All Respondents'!BC13 -> 0.05 | BC13: ='All Respondents'!BD14-'All Respondents'!BD13 -> 0.00701 | BD13: ='All Respondents'!BE14-'All Respondents'!BE13 -> 0.01 | BE13: ='All Respondents'!BF14-'All Respondents'!BF13 -> -0.01 | BF13: ='All Respondents'!BG14-'All Respondents'!BG13 -> 0.02 | BG13: ='All Respondents'!BH14-'All Respondents'!BH13 -> 0.01 | BH13: ='All Respondents'!BI14-'All Respondents'!BI13 -> -0.02 | BI13: ='All Respondents'!BJ14-'All Respondents'!BJ13 -> 0.03 | BJ13: ='All Respondents'!BK14-'All Respondents'!BK13 -> 0.02 | BK13: ='All Respondents'!BL14-'All Respondents'!BL13 -> -0.02 | BL13: ='All Respondents'!BM14-'All Respondents'!BM13 -> 0 | BM13: ='All Respondents'!BN14-'All Respondents'!BN13 -> 0 | BN13: ='All Respondents'!BO14-'All Respondents'!BO13 -> 0 | BO13: ='All Respondents'!BP14-'All Respondents'!BP13 -> 0 | BP13: ='All Respondents'!BQ14-'All Respondents'!BQ13 -> 0 | BQ13: ='All Respondents'!BR14-'All Respondents'!BR13 -> 0 | BR13: ='All Respondents'!BS14-'All Respondents'!BS13 -> -0.02 | BS13: ='All Respondents'!BT14-'All Respondents'!BT13 -> -0.02 | BT13: ='All Respondents'!BU14-'All Respondents'!BU13 -> 0.04 | BU13: ='All Respondents'!BV14-'All Respondents'!BV13 -> 0 | BV13: ='All Respondents'!BW14-'All Respondents'!BW13 -> 0 | BW13: ='All Respondents'!BX14-'All Respondents'!BX13 -> 0 | BX13: ='All Respondents'!BY14-'All Respondents'!BY13 -> 0 | BY13: ='All Respondents'!BZ14-'All Respondents'!BZ13 -> -0.04 | BZ13: ='All Respondents'!CA14-'All Respondents'!CA13 -> 0 | CA13: ='All Respondents'!CB14-'All Respondents'!CB13 -> -0.04 | CB13: ='All Respondents'!CC14-'All Respondents'!CC13 -> 0.01 | CC13: ='All Respondents'!CD14-'All Respondents'!CD13 -> 0.04 | CD13: ='All Respondents'!CE14-'All Respondents'!CE13 -> -0.03 | CE13: ='All Respondents'!CF14-'All Respondents'!CF13 -> 0 | CF13: ='All Respondents'!CG14-'All Respondents'!CG13 -> 0.01 | CG13: ='All Respondents'!CH14-'All Respondents'!CH13 -> 0.04 | CH13: ='All Respondents'!CI14-'All Respondents'!CI13 -> -0.01 | CI13: ='All Respondents'!CJ14-'All Respondents'!CJ13 -> 0 | CJ13: ='All Respondents'!CK14-'All Respondents'!CK13 -> 0.01 | CK13: ='All Respondents'!CL14-'All Respondents'!CL13 -> 0.02 | CL13: ='All Respondents'!CM14-'All Respondents'!CM13 -> 0.03 | CM13: ='All Respondents'!CN14-'All Respondents'!CN13 -> -0.01 | CN13: ='All Respondents'!CO14-'All Respondents'!CO13 -> -0.01 | CO13: ='All Respondents'!CP14-'All Respondents'!CP13 -> 0 | CP13: ='All Respondents'!CQ14-'All Respondents'!CQ13 -> -0.04 | DA13: ='All Respondents'!DB14-'All Respondents'!DB13 -> -0.01 | DB13: ='All Respondents'!DC14-'All Respondents'!DC13 -> 0.01 | DE13: ='All Respondents'!DF14-'All Respondents'!DF13 -> 0 | DF13: ='All Respondents'!DG14-'All Respondents'!DG13 -> -0.03 | DG13: ='All Respondents'!DH14-'All Respondents'!DH13 -> -0.03 | DH13: ='All Respondents'!DI14-'All Respondents'!DI13 -> 0.01 | DI13: ='All Respondents'!DJ14-'All Respondents'!DJ13 -> 0.01 | DJ13: ='All Respondents'!DK14-'All Respondents'!DK13 -> 0 | DK13: ='All Respondents'!DL14-'All Respondents'!DL13 -> 0.01
A14: May-Jun 11 | B14: ='All Respondents'!B15-'All Respondents'!B14 -> 0.7 | C14: ='All Respondents'!D15-'All Respondents'!D14 -> -1.6 | D14: ='All Respondents'!E15-'All Respondents'!E14 -> -0.05 | E14: ='All Respondents'!F15-'All Respondents'!F14 -> 0.06 | F14: ='All Respondents'!G15-'All Respondents'!G14 -> 0 | G14: ='All Respondents'!H15-'All Respondents'!H14 -> -0.11 | H14: ='All Respondents'!I15-'All Respondents'!I14 -> -0.0001 | I14: ='All Respondents'!J15-'All Respondents'!J14 -> -0.0053 | J14: ='All Respondents'!K15-'All Respondents'!K14 -> -0.011117 | K14: ='All Respondents'!L15-'All Respondents'!L14 -> -0.1 | L14: ='All Respondents'!M15-'All Respondents'!M14 -> 0.02 | M14: ='All Respondents'!N15-'All Respondents'!N14 -> 0.09 | N14: ='All Respondents'!O15-'All Respondents'!O14 -> 0.12 | Q14: ='All Respondents'!R15-'All Respondents'!R14 -> -0.01 | R14: ='All Respondents'!S15-'All Respondents'!S14 -> 0.02 | S14: ='All Respondents'!T15-'All Respondents'!T14 -> 0.01 | T14: ='All Respondents'!U15-'All Respondents'!U14 -> -0.03 | U14: ='All Respondents'!V15-'All Respondents'!V14 -> 0.02 | V14: ='All Respondents'!W15-'All Respondents'!W14 -> -0.01 | W14: ='All Respondents'!X15-'All Respondents'!X14 -> 0.02 | AH14: ='All Respondents'!AI15-'All Respondents'!AI14 -> -0.01 | AI14: ='All Respondents'!AJ15-'All Respondents'!AJ14 -> 0.01 | AJ14: ='All Respondents'!AK15-'All Respondents'!AK14 -> 0 | AK14: ='All Respondents'!AL15-'All Respondents'!AL14 -> -0.06 | AL14: ='All Respondents'!AM15-'All Respondents'!AM14 -> 0.08 | AM14: ='All Respondents'!AN15-'All Respondents'!AN14 -> 0.02 | AN14: ='All Respondents'!AO15-'All Respondents'!AO14 -> -0.02 | AY14: ='All Respondents'!AZ15-'All Respondents'!AZ14 -> -0.02 | AZ14: ='All Respondents'!BA15-'All Respondents'!BA14 -> 0.02 | BA14: ='All Respondents'!BB15-'All Respondents'!BB14 -> 0.02 | BB14: ='All Respondents'!BC15-'All Respondents'!BC14 -> -0.04 | BC14: ='All Respondents'!BD15-'All Respondents'!BD14 -> 0.00162 | BD14: ='All Respondents'!BE15-'All Respondents'!BE14 -> -0.01 | BE14: ='All Respondents'!BF15-'All Respondents'!BF14 -> 0.02 | BF14: ='All Respondents'!BG15-'All Respondents'!BG14 -> -0.03 | BG14: ='All Respondents'!BH15-'All Respondents'!BH14 -> -0.04 | BH14: ='All Respondents'!BI15-'All Respondents'!BI14 -> 0.06 | BI14: ='All Respondents'!BJ15-'All Respondents'!BJ14 -> -0.1 | BJ14: ='All Respondents'!BK15-'All Respondents'!BK14 -> 0 | BK14: ='All Respondents'!BL15-'All Respondents'!BL14 -> 0 | BL14: ='All Respondents'!BM15-'All Respondents'!BM14 -> 0 | BM14: ='All Respondents'!BN15-'All Respondents'!BN14 -> 0 | BN14: ='All Respondents'!BO15-'All Respondents'!BO14 -> 0 | BO14: ='All Respondents'!BP15-'All Respondents'!BP14 -> -0.01 | BP14: ='All Respondents'!BQ15-'All Respondents'!BQ14 -> -0.01 | BQ14: ='All Respondents'!BR15-'All Respondents'!BR14 -> 0.01 | BR14: ='All Respondents'!BS15-'All Respondents'!BS14 -> 0 | BS14: ='All Respondents'!BT15-'All Respondents'!BT14 -> 0.01 | BT14: ='All Respondents'!BU15-'All Respondents'!BU14 -> 0.01 | BU14: ='All Respondents'!BV15-'All Respondents'!BV14 -> -0.01 | BV14: ='All Respondents'!BW15-'All Respondents'!BW14 -> -0.04 | BW14: ='All Respondents'!BX15-'All Respondents'!BX14 -> 0.02 | BX14: ='All Respondents'!BY15-'All Respondents'!BY14 -> 0.06 | BY14: ='All Respondents'!BZ15-'All Respondents'!BZ14 -> 0.06 | BZ14: ='All Respondents'!CA15-'All Respondents'!CA14 -> -0.01 | CA14: ='All Respondents'!CB15-'All Respondents'!CB14 -> 0.05 | CB14: ='All Respondents'!CC15-'All Respondents'!CC14 -> -0.02 | CC14: ='All Respondents'!CD15-'All Respondents'!CD14 -> -0.03 | CD14: ='All Respondents'!CE15-'All Respondents'!CE14 -> -0.01 | CE14: ='All Respondents'!CF15-'All Respondents'!CF14 -> 0.02 | CF14: ='All Respondents'!CG15-'All Respondents'!CG14 -> -0.01 | CG14: ='All Respondents'!CH15-'All Respondents'!CH14 -> -0.03 | CH14: ='All Respondents'!CI15-'All Respondents'!CI14 -> 0 | CI14: ='All Respondents'!CJ15-'All Respondents'!CJ14 -> 0 | CJ14: ='All Respondents'!CK15-'All Respondents'!CK14 -> -0.01 | CK14: ='All Respondents'!CL15-'All Respondents'!CL14 -> -0.02 | CL14: ='All Respondents'!CM15-'All Respondents'!CM14 -> -0.03 | CM14: ='All Respondents'!CN15-'All Respondents'!CN14 -> 0.01 | CN14: ='All Respondents'!CO15-'All Respondents'!CO14 -> -0.02 | CO14: ='All Respondents'!CP15-'All Respondents'!CP14 -> 0.03 | CP14: ='All Respondents'!CQ15-'All Respondents'!CQ14 -> 0.04 | DA14: ='All Respondents'!DB15-'All Respondents'!DB14 -> 0.02 | DB14: ='All Respondents'!DC15-'All Respondents'!DC14 -> -0.03 | DE14: ='All Respondents'!DF15-'All Respondents'!DF14 -> 0 | DF14: ='All Respondents'!DG15-'All Respondents'!DG14 -> -0.01 | DG14: ='All Respondents'!DH15-'All Respondents'!DH14 -> -0.01 | DH14: ='All Respondents'!DI15-'All Respondents'!DI14 -> 0.02 | DI14: ='All Respondents'!DJ15-'All Respondents'!DJ14 -> -0.02 | DJ14: ='All Respondents'!DK15-'All Respondents'!DK14 -> -0.02 | DK14: ='All Respondents'!DL15-'All Respondents'!DL14 -> 0
A15: Jun-Jul 11 | B15: ='All Respondents'!B16-'All Respondents'!B15 -> -1 | C15: ='All Respondents'!D16-'All Respondents'!D15 -> 0.2 | D15: ='All Respondents'!E16-'All Respondents'!E15 -> 0 | E15: ='All Respondents'!F16-'All Respondents'!F15 -> 0 | F15: ='All Respondents'!G16-'All Respondents'!G15 -> -0.01 | G15: ='All Respondents'!H16-'All Respondents'!H15 -> 0 | H15: ='All Respondents'!I16-'All Respondents'!I15 -> -0.0132 | I15: ='All Respondents'!J16-'All Respondents'!J15 -> 0.0022 | J15: ='All Respondents'!K16-'All Respondents'!K15 -> -0.002816 | K15: ='All Respondents'!L16-'All Respondents'!L15 -> 0.08 | L15: ='All Respondents'!M16-'All Respondents'!M15 -> 0.01 | M15: ='All Respondents'!N16-'All Respondents'!N15 -> -0.09 | N15: ='All Respondents'!O16-'All Respondents'!O15 -> -0.07 | Q15: ='All Respondents'!R16-'All Respondents'!R15 -> -0.05 | R15: ='All Respondents'!S16-'All Respondents'!S15 -> 0.05 | S15: ='All Respondents'!T16-'All Respondents'!T15 -> 0 | T15: ='All Respondents'!U16-'All Respondents'!U15 -> 0.01 | U15: ='All Respondents'!V16-'All Respondents'!V15 -> 0 | V15: ='All Respondents'!W16-'All Respondents'!W15 -> 0.01 | W15: ='All Respondents'!X16-'All Respondents'!X15 -> -0.01 | AH15: ='All Respondents'!AI16-'All Respondents'!AI15 -> 0.01 | AI15: ='All Respondents'!AJ16-'All Respondents'!AJ15 -> 0 | AJ15: ='All Respondents'!AK16-'All Respondents'!AK15 -> 0.01 | AK15: ='All Respondents'!AL16-'All Respondents'!AL15 -> 0 | AL15: ='All Respondents'!AM16-'All Respondents'!AM15 -> -0.01 | AM15: ='All Respondents'!AN16-'All Respondents'!AN15 -> -0.01 | AN15: ='All Respondents'!AO16-'All Respondents'!AO15 -> 0.02 | AY15: ='All Respondents'!AZ16-'All Respondents'!AZ15 -> 0.03 | AZ15: ='All Respondents'!BA16-'All Respondents'!BA15 -> 0 | BA15: ='All Respondents'!BB16-'All Respondents'!BB15 -> -0.02 | BB15: ='All Respondents'!BC16-'All Respondents'!BC15 -> 0.03 | BC15: ='All Respondents'!BD16-'All Respondents'!BD15 -> -0.002127 | BD15: ='All Respondents'!BE16-'All Respondents'!BE15 -> -0.03 | BE15: ='All Respondents'!BF16-'All Respondents'!BF15 -> 0.01 | BF15: ='All Respondents'!BG16-'All Respondents'!BG15 -> -0.04 | BG15: ='All Respondents'!BH16-'All Respondents'!BH15 -> -0.03 | BH15: ='All Respondents'!BI16-'All Respondents'!BI15 -> 0.04 | BI15: ='All Respondents'!BJ16-'All Respondents'!BJ15 -> -0.07 | BJ15: ='All Respondents'!BK16-'All Respondents'!BK15 -> -0.01 | BK15: ='All Respondents'!BL16-'All Respondents'!BL15 -> -0.01 | BL15: ='All Respondents'!BM16-'All Respondents'!BM15 -> -0.02 | BM15: ='All Respondents'!BN16-'All Respondents'!BN15 -> -0.01 | BN15: ='All Respondents'!BO16-'All Respondents'!BO15 -> 0.03 | BO15: ='All Respondents'!BP16-'All Respondents'!BP15 -> 0.02 | BP15: ='All Respondents'!BQ16-'All Respondents'!BQ15 -> 0.05 | BQ15: ='All Respondents'!BR16-'All Respondents'!BR15 -> -0.07 | BR15: ='All Respondents'!BS16-'All Respondents'!BS15 -> -0.01 | BS15: ='All Respondents'!BT16-'All Respondents'!BT15 -> 0.01 | BT15: ='All Respondents'!BU16-'All Respondents'!BU15 -> -0.02 | BU15: ='All Respondents'!BV16-'All Respondents'!BV15 -> -0.02 | BV15: ='All Respondents'!BW16-'All Respondents'!BW15 -> 0.04 | BW15: ='All Respondents'!BX16-'All Respondents'!BX15 -> -0.02 | BX15: ='All Respondents'!BY16-'All Respondents'!BY15 -> -0.06 | BY15: ='All Respondents'!BZ16-'All Respondents'!BZ15 -> -0.04 | BZ15: ='All Respondents'!CA16-'All Respondents'!CA15 -> 0.04 | CA15: ='All Respondents'!CB16-'All Respondents'!CB15 -> 0 | CB15: ='All Respondents'!CC16-'All Respondents'!CC15 -> 0.01 | CC15: ='All Respondents'!CD16-'All Respondents'!CD15 -> -0.02 | CD15: ='All Respondents'!CE16-'All Respondents'!CE15 -> 0 | CE15: ='All Respondents'!CF16-'All Respondents'!CF15 -> 0.03 | CF15: ='All Respondents'!CG16-'All Respondents'!CG15 -> 0.01 | CG15: ='All Respondents'!CH16-'All Respondents'!CH15 -> 0 | CH15: ='All Respondents'!CI16-'All Respondents'!CI15 -> 0.02 | CI15: ='All Respondents'!CJ16-'All Respondents'!CJ15 -> -0.02 | CJ15: ='All Respondents'!CK16-'All Respondents'!CK15 -> 0.01 | CK15: ='All Respondents'!CL16-'All Respondents'!CL15 -> -0.02 | CL15: ='All Respondents'!CM16-'All Respondents'!CM15 -> -0.01 | CM15: ='All Respondents'!CN16-'All Respondents'!CN15 -> 0.01 | CN15: ='All Respondents'!CO16-'All Respondents'!CO15 -> 0.05 | CO15: ='All Respondents'!CP16-'All Respondents'!CP15 -> -0.04 | CP15: ='All Respondents'!CQ16-'All Respondents'!CQ15 -> 0.02 | DA15: ='All Respondents'!DB16-'All Respondents'!DB15 -> -0.02 | DB15: ='All Respondents'!DC16-'All Respondents'!DC15 -> 0.02 | DE15: ='All Respondents'!DF16-'All Respondents'!DF15 -> 0.02 | DF15: ='All Respondents'!DG16-'All Respondents'!DG15 -> 0.01 | DG15: ='All Respondents'!DH16-'All Respondents'!DH15 -> 0.03 | DH15: ='All Respondents'!DI16-'All Respondents'!DI15 -> -0.02 | DI15: ='All Respondents'!DJ16-'All Respondents'!DJ15 -> 0.02 | DJ15: ='All Respondents'!DK16-'All Respondents'!DK15 -> 0 | DK15: ='All Respondents'!DL16-'All Respondents'!DL15 -> 0.02
A16: Jul-Aug 11 | B16: ='All Respondents'!B17-'All Respondents'!B16 -> -0.7 | C16: ='All Respondents'!D17-'All Respondents'!D16 -> -1 | D16: ='All Respondents'!E17-'All Respondents'!E16 -> -0.01 | E16: ='All Respondents'!F17-'All Respondents'!F16 -> 0.02 | F16: ='All Respondents'!G17-'All Respondents'!G16 -> 0.01 | G16: ='All Respondents'!H17-'All Respondents'!H16 -> -0.03 | H16: ='All Respondents'!I17-'All Respondents'!I16 -> 0.012 | I16: ='All Respondents'!J17-'All Respondents'!J16 -> 0.0006 | J16: ='All Respondents'!K17-'All Respondents'!K16 -> 0.000409 | K16: ='All Respondents'!L17-'All Respondents'!L16 -> 0 | L16: ='All Respondents'!M17-'All Respondents'!M16 -> 0.01 | M16: ='All Respondents'!N17-'All Respondents'!N16 -> 0.01 | N16: ='All Respondents'!O17-'All Respondents'!O16 -> 0.01 | Q16: ='All Respondents'!R17-'All Respondents'!R16 -> 0.04 | R16: ='All Respondents'!S17-'All Respondents'!S16 -> -0.03 | S16: ='All Respondents'!T17-'All Respondents'!T16 -> 0.01 | T16: ='All Respondents'!U17-'All Respondents'!U16 -> 0.01 | U16: ='All Respondents'!V17-'All Respondents'!V16 -> -0.02 | V16: ='All Respondents'!W17-'All Respondents'!W16 -> -0.01 | W16: ='All Respondents'!X17-'All Respondents'!X16 -> 0.02 | AH16: ='All Respondents'!AI17-'All Respondents'!AI16 -> -0.02 | AI16: ='All Respondents'!AJ17-'All Respondents'!AJ16 -> -0.01 | AJ16: ='All Respondents'!AK17-'All Respondents'!AK16 -> -0.03 | AK16: ='All Respondents'!AL17-'All Respondents'!AL16 -> 0.04 | AL16: ='All Respondents'!AM17-'All Respondents'!AM16 -> -0.03 | AM16: ='All Respondents'!AN17-'All Respondents'!AN16 -> 0.01 | AN16: ='All Respondents'!AO17-'All Respondents'!AO16 -> -0.04 | AY16: ='All Respondents'!AZ17-'All Respondents'!AZ16 -> 0.01 | AZ16: ='All Respondents'!BA17-'All Respondents'!BA16 -> 0 | BA16: ='All Respondents'!BB17-'All Respondents'!BB16 -> -0.04 | BB16: ='All Respondents'!BC17-'All Respondents'!BC16 -> 0.01 | BC16: ='All Respondents'!BD17-'All Respondents'!BD16 -> 0.000577 | BD16: ='All Respondents'!BE17-'All Respondents'!BE16 -> 0.01 | BE16: ='All Respondents'!BF17-'All Respondents'!BF16 -> 0.01 | BF16: ='All Respondents'!BG17-'All Respondents'!BG16 -> 0 | BG16: ='All Respondents'!BH17-'All Respondents'!BH16 -> -0.08 | BH16: ='All Respondents'!BI17-'All Respondents'!BI16 -> 0.08 | BI16: ='All Respondents'!BJ17-'All Respondents'!BJ16 -> -0.16 | BJ16: ='All Respondents'!BK17-'All Respondents'!BK16 -> -0.04 | BK16: ='All Respondents'!BL17-'All Respondents'!BL16 -> 0.01 | BL16: ='All Respondents'!BM17-'All Respondents'!BM16 -> -0.03 | BM16: ='All Respondents'!BN17-'All Respondents'!BN16 -> 0.01 | BN16: ='All Respondents'!BO17-'All Respondents'!BO16 -> 0 | BO16: ='All Respondents'!BP17-'All Respondents'!BP16 -> 0 | BP16: ='All Respondents'!BQ17-'All Respondents'!BQ16 -> 0 | BQ16: ='All Respondents'!BR17-'All Respondents'!BR16 -> -0.03 | BR16: ='All Respondents'!BS17-'All Respondents'!BS16 -> 0.03 | BS16: ='All Respondents'!BT17-'All Respondents'!BT16 -> -0.01 | BT16: ='All Respondents'!BU17-'All Respondents'!BU16 -> -0.01 | BU16: ='All Respondents'!BV17-'All Respondents'!BV16 -> 0.04 | BV16: ='All Respondents'!BW17-'All Respondents'!BW16 -> -0.01 | BW16: ='All Respondents'!BX17-'All Respondents'!BX16 -> 0 | BX16: ='All Respondents'!BY17-'All Respondents'!BY16 -> 0.01 | BY16: ='All Respondents'!BZ17-'All Respondents'!BZ16 -> -0.02 | BZ16: ='All Respondents'!CA17-'All Respondents'!CA16 -> -0.05 | CA16: ='All Respondents'!CB17-'All Respondents'!CB16 -> -0.07 | CB16: ='All Respondents'!CC17-'All Respondents'!CC16 -> 0.06 | CC16: ='All Respondents'!CD17-'All Respondents'!CD16 -> 0.04 | CD16: ='All Respondents'!CE17-'All Respondents'!CE16 -> 0.08 | CE16: ='All Respondents'!CF17-'All Respondents'!CF16 -> -0.06 | CF16: ='All Respondents'!CG17-'All Respondents'!CG16 -> 0 | CG16: ='All Respondents'!CH17-'All Respondents'!CH16 -> 0.03 | CH16: ='All Respondents'!CI17-'All Respondents'!CI16 -> -0.01 | CI16: ='All Respondents'!CJ17-'All Respondents'!CJ16 -> 0.02 | CJ16: ='All Respondents'!CK17-'All Respondents'!CK16 -> 0 | CK16: ='All Respondents'!CL17-'All Respondents'!CL16 -> 0.02 | CL16: ='All Respondents'!CM17-'All Respondents'!CM16 -> 0.02 | CM16: ='All Respondents'!CN17-'All Respondents'!CN16 -> -0.02 | CN16: ='All Respondents'!CO17-'All Respondents'!CO16 -> -0.02 | CO16: ='All Respondents'!CP17-'All Respondents'!CP16 -> 0 | CP16: ='All Respondents'!CQ17-'All Respondents'!CQ16 -> -0.04 | DA16: ='All Respondents'!DB17-'All Respondents'!DB16 -> 0.03 | DB16: ='All Respondents'!DC17-'All Respondents'!DC16 -> -0.02 | DE16: ='All Respondents'!DF17-'All Respondents'!DF16 -> -0.06 | DF16: ='All Respondents'!DG17-'All Respondents'!DG16 -> 0.02 | DG16: ='All Respondents'!DH17-'All Respondents'!DH16 -> -0.04 | DH16: ='All Respondents'!DI17-'All Respondents'!DI16 -> 0.03 | DI16: ='All Respondents'!DJ17-'All Respondents'!DJ16 -> -0.01 | DJ16: ='All Respondents'!DK17-'All Respondents'!DK16 -> 0.02 | DK16: ='All Respondents'!DL17-'All Respondents'!DL16 -> -0.03
A17: Aug-Sep 11 | B17: ='All Respondents'!B18-'All Respondents'!B17 -> 0.9 | C17: ='All Respondents'!D18-'All Respondents'!D17 -> -1.2 | D17: ='All Respondents'!E18-'All Respondents'!E17 -> -0.03 | E17: ='All Respondents'!F18-'All Respondents'!F17 -> -0.01 | F17: ='All Respondents'!G18-'All Respondents'!G17 -> 0.04 | G17: ='All Respondents'!H18-'All Respondents'!H17 -> -0.02 | H17: ='All Respondents'!I18-'All Respondents'!I17 -> -0.011 | I17: ='All Respondents'!J18-'All Respondents'!J17 -> -0.0055 | J17: ='All Respondents'!K18-'All Respondents'!K17 -> -0.005481 | K17: ='All Respondents'!L18-'All Respondents'!L17 -> -0.1 | L17: ='All Respondents'!M18-'All Respondents'!M17 -> 0.01 | M17: ='All Respondents'!N18-'All Respondents'!N17 -> 0.1 | N17: ='All Respondents'!O18-'All Respondents'!O17 -> 0.11 | Q17: ='All Respondents'!R18-'All Respondents'!R17 -> 0 | R17: ='All Respondents'!S18-'All Respondents'!S17 -> 0 | S17: ='All Respondents'!T18-'All Respondents'!T17 -> 0 | T17: ='All Respondents'!U18-'All Respondents'!U17 -> -0.01 | U17: ='All Respondents'!V18-'All Respondents'!V17 -> 0 | V17: ='All Respondents'!W18-'All Respondents'!W17 -> -0.01 | W17: ='All Respondents'!X18-'All Respondents'!X17 -> 0.01 | AH17: ='All Respondents'!AI18-'All Respondents'!AI17 -> 0.01 | AI17: ='All Respondents'!AJ18-'All Respondents'!AJ17 -> -0.02 | AJ17: ='All Respondents'!AK18-'All Respondents'!AK17 -> -0.01 | AK17: ='All Respondents'!AL18-'All Respondents'!AL17 -> -0.01 | AL17: ='All Respondents'!AM18-'All Respondents'!AM17 -> 0.02 | AM17: ='All Respondents'!AN18-'All Respondents'!AN17 -> 0.01 | AN17: ='All Respondents'!AO18-'All Respondents'!AO17 -> -0.02 | AY17: ='All Respondents'!AZ18-'All Respondents'!AZ17 -> -0.03 | AZ17: ='All Respondents'!BA18-'All Respondents'!BA17 -> 0.01 | BA17: ='All Respondents'!BB18-'All Respondents'!BB17 -> 0.03 | BB17: ='All Respondents'!BC18-'All Respondents'!BC17 -> -0.04 | BC17: ='All Respondents'!BD18-'All Respondents'!BD17 -> -0.002754 | BD17: ='All Respondents'!BE18-'All Respondents'!BE17 -> -0.01 | BE17: ='All Respondents'!BF18-'All Respondents'!BF17 -> -0.01 | BF17: ='All Respondents'!BG18-'All Respondents'!BG17 -> 0 | BG17: ='All Respondents'!BH18-'All Respondents'!BH17 -> 0 | BH17: ='All Respondents'!BI18-'All Respondents'!BI17 -> -0.02 | BI17: ='All Respondents'!BJ18-'All Respondents'!BJ17 -> 0.02 | BJ17: ='All Respondents'!BK18-'All Respondents'!BK17 -> 0.05 | BK17: ='All Respondents'!BL18-'All Respondents'!BL17 -> -0.03 | BL17: ='All Respondents'!BM18-'All Respondents'!BM17 -> 0.02 | BM17: ='All Respondents'!BN18-'All Respondents'!BN17 -> -0.01 | BN17: ='All Respondents'!BO18-'All Respondents'!BO17 -> 0.01 | BO17: ='All Respondents'!BP18-'All Respondents'!BP17 -> -0.02 | BP17: ='All Respondents'!BQ18-'All Respondents'!BQ17 -> -0.01 | BQ17: ='All Respondents'!BR18-'All Respondents'!BR17 -> 0.03 | BR17: ='All Respondents'!BS18-'All Respondents'!BS17 -> 0 | BS17: ='All Respondents'!BT18-'All Respondents'!BT17 -> 0.04 | BT17: ='All Respondents'!BU18-'All Respondents'!BU17 -> -0.04 | BU17: ='All Respondents'!BV18-'All Respondents'!BV17 -> -0.04 | BV17: ='All Respondents'!BW18-'All Respondents'!BW17 -> 0.01 | BW17: ='All Respondents'!BX18-'All Respondents'!BX17 -> 0 | BX17: ='All Respondents'!BY18-'All Respondents'!BY17 -> -0.01 | BY17: ='All Respondents'!BZ18-'All Respondents'!BZ17 -> 0.03 | BZ17: ='All Respondents'!CA18-'All Respondents'!CA17 -> 0.02 | CA17: ='All Respondents'!CB18-'All Respondents'!CB17 -> 0.05 | CB17: ='All Respondents'!CC18-'All Respondents'!CC17 -> -0.05 | CC17: ='All Respondents'!CD18-'All Respondents'!CD17 -> 0 | CD17: ='All Respondents'!CE18-'All Respondents'!CE17 -> -0.06 | CE17: ='All Respondents'!CF18-'All Respondents'!CF17 -> 0.01 | CF17: ='All Respondents'!CG18-'All Respondents'!CG17 -> 0.02 | CG17: ='All Respondents'!CH18-'All Respondents'!CH17 -> -0.04 | CH17: ='All Respondents'!CI18-'All Respondents'!CI17 -> -0.01 | CI17: ='All Respondents'!CJ18-'All Respondents'!CJ17 -> 0.01 | CJ17: ='All Respondents'!CK18-'All Respondents'!CK17 -> 0.03 | CK17: ='All Respondents'!CL18-'All Respondents'!CL17 -> -0.03 | CL17: ='All Respondents'!CM18-'All Respondents'!CM17 -> 0 | CM17: ='All Respondents'!CN18-'All Respondents'!CN17 -> 0.01 | CN17: ='All Respondents'!CO18-'All Respondents'!CO17 -> 0.02 | CO17: ='All Respondents'!CP18-'All Respondents'!CP17 -> -0.01 | CP17: ='All Respondents'!CQ18-'All Respondents'!CQ17 -> 0.01 | DA17: ='All Respondents'!DB18-'All Respondents'!DB17 -> -0.02 | DB17: ='All Respondents'!DC18-'All Respondents'!DC17 -> 0.02 | DE17: ='All Respondents'!DF18-'All Respondents'!DF17 -> 0.03 | DF17: ='All Respondents'!DG18-'All Respondents'!DG17 -> -0.01 | DG17: ='All Respondents'!DH18-'All Respondents'!DH17 -> 0.02 | DH17: ='All Respondents'!DI18-'All Respondents'!DI17 -> -0.02 | DI17: ='All Respondents'!DJ18-'All Respondents'!DJ17 -> 0.01 | DJ17: ='All Respondents'!DK18-'All Respondents'!DK17 -> -0.01 | DK17: ='All Respondents'!DL18-'All Respondents'!DL17 -> 0.02
A18: Sep-Oct 11 | B18: ='All Respondents'!B19-'All Respondents'!B18 -> 1 | C18: ='All Respondents'!D19-'All Respondents'!D18 -> 2 | D18: ='All Respondents'!E19-'All Respondents'!E18 -> 0.02 | E18: ='All Respondents'!F19-'All Respondents'!F18 -> -0.03 | F18: ='All Respondents'!G19-'All Respondents'!G18 -> 0 | G18: ='All Respondents'!H19-'All Respondents'!H18 -> 0.05 | H18: ='All Respondents'!I19-'All Respondents'!I18 -> 0.0072 | I18: ='All Respondents'!J19-'All Respondents'!J18 -> 0.0124 | J18: ='All Respondents'!K19-'All Respondents'!K18 -> 0.008868 | K18: ='All Respondents'!L19-'All Respondents'!L18 -> 0.02 | L18: ='All Respondents'!M19-'All Respondents'!M18 -> -0.02 | M18: ='All Respondents'!N19-'All Respondents'!N18 -> -0.02 | N18: ='All Respondents'!O19-'All Respondents'!O18 -> -0.04 | Q18: ='All Respondents'!R19-'All Respondents'!R18 -> 0.01 | R18: ='All Respondents'!S19-'All Respondents'!S18 -> -0.01 | S18: ='All Respondents'!T19-'All Respondents'!T18 -> 0 | T18: ='All Respondents'!U19-'All Respondents'!U18 -> 0 | U18: ='All Respondents'!V19-'All Respondents'!V18 -> -0.01 | V18: ='All Respondents'!W19-'All Respondents'!W18 -> -0.01 | W18: ='All Respondents'!X19-'All Respondents'!X18 -> 0.01 | AH18: ='All Respondents'!AI19-'All Respondents'!AI18 -> 0 | AI18: ='All Respondents'!AJ19-'All Respondents'!AJ18 -> 0.02 | AJ18: ='All Respondents'!AK19-'All Respondents'!AK18 -> 0.02 | AK18: ='All Respondents'!AL19-'All Respondents'!AL18 -> 0.01 | AL18: ='All Respondents'!AM19-'All Respondents'!AM18 -> -0.02 | AM18: ='All Respondents'!AN19-'All Respondents'!AN18 -> -0.01 | AN18: ='All Respondents'!AO19-'All Respondents'!AO18 -> 0.03 | AY18: ='All Respondents'!AZ19-'All Respondents'!AZ18 -> -0.01 | AZ18: ='All Respondents'!BA19-'All Respondents'!BA18 -> -0.02 | BA18: ='All Respondents'!BB19-'All Respondents'!BB18 -> 0.03 | BB18: ='All Respondents'!BC19-'All Respondents'!BC18 -> 0.01 | BC18: ='All Respondents'!BD19-'All Respondents'!BD18 -> -0.000509 | BD18: ='All Respondents'!BE19-'All Respondents'!BE18 -> 0.04 | BE18: ='All Respondents'!BF19-'All Respondents'!BF18 -> -0.03 | BF18: ='All Respondents'!BG19-'All Respondents'!BG18 -> 0.07 | BG18: ='All Respondents'!BH19-'All Respondents'!BH18 -> 0.01 | BH18: ='All Respondents'!BI19-'All Respondents'!BI18 -> -0.01 | BI18: ='All Respondents'!BJ19-'All Respondents'!BJ18 -> 0.02 | BJ18: ='All Respondents'!BK19-'All Respondents'!BK18 -> -0.03 | BK18: ='All Respondents'!BL19-'All Respondents'!BL18 -> 0.01 | BL18: ='All Respondents'!BM19-'All Respondents'!BM18 -> -0.02 | BM18: ='All Respondents'!BN19-'All Respondents'!BN18 -> 0.04 | BN18: ='All Respondents'!BO19-'All Respondents'!BO18 -> -0.02 | BO18: ='All Respondents'!BP19-'All Respondents'!BP18 -> 0 | BP18: ='All Respondents'!BQ19-'All Respondents'!BQ18 -> -0.02 | BQ18: ='All Respondents'!BR19-'All Respondents'!BR18 -> 0 | BR18: ='All Respondents'!BS19-'All Respondents'!BS18 -> -0.04 | BS18: ='All Respondents'!BT19-'All Respondents'!BT18 -> -0.05 | BT18: ='All Respondents'!BU19-'All Respondents'!BU18 -> 0.1 | BU18: ='All Respondents'!BV19-'All Respondents'!BV18 -> 0.01 | BV18: ='All Respondents'!BW19-'All Respondents'!BW18 -> 0 | BW18: ='All Respondents'!BX19-'All Respondents'!BX18 -> -0.01 | BX18: ='All Respondents'!BY19-'All Respondents'!BY18 -> -0.01 | BY18: ='All Respondents'!BZ19-'All Respondents'!BZ18 -> -0.02 | BZ18: ='All Respondents'!CA19-'All Respondents'!CA18 -> 0 | CA18: ='All Respondents'!CB19-'All Respondents'!CB18 -> -0.02 | CB18: ='All Respondents'!CC19-'All Respondents'!CC18 -> 0.02 | CC18: ='All Respondents'!CD19-'All Respondents'!CD18 -> -0.05 | CD18: ='All Respondents'!CE19-'All Respondents'!CE18 -> 0.04 | CE18: ='All Respondents'!CF19-'All Respondents'!CF18 -> 0.03 | CF18: ='All Respondents'!CG19-'All Respondents'!CG18 -> -0.02 | CG18: ='All Respondents'!CH19-'All Respondents'!CH18 -> 0.02 | CH18: ='All Respondents'!CI19-'All Respondents'!CI18 -> -0.02 | CI18: ='All Respondents'!CJ19-'All Respondents'!CJ18 -> 0.04 | CJ18: ='All Respondents'!CK19-'All Respondents'!CK18 -> -0.03 | CK18: ='All Respondents'!CL19-'All Respondents'!CL18 -> 0.03 | CL18: ='All Respondents'!CM19-'All Respondents'!CM18 -> 0 | CM18: ='All Respondents'!CN19-'All Respondents'!CN18 -> 0 | CN18: ='All Respondents'!CO19-'All Respondents'!CO18 -> -0.06 | CO18: ='All Respondents'!CP19-'All Respondents'!CP18 -> 0.06 | CP18: ='All Respondents'!CQ19-'All Respondents'!CQ18 -> 0 | DA18: ='All Respondents'!DB19-'All Respondents'!DB18 -> -0.01 | DB18: ='All Respondents'!DC19-'All Respondents'!DC18 -> 0.01 | DE18: ='All Respondents'!DF19-'All Respondents'!DF18 -> 0.01 | DF18: ='All Respondents'!DG19-'All Respondents'!DG18 -> 0 | DG18: ='All Respondents'!DH19-'All Respondents'!DH18 -> 0.01 | DH18: ='All Respondents'!DI19-'All Respondents'!DI18 -> -0.02 | DI18: ='All Respondents'!DJ19-'All Respondents'!DJ18 -> 0.01 | DJ18: ='All Respondents'!DK19-'All Respondents'!DK18 -> 0.02 | DK18: ='All Respondents'!DL19-'All Respondents'!DL18 -> -0.01
A19: Oct-Nov 11 | B19: ='All Respondents'!B20-'All Respondents'!B19 -> 0.5 | C19: ='All Respondents'!D20-'All Respondents'!D19 -> -0.6 | D19: ='All Respondents'!E20-'All Respondents'!E19 -> 0.03 | E19: ='All Respondents'!F20-'All Respondents'!F19 -> -0.01 | F19: ='All Respondents'!G20-'All Respondents'!G19 -> -0.02 | G19: ='All Respondents'!H20-'All Respondents'!H19 -> 0.04 | H19: ='All Respondents'!I20-'All Respondents'!I19 -> 0.0089 | I19: ='All Respondents'!J20-'All Respondents'!J19 -> -0.0027 | J19: ='All Respondents'!K20-'All Respondents'!K19 -> 0.005081 | K19: ='All Respondents'!L20-'All Respondents'!L19 -> -0.02 | L19: ='All Respondents'!M20-'All Respondents'!M19 -> 0.04 | M19: ='All Respondents'!N20-'All Respondents'!N19 -> -0.01 | N19: ='All Respondents'!O20-'All Respondents'!O19 -> 0.06 | Q19: ='All Respondents'!R20-'All Respondents'!R19 -> 0.01 | R19: ='All Respondents'!S20-'All Respondents'!S19 -> -0.01 | S19: ='All Respondents'!T20-'All Respondents'!T19 -> 0 | T19: ='All Respondents'!U20-'All Respondents'!U19 -> 0 | U19: ='All Respondents'!V20-'All Respondents'!V19 -> 0.02 | V19: ='All Respondents'!W20-'All Respondents'!W19 -> 0.02 | W19: ='All Respondents'!X20-'All Respondents'!X19 -> -0.02 | AH19: ='All Respondents'!AI20-'All Respondents'!AI19 -> -0.01 | AI19: ='All Respondents'!AJ20-'All Respondents'!AJ19 -> 0.02 | AJ19: ='All Respondents'!AK20-'All Respondents'!AK19 -> 0.01 | AK19: ='All Respondents'!AL20-'All Respondents'!AL19 -> -0.05 | AL19: ='All Respondents'!AM20-'All Respondents'!AM19 -> 0.04 | AM19: ='All Respondents'!AN20-'All Respondents'!AN19 -> -0.01 | AN19: ='All Respondents'!AO20-'All Respondents'!AO19 -> 0.02 | AY19: ='All Respondents'!AZ20-'All Respondents'!AZ19 -> -0.03 | AZ19: ='All Respondents'!BA20-'All Respondents'!BA19 -> 0.01 | BA19: ='All Respondents'!BB20-'All Respondents'!BB19 -> 0.03 | BB19: ='All Respondents'!BC20-'All Respondents'!BC19 -> -0.04 | BC19: ='All Respondents'!BD20-'All Respondents'!BD19 -> -0.002446 | BD19: ='All Respondents'!BE20-'All Respondents'!BE19 -> -0.05 | BE19: ='All Respondents'!BF20-'All Respondents'!BF19 -> 0.05 | BF19: ='All Respondents'!BG20-'All Respondents'!BG19 -> -0.1 | BG19: ='All Respondents'!BH20-'All Respondents'!BH19 -> -0.02 | BH19: ='All Respondents'!BI20-'All Respondents'!BI19 -> 0 | BI19: ='All Respondents'!BJ20-'All Respondents'!BJ19 -> -0.02 | BJ19: ='All Respondents'!BK20-'All Respondents'!BK19 -> 0.01 | BK19: ='All Respondents'!BL20-'All Respondents'!BL19 -> 0.01 | BL19: ='All Respondents'!BM20-'All Respondents'!BM19 -> 0.02 | BM19: ='All Respondents'!BN20-'All Respondents'!BN19 -> -0.02 | BN19: ='All Respondents'!BO20-'All Respondents'!BO19 -> 0 | BO19: ='All Respondents'!BP20-'All Respondents'!BP19 -> 0 | BP19: ='All Respondents'!BQ20-'All Respondents'!BQ19 -> 0 | BQ19: ='All Respondents'!BR20-'All Respondents'!BR19 -> 0.02 | BR19: ='All Respondents'!BS20-'All Respondents'!BS19 -> -0.02 | BS19: ='All Respondents'!BT20-'All Respondents'!BT19 -> 0.01 | BT19: ='All Respondents'!BU20-'All Respondents'!BU19 -> 0 | BU19: ='All Respondents'!BV20-'All Respondents'!BV19 -> -0.03 | BV19: ='All Respondents'!BW20-'All Respondents'!BW19 -> 0 | BW19: ='All Respondents'!BX20-'All Respondents'!BX19 -> 0 | BX19: ='All Respondents'!BY20-'All Respondents'!BY19 -> 0 | BY19: ='All Respondents'!BZ20-'All Respondents'!BZ19 -> 0.02 | BZ19: ='All Respondents'!CA20-'All Respondents'!CA19 -> 0.02 | CA19: ='All Respondents'!CB20-'All Respondents'!CB19 -> 0.04 | CB19: ='All Respondents'!CC20-'All Respondents'!CC19 -> -0.03 | CC19: ='All Respondents'!CD20-'All Respondents'!CD19 -> 0.05 | CD19: ='All Respondents'!CE20-'All Respondents'!CE19 -> -0.03 | CE19: ='All Respondents'!CF20-'All Respondents'!CF19 -> -0.05 | CF19: ='All Respondents'!CG20-'All Respondents'!CG19 -> 0.01 | CG19: ='All Respondents'!CH20-'All Respondents'!CH19 -> 0.01 | CH19: ='All Respondents'!CI20-'All Respondents'!CI19 -> 0.02 | CI19: ='All Respondents'!CJ20-'All Respondents'!CJ19 -> -0.06 | CJ19: ='All Respondents'!CK20-'All Respondents'!CK19 -> 0.01 | CK19: ='All Respondents'!CL20-'All Respondents'!CL19 -> 0.01 | CL19: ='All Respondents'!CM20-'All Respondents'!CM19 -> 0.02 | CM19: ='All Respondents'!CN20-'All Respondents'!CN19 -> -0.02 | CN19: ='All Respondents'!CO20-'All Respondents'!CO19 -> 0.03 | CO19: ='All Respondents'!CP20-'All Respondents'!CP19 -> -0.05 | CP19: ='All Respondents'!CQ20-'All Respondents'!CQ19 -> -0.04 | DA19: ='All Respondents'!DB20-'All Respondents'!DB19 -> 0.02 | DB19: ='All Respondents'!DC20-'All Respondents'!DC19 -> -0.04 | DE19: ='All Respondents'!DF20-'All Respondents'!DF19 -> -0.06 | DF19: ='All Respondents'!DG20-'All Respondents'!DG19 -> 0.01 | DG19: ='All Respondents'!DH20-'All Respondents'!DH19 -> -0.05 | DH19: ='All Respondents'!DI20-'All Respondents'!DI19 -> 0 | DI19: ='All Respondents'!DJ20-'All Respondents'!DJ19 -> 0.03 | DJ19: ='All Respondents'!DK20-'All Respondents'!DK19 -> 0.04 | DK19: ='All Respondents'!DL20-'All Respondents'!DL19 -> -0.01
A20: Nov-Dec 11 | B20: ='All Respondents'!B21-'All Respondents'!B20 -> 1.8 | C20: ='All Respondents'!D21-'All Respondents'!D20 -> 2.8 | D20: ='All Respondents'!E21-'All Respondents'!E20 -> 0.03 | E20: ='All Respondents'!F21-'All Respondents'!F20 -> -0.05 | F20: ='All Respondents'!G21-'All Respondents'!G20 -> 0 | G20: ='All Respondents'!H21-'All Respondents'!H20 -> 0.08 | H20: ='All Respondents'!I21-'All Respondents'!I20 -> -0.0022 | I20: ='All Respondents'!J21-'All Respondents'!J20 -> -0.0073 | J20: ='All Respondents'!K21-'All Respondents'!K20 -> 0.004834 | K20: ='All Respondents'!L21-'All Respondents'!L20 -> 0.01 | L20: ='All Respondents'!M21-'All Respondents'!M20 -> -0.02 | M20: ='All Respondents'!N21-'All Respondents'!N20 -> -0.01 | N20: ='All Respondents'!O21-'All Respondents'!O20 -> -0.03 | Q20: ='All Respondents'!R21-'All Respondents'!R20 -> -0.01 | R20: ='All Respondents'!S21-'All Respondents'!S20 -> 0.02 | S20: ='All Respondents'!T21-'All Respondents'!T20 -> 0.01 | T20: ='All Respondents'!U21-'All Respondents'!U20 -> 0 | U20: ='All Respondents'!V21-'All Respondents'!V20 -> -0.01 | V20: ='All Respondents'!W21-'All Respondents'!W20 -> -0.01 | W20: ='All Respondents'!X21-'All Respondents'!X20 -> 0.02 | AH20: ='All Respondents'!AI21-'All Respondents'!AI20 -> 0.02 | AI20: ='All Respondents'!AJ21-'All Respondents'!AJ20 -> -0.02 | AJ20: ='All Respondents'!AK21-'All Respondents'!AK20 -> 0 | AK20: ='All Respondents'!AL21-'All Respondents'!AL20 -> 0.04 | AL20: ='All Respondents'!AM21-'All Respondents'!AM20 -> -0.03 | AM20: ='All Respondents'!AN21-'All Respondents'!AN20 -> 0.01 | AN20: ='All Respondents'!AO21-'All Respondents'!AO20 -> -0.01 | AY20: ='All Respondents'!AZ21-'All Respondents'!AZ20 -> 0.02 | AZ20: ='All Respondents'!BA21-'All Respondents'!BA20 -> -0.01 | BA20: ='All Respondents'!BB21-'All Respondents'!BB20 -> -0.04 | BB20: ='All Respondents'!BC21-'All Respondents'!BC20 -> 0.03 | BC20: ='All Respondents'!BD21-'All Respondents'!BD20 -> 0.001575 | BD20: ='All Respondents'!BE21-'All Respondents'!BE20 -> 0.04 | BE20: ='All Respondents'!BF21-'All Respondents'!BF20 -> -0.04 | BF20: ='All Respondents'!BG21-'All Respondents'!BG20 -> 0.08 | BG20: ='All Respondents'!BH21-'All Respondents'!BH20 -> 0.08 | BH20: ='All Respondents'!BI21-'All Respondents'!BI20 -> -0.07 | BI20: ='All Respondents'!BJ21-'All Respondents'!BJ20 -> 0.15 | BJ20: ='All Respondents'!BK21-'All Respondents'!BK20 -> 0.01 | BK20: ='All Respondents'!BL21-'All Respondents'!BL20 -> 0.04 | BL20: ='All Respondents'!BM21-'All Respondents'!BM20 -> 0.05 | BM20: ='All Respondents'!BN21-'All Respondents'!BN20 -> -0.05 | BN20: ='All Respondents'!BO21-'All Respondents'!BO20 -> -0.01 | BO20: ='All Respondents'!BP21-'All Respondents'!BP20 -> 0.01 | BP20: ='All Respondents'!BQ21-'All Respondents'!BQ20 -> 0 | BQ20: ='All Respondents'!BR21-'All Respondents'!BR20 -> 0.05 | BR20: ='All Respondents'!BS21-'All Respondents'!BS20 -> 0.03 | BS20: ='All Respondents'!BT21-'All Respondents'!BT20 -> 0.01 | BT20: ='All Respondents'!BU21-'All Respondents'!BU20 -> -0.05 | BU20: ='All Respondents'!BV21-'All Respondents'!BV20 -> 0.02 | BV20: ='All Respondents'!BW21-'All Respondents'!BW20 -> 0 | BW20: ='All Respondents'!BX21-'All Respondents'!BX20 -> 0.01 | BX20: ='All Respondents'!BY21-'All Respondents'!BY20 -> 0.01 | BY20: ='All Respondents'!BZ21-'All Respondents'!BZ20 -> 0.03 | BZ20: ='All Respondents'!CA21-'All Respondents'!CA20 -> -0.03 | CA20: ='All Respondents'!CB21-'All Respondents'!CB20 -> 0 | CB20: ='All Respondents'!CC21-'All Respondents'!CC20 -> 0 | CC20: ='All Respondents'!CD21-'All Respondents'!CD20 -> 0.03 | CD20: ='All Respondents'!CE21-'All Respondents'!CE20 -> -0.02 | CE20: ='All Respondents'!CF21-'All Respondents'!CF20 -> -0.01 | CF20: ='All Respondents'!CG21-'All Respondents'!CG20 -> 0 | CG20: ='All Respondents'!CH21-'All Respondents'!CH20 -> -0.03 | CH20: ='All Respondents'!CI21-'All Respondents'!CI20 -> -0.02 | CI20: ='All Respondents'!CJ21-'All Respondents'!CJ20 -> 0.05 | CJ20: ='All Respondents'!CK21-'All Respondents'!CK20 -> 0 | CK20: ='All Respondents'!CL21-'All Respondents'!CL20 -> -0.02 | CL20: ='All Respondents'!CM21-'All Respondents'!CM20 -> -0.02 | CM20: ='All Respondents'!CN21-'All Respondents'!CN20 -> 0.01 | CN20: ='All Respondents'!CO21-'All Respondents'!CO20 -> -0.02 | CO20: ='All Respondents'!CP21-'All Respondents'!CP20 -> 0.03 | CP20: ='All Respondents'!CQ21-'All Respondents'!CQ20 -> 0.03 | DA20: ='All Respondents'!DB21-'All Respondents'!DB20 -> -0.01 | DB20: ='All Respondents'!DC21-'All Respondents'!DC20 -> 0.02 | DE20: ='All Respondents'!DF21-'All Respondents'!DF20 -> 0.07 | DF20: ='All Respondents'!DG21-'All Respondents'!DG20 -> -0.02 | DG20: ='All Respondents'!DH21-'All Respondents'!DH20 -> 0.05 | DH20: ='All Respondents'!DI21-'All Respondents'!DI20 -> -0.01 | DI20: ='All Respondents'!DJ21-'All Respondents'!DJ20 -> -0.03 | DJ20: ='All Respondents'!DK21-'All Respondents'!DK20 -> -0.04 | DK20: ='All Respondents'!DL21-'All Respondents'!DL20 -> 0.01
A21: Dec 11-Jan 12 | B21: ='All Respondents'!B22-'All Respondents'!B21 -> 2.7 | C21: ='All Respondents'!D22-'All Respondents'!D21 -> 3.6 | D21: ='All Respondents'!E22-'All Respondents'!E21 -> 0.04 | E21: ='All Respondents'!F22-'All Respondents'!F21 -> -0.01 | F21: ='All Respondents'!G22-'All Respondents'!G21 -> -0.04 | G21: ='All Respondents'!H22-'All Respondents'!H21 -> 0.05 | H21: ='All Respondents'!I22-'All Respondents'!I21 -> 0.0134 | I21: ='All Respondents'!J22-'All Respondents'!J21 -> 0 | J21: ='All Respondents'!K22-'All Respondents'!K21 -> 0.006345 | K21: ='All Respondents'!L22-'All Respondents'!L21 -> -0.01 | L21: ='All Respondents'!M22-'All Respondents'!M21 -> -0.03 | M21: ='All Respondents'!N22-'All Respondents'!N21 -> 0.04 | N21: ='All Respondents'!O22-'All Respondents'!O21 -> -0.02 | Q21: ='All Respondents'!R22-'All Respondents'!R21 -> -0.02 | R21: ='All Respondents'!S22-'All Respondents'!S21 -> 0.02 | S21: ='All Respondents'!T22-'All Respondents'!T21 -> 0 | T21: ='All Respondents'!U22-'All Respondents'!U21 -> -0.03 | U21: ='All Respondents'!V22-'All Respondents'!V21 -> 0.01 | V21: ='All Respondents'!W22-'All Respondents'!W21 -> -0.02 | W21: ='All Respondents'!X22-'All Respondents'!X21 -> 0.02 | AH21: ='All Respondents'!AI22-'All Respondents'!AI21 -> -0.01 | AI21: ='All Respondents'!AJ22-'All Respondents'!AJ21 -> 0.01 | AJ21: ='All Respondents'!AK22-'All Respondents'!AK21 -> 0 | AK21: ='All Respondents'!AL22-'All Respondents'!AL21 -> 0 | AL21: ='All Respondents'!AM22-'All Respondents'!AM21 -> -0.02 | AM21: ='All Respondents'!AN22-'All Respondents'!AN21 -> -0.02 | AN21: ='All Respondents'!AO22-'All Respondents'!AO21 -> 0.02 | AY21: ='All Respondents'!AZ22-'All Respondents'!AZ21 -> 0.02 | AZ21: ='All Respondents'!BA22-'All Respondents'!BA21 -> -0.01 | BA21: ='All Respondents'!BB22-'All Respondents'!BB21 -> 0 | BB21: ='All Respondents'!BC22-'All Respondents'!BC21 -> 0.03 | BC21: ='All Respondents'!BD22-'All Respondents'!BD21 -> 0.000452 | BD21: ='All Respondents'!BE22-'All Respondents'!BE21 -> -0.01 | BE21: ='All Respondents'!BF22-'All Respondents'!BF21 -> 0 | BF21: ='All Respondents'!BG22-'All Respondents'!BG21 -> -0.01 | BG21: ='All Respondents'!BH22-'All Respondents'!BH21 -> 0.08 | BH21: ='All Respondents'!BI22-'All Respondents'!BI21 -> -0.08 | BI21: ='All Respondents'!BJ22-'All Respondents'!BJ21 -> 0.16 | BJ21: ='All Respondents'!BK22-'All Respondents'!BK21 -> 0.04 | BK21: ='All Respondents'!BL22-'All Respondents'!BL21 -> -0.02 | BL21: ='All Respondents'!BM22-'All Respondents'!BM21 -> 0.02 | BM21: ='All Respondents'!BN22-'All Respondents'!BN21 -> 0.02 | BN21: ='All Respondents'!BO22-'All Respondents'!BO21 -> -0.03 | BO21: ='All Respondents'!BP22-'All Respondents'!BP21 -> -0.01 | BP21: ='All Respondents'!BQ22-'All Respondents'!BQ21 -> -0.04 | BQ21: ='All Respondents'!BR22-'All Respondents'!BR21 -> 0.06 | BR21: ='All Respondents'!BS22-'All Respondents'!BS21 -> 0.01 | BS21: ='All Respondents'!BT22-'All Respondents'!BT21 -> -0.02 | BT21: ='All Respondents'!BU22-'All Respondents'!BU21 -> 0.01 | BU21: ='All Respondents'!BV22-'All Respondents'!BV21 -> 0.03 | BV21: ='All Respondents'!BW22-'All Respondents'!BW21 -> 0 | BW21: ='All Respondents'!BX22-'All Respondents'!BX21 -> -0.01 | BX21: ='All Respondents'!BY22-'All Respondents'!BY21 -> -0.01 | BY21: ='All Respondents'!BZ22-'All Respondents'!BZ21 -> -0.01 | BZ21: ='All Respondents'!CA22-'All Respondents'!CA21 -> -0.01 | CA21: ='All Respondents'!CB22-'All Respondents'!CB21 -> -0.02 | CB21: ='All Respondents'!CC22-'All Respondents'!CC21 -> 0.01 | CC21: ='All Respondents'!CD22-'All Respondents'!CD21 -> -0.09 | CD21: ='All Respondents'!CE22-'All Respondents'!CE21 -> 0.06 | CE21: ='All Respondents'!CF22-'All Respondents'!CF21 -> 0.04 | CF21: ='All Respondents'!CG22-'All Respondents'!CG21 -> -0.01 | CG21: ='All Respondents'!CH22-'All Respondents'!CH21 -> -0.01 | CH21: ='All Respondents'!CI22-'All Respondents'!CI21 -> 0.04 | CI21: ='All Respondents'!CJ22-'All Respondents'!CJ21 -> -0.02 | CJ21: ='All Respondents'!CK22-'All Respondents'!CK21 -> -0.01 | CK21: ='All Respondents'!CL22-'All Respondents'!CL21 -> -0.02 | CL21: ='All Respondents'!CM22-'All Respondents'!CM21 -> -0.03 | CM21: ='All Respondents'!CN22-'All Respondents'!CN21 -> 0.03 | CN21: ='All Respondents'!CO22-'All Respondents'!CO21 -> 0.04 | CO21: ='All Respondents'!CP22-'All Respondents'!CP21 -> -0.01 | CP21: ='All Respondents'!CQ22-'All Respondents'!CQ21 -> 0.06 | DA21: ='All Respondents'!DB22-'All Respondents'!DB21 -> 0.04 | DB21: ='All Respondents'!DC22-'All Respondents'!DC21 -> -0.02 | DE21: ='All Respondents'!DF22-'All Respondents'!DF21 -> -0.03 | DF21: ='All Respondents'!DG22-'All Respondents'!DG21 -> 0 | DG21: ='All Respondents'!DH22-'All Respondents'!DH21 -> -0.03 | DH21: ='All Respondents'!DI22-'All Respondents'!DI21 -> 0.04 | DI21: ='All Respondents'!DJ22-'All Respondents'!DJ21 -> 0.01 | DJ21: ='All Respondents'!DK22-'All Respondents'!DK21 -> 0 | DK21: ='All Respondents'!DL22-'All Respondents'!DL21 -> 0.01
A22: Jan-Feb 12 | B22: ='All Respondents'!B23-'All Respondents'!B22 -> 0.1 | C22: ='All Respondents'!D23-'All Respondents'!D22 -> -0.4 | D22: ='All Respondents'!E23-'All Respondents'!E22 -> -0.03 | E22: ='All Respondents'!F23-'All Respondents'!F22 -> -0.01 | F22: ='All Respondents'!G23-'All Respondents'!G22 -> 0.05 | G22: ='All Respondents'!H23-'All Respondents'!H22 -> -0.02 | H22: ='All Respondents'!I23-'All Respondents'!I22 -> -0.0032 | I22: ='All Respondents'!J23-'All Respondents'!J22 -> -0.0063 | J22: ='All Respondents'!K23-'All Respondents'!K22 -> -0.003882 | K22: ='All Respondents'!L23-'All Respondents'!L22 -> 0 | L22: ='All Respondents'!M23-'All Respondents'!M22 -> 0.03 | M22: ='All Respondents'!N23-'All Respondents'!N22 -> -0.03 | N22: ='All Respondents'!O23-'All Respondents'!O22 -> 0.03 | Q22: ='All Respondents'!R23-'All Respondents'!R22 -> 0.02 | R22: ='All Respondents'!S23-'All Respondents'!S22 -> -0.02 | S22: ='All Respondents'!T23-'All Respondents'!T22 -> 0 | T22: ='All Respondents'!U23-'All Respondents'!U22 -> 0.02 | U22: ='All Respondents'!V23-'All Respondents'!V22 -> -0.03 | V22: ='All Respondents'!W23-'All Respondents'!W22 -> -0.01 | W22: ='All Respondents'!X23-'All Respondents'!X22 -> 0.01 | AH22: ='All Respondents'!AI23-'All Respondents'!AI22 -> 0.01 | AI22: ='All Respondents'!AJ23-'All Respondents'!AJ22 -> 0.01 | AJ22: ='All Respondents'!AK23-'All Respondents'!AK22 -> 0.02 | AK22: ='All Respondents'!AL23-'All Respondents'!AL22 -> 0.02 | AL22: ='All Respondents'!AM23-'All Respondents'!AM22 -> -0.03 | AM22: ='All Respondents'!AN23-'All Respondents'!AN22 -> -0.01 | AN22: ='All Respondents'!AO23-'All Respondents'!AO22 -> 0.03 | AY22: ='All Respondents'!AZ23-'All Respondents'!AZ22 -> 0 | AZ22: ='All Respondents'!BA23-'All Respondents'!BA22 -> 0 | BA22: ='All Respondents'!BB23-'All Respondents'!BB22 -> 0 | BB22: ='All Respondents'!BC23-'All Respondents'!BC22 -> 0 | BC22: ='All Respondents'!BD23-'All Respondents'!BD22 -> -0.00205 | BD22: ='All Respondents'!BE23-'All Respondents'!BE22 -> 0.01 | BE22: ='All Respondents'!BF23-'All Respondents'!BF22 -> -0.01 | BF22: ='All Respondents'!BG23-'All Respondents'!BG22 -> 0.02 | BG22: ='All Respondents'!BH23-'All Respondents'!BH22 -> 0.05 | BH22: ='All Respondents'!BI23-'All Respondents'!BI22 -> -0.04 | BI22: ='All Respondents'!BJ23-'All Respondents'!BJ22 -> 0.09 | BJ22: ='All Respondents'!BK23-'All Respondents'!BK22 -> -0.02 | BK22: ='All Respondents'!BL23-'All Respondents'!BL22 -> 0.03 | BL22: ='All Respondents'!BM23-'All Respondents'!BM22 -> 0.01 | BM22: ='All Respondents'!BN23-'All Respondents'!BN22 -> 0.02 | BN22: ='All Respondents'!BO23-'All Respondents'!BO22 -> 0 | BO22: ='All Respondents'!BP23-'All Respondents'!BP22 -> -0.02 | BP22: ='All Respondents'!BQ23-'All Respondents'!BQ22 -> -0.02 | BQ22: ='All Respondents'!BR23-'All Respondents'!BR22 -> 0.03 | BR22: ='All Respondents'!BS23-'All Respondents'!BS22 -> -0.01 | BS22: ='All Respondents'!BT23-'All Respondents'!BT22 -> 0 | BT22: ='All Respondents'!BU23-'All Respondents'!BU22 -> 0.03 | BU22: ='All Respondents'!BV23-'All Respondents'!BV22 -> -0.01 | BV22: ='All Respondents'!BW23-'All Respondents'!BW22 -> -0.03 | BW22: ='All Respondents'!BX23-'All Respondents'!BX22 -> 0.02 | BX22: ='All Respondents'!BY23-'All Respondents'!BY22 -> 0.05 | BY22: ='All Respondents'!BZ23-'All Respondents'!BZ22 -> -0.06 | BZ22: ='All Respondents'!CA23-'All Respondents'!CA22 -> 0.03 | CA22: ='All Respondents'!CB23-'All Respondents'!CB22 -> -0.03 | CB22: ='All Respondents'!CC23-'All Respondents'!CC22 -> 0 | CC22: ='All Respondents'!CD23-'All Respondents'!CD22 -> 0.03 | CD22: ='All Respondents'!CE23-'All Respondents'!CE22 -> -0.03 | CE22: ='All Respondents'!CF23-'All Respondents'!CF22 -> 0 | CF22: ='All Respondents'!CG23-'All Respondents'!CG22 -> -0.01 | CG22: ='All Respondents'!CH23-'All Respondents'!CH22 -> 0.02 | CH22: ='All Respondents'!CI23-'All Respondents'!CI22 -> -0.02 | CI22: ='All Respondents'!CJ23-'All Respondents'!CJ22 -> 0 | CJ22: ='All Respondents'!CK23-'All Respondents'!CK22 -> 0 | CK22: ='All Respondents'!CL23-'All Respondents'!CL22 -> 0.02 | CL22: ='All Respondents'!CM23-'All Respondents'!CM22 -> 0.02 | CM22: ='All Respondents'!CN23-'All Respondents'!CN22 -> -0.01 | CN22: ='All Respondents'!CO23-'All Respondents'!CO22 -> -0.01 | CO22: ='All Respondents'!CP23-'All Respondents'!CP22 -> 0 | CP22: ='All Respondents'!CQ23-'All Respondents'!CQ22 -> -0.03 | CQ22: ='All Respondents'!CR23-'All Respondents'!CR22 -> 0.02 | CR22: ='All Respondents'!CS23-'All Respondents'!CS22 -> -0.03 | CS22: ='All Respondents'!CT23-'All Respondents'!CT22 -> -0.02 | CT22: ='All Respondents'!CU23-'All Respondents'!CU22 -> 0 | CU22: ='All Respondents'!CV23-'All Respondents'!CV22 -> 0.01 | DA22: ='All Respondents'!DB23-'All Respondents'!DB22 -> -0.02 | DB22: ='All Respondents'!DC23-'All Respondents'!DC22 -> 0.01 | DE22: ='All Respondents'!DF23-'All Respondents'!DF22 -> -0.02 | DF22: ='All Respondents'!DG23-'All Respondents'!DG22 -> -0.01 | DG22: ='All Respondents'!DH23-'All Respondents'!DH22 -> -0.03 | DH22: ='All Respondents'!DI23-'All Respondents'!DI22 -> 0 | DI22: ='All Respondents'!DJ23-'All Respondents'!DJ22 -> 0.02 | DJ22: ='All Respondents'!DK23-'All Respondents'!DK22 -> 0.02 | DK22: ='All Respondents'!DL23-'All Respondents'!DL22 -> 0
